Workbook

Sheet Historical scenario - input
B1: Unit cost - historical | C1: Calibration period: 2014-15 to 2016-17
B2: Replacement lives - calibrated
D3: Unit cost | E3: Replacement life | G3: Method | H3: Volume | CV3: Replacement Cost (NOT depreciated)
H4: Installation date | CV4: Installation date
A5: ID | B5: Asset group | C5: Asset category | D5: $ ('000) | E5: μ | F5: σ | G5: # | H5: 2017 | I5: 2016 | J5: 2015 | K5: 2014 | L5: 2013 | M5: 2012 | N5: 2011 | O5: 2010 | P5: 2009 | Q5: 2008 | R5: 2007 | S5: 2006 | T5: 2005 | U5: 2004 | V5: 2003 | W5: 2002 | X5: 2001 | Y5: 2000 | Z5: 1999 | AA5: 1998 | AB5: 1997 | AC5: 1996 | AD5: 1995 | AE5: 1994 | AF5: 1993 | AG5: 1992 | AH5: 1991 | AI5: 1990 | AJ5: 1989 | AK5: 1988 | AL5: 1987 | AM5: 1986 | AN5: 1985 | AO5: 1984 | AP5: 1983 | AQ5: 1982 | AR5: 1981 | AS5: 1980 | AT5: 1979 | AU5: 1978 | AV5: 1977 | AW5: 1976 | AX5: 1975 | AY5: 1974 | AZ5: 1973 | BA5: 1972 | BB5: 1971 | BC5: 1970 | BD5: 1969 | BE5: 1968 | BF5: 1967 | BG5: 1966 | BH5: 1965 | BI5: 1964 | BJ5: 1963 | BK5: 1962 | BL5: 1961 | BM5: 1960 | BN5: 1959 | BO5: 1958 | BP5: 1957 | BQ5: 1956 | BR5: 1955 | BS5: 1954 | BT5: 1953 | BU5: 1952 | BV5: 1951 | BW5: 1950 | BX5: 1949 | BY5: 1948 | BZ5: 1947 | CA5: 1946 | CB5: 1945 | CC5: 1944 | CD5: 1943 | CE5: 1942 | CF5: 1941 | CG5: 1940 | CH5: 1939 | CI5: 1938 | CJ5: 1937 | CK5: 1936 | CL5: 1935 | CM5: 1934 | CN5: 1933 | CO5: 1932 | CP5: 1931 | CQ5: 1930 | CR5: 1929 | CS5: 1928 | CT5: 1927 | CV5: =H5 -> 2017 | CW5: =I5 -> 2016 | CX5: 2015 | CY5: 2014 | CZ5: 2013 | DA5: 2012 | DB5: 2011 | DC5: 2010 | DD5: 2009 | DE5: 2008 | DF5: 2007 | DG5: 2006 | DH5: 2005 | DI5: 2004 | DJ5: 2003 | DK5: 2002 | DL5: 2001 | DM5: 2000 | DN5: 1999 | DO5: 1998 | DP5: 1997 | DQ5: 1996 | DR5: 1995 | DS5: 1994 | DT5: 1993 | DU5: 1992 | DV5: 1991 | DW5: 1990 | DX5: 1989 | DY5: 1988 | DZ5: 1987 | EA5: 1986 | EB5: 1985 | EC5: 1984 | ED5: 1983 | EE5: 1982 | EF5: 1981 | EG5: 1980 | EH5: 1979 | EI5: 1978 | EJ5: 1977 | EK5: 1976 | EL5: 1975 | EM5: 1974 | EN5: 1973 | EO5: 1972 | EP5: 1971 | EQ5: 1970 | ER5: 1969 | ES5: 1968 | ET5: 1967 | EU5: 1966 | EV5: 1965 | EW5: 1964 | EX5: 1963 | EY5: 1962 | EZ5: 1961 | FA5: 1960 | FB5: 1959 | FC5: 1958 | FD5: 1957 | FE5: 1956 | FF5: 1955 | FG5: 1954 | FH5: 1953 | FI5: =BU5 -> 1952 | FJ5: 1951 | FK5: 1950 | FL5: 1949 | FM5: 1948 | FN5: 1947 | FO5: 1946 | FP5: 1945 | FQ5: 1944 | FR5: 1943 | FS5: 1942 | FT5: 1941 | FU5: 1940 | FV5: 1939 | FW5: 1938 | FX5: 1937 | FY5: 1936 | FZ5: 1935 | GA5: 1934 | GB5: 1933 | GC5: 1932 | GD5: 1931 | GE5: 1930 | GF5: 1929 | GG5: 1928 | GH5: 1927
A6: 1 | B6: OVERHEAD CONDUCTORS | C6: ˂ = 1 kv | D6: 85.61683028 | E6: 80.21405929 | F6: 8.956230194 | G6: =IFERROR(IF($B6="","",2),"") -> 2 | H6: 48.90425231 | I6: 69.98459167 | J6: 90.728516 | K6: 138.445 | L6: 105.6849981 | M6: 148.0149401 | N6: 156.8703006 | O6: 127.0401029 | P6: 137.9865195 | Q6: 121.2678123 | R6: 104.0934893 | S6: 117.7827322 | T6: 106.2596277 | U6: 86.63119337 | V6: 101.2247178 | W6: 71.5573235 | X6: 64.95214891 | Y6: 70.32994435 | Z6: 59.47556556 | AA6: 47.30689756 | AB6: 54.38809116 | AC6: 51.97112258 | AD6: 64.78628561 | AE6: 64.59085373 | AF6: 46.07905657 | AG6: 38.7609106 | AH6: 87.03365015 | AI6: 99.38698845 | AJ6: 91.69278674 | AK6: 68.21779091 | AL6: 105.108548 | AM6: 100.933868 | AN6: 116.3943062 | AO6: 95.60392482 | AP6: 86.59645363 | AQ6: 167.3075565 | AR6: 162.9249004 | AS6: 339.3508907 | AT6: 218.5792043 | AU6: 146.2043084 | AV6: 148.7374637 | AW6: 150.7232372 | AX6: 163.5259835 | AY6: 268.2010268 | AZ6: 170.1309827 | BA6: 282.043432 | BB6: 191.8415269 | BC6: 226.8495736 | BD6: 307.8779226 | BE6: 425.2606254 | BF6: 346.6539802 | BG6: 509.7369171 | BH6: 514.5393665 | BI6: 535.3662711 | BJ6: 863.7350394 | BK6: 507.9547301 | BL6: 459.3206488 | BM6: 595.3277065 | BN6: 540.2259293 | BO6: 289.9082198 | BP6: 359.4176898 | BQ6: 365.952846 | BR6: 103.9934211 | BS6: 59.28537915 | BT6: 50.71850584 | BU6: 39.9744827 | BV6: 56.14415702 | BW6: 22.05555549 | BX6: 40.63810247 | BY6: 19.72847488 | BZ6: 6.07562601 | CA6: 9.68956936 | CB6: 22.74249479 | CC6: 40.50134442 | CD6: 0 | CE6: 0 | CF6: 0 | CG6: 52.30119565 | CH6: 0 | CI6: 0 | CJ6: 0 | CK6: 0 | CL6: 0 | CM6: 0 | CN6: 0 | CO6: 0 | CP6: 0 | CQ6: 0 | CR6: 0 | CS6: 76.3449674 | CT6: 65.03292095 | CV6: =IFERROR($D6*H6,"") -> 4187.02707 | CW6: =IFERROR($D6*I6,"") -> 5991.858907 | CX6: =IFERROR($D6*J6,"") -> 7767.887956 | CY6: =IFERROR($D6*K6,"") -> 11853.22207 | CZ6: =IFERROR($D6*L6,"") -> 9048.414546 | DA6: =IFERROR($D6*M6,"") -> 12672.57 | DB6: =IFERROR($D6*N6,"") -> 13430.7379 | DC6: =IFERROR($D6*O6,"") -> 10876.77093 | DD6: =IFERROR($D6*P6,"") -> 11813.96842 | DE6: =IFERROR($D6*Q6,"") -> 10382.56571 | DF6: =IFERROR($D6*R6,"") -> 8912.154607 | DG6: =IFERROR($D6*S6,"") -> 10084.18419 | DH6: =IFERROR($D6*T6,"") -> 9097.612513 | DI6: =IFERROR($D6*U6,"") -> 7417.088179 | DJ6: =IFERROR($D6*V6,"") -> 8666.539486 | DK6: =IFERROR($D6*W6,"") -> 6126.511221 | DL6: =IFERROR($D6*X6,"") -> 5560.997109 | DM6: =IFERROR($D6*Y6,"") -> 6021.426909 | DN6: =IFERROR($D6*Z6,"") -> 5092.109402 | DO6: =IFERROR($D6*AA6,"") -> 4050.266619 | DP6: =IFERROR($D6*AB6,"") -> 4656.53597 | DQ6: =IFERROR($D6*AC6,"") -> 4449.602781 | DR6: =IFERROR($D6*AD6,"") -> 5546.796419 | DS6: =IFERROR($D6*AE6,"") -> 5530.064161 | DT6: =IFERROR($D6*AF6,"") -> 3945.142766 | DU6: =IFERROR($D6*AG6,"") -> 3318.586304 | DV6: =IFERROR($D6*AH6,"") -> 7451.545253 | DW6: =IFERROR($D6*AI6,"") -> 8509.198922 | DX6: =IFERROR($D6*AJ6,"") -> 7850.44576 | DY6: =IFERROR($D6*AK6,"") -> 5840.591026 | DZ6: =IFERROR($D6*AL6,"") -> 8999.06071 | EA6: =IFERROR($D6*AM6,"") -> 8641.637848 | EB6: =IFERROR($D6*AN6,"") -> 9965.311561 | EC6: =IFERROR($D6*AO6,"") -> 8185.305005 | ED6: =IFERROR($D6*AP6,"") -> 7414.113873 | EE6: =IFERROR($D6*AQ6,"") -> 14324.34267 | EF6: =IFERROR($D6*AR6,"") -> 13949.11355 | EG6: =IFERROR($D6*AS6,"") -> 29054.14761 | EH6: =IFERROR($D6*AT6,"") -> 18714.05864 | EI6: =IFERROR($D6*AU6,"") -> 12517.54946 | EJ6: =IFERROR($D6*AV6,"") -> 12734.43019 | EK6: =IFERROR($D6*AW6,"") -> 12904.44581 | EL6: =IFERROR($D6*AX6,"") -> 14000.57638 | EM6: =IFERROR($D6*AY6,"") -> 22962.52179 | EN6: =IFERROR($D6*AZ6,"") -> 14566.07547 | EO6: =IFERROR($D6*BA6,"") -> 24147.66465 | EP6: =IFERROR($D6*BB6,"") -> 16424.86345 | EQ6: =IFERROR($D6*BC6,"") -> 19422.14145 | ER6: =IFERROR($D6*BD6,"") -> 26359.53184 | ES6: =IFERROR($D6*BE6,"") -> 36409.46679 | ET6: =IFERROR($D6*BF6,"") -> 29679.41499 | EU6: =IFERROR($D6*BG6,"") -> 43642.05912 | EV6: =IFERROR($D6*BH6,"") -> 44053.22961 | EW6: =IFERROR($D6*BI6,"") -> 45836.36317 | EX6: =IFERROR($D6*BJ6,"") -> 73950.25627 | EY6: =IFERROR($D6*BK6,"") -> 43489.47392 | EZ6: =IFERROR($D6*BL6,"") -> 39325.57803 | FA6: =IFERROR($D6*BM6,"") -> 50970.07121 | FB6: =IFERROR($D6*BN6,"") -> 46252.4317 | FC6: =IFERROR($D6*BO6,"") -> 24821.02285 | FD6: =IFERROR($D6*BP6,"") -> 30772.20335 | FE6: =IFERROR($D6*BQ6,"") -> 31331.7227 | FF6: =IFERROR($D6*BR6,"") -> 8903.587081 | FG6: =IFERROR($D6*BS6,"") -> 5075.826245 | FH6: =IFERROR($D6*BT6,"") -> 4342.357706 | FI6: =IFERROR($D6*BU6,"") -> 3422.488501 | FJ6: =IFERROR($D6*BV6,"") -> 4806.884763 | FK6: =IFERROR($D6*BW6,"") -> 1888.326751 | FL6: =IFERROR($D6*BX6,"") -> 3479.305522 | FM6: =IFERROR($D6*BY6,"") -> 1689.089485 | FN6: =IFERROR($D6*BZ6,"") -> 520.1758409 | FO6: =IFERROR($D6*CA6,"") -> 829.5902153 | FP6: =IFERROR($D6*CB6,"") -> 1947.140317 | FQ6: =IFERROR($D6*CC6,"") -> 3467.596731 | FR6: =IFERROR($D6*CD6,"") -> 0 | FS6: =IFERROR($D6*CE6,"") -> 0 | FT6: =IFERROR($D6*CF6,"") -> 0 | FU6: =IFERROR($D6*CG6,"") -> 4477.862591 | FV6: =IFERROR($D6*CH6,"") -> 0 | FW6: =IFERROR($D6*CI6,"") -> 0 | FX6: =IFERROR($D6*CJ6,"") -> 0 | FY6: =IFERROR($D6*CK6,"") -> 0 | FZ6: =IFERROR($D6*CL6,"") -> 0 | GA6: =IFERROR($D6*CM6,"") -> 0 | GB6: =IFERROR($D6*CN6,"") -> 0 | GC6: =IFERROR($D6*CO6,"") -> 0 | GD6: =IFERROR($D6*CP6,"") -> 0 | GE6: =IFERROR($D6*CQ6,"") -> 0 | GF6: =IFERROR($D6*CR6,"") -> 0 | GG6: =IFERROR($D6*CS6,"") -> 6536.414116 | GH6: =IFERROR($D6*CT6,"") -> 5567.912555
A7: 1 | B7: OVERHEAD CONDUCTORS | C7: ˃ 11 kv & < = 22 kv ; multiple-phase | D7: 47.29819487 | E7: 61.59624592 | F7: 7.848327587 | G7: =IFERROR(IF($B7="","",2),"") -> 2 | H7: 0 | I7: 0.0002125 | J7: 0 | K7: 0 | L7: 0 | M7: 0 | N7: 0 | O7: 0.12718996 | P7: 0.0002125 | Q7: 0.0002125 | R7: 0 | S7: 0 | T7: 0.0002627 | U7: 0.73652703 | V7: 2.8691045 | W7: 5.1828679 | X7: 0.0002125 | Y7: 0.65574959 | Z7: 0.00126764 | AA7: 1.18147799 | AB7: 0.0002125 | AC7: 0 | AD7: 2.67398727 | AE7: 0 | AF7: 0.0002125 | AG7: 0.0002125 | AH7: 0.08690996 | AI7: 0.0002125 | AJ7: 1.80183676 | AK7: 0.0002125 | AL7: 0.0002125 | AM7: 0.0002125 | AN7: 0 | AO7: 0.0002125 | AP7: 0.0002125 | AQ7: 0.0002125 | AR7: 0 | AS7: 0.0002125 | AT7: 0 | AU7: 0 | AV7: 0 | AW7: 0 | AX7: 0 | AY7: 1.7701774 | AZ7: 1.81890433 | BA7: 0.00031586 | BB7: 0.0002125 | BC7: 25.32060449 | BD7: 0 | BE7: 0 | BF7: 0 | BG7: 0 | BH7: 0 | BI7: 11.65848642 | BJ7: 0 | BK7: 0 | BL7: 0 | BM7: 0 | BN7: 0 | BO7: 0 | BP7: 0 | BQ7: 0 | BR7: 0 | BS7: 0 | BT7: 0 | BU7: 0 | BV7: 0 | BW7: 0 | BX7: 0 | BY7: 0 | BZ7: 0 | CA7: 0 | CB7: 0 | CC7: 0 | CD7: 0 | CE7: 0 | CF7: 0 | CG7: 0 | CH7: 0 | CI7: 0 | CJ7: 0 | CK7: 0 | CL7: 0 | CM7: 0 | CN7: 0 | CO7: 0 | CP7: 0 | CQ7: 0 | CR7: 0 | CS7: 0 | CT7: 0 | CV7: =IFERROR($D7*H7,"") -> 0 | CW7: 0.01005086641 | CX7: 0 | CY7: 0 | CZ7: 0 | DA7: 0 | DB7: 0 | DC7: 6.015855513 | DD7: 0.01005086641 | DE7: 0.01005086641 | DF7: 0 | DG7: 0 | DH7: 0.01242523579 | DI7: 34.83639899 | DJ7: 135.7034637 | DK7: 245.1402959 | DL7: 0.01005086641 | DM7: 31.01577189 | DN7: 0.05995708374 | DO7: 55.8817762 | DP7: 0.01005086641 | DQ7: 0 | DR7: 126.474771 | DS7: 0 | DT7: 0.01005086641 | DU7: 0.01005086641 | DV7: 4.110684224 | DW7: 0.01005086641 | DX7: 85.22362619 | DY7: 0.01005086641 | DZ7: 0.01005086641 | EA7: 0.01005086641 | EB7: 0 | EC7: 0.01005086641 | ED7: 0.01005086641 | EE7: 0.01005086641 | EF7: 0 | EG7: 0.01005086641 | EH7: 0 | EI7: 0 | EJ7: 0 | EK7: 0 | EL7: 0 | EM7: 83.72619562 | EN7: 86.03089145 | EO7: 0.01493960783 | EP7: 0.01005086641 | EQ7: 1197.618885 | ER7: 0 | ES7: 0 | ET7: 0 | EU7: 0 | EV7: 0 | EW7: 551.4253626 | EX7: 0 | EY7: 0 | EZ7: 0 | FA7: 0 | FB7: 0 | FC7: 0 | FD7: 0 | FE7: 0 | FF7: 0 | FG7: 0 | FH7: 0 | FI7: 0 | FJ7: 0 | FK7: 0 | FL7: 0 | FM7: 0 | FN7: 0 | FO7: 0 | FP7: 0 | FQ7: 0 | FR7: 0 | FS7: 0 | FT7: 0 | FU7: 0 | FV7: 0 | FW7: 0 | FX7: 0 | FY7: 0 | FZ7: 0 | GA7: 0 | GB7: 0 | GC7: 0 | GD7: 0 | GE7: 0 | GF7: 0 | GG7: 0 | GH7: 0
A8: 1 | B8: OVERHEAD CONDUCTORS | C8: ˃ 11 kv & < = 22 kv ; single-phase | D8: 47.29819487 | E8: 61.59624592 | F8: 7.848327587 | G8: 2 | H8: 0 | I8: 0.0001 | J8: 0 | K8: 0 | L8: 0 | M8: 0 | N8: 0 | O8: 0 | P8: 4.03610781 | Q8: 0.26823888 | R8: 0 | S8: 0 | T8: 2.08415036 | U8: 5.73146453 | V8: 0.24640622 | W8: 0.37277796 | X8: 2.18115157 | Y8: 11.39900757 | Z8: 2.94570273 | AA8: 3.56263197 | AB8: 0.68725927 | AC8: 0 | AD8: 0.49680583 | AE8: 0 | AF8: 0.00010307 | AG8: 0.23095043 | AH8: 1.21145053 | AI8: 1.2158768 | AJ8: 0.00010042 | AK8: 0.77079216 | AL8: 0.00010309 | AM8: 0.17798974 | AN8: 0 | AO8: 0.18773483 | AP8: 0.84649414 | AQ8: 0.55715602 | AR8: 0 | AS8: 1.11921295 | AT8: 0 | AU8: 0 | AV8: 0 | AW8: 0 | AX8: 0 | AY8: 6.21004619 | AZ8: 6.13324487 | BA8: 7.1713349 | BB8: 5.63706069 | BC8: 4.19917521 | BD8: 0 | BE8: 0 | BF8: 0 | BG8: 0 | BH8: 0 | BI8: 0 | BJ8: 0 | BK8: 0 | BL8: 0 | BM8: 0 | BN8: 0 | BO8: 0 | BP8: 0 | BQ8: 0 | BR8: 0 | BS8: 0 | BT8: 0 | BU8: 0 | BV8: 0 | BW8: 0 | BX8: 0 | BY8: 0 | BZ8: 0 | CA8: 0 | CB8: 0 | CC8: 0 | CD8: 0 | CE8: 0 | CF8: 0 | CG8: 0 | CH8: 0 | CI8: 0 | CJ8: 0 | CK8: 0 | CL8: 0 | CM8: 0 | CN8: 0 | CO8: 0 | CP8: 0 | CQ8: 0 | CR8: 0 | CS8: 0 | CT8: 0 | CV8: 0 | CW8: 0.004729819487 | CX8: 0 | CY8: 0 | CZ8: 0 | DA8: 0 | DB8: 0 | DC8: 0 | DD8: 190.9006137 | DE8: 12.68721482 | DF8: 0 | DG8: 0 | DH8: 98.57654986 | DI8: 271.0879262 | DJ8: 11.65456941 | DK8: 17.63172459 | DL8: 103.164532 | DM8: 539.1524813 | DN8: 139.3264217 | DO8: 168.5060612 | DP8: 32.50612288 | DQ8: 0 | DR8: 23.49801896 | DS8: 0 | DT8: 0.004875024945 | DU8: 10.92353844 | DV8: 57.29942324 | DW8: 57.50877782 | DX8: 0.004749684729 | DY8: 36.45707779 | DZ8: 0.004875970909 | EA8: 8.418593407 | EB8: 0 | EC8: 8.879518573 | ED8: 40.03764479 | EE8: 26.35247401 | EF8: 0 | EG8: 52.93675221 | EH8: 0 | EI8: 0 | EJ8: 0 | EK8: 0 | EL8: 0 | EM8: 293.7239748 | EN8: 290.091411 | EO8: 339.1911956 | EP8: 266.622795 | EQ8: 198.6134074 | ER8: 0 | ES8: 0 | ET8: 0 | EU8: 0 | EV8: 0 | EW8: 0 | EX8: 0 | EY8: 0 | EZ8: 0 | FA8: 0 | FB8: 0 | FC8: 0 | FD8: 0 | FE8: 0 | FF8: 0 | FG8: 0 | FH8: 0 | FI8: 0 | FJ8: 0 | FK8: 0 | FL8: 0 | FM8: 0 | FN8: 0 | FO8: 0 | FP8: 0 | FQ8: 0 | FR8: 0 | FS8: 0 | FT8: 0 | FU8: 0 | FV8: 0 | FW8: 0 | FX8: 0 | FY8: 0 | FZ8: 0 | GA8: 0 | GB8: 0 | GC8: 0 | GD8: 0 | GE8: 0 | GF8: 0 | GG8: 0 | GH8: 0
A9: 1 | B9: OVERHEAD CONDUCTORS | C9: ˃ 11 kv & < = 22 kv ; swer | D9: 47.29819487 | E9: 61.59624592 | F9: 7.848327587 | G9: 2 | H9: 0 | I9: 0 | J9: 0.11449585 | K9: 0 | L9: 0 | M9: 6.8344399 | N9: 0 | O9: 0 | P9: 0 | Q9: 0 | R9: 0.33656255 | S9: 0.11635089 | T9: 0 | U9: 0.2703303 | V9: 0 | W9: 0 | X9: 0.18819587 | Y9: 0.42594238 | Z9: 0 | AA9: 0 | AB9: 0 | AC9: 0 | AD9: 0 | AE9: 0 | AF9: 0.1144956 | AG9: 0 | AH9: 0 | AI9: 0.92705031 | AJ9: 0.1148961 | AK9: 0.1145961 | AL9: 3.68908026 | AM9: 0.11459633 | AN9: 39.35534052 | AO9: 1.57910285 | AP9: 0.11449566 | AQ9: 0.11678106 | AR9: 0 | AS9: 0 | AT9: 0 | AU9: 0.11449568 | AV9: 2.36010043 | AW9: 0 | AX9: 0 | AY9: 4.479902 | AZ9: 0.11449599 | BA9: 0 | BB9: 0.5119905 | BC9: 1.12404261 | BD9: 0 | BE9: 0 | BF9: 0 | BG9: 0 | BH9: 0 | BI9: 0 | BJ9: 11.24703977 | BK9: 6.17342022 | BL9: 0 | BM9: 0 | BN9: 0 | BO9: 0 | BP9: 42.63032275 | BQ9: 0 | BR9: 0 | BS9: 0 | BT9: 0 | BU9: 0 | BV9: 0 | BW9: 0 | BX9: 0 | BY9: 0 | BZ9: 0 | CA9: 0 | CB9: 0 | CC9: 0 | CD9: 0 | CE9: 0 | CF9: 0 | CG9: 0 | CH9: 0 | CI9: 0 | CJ9: 0 | CK9: 0 | CL9: 0 | CM9: 0 | CN9: 0 | CO9: 0 | CP9: 0 | CQ9: 0 | CR9: 0 | CS9: 0 | CT9: 0 | CV9: 0 | CW9: 0 | CX9: 5.415447025 | CY9: 0 | CZ9: 0 | DA9: 323.2566702 | DB9: 0 | DC9: 0 | DD9: 0 | DE9: 0 | DF9: 15.91880108 | DG9: 5.503187068 | DH9: 0 | DI9: 12.78613521 | DJ9: 0 | DK9: 0 | DL9: 8.901324933 | DM9: 20.14630569 | DN9: 0 | DO9: 0 | DP9: 0 | DQ9: 0 | DR9: 0 | DS9: 0 | DT9: 5.4154352 | DU9: 0 | DV9: 0 | DW9: 43.84780621 | DX9: 5.434378127 | DY9: 5.420188669 | DZ9: 174.486837 | EA9: 5.420199547 | EB9: 1861.436565 | EC9: 74.68871432 | ED9: 5.415438038 | EE9: 5.523533333 | EF9: 0 | EG9: 0 | EH9: 0 | EI9: 5.415438984 | EJ9: 111.62849 | EK9: 0 | EL9: 0 | EM9: 211.8912778 | EN9: 5.415453647 | EO9: 0 | EP9: 24.21622644 | EQ9: 53.16518641 | ER9: 0 | ES9: 0 | ET9: 0 | EU9: 0 | EV9: 0 | EW9: 0 | EX9: 531.9646787 | EY9: 291.9916326 | EZ9: 0 | FA9: 0 | FB9: 0 | FC9: 0 | FD9: 2016.337313 | FE9: 0 | FF9: 0 | FG9: 0 | FH9: 0 | FI9: 0 | FJ9: 0 | FK9: 0 | FL9: 0 | FM9: 0 | FN9: 0 | FO9: 0 | FP9: 0 | FQ9: 0 | FR9: 0 | FS9: 0 | FT9: 0 | FU9: 0 | FV9: 0 | FW9: 0 | FX9: 0 | FY9: 0 | FZ9: 0 | GA9: 0 | GB9: 0 | GC9: 0 | GD9: 0 | GE9: 0 | GF9: 0 | GG9: 0 | GH9: 0
A10: 1 | B10: OVERHEAD CONDUCTORS | C10: > 1 kv & < = 11 kv | D10: 47.29819487 | E10: 61.59624592 | F10: 7.848327587 | G10: 2 | H10: 151.366368 | I10: 195.278296 | J10: 114.7914067 | K10: 161.9991974 | L10: 162.4863217 | M10: 131.5532883 | N10: 167.9989374 | O10: 143.3389472 | P10: 162.836657 | Q10: 128.2718974 | R10: 138.5816105 | S10: 117.9195275 | T10: 179.2788003 | U10: 105.2088927 | V10: 135.6305318 | W10: 119.2097624 | X10: 118.9411438 | Y10: 154.2957662 | Z10: 139.5187714 | AA10: 101.0416911 | AB10: 69.3481982 | AC10: 62.05557211 | AD10: 62.54678542 | AE10: 63.20078203 | AF10: 56.68906991 | AG10: 52.08206293 | AH10: 77.20650026 | AI10: 83.6969367 | AJ10: 70.66555082 | AK10: 64.8581799 | AL10: 83.52873489 | AM10: 96.77082402 | AN10: 83.05577066 | AO10: 61.59833494 | AP10: 57.23351298 | AQ10: 112.8491267 | AR10: 103.2002191 | AS10: 263.9809969 | AT10: 174.441091 | AU10: 121.2353497 | AV10: 174.6326033 | AW10: 156.9043526 | AX10: 139.8396117 | AY10: 201.794269 | AZ10: 231.8017246 | BA10: 351.5457993 | BB10: 186.6293827 | BC10: 169.9181136 | BD10: 323.7561017 | BE10: 341.1360814 | BF10: 252.9811179 | BG10: 252.856967 | BH10: 296.0424116 | BI10: 211.3963429 | BJ10: 510.0874682 | BK10: 179.7190126 | BL10: 284.1207275 | BM10: 215.6039096 | BN10: 212.3539983 | BO10: 102.1447252 | BP10: 83.39501848 | BQ10: 151.373694 | BR10: 15.79899185 | BS10: 31.18798055 | BT10: 13.5884091 | BU10: 27.65375376 | BV10: 1.17993998 | BW10: 0 | BX10: 0 | BY10: 0 | BZ10: 9.62683724 | CA10: 0 | CB10: 0 | CC10: 0 | CD10: 0 | CE10: 0 | CF10: 0 | CG10: 9.32953333 | CH10: 0 | CI10: 0 | CJ10: 0 | CK10: 0 | CL10: 0 | CM10: 0 | CN10: 0 | CO10: 0 | CP10: 0 | CQ10: 0 | CR10: 0 | CS10: 0.63848008 | CT10: 0 | CV10: 7159.355971 | CW10: 9236.3109 | CX10: 5429.426323 | CY10: 7662.269608 | CZ10: 7685.309707 | DA10: 6222.233066 | DB10: 7946.046476 | DC10: 6779.673458 | DD10: 7701.879933 | DE10: 6067.029201 | DF10: 6554.660017 | DG10: 5577.380791 | DH10: 8479.563632 | DI10: 4976.190709 | DJ10: 6415.079321 | DK10: 5638.406571 | DL10: 5625.701397 | DM10: 7297.911216 | DN10: 6598.986038 | DO10: 4779.089597 | DP10: 3280.044592 | DQ10: 2935.116542 | DR10: 2958.350045 | DS10: 2989.282904 | DT10: 2681.290675 | DU10: 2463.387562 | DV10: 3651.728094 | DW10: 3958.714022 | DX10: 3342.352993 | DY10: 3067.674832 | DZ10: 3950.75838 | EA10: 4577.085292 | EB10: 3928.388026 | EC10: 2913.49005 | ED10: 2707.04185 | EE10: 5337.559985 | EF10: 4881.184075 | EG10: 12485.82463 | EH10: 8250.748713 | EI10: 5734.213195 | EJ10: 8259.8069 | EK10: 7421.292643 | EL10: 6614.161204 | EM10: 9544.504658 | EN10: 10963.80314 | EO10: 16627.48172 | EP10: 8827.23291 | EQ10: 8036.82005 | ER10: 15313.07919 | ES10: 16135.12085 | ET10: 11965.55021 | EU10: 11959.6781 | EV10: 14002.27167 | EW10: 9998.665421 | EX10: 24126.21647 | EY10: 8500.384877 | EZ10: 13438.39753 | FA10: 10197.67573 | FB10: 10043.96079 | FC10: 4831.261115 | FD10: 3944.433835 | FE10: 7159.702477 | FF10: 747.2637952 | FG10: 1475.135182 | FH10: 642.7072216 | FI10: 1307.972634 | FJ10: 55.80903111 | FK10: 0 | FL10: 0 | FM10: 0 | FN10: 455.3320237 | FO10: 0 | FP10: 0 | FQ10: 0 | FR10: 0 | FS10: 0 | FT10: 0 | FU10: 441.2700855 | FV10: 0 | FW10: 0 | FX10: 0 | FY10: 0 | FZ10: 0 | GA10: 0 | GB10: 0 | GC10: 0 | GD10: 0 | GE10: 0 | GF10: 0 | GG10: 30.19895524 | GH10: 0
A11: 1 | B11: OVERHEAD CONDUCTORS | C11: > 22 kv & < = 66 kv | D11: 222.1483665 | E11: 68.64513591 | F11: 8.28523602 | G11: 2 | H11: 18.50859319 | I11: 10.86576663 | J11: 6.29860092 | K11: 12.9425506 | L11: 31.66672793 | M11: 21.38836997 | N11: 49.30938961 | O11: 70.01726918 | P11: 21.09162558 | Q11: 58.9385117 | R11: 34.73701341 | S11: 78.50066604 | T11: 31.57044443 | U11: 5.83640287 | V11: 15.98066212 | W11: 19.11664035 | X11: 25.09238641 | Y11: 12.96813675 | Z11: 2.67115355 | AA11: 24.81369451 | AB11: 1.83351384 | AC11: 6.92623526 | AD11: 4.58730384 | AE11: 30.4193565 | AF11: 1.85608155 | AG11: 20.73898543 | AH11: 1.58914326 | AI11: 15.1496427 | AJ11: 6.40941715 | AK11: 0.89217202 | AL11: 0.96011985 | AM11: 1.04673808 | AN11: 25.112989 | AO11: 8.28132826 | AP11: 12.23232046 | AQ11: 25.57182156 | AR11: 41.6173645 | AS11: 70.40307559 | AT11: 15.8556706 | AU11: 9.75541273 | AV11: 38.45798654 | AW11: 18.72032518 | AX11: 12.32442946 | AY11: 20.71391734 | AZ11: 7.18695778 | BA11: 16.0468091 | BB11: 13.11335683 | BC11: 23.23369904 | BD11: 59.28023505 | BE11: 95.36324048 | BF11: 48.22215235 | BG11: 10.10474624 | BH11: 129.204525 | BI11: 96.79679457 | BJ11: 87.19252969 | BK11: 25.86384502 | BL11: 25.20666877 | BM11: 85.00262736 | BN11: 0 | BO11: 0 | BP11: 3.13039891 | BQ11: 19.97368477 | BR11: 11.21822707 | BS11: 5.37600646 | BT11: 4.69388892 | BU11: 6.03186784 | BV11: 0 | BW11: 0 | BX11: 0 | BY11: 0 | BZ11: 0 | CA11: 0 | CB11: 0 | CC11: 0 | CD11: 0 | CE11: 0 | CF11: 0 | CG11: 0 | CH11: 0 | CI11: 0 | CJ11: 0 | CK11: 0 | CL11: 0 | CM11: 0 | CN11: 0 | CO11: 0 | CP11: 0 | CQ11: 0 | CR11: 0 | CS11: 0 | CT11: 0 | CV11: 4111.653743 | CW11: 2413.812307 | CX11: 1399.223905 | CY11: 2875.166474 | CZ11: 7034.711881 | DA11: 4751.39145 | DB11: 10954.00035 | DC11: 15554.22197 | DD11: 4685.470169 | DE11: 13093.0941 | DF11: 7716.770785 | DG11: 17438.79473 | DH11: 7013.322659 | DI11: 1296.547364 | DJ11: 3550.077985 | DK11: 4246.730426 | DL11: 5574.232652 | DM11: 2880.850395 | DN11: 593.3923977 | DO11: 5512.321702 | DP11: 407.3121045 | DQ11: 1538.651849 | DR11: 1019.062055 | DS11: 6757.610356 | DT11: 412.3254844 | DU11: 4607.131736 | DV11: 353.0255793 | DW11: 3365.468378 | DX11: 1423.84155 | DY11: 198.1945569 | DZ11: 213.2890563 | EA11: 232.5311546 | EB11: 5578.809484 | EC11: 1839.683545 | ED11: 2717.390008 | EE11: 5680.738387 | EF11: 9245.229541 | EG11: 15639.92824 | EH11: 3522.311323 | EI11: 2167.149002 | EJ11: 8543.378888 | EK11: 4158.689659 | EL11: 2737.851872 | EM11: 4601.5629 | EN11: 1596.570931 | EO11: 3564.772429 | EP11: 2913.110799 | EQ11: 5161.328289 | ER11: 13169.00738 | ES11: 21184.78809 | ET11: 10712.47237 | EU11: 2244.752871 | EV11: 28702.57416 | EW11: 21503.24979 | EX11: 19369.67804 | EY11: 5745.610922 | EZ11: 5599.620291 | FA11: 18883.19481 | FB11: 0 | FC11: 0 | FD11: 695.4130043 | FE11: 4437.121444 | FF11: 2492.110818 | FG11: 1194.271053 | FH11: 1042.739756 | FI11: 1339.969587 | FJ11: 0 | FK11: 0 | FL11: 0 | FM11: 0 | FN11: 0 | FO11: 0 | FP11: 0 | FQ11: 0 | FR11: 0 | FS11: 0 | FT11: 0 | FU11: 0 | FV11: 0 | FW11: 0 | FX11: 0 | FY11: 0 | FZ11: 0 | GA11: 0 | GB11: 0 | GC11: 0 | GD11: 0 | GE11: 0 | GF11: 0 | GG11: 0 | GH11: 0
A12: 1 | B12: OVERHEAD CONDUCTORS | C12: > 66 kv & < = 132 kv | D12: 222.1483665 | E12: 68.64513591 | F12: 8.28523602 | G12: 2 | H12: 6.27362108 | I12: 3.43924121 | J12: 16.39742491 | K12: 49.42467347 | L12: 12.02451536 | M12: 20.6194787 | N12: 73.64539531 | O12: 19.25299875 | P12: 0.33717804 | Q12: 10.45215945 | R12: 7.63950823 | S12: 0 | T12: 4.27031018 | U12: 10.53054313 | V12: 19.59212309 | W12: 13.52030853 | X12: 3.5357837 | Y12: 3.92255528 | Z12: 0 | AA12: 4.66670397 | AB12: 1.7037354 | AC12: 0 | AD12: 35.47452354 | AE12: 0 | AF12: 0 | AG12: 0 | AH12: 0 | AI12: 0 | AJ12: 0 | AK12: 6.25480696 | AL12: 3.94425208 | AM12: 4.5127191 | AN12: 50.6833459 | AO12: 0.04780987 | AP12: 8.79489341 | AQ12: 16.19800199 | AR12: 2.13005122 | AS12: 0.70812237 | AT12: 29.01775879 | AU12: 28.83291093 | AV12: 20.68235881 | AW12: 0.49056164 | AX12: 12.68950803 | AY12: 27.48826478 | AZ12: 24.78535716 | BA12: 32.1813899 | BB12: 4.35091304 | BC12: 3.73627655 | BD12: 13.0871797 | BE12: 115.9371875 | BF12: 8.56691601 | BG12: 0.40457723 | BH12: 14.64117905 | BI12: 48.49491986 | BJ12: 42.55246153 | BK12: 10.30015696 | BL12: 53.18780538 | BM12: 188.9969033 | BN12: 0 | BO12: 0 | BP12: 0 | BQ12: 11.64751607 | BR12: 0 | BS12: 0 | BT12: 0 | BU12: 0 | BV12: 0 | BW12: 0 | BX12: 0 | BY12: 0 | BZ12: 0 | CA12: 0 | CB12: 0 | CC12: 0 | CD12: 0 | CE12: 0 | CF12: 0 | CG12: 0 | CH12: 0 | CI12: 0 | CJ12: 0 | CK12: 0 | CL12: 0 | CM12: 0 | CN12: 0 | CO12: 0 | CP12: 0 | CQ12: 0 | CR12: 0 | CS12: 0 | CT12: 0 | CV12: 1393.674675 | CW12: 764.0218167 | CX12: 3642.661158 | CY12: 10979.61047 | CZ12: 2671.226445 | DA12: 4580.583511 | DB12: 16360.20427 | DC12: 4277.022222 | DD12: 74.9035508 | DE12: 2321.930148 | DF12: 1697.104274 | DG12: 0 | DH12: 948.6424308 | DI12: 2339.342954 | DJ12: 4352.35814 | DK12: 3003.514454 | DL12: 785.4685732 | DM12: 871.3892478 | DN12: 0 | DO12: 1036.700664 | DP12: 378.482036 | DQ12: 0 | DR12: 7880.607456 | DS12: 0 | DT12: 0 | DU12: 0 | DV12: 0 | DW12: 0 | DX12: 0 | DY12: 1389.495149 | DZ12: 876.2091565 | EA12: 1002.493176 | EB12: 11259.2225 | EC12: 10.62088452 | ED12: 1953.771204 | EE12: 3598.359682 | EF12: 473.187399 | EG12: 157.3082278 | EH12: 6446.247714 | EI12: 6405.184064 | EJ12: 4594.552224 | EK12: 108.977467 | EL12: 2818.95348 | EM12: 6106.473118 | EN12: 5506.026606 | EO12: 7149.043197 | EP12: 966.5482245 | EQ12: 830.0077323 | ER12: 2907.295592 | ES12: 25755.25681 | ET12: 1903.126397 | EU12: 89.87617076 | EV12: 3252.514009 | EW12: 10773.06723 | EX12: 9452.959818 | EY12: 2288.163043 | EZ12: 11815.58408 | FA12: 41985.35335 | FB12: 0 | FC12: 0 | FD12: 0 | FE12: 2587.476668 | FF12: 0 | FG12: 0 | FH12: 0 | FI12: 0 | FJ12: 0 | FK12: 0 | FL12: 0 | FM12: 0 | FN12: 0 | FO12: 0 | FP12: 0 | FQ12: 0 | FR12: 0 | FS12: 0 | FT12: 0 | FU12: 0 | FV12: 0 | FW12: 0 | FX12: 0 | FY12: 0 | FZ12: 0 | GA12: 0 | GB12: 0 | GC12: 0 | GD12: 0 | GE12: 0 | GF12: 0 | GG12: 0 | GH12: 0
A13: 2 | B13: POLES | C13: ˂ = 1 kv ; concrete | D13: 10.62512882 | E13: 57.44310013 | F13: 7.579122649 | G13: 2 | H13: 5 | I13: 1 | J13: 2 | K13: 12 | L13: 50 | M13: 47 | N13: 25 | O13: 19 | P13: 2 | Q13: 6 | R13: 5 | S13: 7 | T13: 2 | U13: 14 | V13: 0 | W13: 0 | X13: 11 | Y13: 6 | Z13: 0 | AA13: 1 | AB13: 0 | AC13: 21 | AD13: 17 | AE13: 42 | AF13: 5 | AG13: 59 | AH13: 12 | AI13: 44 | AJ13: 0 | AK13: 0 | AL13: 2 | AM13: 23 | AN13: 7 | AO13: 0 | AP13: 0 | AQ13: 3 | AR13: 0 | AS13: 0 | AT13: 0 | AU13: 0 | AV13: 0 | AW13: 0 | AX13: 1 | AY13: 0 | AZ13: 11 | BA13: 6 | BB13: 4 | BC13: 3 | BD13: 0 | BE13: 0 | BF13: 0 | BG13: 0 | BH13: 0 | BI13: 8 | BJ13: 0 | BK13: 1 | BL13: 16 | BM13: 5 | BN13: 0 | BO13: 1 | BP13: 0 | BQ13: 0 | BR13: 0 | BS13: 0 | BT13: 0 | BU13: 0 | BV13: 0 | BW13: 0 | BX13: 0 | BY13: 0 | BZ13: 0 | CA13: 0 | CB13: 0 | CC13: 0 | CD13: 0 | CE13: 0 | CF13: 0 | CG13: 0 | CH13: 0 | CI13: 0 | CJ13: 0 | CK13: 0 | CL13: 0 | CM13: 0 | CN13: 0 | CO13: 0 | CP13: 0 | CQ13: 0 | CR13: 0 | CS13: 0 | CT13: 0 | CV13: 53.12564408 | CW13: 10.62512882 | CX13: 21.25025763 | CY13: 127.5015458 | CZ13: 531.2564408 | DA13: 499.3810543 | DB13: 265.6282204 | DC13: 201.8774475 | DD13: 21.25025763 | DE13: 63.7507729 | DF13: 53.12564408 | DG13: 74.37590171 | DH13: 21.25025763 | DI13: 148.7518034 | DJ13: 0 | DK13: 0 | DL13: 116.876417 | DM13: 63.7507729 | DN13: 0 | DO13: 10.62512882 | DP13: 0 | DQ13: 223.1277051 | DR13: 180.6271899 | DS13: 446.2554103 | DT13: 53.12564408 | DU13: 626.8826001 | DV13: 127.5015458 | DW13: 467.5056679 | DX13: 0 | DY13: 0 | DZ13: 21.25025763 | EA13: 244.3779628 | EB13: 74.37590171 | EC13: 0 | ED13: 0 | EE13: 31.87538645 | EF13: 0 | EG13: 0 | EH13: 0 | EI13: 0 | EJ13: 0 | EK13: 0 | EL13: 10.62512882 | EM13: 0 | EN13: 116.876417 | EO13: 63.7507729 | EP13: 42.50051526 | EQ13: 31.87538645 | ER13: 0 | ES13: 0 | ET13: 0 | EU13: 0 | EV13: 0 | EW13: 85.00103053 | EX13: 0 | EY13: 10.62512882 | EZ13: 170.0020611 | FA13: 53.12564408 | FB13: 0 | FC13: 10.62512882 | FD13: 0 | FE13: 0 | FF13: 0 | FG13: 0 | FH13: 0 | FI13: 0 | FJ13: 0 | FK13: 0 | FL13: 0 | FM13: 0 | FN13: 0 | FO13: 0 | FP13: 0 | FQ13: 0 | FR13: 0 | FS13: 0 | FT13: 0 | FU13: 0 | FV13: 0 | FW13: 0 | FX13: 0 | FY13: 0 | FZ13: 0 | GA13: 0 | GB13: 0 | GC13: 0 | GD13: 0 | GE13: 0 | GF13: 0 | GG13: 0 | GH13: 0
A14: 2 | B14: POLES | C14: ˂ = 1 kv ; steel | D14: 10.61964276 | E14: 57.56788585 | F14: 7.587350384 | G14: 2 | H14: 114 | I14: 32 | J14: 26 | K14: 92 | L14: 10 | M14: 40 | N14: 50 | O14: 46 | P14: 22 | Q14: 155 | R14: 430 | S14: 337 | T14: 279 | U14: 205 | V14: 151 | W14: 102 | X14: 99 | Y14: 536 | Z14: 11 | AA14: 47 | AB14: 33 | AC14: 43 | AD14: 10 | AE14: 24 | AF14: 10 | AG14: 166 | AH14: 111 | AI14: 184 | AJ14: 4 | AK14: 114 | AL14: 10 | AM14: 2 | AN14: 152 | AO14: 271 | AP14: 946 | AQ14: 605 | AR14: 334 | AS14: 80 | AT14: 53 | AU14: 13 | AV14: 78 | AW14: 13 | AX14: 11 | AY14: 28 | AZ14: 24 | BA14: 203 | BB14: 15 | BC14: 45 | BD14: 44 | BE14: 99 | BF14: 30 | BG14: 103 | BH14: 60 | BI14: 78 | BJ14: 33 | BK14: 18 | BL14: 20 | BM14: 44 | BN14: 16 | BO14: 3 | BP14: 8 | BQ14: 1 | BR14: 8 | BS14: 1 | BT14: 1 | BU14: 0 | BV14: 0 | BW14: 0 | BX14: 0 | BY14: 2 | BZ14: 3 | CA14: 0 | CB14: 0 | CC14: 0 | CD14: 0 | CE14: 0 | CF14: 0 | CG14: 0 | CH14: 0 | CI14: 0 | CJ14: 0 | CK14: 0 | CL14: 0 | CM14: 0 | CN14: 0 | CO14: 0 | CP14: 0 | CQ14: 0 | CR14: 0 | CS14: 0 | CT14: 0 | CV14: 1210.639275 | CW14: 339.8285683 | CX14: 276.1107118 | CY14: 977.007134 | CZ14: 106.1964276 | DA14: 424.7857104 | DB14: 530.982138 | DC14: 488.503567 | DD14: 233.6321407 | DE14: 1646.044628 | DF14: 4566.446387 | DG14: 3578.81961 | DH14: 2962.88033 | DI14: 2177.026766 | DJ14: 1603.566057 | DK14: 1083.203562 | DL14: 1051.344633 | DM14: 5692.12852 | DN14: 116.8160704 | DO14: 499.1232098 | DP14: 350.4482111 | DQ14: 456.6446387 | DR14: 106.1964276 | DS14: 254.8714263 | DT14: 106.1964276 | DU14: 1762.860698 | DV14: 1178.780346 | DW14: 1954.014268 | DX14: 42.47857104 | DY14: 1210.639275 | DZ14: 106.1964276 | EA14: 21.23928552 | EB14: 1614.1857 | EC14: 2877.923188 | ED14: 10046.18205 | EE14: 6424.88387 | EF14: 3546.960682 | EG14: 849.5714209 | EH14: 562.8410663 | EI14: 138.0553559 | EJ14: 828.3321353 | EK14: 138.0553559 | EL14: 116.8160704 | EM14: 297.3499973 | EN14: 254.8714263 | EO14: 2155.78748 | EP14: 159.2946414 | EQ14: 477.8839242 | ER14: 467.2642815 | ES14: 1051.344633 | ET14: 318.5892828 | EU14: 1093.823204 | EV14: 637.1785657 | EW14: 828.3321353 | EX14: 350.4482111 | EY14: 191.1535697 | EZ14: 212.3928552 | FA14: 467.2642815 | FB14: 169.9142842 | FC14: 31.85892828 | FD14: 84.95714209 | FE14: 10.61964276 | FF14: 84.95714209 | FG14: 10.61964276 | FH14: 10.61964276 | FI14: 0 | FJ14: 0 | FK14: 0 | FL14: 0 | FM14: 21.23928552 | FN14: 31.85892828 | FO14: 0 | FP14: 0 | FQ14: 0 | FR14: 0 | FS14: 0 | FT14: 0 | FU14: 0 | FV14: 0 | FW14: 0 | FX14: 0 | FY14: 0 | FZ14: 0 | GA14: 0 | GB14: 0 | GC14: 0 | GD14: 0 | GE14: 0 | GF14: 0 | GG14: 0 | GH14: 0
A15: 2 | B15: POLES | C15: ˂ = 1 kv ; wood | D15: 6.96069094 | E15: 70.97499423 | F15: 8.424665823 | G15: 2 | H15: 2135 | I15: 2021 | J15: 2697 | K15: 3178 | L15: 3503 | M15: 4192 | N15: 3844 | O15: 3655 | P15: 3055 | Q15: 3018 | R15: 2633 | S15: 2237 | T15: 1926 | U15: 2205 | V15: 1744 | W15: 1682 | X15: 1455 | Y15: 1492 | Z15: 1528 | AA15: 1893 | AB15: 2056 | AC15: 2979 | AD15: 3019 | AE15: 2649 | AF15: 1801 | AG15: 1541 | AH15: 3769 | AI15: 3867 | AJ15: 3270 | AK15: 2786 | AL15: 4454 | AM15: 3724 | AN15: 3255 | AO15: 2388 | AP15: 3640 | AQ15: 6186 | AR15: 5631 | AS15: 5413 | AT15: 4451 | AU15: 3351 | AV15: 3774 | AW15: 2595 | AX15: 3612 | AY15: 4484 | AZ15: 3381 | BA15: 6643 | BB15: 6521 | BC15: 5604 | BD15: 6737 | BE15: 9785 | BF15: 12219 | BG15: 10843 | BH15: 13629 | BI15: 9410 | BJ15: 13923 | BK15: 7458 | BL15: 9137 | BM15: 5863 | BN15: 7357 | BO15: 4532 | BP15: 2323 | BQ15: 625 | BR15: 3226 | BS15: 646 | BT15: 1250 | BU15: 548 | BV15: 861 | BW15: 154 | BX15: 26 | BY15: 720 | BZ15: 626 | CA15: 0 | CB15: 8 | CC15: 0 | CD15: 880 | CE15: 0 | CF15: 0 | CG15: 0 | CH15: 0 | CI15: 0 | CJ15: 0 | CK15: 0 | CL15: 0 | CM15: 0 | CN15: 0 | CO15: 0 | CP15: 347 | CQ15: 0 | CR15: 0 | CS15: 0 | CT15: 0 | CV15: 14861.07516 | CW15: 14067.55639 | CX15: 18772.98346 | CY15: 22121.07581 | CZ15: 24383.30036 | DA15: 29179.21642 | DB15: 26756.89597 | DC15: 25441.32538 | DD15: 21264.91082 | DE15: 21007.36526 | DF15: 18327.49924 | DG15: 15571.06563 | DH15: 13406.29075 | DI15: 15348.32352 | DJ15: 12139.445 | DK15: 11707.88216 | DL15: 10127.80532 | DM15: 10385.35088 | DN15: 10635.93576 | DO15: 13176.58795 | DP15: 14311.18057 | DQ15: 20735.89831 | DR15: 21014.32595 | DS15: 18438.8703 | DT15: 12536.20438 | DU15: 10726.42474 | DV15: 26234.84415 | DW15: 26916.99186 | DX15: 22761.45937 | DY15: 19392.48496 | DZ15: 31002.91745 | EA15: 25921.61306 | EB15: 22657.04901 | EC15: 16622.12996 | ED15: 25336.91502 | EE15: 43058.83415 | EF15: 39195.65068 | EG15: 37678.22006 | EH15: 30982.03537 | EI15: 23325.27534 | EJ15: 26269.64761 | EK15: 18062.99299 | EL15: 25142.01567 | EM15: 31211.73817 | EN15: 23534.09607 | EO15: 46239.86991 | EP15: 45390.66562 | EQ15: 39007.71203 | ER15: 46894.17486 | ES15: 68110.36085 | ET15: 85052.68259 | EU15: 75474.77186 | EV15: 94867.25682 | EW15: 65500.10174 | EX15: 96913.69995 | EY15: 51912.83303 | EZ15: 63599.83312 | FA15: 40810.53098 | FB15: 51209.80324 | FC15: 31545.85134 | FD15: 16169.68505 | FE15: 4350.431837 | FF15: 22455.18897 | FG15: 4496.606347 | FH15: 8700.863675 | FI15: 3814.458635 | FJ15: 5993.154899 | FK15: 1071.946405 | FL15: 180.9779644 | FM15: 5011.697477 | FN15: 4357.392528 | FO15: 0 | FP15: 55.68552752 | FQ15: 0 | FR15: 6125.408027 | FS15: 0 | FT15: 0 | FU15: 0 | FV15: 0 | FW15: 0 | FX15: 0 | FY15: 0 | FZ15: 0 | GA15: 0 | GB15: 0 | GC15: 0 | GD15: 2415.359756 | GE15: 0 | GF15: 0 | GG15: 0 | GH15: 0
A16: 2 | B16: POLES | C16: ˃ 11 kv & < = 22 kv ; concrete | D16: 24.29363663 | E16: 50.86827982 | F16: 7.132200209 | G16: 2 | H16: 6 | I16: 0 | J16: 0 | K16: 0 | L16: 0 | M16: 0 | N16: 0 | O16: 0 | P16: 0 | Q16: 0 | R16: 0 | S16: 0 | T16: 0 | U16: 0 | V16: 0 | W16: 0 | X16: 0 | Y16: 0 | Z16: 1 | AA16: 0 | AB16: 0 | AC16: 0 | AD16: 0 | AE16: 0 | AF16: 0 | AG16: 0 | AH16: 0 | AI16: 0 | AJ16: 0 | AK16: 0 | AL16: 0 | AM16: 0 | AN16: 0 | AO16: 0 | AP16: 0 | AQ16: 0 | AR16: 0 | AS16: 0 | AT16: 0 | AU16: 0 | AV16: 0 | AW16: 0 | AX16: 0 | AY16: 0 | AZ16: 0 | BA16: 0 | BB16: 0 | BC16: 0 | BD16: 0 | BE16: 0 | BF16: 0 | BG16: 0 | BH16: 0 | BI16: 0 | BJ16: 0 | BK16: 0 | BL16: 0 | BM16: 0 | BN16: 0 | BO16: 0 | BP16: 0 | BQ16: 0 | BR16: 0 | BS16: 0 | BT16: 0 | BU16: 0 | BV16: 0 | BW16: 0 | BX16: 0 | BY16: 0 | BZ16: 0 | CA16: 0 | CB16: 0 | CC16: 0 | CD16: 0 | CE16: 0 | CF16: 0 | CG16: 0 | CH16: 0 | CI16: 0 | CJ16: 0 | CK16: 0 | CL16: 0 | CM16: 0 | CN16: 0 | CO16: 0 | CP16: 0 | CQ16: 0 | CR16: 0 | CS16: 0 | CT16: 0 | CV16: 145.7618198 | CW16: 0 | CX16: 0 | CY16: 0 | CZ16: 0 | DA16: 0 | DB16: 0 | DC16: 0 | DD16: 0 | DE16: 0 | DF16: 0 | DG16: 0 | DH16: 0 | DI16: 0 | DJ16: 0 | DK16: 0 | DL16: 0 | DM16: 0 | DN16: 24.29363663 | DO16: 0 | DP16: 0 | DQ16: 0 | DR16: 0 | DS16: 0 | DT16: 0 | DU16: 0 | DV16: 0 | DW16: 0 | DX16: 0 | DY16: 0 | DZ16: 0 | EA16: 0 | EB16: 0 | EC16: 0 | ED16: 0 | EE16: 0 | EF16: 0 | EG16: 0 | EH16: 0 | EI16: 0 | EJ16: 0 | EK16: 0 | EL16: 0 | EM16: 0 | EN16: 0 | EO16: 0 | EP16: 0 | EQ16: 0 | ER16: 0 | ES16: 0 | ET16: 0 | EU16: 0 | EV16: 0 | EW16: 0 | EX16: 0 | EY16: 0 | EZ16: 0 | FA16: 0 | FB16: 0 | FC16: 0 | FD16: 0 | FE16: 0 | FF16: 0 | FG16: 0 | FH16: 0 | FI16: 0 | FJ16: 0 | FK16: 0 | FL16: 0 | FM16: 0 | FN16: 0 | FO16: 0 | FP16: 0 | FQ16: 0 | FR16: 0 | FS16: 0 | FT16: 0 | FU16: 0 | FV16: 0 | FW16: 0 | FX16: 0 | FY16: 0 | FZ16: 0 | GA16: 0 | GB16: 0 | GC16: 0 | GD16: 0 | GE16: 0 | GF16: 0 | GG16: 0 | GH16: 0
A17: 2 | B17: POLES | C17: ˃ 11 kv & < = 22 kv ; steel | D17: 10.89452229 | E17: 25.03802199 | F17: 5.003800754 | G17: 2 | H17: 0 | I17: 0 | J17: 0 | K17: 0 | L17: 1 | M17: 0 | N17: 0 | O17: 0 | P17: 0 | Q17: 0 | R17: 0 | S17: 0 | T17: 1 | U17: 0 | V17: 2 | W17: 4 | X17: 0 | Y17: 0 | Z17: 0 | AA17: 0 | AB17: 0 | AC17: 0 | AD17: 0 | AE17: 0 | AF17: 0 | AG17: 0 | AH17: 0 | AI17: 0 | AJ17: 0 | AK17: 0 | AL17: 0 | AM17: 0 | AN17: 0 | AO17: 0 | AP17: 0 | AQ17: 0 | AR17: 0 | AS17: 0 | AT17: 0 | AU17: 0 | AV17: 0 | AW17: 0 | AX17: 0 | AY17: 0 | AZ17: 0 | BA17: 0 | BB17: 0 | BC17: 0 | BD17: 0 | BE17: 0 | BF17: 0 | BG17: 0 | BH17: 0 | BI17: 0 | BJ17: 0 | BK17: 0 | BL17: 0 | BM17: 0 | BN17: 0 | BO17: 0 | BP17: 0 | BQ17: 0 | BR17: 0 | BS17: 0 | BT17: 0 | BU17: 0 | BV17: 0 | BW17: 0 | BX17: 0 | BY17: 0 | BZ17: 0 | CA17: 0 | CB17: 0 | CC17: 0 | CD17: 0 | CE17: 0 | CF17: 0 | CG17: 0 | CH17: 0 | CI17: 0 | CJ17: 0 | CK17: 0 | CL17: 0 | CM17: 0 | CN17: 0 | CO17: 0 | CP17: 0 | CQ17: 0 | CR17: 0 | CS17: 0 | CT17: 0 | CV17: 0 | CW17: 0 | CX17: 0 | CY17: 0 | CZ17: 10.89452229 | DA17: 0 | DB17: 0 | DC17: 0 | DD17: 0 | DE17: 0 | DF17: 0 | DG17: 0 | DH17: 10.89452229 | DI17: 0 | DJ17: 21.78904457 | DK17: 43.57808914 | DL17: 0 | DM17: 0 | DN17: 0 | DO17: 0 | DP17: 0 | DQ17: 0 | DR17: 0 | DS17: 0 | DT17: 0 | DU17: 0 | DV17: 0 | DW17: 0 | DX17: 0 | DY17: 0 | DZ17: 0 | EA17: 0 | EB17: 0 | EC17: 0 | ED17: 0 | EE17: 0 | EF17: 0 | EG17: 0 | EH17: 0 | EI17: 0 | EJ17: 0 | EK17: 0 | EL17: 0 | EM17: 0 | EN17: 0 | EO17: 0 | EP17: 0 | EQ17: 0 | ER17: 0 | ES17: 0 | ET17: 0 | EU17: 0 | EV17: 0 | EW17: 0 | EX17: 0 | EY17: 0 | EZ17: 0 | FA17: 0 | FB17: 0 | FC17: 0 | FD17: 0 | FE17: 0 | FF17: 0 | FG17: 0 | FH17: 0 | FI17: 0 | FJ17: 0 | FK17: 0 | FL17: 0 | FM17: 0 | FN17: 0 | FO17: 0 | FP17: 0 | FQ17: 0 | FR17: 0 | FS17: 0 | FT17: 0 | FU17: 0 | FV17: 0 | FW17: 0 | FX17: 0 | FY17: 0 | FZ17: 0 | GA17: 0 | GB17: 0 | GC17: 0 | GD17: 0 | GE17: 0 | GF17: 0 | GG17: 0 | GH17: 0
A18: 2 | B18: POLES | C18: ˃ 11 kv & < = 22 kv ; wood | D18: 3.206664106 | E18: 62.65924131 | F18: 7.915759048 | G18: 2 | H18: 24 | I18: 22 | J18: 33 | K18: 27 | L18: 22 | M18: 10 | N18: 9 | O18: 9 | P18: 38 | Q18: 53 | R18: 11 | S18: 27 | T18: 17 | U18: 67 | V18: 58 | W18: 34 | X18: 62 | Y18: 81 | Z18: 40 | AA18: 35 | AB18: 23 | AC18: 28 | AD18: 28 | AE18: 6 | AF18: 29 | AG18: 12 | AH18: 14 | AI18: 28 | AJ18: 17 | AK18: 14 | AL18: 32 | AM18: 8 | AN18: 14 | AO18: 12 | AP18: 22 | AQ18: 14 | AR18: 11 | AS18: 1 | AT18: 0 | AU18: 0 | AV18: 0 | AW18: 19 | AX18: 5 | AY18: 9 | AZ18: 38 | BA18: 108 | BB18: 33 | BC18: 188 | BD18: 0 | BE18: 0 | BF18: 81 | BG18: 0 | BH18: 0 | BI18: 1 | BJ18: 2 | BK18: 0 | BL18: 0 | BM18: 0 | BN18: 0 | BO18: 0 | BP18: 0 | BQ18: 0 | BR18: 0 | BS18: 0 | BT18: 0 | BU18: 0 | BV18: 0 | BW18: 0 | BX18: 0 | BY18: 0 | BZ18: 0 | CA18: 0 | CB18: 0 | CC18: 0 | CD18: 0 | CE18: 0 | CF18: 0 | CG18: 0 | CH18: 0 | CI18: 0 | CJ18: 0 | CK18: 0 | CL18: 0 | CM18: 0 | CN18: 0 | CO18: 0 | CP18: 0 | CQ18: 0 | CR18: 0 | CS18: 0 | CT18: 0 | CV18: 76.95993854 | CW18: 70.54661033 | CX18: 105.8199155 | CY18: 86.57993086 | CZ18: 70.54661033 | DA18: 32.06664106 | DB18: 28.85997695 | DC18: 28.85997695 | DD18: 121.853236 | DE18: 169.9531976 | DF18: 35.27330516 | DG18: 86.57993086 | DH18: 54.5132898 | DI18: 214.8464951 | DJ18: 185.9865181 | DK18: 109.0265796 | DL18: 198.8131746 | DM18: 259.7397926 | DN18: 128.2665642 | DO18: 112.2332437 | DP18: 73.75327443 | DQ18: 89.78659496 | DR18: 89.78659496 | DS18: 19.23998463 | DT18: 92.99325907 | DU18: 38.47996927 | DV18: 44.89329748 | DW18: 89.78659496 | DX18: 54.5132898 | DY18: 44.89329748 | DZ18: 102.6132514 | EA18: 25.65331285 | EB18: 44.89329748 | EC18: 38.47996927 | ED18: 70.54661033 | EE18: 44.89329748 | EF18: 35.27330516 | EG18: 3.206664106 | EH18: 0 | EI18: 0 | EJ18: 0 | EK18: 60.92661801 | EL18: 16.03332053 | EM18: 28.85997695 | EN18: 121.853236 | EO18: 346.3197234 | EP18: 105.8199155 | EQ18: 602.8528519 | ER18: 0 | ES18: 0 | ET18: 259.7397926 | EU18: 0 | EV18: 0 | EW18: 3.206664106 | EX18: 6.413328212 | EY18: 0 | EZ18: 0 | FA18: 0 | FB18: 0 | FC18: 0 | FD18: 0 | FE18: 0 | FF18: 0 | FG18: 0 | FH18: 0 | FI18: 0 | FJ18: 0 | FK18: 0 | FL18: 0 | FM18: 0 | FN18: 0 | FO18: 0 | FP18: 0 | FQ18: 0 | FR18: 0 | FS18: 0 | FT18: 0 | FU18: 0 | FV18: 0 | FW18: 0 | FX18: 0 | FY18: 0 | FZ18: 0 | GA18: 0 | GB18: 0 | GC18: 0 | GD18: 0 | GE18: 0 | GF18: 0 | GG18: 0 | GH18: 0
A19: 2 | B19: POLES | C19: > 1 kv & < = 11 kv ; concrete | D19: 10.62897519 | E19: 46.88908464 | F19: 6.847560488 | G19: 2 | H19: 18 | I19: 5 | J19: 9 | K19: 21 | L19: 16 | M19: 13 | N19: 19 | O19: 7 | P19: 2 | Q19: 3 | R19: 9 | S19: 8 | T19: 3 | U19: 7 | V19: 3 | W19: 0 | X19: 9 | Y19: 0 | Z19: 3 | AA19: 0 | AB19: 0 | AC19: 52 | AD19: 8 | AE19: 62 | AF19: 29 | AG19: 2 | AH19: 1 | AI19: 3 | AJ19: 0 | AK19: 0 | AL19: 0 | AM19: 0 | AN19: 0 | AO19: 11 | AP19: 0 | AQ19: 0 | AR19: 0 | AS19: 0 | AT19: 0 | AU19: 0 | AV19: 0 | AW19: 0 | AX19: 0 | AY19: 0 | AZ19: 10 | BA19: 0 | BB19: 1 | BC19: 0 | BD19: 0 | BE19: 1 | BF19: 0 | BG19: 0 | BH19: 0 | BI19: 0 | BJ19: 0 | BK19: 0 | BL19: 1 | BM19: 0 | BN19: 0 | BO19: 0 | BP19: 0 | BQ19: 0 | BR19: 0 | BS19: 0 | BT19: 0 | BU19: 0 | BV19: 0 | BW19: 0 | BX19: 0 | BY19: 0 | BZ19: 0 | CA19: 0 | CB19: 0 | CC19: 0 | CD19: 0 | CE19: 0 | CF19: 0 | CG19: 0 | CH19: 0 | CI19: 0 | CJ19: 0 | CK19: 0 | CL19: 0 | CM19: 0 | CN19: 0 | CO19: 0 | CP19: 0 | CQ19: 0 | CR19: 0 | CS19: 0 | CT19: 0 | CV19: 191.3215533 | CW19: 53.14487593 | CX19: 95.66077667 | CY19: 223.2084789 | CZ19: 170.063603 | DA19: 138.1766774 | DB19: 201.9505285 | DC19: 74.4028263 | DD19: 21.25795037 | DE19: 31.88692556 | DF19: 95.66077667 | DG19: 85.03180149 | DH19: 31.88692556 | DI19: 74.4028263 | DJ19: 31.88692556 | DK19: 0 | DL19: 95.66077667 | DM19: 0 | DN19: 31.88692556 | DO19: 0 | DP19: 0 | DQ19: 552.7067097 | DR19: 85.03180149 | DS19: 658.9964615 | DT19: 308.2402804 | DU19: 21.25795037 | DV19: 10.62897519 | DW19: 31.88692556 | DX19: 0 | DY19: 0 | DZ19: 0 | EA19: 0 | EB19: 0 | EC19: 116.918727 | ED19: 0 | EE19: 0 | EF19: 0 | EG19: 0 | EH19: 0 | EI19: 0 | EJ19: 0 | EK19: 0 | EL19: 0 | EM19: 0 | EN19: 106.2897519 | EO19: 0 | EP19: 10.62897519 | EQ19: 0 | ER19: 0 | ES19: 10.62897519 | ET19: 0 | EU19: 0 | EV19: 0 | EW19: 0 | EX19: 0 | EY19: 0 | EZ19: 10.62897519 | FA19: 0 | FB19: 0 | FC19: 0 | FD19: 0 | FE19: 0 | FF19: 0 | FG19: 0 | FH19: 0 | FI19: 0 | FJ19: 0 | FK19: 0 | FL19: 0 | FM19: 0 | FN19: 0 | FO19: 0 | FP19: 0 | FQ19: 0 | FR19: 0 | FS19: 0 | FT19: 0 | FU19: 0 | FV19: 0 | FW19: 0 | FX19: 0 | FY19: 0 | FZ19: 0 | GA19: 0 | GB19: 0 | GC19: 0 | GD19: 0 | GE19: 0 | GF19: 0 | GG19: 0 | GH19: 0
A20: 2 | B20: POLES | C20: > 1 kv & < = 11 kv ; steel | D20: 10.57797899 | E20: 63.51302587 | F20: 7.969505999 | G20: 2 | H20: 3 | I20: 0 | J20: 1 | K20: 20 | L20: 0 | M20: 6 | N20: 4 | O20: 38 | P20: 0 | Q20: 1 | R20: 0 | S20: 4 | T20: 5 | U20: 0 | V20: 0 | W20: 0 | X20: 0 | Y20: 0 | Z20: 7 | AA20: 0 | AB20: 0 | AC20: 0 | AD20: 0 | AE20: 0 | AF20: 0 | AG20: 0 | AH20: 0 | AI20: 0 | AJ20: 0 | AK20: 0 | AL20: 0 | AM20: 0 | AN20: 0 | AO20: 0 | AP20: 1 | AQ20: 0 | AR20: 1 | AS20: 0 | AT20: 0 | AU20: 0 | AV20: 12 | AW20: 0 | AX20: 0 | AY20: 2 | AZ20: 0 | BA20: 0 | BB20: 0 | BC20: 7 | BD20: 0 | BE20: 2 | BF20: 0 | BG20: 1 | BH20: 0 | BI20: 1 | BJ20: 0 | BK20: 0 | BL20: 0 | BM20: 2 | BN20: 0 | BO20: 1 | BP20: 0 | BQ20: 0 | BR20: 0 | BS20: 0 | BT20: 0 | BU20: 0 | BV20: 0 | BW20: 0 | BX20: 0 | BY20: 0 | BZ20: 0 | CA20: 0 | CB20: 0 | CC20: 0 | CD20: 0 | CE20: 0 | CF20: 0 | CG20: 0 | CH20: 0 | CI20: 0 | CJ20: 0 | CK20: 0 | CL20: 0 | CM20: 0 | CN20: 0 | CO20: 0 | CP20: 0 | CQ20: 0 | CR20: 0 | CS20: 0 | CT20: 0 | CV20: 31.73393696 | CW20: 0 | CX20: 10.57797899 | CY20: 211.5595798 | CZ20: 0 | DA20: 63.46787393 | DB20: 42.31191595 | DC20: 401.9632015 | DD20: 0 | DE20: 10.57797899 | DF20: 0 | DG20: 42.31191595 | DH20: 52.88989494 | DI20: 0 | DJ20: 0 | DK20: 0 | DL20: 0 | DM20: 0 | DN20: 74.04585292 | DO20: 0 | DP20: 0 | DQ20: 0 | DR20: 0 | DS20: 0 | DT20: 0 | DU20: 0 | DV20: 0 | DW20: 0 | DX20: 0 | DY20: 0 | DZ20: 0 | EA20: 0 | EB20: 0 | EC20: 0 | ED20: 10.57797899 | EE20: 0 | EF20: 10.57797899 | EG20: 0 | EH20: 0 | EI20: 0 | EJ20: 126.9357479 | EK20: 0 | EL20: 0 | EM20: 21.15595798 | EN20: 0 | EO20: 0 | EP20: 0 | EQ20: 74.04585292 | ER20: 0 | ES20: 21.15595798 | ET20: 0 | EU20: 10.57797899 | EV20: 0 | EW20: 10.57797899 | EX20: 0 | EY20: 0 | EZ20: 0 | FA20: 21.15595798 | FB20: 0 | FC20: 10.57797899 | FD20: 0 | FE20: 0 | FF20: 0 | FG20: 0 | FH20: 0 | FI20: 0 | FJ20: 0 | FK20: 0 | FL20: 0 | FM20: 0 | FN20: 0 | FO20: 0 | FP20: 0 | FQ20: 0 | FR20: 0 | FS20: 0 | FT20: 0 | FU20: 0 | FV20: 0 | FW20: 0 | FX20: 0 | FY20: 0 | FZ20: 0 | GA20: 0 | GB20: 0 | GC20: 0 | GD20: 0 | GE20: 0 | GF20: 0 | GG20: 0 | GH20: 0
A21: 2 | B21: POLES | C21: > 1 kv & < = 11 kv ; wood | D21: 7.269381503 | E21: 61.13051508 | F21: 7.818600583 | G21: 2 | H21: 1231 | I21: 2005 | J21: 2019 | K21: 2611 | L21: 2940 | M21: 2902 | N21: 2809 | O21: 2701 | P21: 2897 | Q21: 2230 | R21: 2121 | S21: 1886 | T21: 1935 | U21: 1996 | V21: 1492 | W21: 1580 | X21: 1520 | Y21: 2149 | Z21: 1416 | AA21: 1505 | AB21: 1177 | AC21: 1499 | AD21: 1916 | AE21: 1635 | AF21: 1370 | AG21: 1518 | AH21: 2475 | AI21: 2473 | AJ21: 1957 | AK21: 1931 | AL21: 2484 | AM21: 2633 | AN21: 2281 | AO21: 1463 | AP21: 2420 | AQ21: 3632 | AR21: 2776 | AS21: 2070 | AT21: 2039 | AU21: 1759 | AV21: 1884 | AW21: 1770 | AX21: 3049 | AY21: 2839 | AZ21: 2094 | BA21: 3031 | BB21: 2809 | BC21: 3162 | BD21: 1878 | BE21: 3280 | BF21: 3802 | BG21: 3209 | BH21: 3666 | BI21: 2337 | BJ21: 1789 | BK21: 902 | BL21: 1773 | BM21: 1162 | BN21: 623 | BO21: 222 | BP21: 109 | BQ21: 108 | BR21: 39 | BS21: 35 | BT21: 17 | BU21: 1 | BV21: 1 | BW21: 0 | BX21: 24 | BY21: 1 | BZ21: 0 | CA21: 0 | CB21: 8 | CC21: 0 | CD21: 0 | CE21: 0 | CF21: 0 | CG21: 0 | CH21: 0 | CI21: 0 | CJ21: 0 | CK21: 0 | CL21: 0 | CM21: 0 | CN21: 0 | CO21: 0 | CP21: 0 | CQ21: 0 | CR21: 0 | CS21: 0 | CT21: 0 | CV21: 8948.60863 | CW21: 14575.10991 | CX21: 14676.88125 | CY21: 18980.3551 | CZ21: 21371.98162 | DA21: 21095.74512 | DB21: 20419.69264 | DC21: 19634.59944 | DD21: 21059.39821 | DE21: 16210.72075 | DF21: 15418.35817 | DG21: 13710.05351 | DH21: 14066.25321 | DI21: 14509.68548 | DJ21: 10845.9172 | DK21: 11485.62277 | DL21: 11049.45988 | DM21: 15621.90085 | DN21: 10293.44421 | DO21: 10940.41916 | DP21: 8556.062029 | DQ21: 10896.80287 | DR21: 13928.13496 | DS21: 11885.43876 | DT21: 9959.052659 | DU21: 11034.92112 | DV21: 17991.71922 | DW21: 17977.18046 | DX21: 14226.1796 | DY21: 14037.17568 | DZ21: 18057.14365 | EA21: 19140.2815 | EB21: 16581.45921 | EC21: 10635.10514 | ED21: 17591.90324 | EE21: 26402.39362 | EF21: 20179.80305 | EG21: 15047.61971 | EH21: 14822.26888 | EI21: 12786.84206 | EJ21: 13695.51475 | EK21: 12866.80526 | EL21: 22164.3442 | EM21: 20637.77409 | EN21: 15222.08487 | EO21: 22033.49534 | EP21: 20419.69264 | EQ21: 22985.78431 | ER21: 13651.89846 | ES21: 23843.57133 | ET21: 27638.18847 | EU21: 23327.44524 | EV21: 26649.55259 | EW21: 16988.54457 | EX21: 13004.92351 | EY21: 6556.982116 | EZ21: 12888.61341 | FA21: 8447.021307 | FB21: 4528.824676 | FC21: 1613.802694 | FD21: 792.3625838 | FE21: 785.0932023 | FF21: 283.5058786 | FG21: 254.4283526 | FH21: 123.5794856 | FI21: 7.269381503 | FJ21: 7.269381503 | FK21: 0 | FL21: 174.4651561 | FM21: 7.269381503 | FN21: 0 | FO21: 0 | FP21: 58.15505203 | FQ21: 0 | FR21: 0 | FS21: 0 | FT21: 0 | FU21: 0 | FV21: 0 | FW21: 0 | FX21: 0 | FY21: 0 | FZ21: 0 | GA21: 0 | GB21: 0 | GC21: 0 | GD21: 0 | GE21: 0 | GF21: 0 | GG21: 0 | GH21: 0
A22: 2 | B22: POLES | C22: > 22 kv & < = 66 kv ; concrete | D22: 24.29363663 | E22: 50.86827982 | F22: 7.132200209 | G22: 2 | H22: 59 | I22: 36 | J22: 42 | K22: 90 | L22: 148 | M22: 160 | N22: 346 | O22: 327 | P22: 100 | Q22: 112 | R22: 415 | S22: 408 | T22: 306 | U22: 153 | V22: 114 | W22: 101 | X22: 74 | Y22: 85 | Z22: 13 | AA22: 59 | AB22: 6 | AC22: 60 | AD22: 10 | AE22: 50 | AF22: 15 | AG22: 85 | AH22: 41 | AI22: 46 | AJ22: 38 | AK22: 0 | AL22: 38 | AM22: 6 | AN22: 0 | AO22: 57 | AP22: 4 | AQ22: 0 | AR22: 0 | AS22: 1 | AT22: 0 | AU22: 0 | AV22: 1 | AW22: 0 | AX22: 20 | AY22: 0 | AZ22: 0 | BA22: 0 | BB22: 2 | BC22: 1 | BD22: 0 | BE22: 7 | BF22: 1 | BG22: 45 | BH22: 22 | BI22: 1 | BJ22: 0 | BK22: 0 | BL22: 0 | BM22: 23 | BN22: 0 | BO22: 0 | BP22: 0 | BQ22: 0 | BR22: 0 | BS22: 0 | BT22: 0 | BU22: 0 | BV22: 0 | BW22: 0 | BX22: 0 | BY22: 0 | BZ22: 0 | CA22: 0 | CB22: 0 | CC22: 0 | CD22: 0 | CE22: 0 | CF22: 0 | CG22: 0 | CH22: 0 | CI22: 0 | CJ22: 0 | CK22: 0 | CL22: 0 | CM22: 0 | CN22: 0 | CO22: 0 | CP22: 0 | CQ22: 0 | CR22: 0 | CS22: 0 | CT22: 0 | CV22: 1433.324561 | CW22: 874.5709186 | CX22: 1020.332738 | CY22: 2186.427296 | CZ22: 3595.458221 | DA22: 3886.98186 | DB22: 8405.598273 | DC22: 7944.019177 | DD22: 2429.363663 | DE22: 2720.887302 | DF22: 10081.8592 | DG22: 9911.803744 | DH22: 7433.852808 | DI22: 3716.926404 | DJ22: 2769.474575 | DK22: 2453.657299 | DL22: 1797.72911 | DM22: 2064.959113 | DN22: 315.8172762 | DO22: 1433.324561 | DP22: 145.7618198 | DQ22: 1457.618198 | DR22: 242.9363663 | DS22: 1214.681831 | DT22: 364.4045494 | DU22: 2064.959113 | DV22: 996.0391017 | DW22: 1117.507285 | DX22: 923.1581918 | DY22: 0 | DZ22: 923.1581918 | EA22: 145.7618198 | EB22: 0 | EC22: 1384.737288 | ED22: 97.17454651 | EE22: 0 | EF22: 0 | EG22: 24.29363663 | EH22: 0 | EI22: 0 | EJ22: 24.29363663 | EK22: 0 | EL22: 485.8727325 | EM22: 0 | EN22: 0 | EO22: 0 | EP22: 48.58727325 | EQ22: 24.29363663 | ER22: 0 | ES22: 170.0554564 | ET22: 24.29363663 | EU22: 1093.213648 | EV22: 534.4600058 | EW22: 24.29363663 | EX22: 0 | EY22: 0 | EZ22: 0 | FA22: 558.7536424 | FB22: 0 | FC22: 0 | FD22: 0 | FE22: 0 | FF22: 0 | FG22: 0 | FH22: 0 | FI22: 0 | FJ22: 0 | FK22: 0 | FL22: 0 | FM22: 0 | FN22: 0 | FO22: 0 | FP22: 0 | FQ22: 0 | FR22: 0 | FS22: 0 | FT22: 0 | FU22: 0 | FV22: 0 | FW22: 0 | FX22: 0 | FY22: 0 | FZ22: 0 | GA22: 0 | GB22: 0 | GC22: 0 | GD22: 0 | GE22: 0 | GF22: 0 | GG22: 0 | GH22: 0
A23: 2 | B23: POLES | C23: > 22 kv & < = 66 kv ; steel | D23: 24.26035183 | E23: 21.15495402 | F23: 4.599451492 | G23: 2 | H23: 2 | I23: 0 | J23: 5 | K23: 1 | L23: 9 | M23: 24 | N23: 100 | O23: 2 | P23: 1 | Q23: 21 | R23: 46 | S23: 28 | T23: 0 | U23: 0 | V23: 0 | W23: 0 | X23: 0 | Y23: 0 | Z23: 0 | AA23: 0 | AB23: 0 | AC23: 0 | AD23: 0 | AE23: 0 | AF23: 0 | AG23: 0 | AH23: 0 | AI23: 0 | AJ23: 0 | AK23: 0 | AL23: 0 | AM23: 0 | AN23: 0 | AO23: 0 | AP23: 0 | AQ23: 1 | AR23: 0 | AS23: 0 | AT23: 0 | AU23: 0 | AV23: 0 | AW23: 0 | AX23: 0 | AY23: 0 | AZ23: 0 | BA23: 0 | BB23: 0 | BC23: 0 | BD23: 0 | BE23: 0 | BF23: 0 | BG23: 0 | BH23: 0 | BI23: 0 | BJ23: 0 | BK23: 0 | BL23: 0 | BM23: 0 | BN23: 0 | BO23: 0 | BP23: 0 | BQ23: 0 | BR23: 0 | BS23: 0 | BT23: 0 | BU23: 0 | BV23: 0 | BW23: 0 | BX23: 0 | BY23: 0 | BZ23: 0 | CA23: 0 | CB23: 0 | CC23: 0 | CD23: 0 | CE23: 0 | CF23: 0 | CG23: 0 | CH23: 0 | CI23: 0 | CJ23: 0 | CK23: 0 | CL23: 0 | CM23: 0 | CN23: 0 | CO23: 0 | CP23: 0 | CQ23: 0 | CR23: 0 | CS23: 0 | CT23: 0 | CV23: 48.52070365 | CW23: 0 | CX23: 121.3017591 | CY23: 24.26035183 | CZ23: 218.3431664 | DA23: 582.2484439 | DB23: 2426.035183 | DC23: 48.52070365 | DD23: 24.26035183 | DE23: 509.4673884 | DF23: 1115.976184 | DG23: 679.2898512 | DH23: 0 | DI23: 0 | DJ23: 0 | DK23: 0 | DL23: 0 | DM23: 0 | DN23: 0 | DO23: 0 | DP23: 0 | DQ23: 0 | DR23: 0 | DS23: 0 | DT23: 0 | DU23: 0 | DV23: 0 | DW23: 0 | DX23: 0 | DY23: 0 | DZ23: 0 | EA23: 0 | EB23: 0 | EC23: 0 | ED23: 0 | EE23: 24.26035183 | EF23: 0 | EG23: 0 | EH23: 0 | EI23: 0 | EJ23: 0 | EK23: 0 | EL23: 0 | EM23: 0 | EN23: 0 | EO23: 0 | EP23: 0 | EQ23: 0 | ER23: 0 | ES23: 0 | ET23: 0 | EU23: 0 | EV23: 0 | EW23: 0 | EX23: 0 | EY23: 0 | EZ23: 0 | FA23: 0 | FB23: 0 | FC23: 0 | FD23: 0 | FE23: 0 | FF23: 0 | FG23: 0 | FH23: 0 | FI23: 0 | FJ23: 0 | FK23: 0 | FL23: 0 | FM23: 0 | FN23: 0 | FO23: 0 | FP23: 0 | FQ23: 0 | FR23: 0 | FS23: 0 | FT23: 0 | FU23: 0 | FV23: 0 | FW23: 0 | FX23: 0 | FY23: 0 | FZ23: 0 | GA23: 0 | GB23: 0 | GC23: 0 | GD23: 0 | GE23: 0 | GF23: 0 | GG23: 0 | GH23: 0
A24: 2 | B24: POLES | C24: > 22 kv & < = 66 kv ; wood | D24: 18.95975829 | E24: 65.3370547 | F24: 8.083133965 | G24: 2 | H24: 125 | I24: 175 | J24: 218 | K24: 192 | L24: 299 | M24: 264 | N24: 288 | O24: 351 | P24: 361 | Q24: 259 | R24: 209 | S24: 126 | T24: 194 | U24: 201 | V24: 202 | W24: 224 | X24: 133 | Y24: 114 | Z24: 92 | AA24: 114 | AB24: 90 | AC24: 121 | AD24: 189 | AE24: 217 | AF24: 197 | AG24: 320 | AH24: 185 | AI24: 219 | AJ24: 141 | AK24: 108 | AL24: 316 | AM24: 271 | AN24: 250 | AO24: 252 | AP24: 546 | AQ24: 634 | AR24: 307 | AS24: 359 | AT24: 243 | AU24: 244 | AV24: 390 | AW24: 196 | AX24: 217 | AY24: 343 | AZ24: 199 | BA24: 463 | BB24: 582 | BC24: 525 | BD24: 424 | BE24: 610 | BF24: 699 | BG24: 753 | BH24: 569 | BI24: 396 | BJ24: 228 | BK24: 110 | BL24: 248 | BM24: 229 | BN24: 43 | BO24: 0 | BP24: 0 | BQ24: 0 | BR24: 16 | BS24: 0 | BT24: 0 | BU24: 0 | BV24: 0 | BW24: 0 | BX24: 6 | BY24: 0 | BZ24: 0 | CA24: 0 | CB24: 65 | CC24: 0 | CD24: 0 | CE24: 0 | CF24: 0 | CG24: 0 | CH24: 0 | CI24: 0 | CJ24: 0 | CK24: 0 | CL24: 0 | CM24: 0 | CN24: 0 | CO24: 0 | CP24: 0 | CQ24: 0 | CR24: 0 | CS24: 0 | CT24: 0 | CV24: 2369.969786 | CW24: 3317.9577 | CX24: 4133.227307 | CY24: 3640.273591 | CZ24: 5668.967728 | DA24: 5005.376188 | DB24: 5460.410387 | DC24: 6654.875159 | DD24: 6844.472742 | DE24: 4910.577397 | DF24: 3962.589482 | DG24: 2388.929544 | DH24: 3678.193108 | DI24: 3810.911416 | DJ24: 3829.871174 | DK24: 4246.985857 | DL24: 2521.647852 | DM24: 2161.412445 | DN24: 1744.297762 | DO24: 2161.412445 | DP24: 1706.378246 | DQ24: 2294.130753 | DR24: 3583.394316 | DS24: 4114.267548 | DT24: 3735.072383 | DU24: 6067.122652 | DV24: 3507.555283 | DW24: 4152.187065 | DX24: 2673.325919 | DY24: 2047.653895 | DZ24: 5991.283619 | EA24: 5138.094496 | EB24: 4739.939572 | EC24: 4777.859089 | ED24: 10352.02803 | EE24: 12020.48675 | EF24: 5820.645794 | EG24: 6806.553225 | EH24: 4607.221264 | EI24: 4626.181022 | EJ24: 7394.305732 | EK24: 3716.112624 | EL24: 4114.267548 | EM24: 6503.197093 | EN24: 3772.991899 | EO24: 8778.368087 | EP24: 11034.57932 | EQ24: 9953.873101 | ER24: 8038.937514 | ES24: 11565.45256 | ET24: 13252.87104 | EU24: 14276.69799 | EV24: 10788.10247 | EW24: 7508.064282 | EX24: 4322.82489 | EY24: 2085.573412 | EZ24: 4702.020055 | FA24: 4341.784648 | FB24: 815.2696064 | FC24: 0 | FD24: 0 | FE24: 0 | FF24: 303.3561326 | FG24: 0 | FH24: 0 | FI24: 0 | FJ24: 0 | FK24: 0 | FL24: 113.7585497 | FM24: 0 | FN24: 0 | FO24: 0 | FP24: 1232.384289 | FQ24: 0 | FR24: 0 | FS24: 0 | FT24: 0 | FU24: 0 | FV24: 0 | FW24: 0 | FX24: 0 | FY24: 0 | FZ24: 0 | GA24: 0 | GB24: 0 | GC24: 0 | GD24: 0 | GE24: 0 | GF24: 0 | GG24: 0 | GH24: 0
A25: 2 | B25: POLES | C25: > 66 kv & < = 132 kv ; concrete | D25: 24.29084709 | E25: 51.93099737 | F25: 7.206316491 | G25: 2 | H25: 28 | I25: 30 | J25: 40 | K25: 31 | L25: 33 | M25: 245 | N25: 286 | O25: 404 | P25: 183 | Q25: 64 | R25: 81 | S25: 34 | T25: 44 | U25: 142 | V25: 257 | W25: 62 | X25: 139 | Y25: 66 | Z25: 2 | AA25: 1 | AB25: 17 | AC25: 30 | AD25: 2 | AE25: 1 | AF25: 4 | AG25: 0 | AH25: 99 | AI25: 28 | AJ25: 2 | AK25: 46 | AL25: 14 | AM25: 100 | AN25: 28 | AO25: 8 | AP25: 15 | AQ25: 17 | AR25: 5 | AS25: 0 | AT25: 0 | AU25: 0 | AV25: 0 | AW25: 0 | AX25: 1 | AY25: 2 | AZ25: 0 | BA25: 1 | BB25: 0 | BC25: 7 | BD25: 2 | BE25: 7 | BF25: 6 | BG25: 2 | BH25: 10 | BI25: 0 | BJ25: 3 | BK25: 0 | BL25: 0 | BM25: 37 | BN25: 0 | BO25: 0 | BP25: 0 | BQ25: 0 | BR25: 0 | BS25: 0 | BT25: 0 | BU25: 0 | BV25: 0 | BW25: 0 | BX25: 0 | BY25: 0 | BZ25: 0 | CA25: 0 | CB25: 0 | CC25: 0 | CD25: 0 | CE25: 0 | CF25: 0 | CG25: 0 | CH25: 0 | CI25: 0 | CJ25: 0 | CK25: 0 | CL25: 0 | CM25: 0 | CN25: 0 | CO25: 0 | CP25: 0 | CQ25: 0 | CR25: 0 | CS25: 0 | CT25: 0 | CV25: 680.1437186 | CW25: 728.7254128 | CX25: 971.6338837 | CY25: 753.0162599 | CZ25: 801.5979541 | DA25: 5951.257538 | DB25: 6947.182269 | DC25: 9813.502226 | DD25: 4445.225018 | DE25: 1554.614214 | DF25: 1967.558615 | DG25: 825.8888012 | DH25: 1068.797272 | DI25: 3449.300287 | DJ25: 6242.747703 | DK25: 1506.03252 | DL25: 3376.427746 | DM25: 1603.195908 | DN25: 48.58169419 | DO25: 24.29084709 | DP25: 412.9444006 | DQ25: 728.7254128 | DR25: 48.58169419 | DS25: 24.29084709 | DT25: 97.16338837 | DU25: 0 | DV25: 2404.793862 | DW25: 680.1437186 | DX25: 48.58169419 | DY25: 1117.378966 | DZ25: 340.0718593 | EA25: 2429.084709 | EB25: 680.1437186 | EC25: 194.3267767 | ED25: 364.3627064 | EE25: 412.9444006 | EF25: 121.4542355 | EG25: 0 | EH25: 0 | EI25: 0 | EJ25: 0 | EK25: 0 | EL25: 24.29084709 | EM25: 48.58169419 | EN25: 0 | EO25: 24.29084709 | EP25: 0 | EQ25: 170.0359297 | ER25: 48.58169419 | ES25: 170.0359297 | ET25: 145.7450826 | EU25: 48.58169419 | EV25: 242.9084709 | EW25: 0 | EX25: 72.87254128 | EY25: 0 | EZ25: 0 | FA25: 898.7613425 | FB25: 0 | FC25: 0 | FD25: 0 | FE25: 0 | FF25: 0 | FG25: 0 | FH25: 0 | FI25: 0 | FJ25: 0 | FK25: 0 | FL25: 0 | FM25: 0 | FN25: 0 | FO25: 0 | FP25: 0 | FQ25: 0 | FR25: 0 | FS25: 0 | FT25: 0 | FU25: 0 | FV25: 0 | FW25: 0 | FX25: 0 | FY25: 0 | FZ25: 0 | GA25: 0 | GB25: 0 | GC25: 0 | GD25: 0 | GE25: 0 | GF25: 0 | GG25: 0 | GH25: 0
A26: 2 | B26: POLES | C26: > 66 kv & < = 132 kv ; steel | D26: 92.60822991 | E26: 49.01826184 | F26: 7.001304296 | G26: 2 | H26: 7 | I26: 10 | J26: 68 | K26: 73 | L26: 8 | M26: 8 | N26: 9 | O26: 14 | P26: 7 | Q26: 6 | R26: 0 | S26: 14 | T26: 11 | U26: 2 | V26: 0 | W26: 0 | X26: 0 | Y26: 0 | Z26: 0 | AA26: 0 | AB26: 0 | AC26: 0 | AD26: 0 | AE26: 0 | AF26: 0 | AG26: 0 | AH26: 0 | AI26: 0 | AJ26: 0 | AK26: 9 | AL26: 0 | AM26: 0 | AN26: 0 | AO26: 0 | AP26: 2 | AQ26: 0 | AR26: 36 | AS26: 0 | AT26: 0 | AU26: 1 | AV26: 0 | AW26: 0 | AX26: 0 | AY26: 0 | AZ26: 0 | BA26: 0 | BB26: 0 | BC26: 0 | BD26: 0 | BE26: 0 | BF26: 0 | BG26: 0 | BH26: 0 | BI26: 0 | BJ26: 0 | BK26: 0 | BL26: 0 | BM26: 2 | BN26: 0 | BO26: 4 | BP26: 0 | BQ26: 0 | BR26: 0 | BS26: 0 | BT26: 0 | BU26: 0 | BV26: 0 | BW26: 0 | BX26: 0 | BY26: 0 | BZ26: 0 | CA26: 0 | CB26: 0 | CC26: 0 | CD26: 0 | CE26: 0 | CF26: 0 | CG26: 0 | CH26: 0 | CI26: 0 | CJ26: 0 | CK26: 0 | CL26: 0 | CM26: 0 | CN26: 0 | CO26: 0 | CP26: 0 | CQ26: 0 | CR26: 0 | CS26: 0 | CT26: 0 | CV26: 648.2576094 | CW26: 926.0822991 | CX26: 6297.359634 | CY26: 6760.400784 | CZ26: 740.8658393 | DA26: 740.8658393 | DB26: 833.4740692 | DC26: 1296.515219 | DD26: 648.2576094 | DE26: 555.6493795 | DF26: 0 | DG26: 1296.515219 | DH26: 1018.690529 | DI26: 185.2164598 | DJ26: 0 | DK26: 0 | DL26: 0 | DM26: 0 | DN26: 0 | DO26: 0 | DP26: 0 | DQ26: 0 | DR26: 0 | DS26: 0 | DT26: 0 | DU26: 0 | DV26: 0 | DW26: 0 | DX26: 0 | DY26: 833.4740692 | DZ26: 0 | EA26: 0 | EB26: 0 | EC26: 0 | ED26: 185.2164598 | EE26: 0 | EF26: 3333.896277 | EG26: 0 | EH26: 0 | EI26: 92.60822991 | EJ26: 0 | EK26: 0 | EL26: 0 | EM26: 0 | EN26: 0 | EO26: 0 | EP26: 0 | EQ26: 0 | ER26: 0 | ES26: 0 | ET26: 0 | EU26: 0 | EV26: 0 | EW26: 0 | EX26: 0 | EY26: 0 | EZ26: 0 | FA26: 185.2164598 | FB26: 0 | FC26: 370.4329197 | FD26: 0 | FE26: 0 | FF26: 0 | FG26: 0 | FH26: 0 | FI26: 0 | FJ26: 0 | FK26: 0 | FL26: 0 | FM26: 0 | FN26: 0 | FO26: 0 | FP26: 0 | FQ26: 0 | FR26: 0 | FS26: 0 | FT26: 0 | FU26: 0 | FV26: 0 | FW26: 0 | FX26: 0 | FY26: 0 | FZ26: 0 | GA26: 0 | GB26: 0 | GC26: 0 | GD26: 0 | GE26: 0 | GF26: 0 | GG26: 0 | GH26: 0
A27: 2 | B27: POLES | C27: > 66 kv & < = 132 kv ; wood | D27: 20.82497827 | E27: 64.50525251 | F27: 8.031516203 | G27: 2 | H27: 19 | I27: 28 | J27: 20 | K27: 11 | L27: 17 | M27: 21 | N27: 22 | O27: 48 | P27: 35 | Q27: 55 | R27: 16 | S27: 9 | T27: 18 | U27: 11 | V27: 13 | W27: 11 | X27: 34 | Y27: 79 | Z27: 12 | AA27: 8 | AB27: 16 | AC27: 19 | AD27: 35 | AE27: 61 | AF27: 13 | AG27: 14 | AH27: 32 | AI27: 40 | AJ27: 11 | AK27: 15 | AL27: 17 | AM27: 18 | AN27: 19 | AO27: 30 | AP27: 406 | AQ27: 328 | AR27: 48 | AS27: 32 | AT27: 77 | AU27: 107 | AV27: 72 | AW27: 502 | AX27: 129 | AY27: 122 | AZ27: 17 | BA27: 166 | BB27: 141 | BC27: 373 | BD27: 240 | BE27: 186 | BF27: 64 | BG27: 165 | BH27: 117 | BI27: 104 | BJ27: 67 | BK27: 0 | BL27: 46 | BM27: 99 | BN27: 14 | BO27: 12 | BP27: 0 | BQ27: 0 | BR27: 0 | BS27: 0 | BT27: 0 | BU27: 0 | BV27: 0 | BW27: 0 | BX27: 0 | BY27: 0 | BZ27: 0 | CA27: 0 | CB27: 0 | CC27: 0 | CD27: 0 | CE27: 0 | CF27: 0 | CG27: 0 | CH27: 0 | CI27: 0 | CJ27: 0 | CK27: 0 | CL27: 0 | CM27: 0 | CN27: 0 | CO27: 0 | CP27: 0 | CQ27: 0 | CR27: 0 | CS27: 0 | CT27: 0 | CV27: 395.6745872 | CW27: 583.0993917 | CX27: 416.4995655 | CY27: 229.074761 | CZ27: 354.0246307 | DA27: 437.3245438 | DB27: 458.149522 | DC27: 999.5989572 | DD27: 728.8742396 | DE27: 1145.373805 | DF27: 333.1996524 | DG27: 187.4248045 | DH27: 374.8496089 | DI27: 229.074761 | DJ27: 270.7247176 | DK27: 229.074761 | DL27: 708.0492613 | DM27: 1645.173284 | DN27: 249.8997393 | DO27: 166.5998262 | DP27: 333.1996524 | DQ27: 395.6745872 | DR27: 728.8742396 | DS27: 1270.323675 | DT27: 270.7247176 | DU27: 291.5496958 | DV27: 666.3993048 | DW27: 832.999131 | DX27: 229.074761 | DY27: 312.3746741 | DZ27: 354.0246307 | EA27: 374.8496089 | EB27: 395.6745872 | EC27: 624.7493482 | ED27: 8454.941179 | EE27: 6830.592874 | EF27: 999.5989572 | EG27: 666.3993048 | EH27: 1603.523327 | EI27: 2228.272675 | EJ27: 1499.398436 | EK27: 10454.13909 | EL27: 2686.422197 | EM27: 2540.647349 | EN27: 354.0246307 | EO27: 3456.946394 | EP27: 2936.321937 | EQ27: 7767.716896 | ER27: 4997.994786 | ES27: 3873.445959 | ET27: 1332.79861 | EU27: 3436.121415 | EV27: 2436.522458 | EW27: 2165.797741 | EX27: 1395.273544 | EY27: 0 | EZ27: 957.9490006 | FA27: 2061.672849 | FB27: 291.5496958 | FC27: 249.8997393 | FD27: 0 | FE27: 0 | FF27: 0 | FG27: 0 | FH27: 0 | FI27: 0 | FJ27: 0 | FK27: 0 | FL27: 0 | FM27: 0 | FN27: 0 | FO27: 0 | FP27: 0 | FQ27: 0 | FR27: 0 | FS27: 0 | FT27: 0 | FU27: 0 | FV27: 0 | FW27: 0 | FX27: 0 | FY27: 0 | FZ27: 0 | GA27: 0 | GB27: 0 | GC27: 0 | GD27: 0 | GE27: 0 | GF27: 0 | GG27: 0 | GH27: 0
A28: 2 | B28: POLES | C28: staked wooden pole | D28: 10.51630099 | E28: 18.44640476 | F28: 4.294927794 | G28: 2 | H28: 802 | I28: 585 | J28: 1241 | K28: 1486 | L28: 1895 | M28: 2162 | N28: 1823 | O28: 2930 | P28: 2349 | Q28: 2780 | R28: 1400 | S28: 1081 | T28: 1041 | U28: 855 | V28: 990 | W28: 519 | X28: 344 | Y28: 320 | Z28: 303 | AA28: 301 | AB28: 299 | AC28: 0 | AD28: 0 | AE28: 0 | AF28: 0 | AG28: 0 | AH28: 0 | AI28: 0 | AJ28: 0 | AK28: 0 | AL28: 0 | AM28: 0 | AN28: 0 | AO28: 0 | AP28: 0 | AQ28: 0 | AR28: 0 | AS28: 0 | AT28: 0 | AU28: 0 | AV28: 0 | AW28: 0 | AX28: 0 | AY28: 0 | AZ28: 0 | BA28: 0 | BB28: 0 | BC28: 0 | BD28: 0 | BE28: 0 | BF28: 0 | BG28: 0 | BH28: 0 | BI28: 0 | BJ28: 0 | BK28: 0 | BL28: 0 | BM28: 0 | BN28: 0 | BO28: 0 | BP28: 0 | BQ28: 0 | BR28: 0 | BS28: 0 | BT28: 0 | BU28: 0 | BV28: 0 | BW28: 0 | BX28: 0 | BY28: 0 | BZ28: 0 | CA28: 0 | CB28: 0 | CC28: 0 | CD28: 0 | CE28: 0 | CF28: 0 | CG28: 0 | CH28: 0 | CI28: 0 | CJ28: 0 | CK28: 0 | CL28: 0 | CM28: 0 | CN28: 0 | CO28: 0 | CP28: 0 | CQ28: 0 | CR28: 0 | CS28: 0 | CT28: 0 | CV28: 8434.073396 | CW28: 6152.03608 | CX28: 13050.72953 | CY28: 15627.22327 | CZ28: 19928.39038 | DA28: 22736.24275 | DB28: 19171.21671 | DC28: 30812.76191 | DD28: 24702.79103 | DE28: 29235.31676 | DF28: 14722.82139 | DG28: 11368.12137 | DH28: 10947.46933 | DI28: 8991.437348 | DJ28: 10411.13798 | DK28: 5457.960215 | DL28: 3617.607541 | DM28: 3365.216318 | DN28: 3186.439201 | DO28: 3165.406599 | DP28: 3144.373997 | DQ28: 0 | DR28: 0 | DS28: 0 | DT28: 0 | DU28: 0 | DV28: 0 | DW28: 0 | DX28: 0 | DY28: 0 | DZ28: 0 | EA28: 0 | EB28: 0 | EC28: 0 | ED28: 0 | EE28: 0 | EF28: 0 | EG28: 0 | EH28: 0 | EI28: 0 | EJ28: 0 | EK28: 0 | EL28: 0 | EM28: 0 | EN28: 0 | EO28: 0 | EP28: 0 | EQ28: 0 | ER28: 0 | ES28: 0 | ET28: 0 | EU28: 0 | EV28: 0 | EW28: 0 | EX28: 0 | EY28: 0 | EZ28: 0 | FA28: 0 | FB28: 0 | FC28: 0 | FD28: 0 | FE28: 0 | FF28: 0 | FG28: 0 | FH28: 0 | FI28: 0 | FJ28: 0 | FK28: 0 | FL28: 0 | FM28: 0 | FN28: 0 | FO28: 0 | FP28: 0 | FQ28: 0 | FR28: 0 | FS28: 0 | FT28: 0 | FU28: 0 | FV28: 0 | FW28: 0 | FX28: 0 | FY28: 0 | FZ28: 0 | GA28: 0 | GB28: 0 | GC28: 0 | GD28: 0 | GE28: 0 | GF28: 0 | GG28: 0 | GH28: 0
A29: 3 | B29: SERVICE LINES | C29: ˂ = 11 kv ; commercial and industrial ; complex type | D29: 0.3288076927 | E29: 58.52707147 | F29: 7.650298783 | G29: 2 | H29: 927.0126582 | I29: 900.0126582 | J29: 1117.012658 | K29: 691.0126582 | L29: 799.0126582 | M29: 886.0126582 | N29: 697.0126582 | O29: 633.0126582 | P29: 762.0126582 | Q29: 765.0126582 | R29: 757.0126582 | S29: 943.0126582 | T29: 800.0126582 | U29: 514.0126582 | V29: 394.0126582 | W29: 308.0126582 | X29: 437.0126582 | Y29: 213.0126582 | Z29: 123.0126582 | AA29: 149.0126582 | AB29: 130.0126582 | AC29: 106.0126582 | AD29: 173.0126582 | AE29: 116.0126582 | AF29: 89.01265822 | AG29: 99.01265822 | AH29: 98.01265822 | AI29: 142.0126582 | AJ29: 120.0126582 | AK29: 143.0126582 | AL29: 97.01265822 | AM29: 141.0126582 | AN29: 250.0126582 | AO29: 80.01265822 | AP29: 251.0126582 | AQ29: 70.01265822 | AR29: 86.01265822 | AS29: 444.0126582 | AT29: 194.0126582 | AU29: 101.0126582 | AV29: 147.0126582 | AW29: 60.01265822 | AX29: 95.01265822 | AY29: 209.0126582 | AZ29: 66.01265822 | BA29: 192.0126582 | BB29: 78.01265822 | BC29: 209.0126582 | BD29: 144.0126582 | BE29: 714.0126582 | BF29: 138.0126582 | BG29: 407.0126582 | BH29: 616.0126582 | BI29: 566.0126582 | BJ29: 560.0126582 | BK29: 411.0126582 | BL29: 616.0126582 | BM29: 464.0126582 | BN29: 534.0126582 | BO29: 521.0126582 | BP29: 588.0126582 | BQ29: 253.0126582 | BR29: 713.0126582 | BS29: 71.01265822 | BT29: 53.01265822 | BU29: 106.0126582 | BV29: 156.0126582 | BW29: 56.01265822 | BX29: 67.01265822 | BY29: 88.01265822 | BZ29: 1.01265822 | CA29: 12.01265822 | CB29: 84.01265822 | CC29: 0 | CD29: 0 | CE29: 0 | CF29: 0 | CG29: 18.01265822 | CH29: 0.01265822 | CI29: 0 | CJ29: 0.01265822 | CK29: 0 | CL29: 0 | CM29: 0 | CN29: 0 | CO29: 0 | CP29: 0 | CQ29: 0 | CR29: 0 | CS29: 191.0126582 | CT29: 136.0126582 | CV29: 304.8088932 | CW29: 295.9310855 | CX29: 367.2823548 | CY29: 227.2102778 | CZ29: 262.7215086 | DA29: 291.3277778 | DB29: 229.1831239 | DC29: 208.1394316 | DD29: 250.5556239 | DE29: 251.542047 | DF29: 248.9115855 | DG29: 310.0698163 | DH29: 263.0503163 | DI29: 169.0113162 | DJ29: 129.554393 | DK29: 101.2769315 | DL29: 143.6931238 | DM29: 70.04020066 | DN29: 40.44750832 | DO29: 48.99650833 | DP29: 42.74916217 | DQ29: 34.85777754 | DR29: 56.88789295 | DS29: 38.14585447 | DT29: 29.26804677 | DU29: 32.55612369 | DV29: 32.227316 | DW29: 46.69485448 | DX29: 39.46108524 | DY29: 47.02366217 | DZ29: 31.89850831 | EA29: 46.36604679 | EB29: 82.20608529 | EC29: 26.30877753 | ED29: 82.53489298 | EE29: 23.02070061 | EF29: 28.28162369 | EG29: 145.9947777 | EH29: 63.7928545 | EI29: 33.21373908 | EJ29: 48.33889294 | EK29: 19.73262368 | EL29: 31.24089292 | EM29: 68.72496989 | EN29: 21.70546984 | EO29: 63.13523911 | EP29: 25.65116215 | EQ29: 68.72496989 | ER29: 47.35246986 | ES29: 234.7728547 | ET29: 45.37962371 | EU29: 133.828893 | EV29: 202.5497008 | EW29: 186.1093162 | EX29: 184.13647 | EY29: 135.1441238 | EZ29: 202.5497008 | FA29: 152.5709315 | FB29: 175.58747 | FC29: 171.31297 | FD29: 193.3430854 | FE29: 83.19250836 | FF29: 234.444047 | FG29: 23.3495083 | FH29: 17.43096983 | FI29: 34.85777754 | FJ29: 51.29816218 | FK29: 18.41739291 | FL29: 22.03427753 | FM29: 28.93923907 | FN29: 0.3329698128 | FO29: 3.949854432 | FP29: 27.6240083 | FQ29: 0 | FR29: 0 | FS29: 0 | FT29: 0 | FU29: 5.922700588 | FV29: 0.004162120111 | FW29: 0 | FX29: 0.004162120111 | FY29: 0 | FZ29: 0 | GA29: 0 | GB29: 0 | GC29: 0 | GD29: 0 | GE29: 0 | GF29: 0 | GG29: 62.80643142 | GH29: 44.72200832
A30: 3 | B30: SERVICE LINES | C30: ˂ = 11 kv ; commercial and industrial ; simple type | D30: 0.3288076927 | E30: 58.52707147 | F30: 7.650298783 | G30: 2 | H30: 837 | I30: 800 | J30: 771 | K30: 810 | L30: 654 | M30: 754 | N30: 563 | O30: 684 | P30: 663 | Q30: 612 | R30: 560 | S30: 1123 | T30: 1639 | U30: 701 | V30: 495 | W30: 439 | X30: 515 | Y30: 384 | Z30: 369 | AA30: 358 | AB30: 382 | AC30: 424 | AD30: 440 | AE30: 402 | AF30: 321 | AG30: 326 | AH30: 516 | AI30: 528 | AJ30: 484 | AK30: 395 | AL30: 526 | AM30: 492 | AN30: 456 | AO30: 337 | AP30: 309 | AQ30: 465 | AR30: 432 | AS30: 804 | AT30: 454 | AU30: 345 | AV30: 279 | AW30: 243 | AX30: 265 | AY30: 336 | AZ30: 341 | BA30: 438 | BB30: 300 | BC30: 475 | BD30: 515 | BE30: 898 | BF30: 383 | BG30: 708 | BH30: 973 | BI30: 1055 | BJ30: 1253 | BK30: 760 | BL30: 1086 | BM30: 1283 | BN30: 928 | BO30: 594 | BP30: 575 | BQ30: 670 | BR30: 237 | BS30: 121 | BT30: 67 | BU30: 56 | BV30: 73 | BW30: 60 | BX30: 77 | BY30: 9 | BZ30: 9 | CA30: 6 | CB30: 51 | CC30: 0 | CD30: 0 | CE30: 0 | CF30: 0 | CG30: 73 | CH30: 0 | CI30: 0 | CJ30: 0 | CK30: 0 | CL30: 0 | CM30: 0 | CN30: 0 | CO30: 0 | CP30: 0 | CQ30: 0 | CR30: 0 | CS30: 123 | CT30: 138 | CV30: 275.2120388 | CW30: 263.0461541 | CX30: 253.510731 | CY30: 266.3342311 | CZ30: 215.040231 | DA30: 247.9210003 | DB30: 185.118731 | DC30: 224.9044618 | DD30: 217.9995002 | DE30: 201.2303079 | DF30: 184.1323079 | DG30: 369.2510389 | DH30: 538.9158083 | DI30: 230.4941926 | DJ30: 162.7598079 | DK30: 144.3465771 | DL30: 169.3359617 | DM30: 126.262154 | DN30: 121.3300386 | DO30: 117.713154 | DP30: 125.6045386 | DQ30: 139.4144617 | DR30: 144.6753848 | DS30: 132.1806925 | DT30: 105.5472693 | DU30: 107.1913078 | DV30: 169.6647694 | DW30: 173.6104617 | DX30: 159.1429233 | DY30: 129.8790386 | DZ30: 172.9528463 | EA30: 161.7733848 | EB30: 149.9363079 | EC30: 110.8081924 | ED30: 101.601577 | EE30: 152.8955771 | EF30: 142.0449232 | EG30: 264.3613849 | EH30: 149.2786925 | EI30: 113.438654 | EJ30: 91.73734625 | EK30: 79.90026932 | EL30: 87.13403856 | EM30: 110.4793847 | EN30: 112.1234232 | EO30: 144.0177694 | EP30: 98.6423078 | EQ30: 156.183654 | ER30: 169.3359617 | ES30: 295.269308 | ET30: 125.9333463 | EU30: 232.7958464 | EV30: 319.929885 | EW30: 346.8921158 | EX30: 411.9960389 | EY30: 249.8938464 | EZ30: 357.0851542 | FA30: 421.8602697 | FB30: 305.1335388 | FC30: 195.3117694 | FD30: 189.0644233 | FE30: 220.3011541 | FF30: 77.92742316 | FG30: 39.78573081 | FH30: 22.03011541 | FI30: 18.41323079 | FJ30: 24.00296156 | FK30: 19.72846156 | FL30: 25.31819234 | FM30: 2.959269234 | FN30: 2.959269234 | FO30: 1.972846156 | FP30: 16.76919233 | FQ30: 0 | FR30: 0 | FS30: 0 | FT30: 0 | FU30: 24.00296156 | FV30: 0 | FW30: 0 | FX30: 0 | FY30: 0 | FZ30: 0 | GA30: 0 | GB30: 0 | GC30: 0 | GD30: 0 | GE30: 0 | GF30: 0 | GG30: 40.4433462 | GH30: 45.37546159
A31: 3 | B31: SERVICE LINES | C31: ˂ = 11 kv ; residential ; complex type | D31: 13.79765504 | E31: 106.8292999 | F31: 10.33582604 | G31: 2 | H31: 9600.03839 | I31: 5245.03839 | J31: 4876.03839 | K31: 5453.03839 | L31: 5079.03839 | M31: 7001.03839 | N31: 4709.03839 | O31: 3950.03839 | P31: 3657.03839 | Q31: 3432.03839 | R31: 3738.03839 | S31: 3522.03839 | T31: 2718.03839 | U31: 3042.03839 | V31: 2732.03839 | W31: 2132.03839 | X31: 2545.03839 | Y31: 2376.03839 | Z31: 2972.03839 | AA31: 2032.03839 | AB31: 3334.03839 | AC31: 2434.03839 | AD31: 3275.03839 | AE31: 2468.03839 | AF31: 2476.03839 | AG31: 2293.03839 | AH31: 2129.03839 | AI31: 1943.03839 | AJ31: 3526.03839 | AK31: 1509.03839 | AL31: 2190.03839 | AM31: 1853.03839 | AN31: 2431.03839 | AO31: 1106.03839 | AP31: 3015.03839 | AQ31: 4343.03839 | AR31: 6247.03839 | AS31: 8381.03839 | AT31: 6540.03839 | AU31: 5163.03839 | AV31: 4177.03839 | AW31: 627.03839 | AX31: 1170.03839 | AY31: 2571.03839 | AZ31: 251.03839 | BA31: 3831.03839 | BB31: 1245.03839 | BC31: 1430.03839 | BD31: 2134.03839 | BE31: 2827.03839 | BF31: 940.03839 | BG31: 3258.03839 | BH31: 2742.03839 | BI31: 2039.03839 | BJ31: 3916.03839 | BK31: 1428.03839 | BL31: 4336.03839 | BM31: 3446.03839 | BN31: 2146.03839 | BO31: 2658.03839 | BP31: 1009.024691 | BQ31: 1078.03839 | BR31: 543.03839 | BS31: 401.03839 | BT31: 145.03839 | BU31: 270.0246914 | BV31: 486.03839 | BW31: 502.0246914 | BX31: 144.0246914 | BY31: 486.03839 | BZ31: 34.03838998 | CA31: 201.03839 | CB31: 711.0246914 | CC31: 0 | CD31: 0 | CE31: 0 | CF31: 0 | CG31: 23.02469135 | CH31: 1.02469135 | CI31: 1.01369863 | CJ31: 4.03838998 | CK31: 0 | CL31: 0 | CM31: 0 | CN31: 0 | CO31: 0 | CP31: 0 | CQ31: 0 | CR31: 0 | CS31: 1163.024691 | CT31: 28.02469135 | CV31: 132458.0181 | CW31: 72369.2304 | CX31: 67277.89569 | CY31: 75239.14265 | CZ31: 70078.81966 | DA31: 96597.91266 | DB31: 64973.68729 | DC31: 54501.26712 | DD31: 50458.55419 | DE31: 47354.0818 | DF31: 51576.16425 | DG31: 48595.87076 | DH31: 37502.5561 | DI31: 41972.99634 | DJ31: 37695.72327 | DK31: 29417.13025 | DL31: 35115.56178 | DM31: 32783.75808 | DN31: 41007.16048 | DO31: 28037.36474 | DP31: 46001.91161 | DQ31: 33584.02207 | DR31: 45187.84996 | DS31: 34053.14234 | DT31: 34163.52358 | DU31: 31638.55271 | DV31: 29375.73728 | DW31: 26809.37344 | DX31: 48651.06138 | DY31: 20821.19115 | DZ31: 30217.39424 | EA31: 25567.58449 | EB31: 33542.6291 | EC31: 15260.73617 | ED31: 41600.45965 | EE31: 59923.74555 | EF31: 86194.48075 | EG31: 115638.6766 | EH31: 90237.19368 | EI31: 71237.82268 | EJ31: 57633.33481 | EK31: 8651.659404 | EL31: 16143.78609 | EM31: 35474.30081 | EN31: 3463.741108 | EO31: 52859.34617 | EP31: 17178.61022 | EQ31: 19731.1764 | ER31: 29444.72556 | ES31: 39006.5005 | ET31: 12970.32543 | EU31: 44953.28983 | EV31: 37833.69982 | EW31: 28133.94833 | EX31: 54032.14684 | EY31: 19703.58109 | EZ31: 59827.16196 | FA31: 47547.24897 | FB31: 29610.29742 | FC31: 36674.6968 | FD31: 13922.17462 | FE31: 14874.40183 | FF31: 7492.656381 | FG31: 5533.389364 | FH31: 2001.189673 | FI31: 3725.707545 | FJ31: 6706.190043 | FK31: 6926.763515 | FL31: 1987.203009 | FM31: 6706.190043 | FN31: 469.6499632 | FO31: 2773.858356 | FP31: 9810.473419 | FQ31: 0 | FR31: 0 | FS31: 0 | FT31: 0 | FU31: 317.6867487 | FV31: 14.13833777 | FW31: 13.98666402 | FX31: 55.72031188 | FY31: 0 | FZ31: 0 | GA31: 0 | GB31: 0 | GC31: 0 | GD31: 0 | GE31: 0 | GF31: 0 | GG31: 16047.0135 | GH31: 386.675024
A32: 3 | B32: SERVICE LINES | C32: ˂ = 11 kv ; residential ; simple type | D32: 0.3288071135 | E32: 59.4967021 | F32: 7.713410536 | G32: 2 | H32: 19947 | I32: 24226 | J32: 25455 | K32: 26781 | L32: 19589 | M32: 24355 | N32: 19616 | O32: 22037 | P32: 26175 | Q32: 20693 | R32: 16482 | S32: 15422 | T32: 9762 | U32: 9613 | V32: 7896 | W32: 7207 | X32: 5932 | Y32: 4290 | Z32: 4076 | AA32: 4436 | AB32: 4508 | AC32: 5678 | AD32: 6154 | AE32: 5587 | AF32: 4311 | AG32: 3700 | AH32: 8390 | AI32: 8276 | AJ32: 6780 | AK32: 5786 | AL32: 7881 | AM32: 7791 | AN32: 6365 | AO32: 5080 | AP32: 3684 | AQ32: 6208 | AR32: 6039 | AS32: 12311 | AT32: 6151 | AU32: 4449 | AV32: 4069 | AW32: 3990 | AX32: 3857 | AY32: 7588 | AZ32: 3532 | BA32: 6161 | BB32: 4630 | BC32: 6405 | BD32: 8948 | BE32: 10256 | BF32: 7223 | BG32: 11331 | BH32: 14735 | BI32: 12987 | BJ32: 23262 | BK32: 12282 | BL32: 14798 | BM32: 19693 | BN32: 16356 | BO32: 7942 | BP32: 9235 | BQ32: 11462 | BR32: 3430 | BS32: 2003 | BT32: 1391 | BU32: 1335 | BV32: 1551 | BW32: 668 | BX32: 981 | BY32: 318 | BZ32: 41 | CA32: 272 | CB32: 907 | CC32: 0 | CD32: 0 | CE32: 1 | CF32: 0 | CG32: 1466 | CH32: 1 | CI32: 1 | CJ32: 4 | CK32: 0 | CL32: 0 | CM32: 0 | CN32: 0 | CO32: 0 | CP32: 0 | CQ32: 0 | CR32: 0 | CS32: 3049 | CT32: 935 | CV32: 6558.715494 | CW32: 7965.681132 | CX32: 8369.785075 | CY32: 8805.783307 | CZ32: 6441.002547 | DA32: 8008.09725 | DB32: 6449.880339 | DC32: 7245.922361 | DD32: 8606.526197 | DE32: 6804.0056 | DF32: 5419.398845 | DG32: 5070.863305 | DH32: 3209.815042 | DI32: 3160.822782 | DJ32: 2596.260968 | DK32: 2369.712867 | DL32: 1950.483797 | DM32: 1410.582517 | DN32: 1340.217795 | DO32: 1458.588356 | DP32: 1482.262468 | DQ32: 1866.966791 | DR32: 2023.478977 | DS32: 1837.045343 | DT32: 1417.487466 | DU32: 1216.58632 | DV32: 2758.691682 | DW32: 2721.207672 | DX32: 2229.31223 | DY32: 1902.477959 | DZ32: 2591.328862 | EA32: 2561.736221 | EB32: 2092.857278 | EC32: 1670.340137 | ED32: 1211.325406 | EE32: 2041.234561 | EF32: 1985.666159 | EG32: 4047.944375 | EH32: 2022.492555 | EI32: 1462.862848 | EJ32: 1337.916145 | EK32: 1311.940383 | EL32: 1268.209037 | EM32: 2494.988377 | EN32: 1161.346725 | EO32: 2025.780626 | EP32: 1522.376936 | EQ32: 2106.009562 | ER32: 2942.166052 | ES32: 3372.245756 | ET32: 2374.973781 | EU32: 3725.713403 | EV32: 4844.972818 | EW32: 4270.217983 | EX32: 7648.711075 | EY32: 4038.408968 | EZ32: 4865.687666 | FA32: 6475.198487 | FB32: 5377.969149 | FC32: 2611.386096 | FD32: 3036.533693 | FE32: 3768.787135 | FF32: 1127.808399 | FG32: 658.6006484 | FH32: 457.3706949 | FI32: 438.9574966 | FJ32: 509.9798331 | FK32: 219.6431518 | FL32: 322.5597784 | FM32: 104.5606621 | FN32: 13.48109165 | FO32: 89.43553488 | FP32: 298.228052 | FQ32: 0 | FR32: 0 | FS32: 0.3288071135 | FT32: 0 | FU32: 482.0312284 | FV32: 0.3288071135 | FW32: 0.3288071135 | FX32: 1.315228454 | FY32: 0 | FZ32: 0 | GA32: 0 | GB32: 0 | GC32: 0 | GD32: 0 | GE32: 0 | GF32: 0 | GG32: 1002.532889 | GH32: 307.4346511
A33: 4 | B33: SWITCHGEAR | C33: ˂ = 11 kv ; circuit breaker | D33: 84.90790131 | E33: 65.10080619 | F33: 8.068507061 | G33: 2 | H33: 317 | I33: 285 | J33: 271 | K33: 371 | L33: 428 | M33: 373 | N33: 407 | O33: 474 | P33: 237 | Q33: 243 | R33: 251 | S33: 186 | T33: 167 | U33: 126 | V33: 93 | W33: 205 | X33: 138 | Y33: 88 | Z33: 112 | AA33: 108 | AB33: 70 | AC33: 61 | AD33: 65 | AE33: 49 | AF33: 47 | AG33: 54 | AH33: 48 | AI33: 55 | AJ33: 35 | AK33: 47 | AL33: 84 | AM33: 14 | AN33: 89 | AO33: 39 | AP33: 46 | AQ33: 42 | AR33: 40 | AS33: 64 | AT33: 57 | AU33: 69 | AV33: 42 | AW33: 86 | AX33: 81 | AY33: 85 | AZ33: 109 | BA33: 153 | BB33: 108 | BC33: 81 | BD33: 66 | BE33: 38 | BF33: 100 | BG33: 79 | BH33: 101 | BI33: 67 | BJ33: 56 | BK33: 69 | BL33: 12 | BM33: 30 | BN33: 39 | BO33: 40 | BP33: 18 | BQ33: 26 | BR33: 42 | BS33: 61 | BT33: 30 | BU33: 39 | BV33: 59 | BW33: 37 | BX33: 12 | BY33: 7 | BZ33: 9 | CA33: 29 | CB33: 3 | CC33: 4 | CD33: 16 | CE33: 18 | CF33: 9 | CG33: 34 | CH33: 25 | CI33: 40 | CJ33: 30 | CK33: 9 | CL33: 7 | CM33: 0 | CN33: 8 | CO33: 21 | CP33: 13 | CQ33: 4 | CR33: 15 | CS33: 2 | CT33: 11 | CV33: 26915.80472 | CW33: 24198.75187 | CX33: 23010.04126 | CY33: 31500.83139 | CZ33: 36340.58176 | DA33: 31670.64719 | DB33: 34557.51583 | DC33: 40246.34522 | DD33: 20123.17261 | DE33: 20632.62002 | DF33: 21311.88323 | DG33: 15792.86964 | DH33: 14179.61952 | DI33: 10698.39557 | DJ33: 7896.434822 | DK33: 17406.11977 | DL33: 11717.29038 | DM33: 7471.895315 | DN33: 9509.684947 | DO33: 9170.053342 | DP33: 5943.553092 | DQ33: 5179.38198 | DR33: 5519.013585 | DS33: 4160.487164 | DT33: 3990.671362 | DU33: 4585.026671 | DV33: 4075.579263 | DW33: 4669.934572 | DX33: 2971.776546 | DY33: 3990.671362 | DZ33: 7132.26371 | EA33: 1188.710618 | EB33: 7556.803217 | EC33: 3311.408151 | ED33: 3905.76346 | EE33: 3566.131855 | EF33: 3396.316052 | EG33: 5434.105684 | EH33: 4839.750375 | EI33: 5858.64519 | EJ33: 3566.131855 | EK33: 7302.079513 | EL33: 6877.540006 | EM33: 7217.171611 | EN33: 9254.961243 | EO33: 12990.9089 | EP33: 9170.053342 | EQ33: 6877.540006 | ER33: 5603.921487 | ES33: 3226.50025 | ET33: 8490.790131 | EU33: 6707.724204 | EV33: 8575.698032 | EW33: 5688.829388 | EX33: 4754.842473 | EY33: 5858.64519 | EZ33: 1018.894816 | FA33: 2547.237039 | FB33: 3311.408151 | FC33: 3396.316052 | FD33: 1528.342224 | FE33: 2207.605434 | FF33: 3566.131855 | FG33: 5179.38198 | FH33: 2547.237039 | FI33: 3311.408151 | FJ33: 5009.566177 | FK33: 3141.592349 | FL33: 1018.894816 | FM33: 594.3553092 | FN33: 764.1711118 | FO33: 2462.329138 | FP33: 254.7237039 | FQ33: 339.6316052 | FR33: 1358.526421 | FS33: 1528.342224 | FT33: 764.1711118 | FU33: 2886.868645 | FV33: 2122.697533 | FW33: 3396.316052 | FX33: 2547.237039 | FY33: 764.1711118 | FZ33: 594.3553092 | GA33: 0 | GB33: 679.2632105 | GC33: 1783.065928 | GD33: 1103.802717 | GE33: 339.6316052 | GF33: 1273.61852 | GG33: 169.8158026 | GH33: 933.9869144
A34: 4 | B34: SWITCHGEAR | C34: ˂ = 11 kv ; fuse | D34: 5.825960667 | E34: 61.66275231 | F34: 7.852563423 | G34: 2 | H34: 2820 | I34: 1903 | J34: 2192 | K34: 2884 | L34: 2798 | M34: 2963 | N34: 2725 | O34: 3025 | P34: 3207 | Q34: 3185 | R34: 2428 | S34: 2557 | T34: 2104 | U34: 1935 | V34: 1459 | W34: 791 | X34: 632 | Y34: 780 | Z34: 732 | AA34: 677 | AB34: 666 | AC34: 820 | AD34: 860 | AE34: 749 | AF34: 760 | AG34: 911 | AH34: 785 | AI34: 558 | AJ34: 389 | AK34: 399 | AL34: 421 | AM34: 438 | AN34: 423 | AO34: 427 | AP34: 2299 | AQ34: 552 | AR34: 320 | AS34: 251 | AT34: 266 | AU34: 249 | AV34: 328 | AW34: 338 | AX34: 347 | AY34: 351 | AZ34: 373 | BA34: 395 | BB34: 452 | BC34: 490 | BD34: 356 | BE34: 318 | BF34: 356 | BG34: 363 | BH34: 328 | BI34: 361 | BJ34: 299 | BK34: 291 | BL34: 277 | BM34: 195 | BN34: 281 | BO34: 140 | BP34: 90 | BQ34: 83 | BR34: 92 | BS34: 151 | BT34: 112 | BU34: 90 | BV34: 45 | BW34: 54 | BX34: 14 | BY34: 33 | BZ34: 30 | CA34: 1 | CB34: 9 | CC34: 8 | CD34: 13 | CE34: 18 | CF34: 18 | CG34: 46 | CH34: 34 | CI34: 57 | CJ34: 51 | CK34: 26 | CL34: 6 | CM34: 5 | CN34: 9 | CO34: 62 | CP34: 67 | CQ34: 30 | CR34: 31 | CS34: 28 | CT34: 41 | CV34: 16429.20908 | CW34: 11086.80315 | CX34: 12770.50578 | CY34: 16802.07056 | CZ34: 16301.03795 | DA34: 17262.32146 | DB34: 15875.74282 | DC34: 17623.53102 | DD34: 18683.85586 | DE34: 18555.68472 | DF34: 14145.4325 | DG34: 14896.98143 | DH34: 12257.82124 | DI34: 11273.23389 | DJ34: 8500.076613 | DK34: 4608.334888 | DL34: 3682.007142 | DM34: 4544.24932 | DN34: 4264.603208 | DO34: 3944.175372 | DP34: 3880.089804 | DQ34: 4777.287747 | DR34: 5010.326174 | DS34: 4363.64454 | DT34: 4427.730107 | DU34: 5307.450168 | DV34: 4573.379124 | DW34: 3250.886052 | DX34: 2266.298699 | DY34: 2324.558306 | DZ34: 2452.729441 | EA34: 2551.770772 | EB34: 2464.381362 | EC34: 2487.685205 | ED34: 13393.88357 | EE34: 3215.930288 | EF34: 1864.307413 | EG34: 1462.316127 | EH34: 1549.705537 | EI34: 1450.664206 | EJ34: 1910.915099 | EK34: 1969.174705 | EL34: 2021.608351 | EM34: 2044.912194 | EN34: 2173.083329 | EO34: 2301.254463 | EP34: 2633.334221 | EQ34: 2854.720727 | ER34: 2074.041997 | ES34: 1852.655492 | ET34: 2074.041997 | EU34: 2114.823722 | EV34: 1910.915099 | EW34: 2103.171801 | EX34: 1741.962239 | EY34: 1695.354554 | EZ34: 1613.791105 | FA34: 1136.06233 | FB34: 1637.094947 | FC34: 815.6344934 | FD34: 524.33646 | FE34: 483.5547354 | FF34: 535.9883814 | FG34: 879.7200607 | FH34: 652.5075947 | FI34: 524.33646 | FJ34: 262.16823 | FK34: 314.601876 | FL34: 81.56344934 | FM34: 192.256702 | FN34: 174.77882 | FO34: 5.825960667 | FP34: 52.433646 | FQ34: 46.60768534 | FR34: 75.73748867 | FS34: 104.867292 | FT34: 104.867292 | FU34: 267.9941907 | FV34: 198.0826627 | FW34: 332.079758 | FX34: 297.123994 | FY34: 151.4749773 | FZ34: 34.955764 | GA34: 29.12980334 | GB34: 52.433646 | GC34: 361.2095614 | GD34: 390.3393647 | GE34: 174.77882 | GF34: 180.6047807 | GG34: 163.1268987 | GH34: 238.8643873
A35: 4 | B35: SWITCHGEAR | C35: ˂ = 11 kv ; switch | D35: 17.27426221 | E35: 70.4029947 | F35: 8.390649242 | G35: 2 | H35: 1967 | I35: 2443 | J35: 2530 | K35: 2998 | L35: 3461 | M35: 3307 | N35: 3067 | O35: 2842 | P35: 3018 | Q35: 2339 | R35: 2011 | S35: 2158 | T35: 1464 | U35: 1616 | V35: 1243 | W35: 908 | X35: 736 | Y35: 972 | Z35: 850 | AA35: 856 | AB35: 715 | AC35: 908 | AD35: 667 | AE35: 861 | AF35: 827 | AG35: 881 | AH35: 839 | AI35: 774 | AJ35: 686 | AK35: 735 | AL35: 708 | AM35: 662 | AN35: 672 | AO35: 696 | AP35: 2016 | AQ35: 1044 | AR35: 982 | AS35: 995 | AT35: 1152 | AU35: 1144 | AV35: 1383 | AW35: 1429 | AX35: 1350 | AY35: 1061 | AZ35: 1201 | BA35: 1175 | BB35: 1329 | BC35: 1477 | BD35: 1288 | BE35: 1111 | BF35: 1073 | BG35: 1029 | BH35: 1086 | BI35: 1253 | BJ35: 1233 | BK35: 524 | BL35: 450 | BM35: 274 | BN35: 469 | BO35: 242 | BP35: 139 | BQ35: 117 | BR35: 133 | BS35: 124 | BT35: 140 | BU35: 85 | BV35: 71 | BW35: 67 | BX35: 44 | BY35: 40 | BZ35: 44 | CA35: 6 | CB35: 16 | CC35: 6 | CD35: 23 | CE35: 25 | CF35: 15 | CG35: 49 | CH35: 31 | CI35: 68 | CJ35: 43 | CK35: 18 | CL35: 4 | CM35: 17 | CN35: 11 | CO35: 77 | CP35: 88 | CQ35: 41 | CR35: 112 | CS35: 82 | CT35: 39 | CV35: 33978.47377 | CW35: 42201.02258 | CX35: 43703.8834 | CY35: 51788.23811 | CZ35: 59786.22151 | DA35: 57125.98513 | DB35: 52980.1622 | DC35: 49093.45321 | DD35: 52133.72336 | DE35: 40404.49931 | DF35: 34738.54131 | DG35: 37277.85785 | DH35: 25289.51988 | DI35: 27915.20773 | DJ35: 21471.90793 | DK35: 15685.03009 | DL35: 12713.85699 | DM35: 16790.58287 | DN35: 14683.12288 | DO35: 14786.76845 | DP35: 12351.09748 | DQ35: 15685.03009 | DR35: 11521.9329 | DS35: 14873.13976 | DT35: 14285.81485 | DU35: 15218.62501 | DV35: 14493.106 | DW35: 13370.27895 | DX35: 11850.14388 | DY35: 12696.58273 | DZ35: 12230.17765 | EA35: 11435.56158 | EB35: 11608.30421 | EC35: 12022.8865 | ED35: 34824.91262 | EE35: 18034.32975 | EF35: 16963.32549 | EG35: 17187.8909 | EH35: 19899.95007 | EI35: 19761.75597 | EJ35: 23890.30464 | EK35: 24684.9207 | EL35: 23320.25399 | EM35: 18327.99221 | EN35: 20746.38892 | EO35: 20297.2581 | EP35: 22957.49448 | EQ35: 25514.08529 | ER35: 22249.24973 | ES35: 19191.70532 | ET35: 18535.28335 | EU35: 17775.21582 | EV35: 18759.84876 | EW35: 21644.65055 | EX35: 21299.16531 | EY35: 9051.713399 | EZ35: 7773.417995 | FA35: 4733.147846 | FB35: 8101.628977 | FC35: 4180.371455 | FD35: 2401.122447 | FE35: 2021.088679 | FF35: 2297.476874 | FG35: 2142.008514 | FH35: 2418.39671 | FI35: 1468.312288 | FJ35: 1226.472617 | FK35: 1157.375568 | FL35: 760.0675373 | FM35: 690.9704885 | FN35: 760.0675373 | FO35: 103.6455733 | FP35: 276.3881954 | FQ35: 103.6455733 | FR35: 397.3080309 | FS35: 431.8565553 | FT35: 259.1139332 | FU35: 846.4388484 | FV35: 535.5021286 | FW35: 1174.64983 | FX35: 742.7932751 | FY35: 310.9367198 | FZ35: 69.09704885 | GA35: 293.6624576 | GB35: 190.0168843 | GC35: 1330.11819 | GD35: 1520.135075 | GE35: 708.2447507 | GF35: 1934.717368 | GG35: 1416.489501 | GH35: 673.6962263
A36: 4 | B36: SWITCHGEAR | C36: > 11 kv & < = 22 kv ; circuit breaker | D36: 84.90790131 | E36: 65.10080619 | F36: 8.068507061 | G36: 2 | H36: 2 | I36: 0 | J36: 0 | K36: 0 | L36: 0 | M36: 0 | N36: 0 | O36: 0 | P36: 3 | Q36: 0 | R36: 1 | S36: 1 | T36: 0 | U36: 1 | V36: 0 | W36: 0 | X36: 0 | Y36: 0 | Z36: 0 | AA36: 1 | AB36: 0 | AC36: 0 | AD36: 0 | AE36: 0 | AF36: 0 | AG36: 0 | AH36: 0 | AI36: 0 | AJ36: 0 | AK36: 0 | AL36: 0 | AM36: 0 | AN36: 0 | AO36: 0 | AP36: 0 | AQ36: 0 | AR36: 0 | AS36: 0 | AT36: 0 | AU36: 0 | AV36: 0 | AW36: 0 | AX36: 0 | AY36: 0 | AZ36: 0 | BA36: 0 | BB36: 0 | BC36: 0 | BD36: 0 | BE36: 0 | BF36: 0 | BG36: 0 | BH36: 0 | BI36: 0 | BJ36: 0 | BK36: 0 | BL36: 0 | BM36: 0 | BN36: 0 | BO36: 0 | BP36: 0 | BQ36: 0 | BR36: 0 | BS36: 0 | BT36: 0 | BU36: 0 | BV36: 0 | BW36: 0 | BX36: 0 | BY36: 0 | BZ36: 0 | CA36: 0 | CB36: 0 | CC36: 0 | CD36: 0 | CE36: 0 | CF36: 0 | CG36: 0 | CH36: 0 | CI36: 0 | CJ36: 0 | CK36: 0 | CL36: 0 | CM36: 0 | CN36: 0 | CO36: 0 | CP36: 0 | CQ36: 0 | CR36: 0 | CS36: 0 | CT36: 0 | CV36: 169.8158026 | CW36: 0 | CX36: 0 | CY36: 0 | CZ36: 0 | DA36: 0 | DB36: 0 | DC36: 0 | DD36: 254.7237039 | DE36: 0 | DF36: 84.90790131 | DG36: 84.90790131 | DH36: 0 | DI36: 84.90790131 | DJ36: 0 | DK36: 0 | DL36: 0 | DM36: 0 | DN36: 0 | DO36: 84.90790131 | DP36: 0 | DQ36: 0 | DR36: 0 | DS36: 0 | DT36: 0 | DU36: 0 | DV36: 0 | DW36: 0 | DX36: 0 | DY36: 0 | DZ36: 0 | EA36: 0 | EB36: 0 | EC36: 0 | ED36: 0 | EE36: 0 | EF36: 0 | EG36: 0 | EH36: 0 | EI36: 0 | EJ36: 0 | EK36: 0 | EL36: 0 | EM36: 0 | EN36: 0 | EO36: 0 | EP36: 0 | EQ36: 0 | ER36: 0 | ES36: 0 | ET36: 0 | EU36: 0 | EV36: 0 | EW36: 0 | EX36: 0 | EY36: 0 | EZ36: 0 | FA36: 0 | FB36: 0 | FC36: 0 | FD36: 0 | FE36: 0 | FF36: 0 | FG36: 0 | FH36: 0 | FI36: 0 | FJ36: 0 | FK36: 0 | FL36: 0 | FM36: 0 | FN36: 0 | FO36: 0 | FP36: 0 | FQ36: 0 | FR36: 0 | FS36: 0 | FT36: 0 | FU36: 0 | FV36: 0 | FW36: 0 | FX36: 0 | FY36: 0 | FZ36: 0 | GA36: 0 | GB36: 0 | GC36: 0 | GD36: 0 | GE36: 0 | GF36: 0 | GG36: 0 | GH36: 0
A37: 4 | B37: SWITCHGEAR | C37: > 11 kv & < = 22 kv ; switch | D37: 17.27426221 | E37: 70.4029947 | F37: 8.390649242 | G37: 2 | H37: 1 | I37: 0 | J37: 0 | K37: 1 | L37: 0 | M37: 0 | N37: 0 | O37: 1 | P37: 4 | Q37: 3 | R37: 1 | S37: 0 | T37: 1 | U37: 20 | V37: 1 | W37: 1 | X37: 6 | Y37: 1 | Z37: 0 | AA37: 0 | AB37: 0 | AC37: 1 | AD37: 0 | AE37: 13 | AF37: 0 | AG37: 0 | AH37: 1 | AI37: 0 | AJ37: 0 | AK37: 0 | AL37: 0 | AM37: 0 | AN37: 0 | AO37: 0 | AP37: 0 | AQ37: 0 | AR37: 0 | AS37: 1 | AT37: 0 | AU37: 0 | AV37: 0 | AW37: 0 | AX37: 0 | AY37: 0 | AZ37: 1 | BA37: 2 | BB37: 0 | BC37: 3 | BD37: 0 | BE37: 0 | BF37: 0 | BG37: 0 | BH37: 0 | BI37: 0 | BJ37: 0 | BK37: 0 | BL37: 0 | BM37: 0 | BN37: 0 | BO37: 0 | BP37: 0 | BQ37: 0 | BR37: 0 | BS37: 0 | BT37: 0 | BU37: 0 | BV37: 0 | BW37: 0 | BX37: 0 | BY37: 0 | BZ37: 0 | CA37: 0 | CB37: 0 | CC37: 0 | CD37: 0 | CE37: 0 | CF37: 0 | CG37: 0 | CH37: 0 | CI37: 0 | CJ37: 0 | CK37: 0 | CL37: 0 | CM37: 0 | CN37: 0 | CO37: 0 | CP37: 0 | CQ37: 0 | CR37: 0 | CS37: 0 | CT37: 0 | CV37: 17.27426221 | CW37: 0 | CX37: 0 | CY37: 17.27426221 | CZ37: 0 | DA37: 0 | DB37: 0 | DC37: 17.27426221 | DD37: 69.09704885 | DE37: 51.82278664 | DF37: 17.27426221 | DG37: 0 | DH37: 17.27426221 | DI37: 345.4852442 | DJ37: 17.27426221 | DK37: 17.27426221 | DL37: 103.6455733 | DM37: 17.27426221 | DN37: 0 | DO37: 0 | DP37: 0 | DQ37: 17.27426221 | DR37: 0 | DS37: 224.5654088 | DT37: 0 | DU37: 0 | DV37: 17.27426221 | DW37: 0 | DX37: 0 | DY37: 0 | DZ37: 0 | EA37: 0 | EB37: 0 | EC37: 0 | ED37: 0 | EE37: 0 | EF37: 0 | EG37: 17.27426221 | EH37: 0 | EI37: 0 | EJ37: 0 | EK37: 0 | EL37: 0 | EM37: 0 | EN37: 17.27426221 | EO37: 34.54852442 | EP37: 0 | EQ37: 51.82278664 | ER37: 0 | ES37: 0 | ET37: 0 | EU37: 0 | EV37: 0 | EW37: 0 | EX37: 0 | EY37: 0 | EZ37: 0 | FA37: 0 | FB37: 0 | FC37: 0 | FD37: 0 | FE37: 0 | FF37: 0 | FG37: 0 | FH37: 0 | FI37: 0 | FJ37: 0 | FK37: 0 | FL37: 0 | FM37: 0 | FN37: 0 | FO37: 0 | FP37: 0 | FQ37: 0 | FR37: 0 | FS37: 0 | FT37: 0 | FU37: 0 | FV37: 0 | FW37: 0 | FX37: 0 | FY37: 0 | FZ37: 0 | GA37: 0 | GB37: 0 | GC37: 0 | GD37: 0 | GE37: 0 | GF37: 0 | GG37: 0 | GH37: 0
A38: 4 | B38: SWITCHGEAR | C38: > 22 kv & < = 33 kv ; circuit breaker | D38: 300.8031028 | E38: 54.53153853 | F38: 7.38454728 | G38: 2 | H38: 34 | I38: 35 | J38: 32 | K38: 39 | L38: 59 | M38: 64 | N38: 35 | O38: 57 | P38: 22 | Q38: 21 | R38: 21 | S38: 15 | T38: 23 | U38: 15 | V38: 9 | W38: 2 | X38: 14 | Y38: 28 | Z38: 1 | AA38: 0 | AB38: 0 | AC38: 29 | AD38: 0 | AE38: 53 | AF38: 0 | AG38: 0 | AH38: 0 | AI38: 0 | AJ38: 0 | AK38: 0 | AL38: 0 | AM38: 0 | AN38: 0 | AO38: 0 | AP38: 0 | AQ38: 0 | AR38: 0 | AS38: 0 | AT38: 1 | AU38: 6 | AV38: 1 | AW38: 12 | AX38: 4 | AY38: 9 | AZ38: 0 | BA38: 0 | BB38: 10 | BC38: 2 | BD38: 9 | BE38: 26 | BF38: 19 | BG38: 2 | BH38: 3 | BI38: 73 | BJ38: 5 | BK38: 18 | BL38: 30 | BM38: 32 | BN38: 18 | BO38: 2 | BP38: 9 | BQ38: 0 | BR38: 0 | BS38: 4 | BT38: 0 | BU38: 18 | BV38: 0 | BW38: 0 | BX38: 3 | BY38: 0 | BZ38: 0 | CA38: 0 | CB38: 0 | CC38: 0 | CD38: 0 | CE38: 0 | CF38: 0 | CG38: 0 | CH38: 0 | CI38: 0 | CJ38: 0 | CK38: 0 | CL38: 0 | CM38: 0 | CN38: 0 | CO38: 0 | CP38: 0 | CQ38: 0 | CR38: 0 | CS38: 0 | CT38: 0 | CV38: 10227.30549 | CW38: 10528.1086 | CX38: 9625.699288 | CY38: 11731.32101 | CZ38: 17747.38306 | DA38: 19251.39858 | DB38: 10528.1086 | DC38: 17145.77686 | DD38: 6617.668261 | DE38: 6316.865158 | DF38: 6316.865158 | DG38: 4512.046541 | DH38: 6918.471363 | DI38: 4512.046541 | DJ38: 2707.227925 | DK38: 601.6062055 | DL38: 4211.243439 | DM38: 8422.486877 | DN38: 300.8031028 | DO38: 0 | DP38: 0 | DQ38: 8723.28998 | DR38: 0 | DS38: 15942.56445 | DT38: 0 | DU38: 0 | DV38: 0 | DW38: 0 | DX38: 0 | DY38: 0 | DZ38: 0 | EA38: 0 | EB38: 0 | EC38: 0 | ED38: 0 | EE38: 0 | EF38: 0 | EG38: 0 | EH38: 300.8031028 | EI38: 1804.818617 | EJ38: 300.8031028 | EK38: 3609.637233 | EL38: 1203.212411 | EM38: 2707.227925 | EN38: 0 | EO38: 0 | EP38: 3008.031028 | EQ38: 601.6062055 | ER38: 2707.227925 | ES38: 7820.880672 | ET38: 5715.258952 | EU38: 601.6062055 | EV38: 902.4093083 | EW38: 21958.6265 | EX38: 1504.015514 | EY38: 5414.45585 | EZ38: 9024.093083 | FA38: 9625.699288 | FB38: 5414.45585 | FC38: 601.6062055 | FD38: 2707.227925 | FE38: 0 | FF38: 0 | FG38: 1203.212411 | FH38: 0 | FI38: 5414.45585 | FJ38: 0 | FK38: 0 | FL38: 902.4093083 | FM38: 0 | FN38: 0 | FO38: 0 | FP38: 0 | FQ38: 0 | FR38: 0 | FS38: 0 | FT38: 0 | FU38: 0 | FV38: 0 | FW38: 0 | FX38: 0 | FY38: 0 | FZ38: 0 | GA38: 0 | GB38: 0 | GC38: 0 | GD38: 0 | GE38: 0 | GF38: 0 | GG38: 0 | GH38: 0
A39: 4 | B39: SWITCHGEAR | C39: > 22 kv & < = 33 kv ; switch | D39: 51.15579857 | E39: 67.46416575 | F39: 8.21365727 | G39: 2 | H39: 87 | I39: 148 | J39: 72 | K39: 48 | L39: 87 | M39: 77 | N39: 46 | O39: 120 | P39: 53 | Q39: 28 | R39: 48 | S39: 52 | T39: 85 | U39: 23 | V39: 5 | W39: 3 | X39: 3 | Y39: 2 | Z39: 1 | AA39: 0 | AB39: 0 | AC39: 87 | AD39: 1 | AE39: 7 | AF39: 0 | AG39: 7 | AH39: 2 | AI39: 4 | AJ39: 1 | AK39: 2 | AL39: 0 | AM39: 5 | AN39: 0 | AO39: 0 | AP39: 0 | AQ39: 8 | AR39: 0 | AS39: 1 | AT39: 47 | AU39: 24 | AV39: 11 | AW39: 8 | AX39: 0 | AY39: 18 | AZ39: 10 | BA39: 33 | BB39: 44 | BC39: 0 | BD39: 0 | BE39: 172 | BF39: 129 | BG39: 29 | BH39: 51 | BI39: 466 | BJ39: 23 | BK39: 82 | BL39: 105 | BM39: 113 | BN39: 34 | BO39: 24 | BP39: 99 | BQ39: 0 | BR39: 0 | BS39: 13 | BT39: 0 | BU39: 54 | BV39: 2 | BW39: 0 | BX39: 0 | BY39: 0 | BZ39: 0 | CA39: 0 | CB39: 0 | CC39: 0 | CD39: 0 | CE39: 3 | CF39: 0 | CG39: 0 | CH39: 0 | CI39: 0 | CJ39: 0 | CK39: 0 | CL39: 0 | CM39: 0 | CN39: 0 | CO39: 0 | CP39: 0 | CQ39: 0 | CR39: 0 | CS39: 0 | CT39: 0 | CV39: 4450.554476 | CW39: 7571.058189 | CX39: 3683.217497 | CY39: 2455.478331 | CZ39: 4450.554476 | DA39: 3938.99649 | DB39: 2353.166734 | DC39: 6138.695829 | DD39: 2711.257324 | DE39: 1432.36236 | DF39: 2455.478331 | DG39: 2660.101526 | DH39: 4348.242879 | DI39: 1176.583367 | DJ39: 255.7789929 | DK39: 153.4673957 | DL39: 153.4673957 | DM39: 102.3115971 | DN39: 51.15579857 | DO39: 0 | DP39: 0 | DQ39: 4450.554476 | DR39: 51.15579857 | DS39: 358.09059 | DT39: 0 | DU39: 358.09059 | DV39: 102.3115971 | DW39: 204.6231943 | DX39: 51.15579857 | DY39: 102.3115971 | DZ39: 0 | EA39: 255.7789929 | EB39: 0 | EC39: 0 | ED39: 0 | EE39: 409.2463886 | EF39: 0 | EG39: 51.15579857 | EH39: 2404.322533 | EI39: 1227.739166 | EJ39: 562.7137843 | EK39: 409.2463886 | EL39: 0 | EM39: 920.8043743 | EN39: 511.5579857 | EO39: 1688.141353 | EP39: 2250.855137 | EQ39: 0 | ER39: 0 | ES39: 8798.797354 | ET39: 6599.098016 | EU39: 1483.518159 | EV39: 2608.945727 | EW39: 23838.60213 | EX39: 1176.583367 | EY39: 4194.775483 | EZ39: 5371.35885 | FA39: 5780.605239 | FB39: 1739.297151 | FC39: 1227.739166 | FD39: 5064.424059 | FE39: 0 | FF39: 0 | FG39: 665.0253814 | FH39: 0 | FI39: 2762.413123 | FJ39: 102.3115971 | FK39: 0 | FL39: 0 | FM39: 0 | FN39: 0 | FO39: 0 | FP39: 0 | FQ39: 0 | FR39: 0 | FS39: 153.4673957 | FT39: 0 | FU39: 0 | FV39: 0 | FW39: 0 | FX39: 0 | FY39: 0 | FZ39: 0 | GA39: 0 | GB39: 0 | GC39: 0 | GD39: 0 | GE39: 0 | GF39: 0 | GG39: 0 | GH39: 0
A40: 4 | B40: SWITCHGEAR | C40: > 33 kv & < = 66 kv ; circuit breaker | D40: 192.8625487 | E40: 17.00939436 | F40: 4.124244702 | G40: 2 | H40: 3 | I40: 4 | J40: 7 | K40: 7 | L40: 19 | M40: 11 | N40: 19 | O40: 19 | P40: 2 | Q40: 12 | R40: 2 | S40: 4 | T40: 7 | U40: 5 | V40: 2 | W40: 10 | X40: 4 | Y40: 0 | Z40: 0 | AA40: 0 | AB40: 0 | AC40: 0 | AD40: 0 | AE40: 0 | AF40: 0 | AG40: 0 | AH40: 0 | AI40: 0 | AJ40: 0 | AK40: 0 | AL40: 0 | AM40: 0 | AN40: 0 | AO40: 0 | AP40: 1 | AQ40: 1 | AR40: 0 | AS40: 0 | AT40: 0 | AU40: 0 | AV40: 0 | AW40: 0 | AX40: 0 | AY40: 0 | AZ40: 0 | BA40: 0 | BB40: 0 | BC40: 0 | BD40: 0 | BE40: 0 | BF40: 0 | BG40: 0 | BH40: 0 | BI40: 0 | BJ40: 0 | BK40: 0 | BL40: 0 | BM40: 0 | BN40: 0 | BO40: 0 | BP40: 0 | BQ40: 0 | BR40: 0 | BS40: 0 | BT40: 0 | BU40: 0 | BV40: 0 | BW40: 0 | BX40: 0 | BY40: 0 | BZ40: 0 | CA40: 0 | CB40: 0 | CC40: 0 | CD40: 0 | CE40: 0 | CF40: 0 | CG40: 0 | CH40: 0 | CI40: 0 | CJ40: 0 | CK40: 0 | CL40: 0 | CM40: 0 | CN40: 0 | CO40: 0 | CP40: 0 | CQ40: 0 | CR40: 0 | CS40: 0 | CT40: 0 | CV40: 578.587646 | CW40: 771.4501946 | CX40: 1350.037841 | CY40: 1350.037841 | CZ40: 3664.388424 | DA40: 2121.488035 | DB40: 3664.388424 | DC40: 3664.388424 | DD40: 385.7250973 | DE40: 2314.350584 | DF40: 385.7250973 | DG40: 771.4501946 | DH40: 1350.037841 | DI40: 964.3127433 | DJ40: 385.7250973 | DK40: 1928.625487 | DL40: 771.4501946 | DM40: 0 | DN40: 0 | DO40: 0 | DP40: 0 | DQ40: 0 | DR40: 0 | DS40: 0 | DT40: 0 | DU40: 0 | DV40: 0 | DW40: 0 | DX40: 0 | DY40: 0 | DZ40: 0 | EA40: 0 | EB40: 0 | EC40: 0 | ED40: 192.8625487 | EE40: 192.8625487 | EF40: 0 | EG40: 0 | EH40: 0 | EI40: 0 | EJ40: 0 | EK40: 0 | EL40: 0 | EM40: 0 | EN40: 0 | EO40: 0 | EP40: 0 | EQ40: 0 | ER40: 0 | ES40: 0 | ET40: 0 | EU40: 0 | EV40: 0 | EW40: 0 | EX40: 0 | EY40: 0 | EZ40: 0 | FA40: 0 | FB40: 0 | FC40: 0 | FD40: 0 | FE40: 0 | FF40: 0 | FG40: 0 | FH40: 0 | FI40: 0 | FJ40: 0 | FK40: 0 | FL40: 0 | FM40: 0 | FN40: 0 | FO40: 0 | FP40: 0 | FQ40: 0 | FR40: 0 | FS40: 0 | FT40: 0 | FU40: 0 | FV40: 0 | FW40: 0 | FX40: 0 | FY40: 0 | FZ40: 0 | GA40: 0 | GB40: 0 | GC40: 0 | GD40: 0 | GE40: 0 | GF40: 0 | GG40: 0 | GH40: 0
A41: 4 | B41: SWITCHGEAR | C41: > 33 kv & < = 66 kv ; switch | D41: 151.7501425 | E41: 64.13506471 | F41: 8.008437095 | G41: 2 | H41: 0 | I41: 1 | J41: 0 | K41: 13 | L41: 58 | M41: 6 | N41: 30 | O41: 54 | P41: 5 | Q41: 30 | R41: 13 | S41: 9 | T41: 18 | U41: 6 | V41: 1 | W41: 7 | X41: 3 | Y41: 15 | Z41: 2 | AA41: 0 | AB41: 0 | AC41: 1 | AD41: 0 | AE41: 0 | AF41: 0 | AG41: 0 | AH41: 0 | AI41: 5 | AJ41: 0 | AK41: 0 | AL41: 0 | AM41: 10 | AN41: 7 | AO41: 9 | AP41: 43 | AQ41: 19 | AR41: 0 | AS41: 8 | AT41: 0 | AU41: 45 | AV41: 0 | AW41: 3 | AX41: 0 | AY41: 9 | AZ41: 0 | BA41: 2 | BB41: 0 | BC41: 11 | BD41: 2 | BE41: 0 | BF41: 0 | BG41: 10 | BH41: 0 | BI41: 2 | BJ41: 0 | BK41: 1 | BL41: 1 | BM41: 0 | BN41: 0 | BO41: 21 | BP41: 1 | BQ41: 0 | BR41: 0 | BS41: 0 | BT41: 0 | BU41: 0 | BV41: 0 | BW41: 0 | BX41: 0 | BY41: 0 | BZ41: 0 | CA41: 0 | CB41: 0 | CC41: 0 | CD41: 0 | CE41: 0 | CF41: 0 | CG41: 0 | CH41: 0 | CI41: 0 | CJ41: 0 | CK41: 0 | CL41: 0 | CM41: 0 | CN41: 0 | CO41: 0 | CP41: 0 | CQ41: 0 | CR41: 0 | CS41: 0 | CT41: 0 | CV41: 0 | CW41: 151.7501425 | CX41: 0 | CY41: 1972.751852 | CZ41: 8801.508263 | DA41: 910.5008548 | DB41: 4552.504274 | DC41: 8194.507694 | DD41: 758.7507124 | DE41: 4552.504274 | DF41: 1972.751852 | DG41: 1365.751282 | DH41: 2731.502565 | DI41: 910.5008548 | DJ41: 151.7501425 | DK41: 1062.250997 | DL41: 455.2504274 | DM41: 2276.252137 | DN41: 303.5002849 | DO41: 0 | DP41: 0 | DQ41: 151.7501425 | DR41: 0 | DS41: 0 | DT41: 0 | DU41: 0 | DV41: 0 | DW41: 758.7507124 | DX41: 0 | DY41: 0 | DZ41: 0 | EA41: 1517.501425 | EB41: 1062.250997 | EC41: 1365.751282 | ED41: 6525.256126 | EE41: 2883.252707 | EF41: 0 | EG41: 1214.00114 | EH41: 0 | EI41: 6828.756411 | EJ41: 0 | EK41: 455.2504274 | EL41: 0 | EM41: 1365.751282 | EN41: 0 | EO41: 303.5002849 | EP41: 0 | EQ41: 1669.251567 | ER41: 303.5002849 | ES41: 0 | ET41: 0 | EU41: 1517.501425 | EV41: 0 | EW41: 303.5002849 | EX41: 0 | EY41: 151.7501425 | EZ41: 151.7501425 | FA41: 0 | FB41: 0 | FC41: 3186.752992 | FD41: 151.7501425 | FE41: 0 | FF41: 0 | FG41: 0 | FH41: 0 | FI41: 0 | FJ41: 0 | FK41: 0 | FL41: 0 | FM41: 0 | FN41: 0 | FO41: 0 | FP41: 0 | FQ41: 0 | FR41: 0 | FS41: 0 | FT41: 0 | FU41: 0 | FV41: 0 | FW41: 0 | FX41: 0 | FY41: 0 | FZ41: 0 | GA41: 0 | GB41: 0 | GC41: 0 | GD41: 0 | GE41: 0 | GF41: 0 | GG41: 0 | GH41: 0
A42: 4 | B42: SWITCHGEAR | C42: > 66 kv & < = 132 kv ; circuit breaker | D42: 360.597142 | E42: 41.02271379 | F42: 6.404897641 | G42: 2 | H42: 30 | I42: 21 | J42: 40 | K42: 59 | L42: 41 | M42: 37 | N42: 41 | O42: 62 | P42: 33 | Q42: 38 | R42: 40 | S42: 30 | T42: 16 | U42: 14 | V42: 23 | W42: 9 | X42: 19 | Y42: 5 | Z42: 10 | AA42: 5 | AB42: 3 | AC42: 8 | AD42: 4 | AE42: 1 | AF42: 0 | AG42: 0 | AH42: 0 | AI42: 0 | AJ42: 0 | AK42: 0 | AL42: 0 | AM42: 0 | AN42: 0 | AO42: 0 | AP42: 1 | AQ42: 0 | AR42: 0 | AS42: 1 | AT42: 2 | AU42: 3 | AV42: 0 | AW42: 0 | AX42: 0 | AY42: 0 | AZ42: 0 | BA42: 0 | BB42: 0 | BC42: 1 | BD42: 0 | BE42: 0 | BF42: 0 | BG42: 0 | BH42: 0 | BI42: 0 | BJ42: 0 | BK42: 0 | BL42: 0 | BM42: 2 | BN42: 0 | BO42: 2 | BP42: 0 | BQ42: 0 | BR42: 0 | BS42: 0 | BT42: 0 | BU42: 0 | BV42: 0 | BW42: 2 | BX42: 0 | BY42: 0 | BZ42: 0 | CA42: 0 | CB42: 0 | CC42: 0 | CD42: 0 | CE42: 0 | CF42: 0 | CG42: 0 | CH42: 0 | CI42: 0 | CJ42: 0 | CK42: 0 | CL42: 0 | CM42: 0 | CN42: 0 | CO42: 0 | CP42: 0 | CQ42: 0 | CR42: 0 | CS42: 0 | CT42: 0 | CV42: 10817.91426 | CW42: 7572.539982 | CX42: 14423.88568 | CY42: 21275.23138 | CZ42: 14784.48282 | DA42: 13342.09425 | DB42: 14784.48282 | DC42: 22357.0228 | DD42: 11899.70569 | DE42: 13702.6914 | DF42: 14423.88568 | DG42: 10817.91426 | DH42: 5769.554272 | DI42: 5048.359988 | DJ42: 8293.734266 | DK42: 3245.374278 | DL42: 6851.345698 | DM42: 1802.98571 | DN42: 3605.97142 | DO42: 1802.98571 | DP42: 1081.791426 | DQ42: 2884.777136 | DR42: 1442.388568 | DS42: 360.597142 | DT42: 0 | DU42: 0 | DV42: 0 | DW42: 0 | DX42: 0 | DY42: 0 | DZ42: 0 | EA42: 0 | EB42: 0 | EC42: 0 | ED42: 360.597142 | EE42: 0 | EF42: 0 | EG42: 360.597142 | EH42: 721.194284 | EI42: 1081.791426 | EJ42: 0 | EK42: 0 | EL42: 0 | EM42: 0 | EN42: 0 | EO42: 0 | EP42: 0 | EQ42: 360.597142 | ER42: 0 | ES42: 0 | ET42: 0 | EU42: 0 | EV42: 0 | EW42: 0 | EX42: 0 | EY42: 0 | EZ42: 0 | FA42: 721.194284 | FB42: 0 | FC42: 721.194284 | FD42: 0 | FE42: 0 | FF42: 0 | FG42: 0 | FH42: 0 | FI42: 0 | FJ42: 0 | FK42: 721.194284 | FL42: 0 | FM42: 0 | FN42: 0 | FO42: 0 | FP42: 0 | FQ42: 0 | FR42: 0 | FS42: 0 | FT42: 0 | FU42: 0 | FV42: 0 | FW42: 0 | FX42: 0 | FY42: 0 | FZ42: 0 | GA42: 0 | GB42: 0 | GC42: 0 | GD42: 0 | GE42: 0 | GF42: 0 | GG42: 0 | GH42: 0
A43: 4 | B43: SWITCHGEAR | C43: > 66 kv & < = 132 kv ; switch | D43: 151.7501425 | E43: 64.13506471 | F43: 8.008437095 | G43: 2 | H43: 130 | I43: 72 | J43: 166 | K43: 233 | L43: 193 | M43: 153 | N43: 187 | O43: 190 | P43: 50 | Q43: 26 | R43: 82 | S43: 77 | T43: 46 | U43: 44 | V43: 40 | W43: 45 | X43: 54 | Y43: 0 | Z43: 10 | AA43: 25 | AB43: 0 | AC43: 24 | AD43: 19 | AE43: 22 | AF43: 0 | AG43: 0 | AH43: 0 | AI43: 0 | AJ43: 0 | AK43: 0 | AL43: 25 | AM43: 0 | AN43: 0 | AO43: 6 | AP43: 37 | AQ43: 28 | AR43: 0 | AS43: 26 | AT43: 33 | AU43: 36 | AV43: 9 | AW43: 11 | AX43: 5 | AY43: 1 | AZ43: 15 | BA43: 11 | BB43: 12 | BC43: 30 | BD43: 2 | BE43: 37 | BF43: 30 | BG43: 2 | BH43: 6 | BI43: 100 | BJ43: 14 | BK43: 4 | BL43: 13 | BM43: 46 | BN43: 4 | BO43: 2 | BP43: 0 | BQ43: 18 | BR43: 27 | BS43: 3 | BT43: 0 | BU43: 31 | BV43: 0 | BW43: 7 | BX43: 0 | BY43: 0 | BZ43: 0 | CA43: 0 | CB43: 0 | CC43: 0 | CD43: 0 | CE43: 0 | CF43: 0 | CG43: 0 | CH43: 0 | CI43: 0 | CJ43: 0 | CK43: 0 | CL43: 0 | CM43: 0 | CN43: 0 | CO43: 0 | CP43: 0 | CQ43: 0 | CR43: 0 | CS43: 0 | CT43: 0 | CV43: 19727.51852 | CW43: 10926.01026 | CX43: 25190.52365 | CY43: 35357.7832 | CZ43: 29287.7775 | DA43: 23217.7718 | DB43: 28377.27664 | DC43: 28832.52707 | DD43: 7587.507124 | DE43: 3945.503704 | DF43: 12443.51168 | DG43: 11684.76097 | DH43: 6980.506554 | DI43: 6677.006269 | DJ43: 6070.005699 | DK43: 6828.756411 | DL43: 8194.507694 | DM43: 0 | DN43: 1517.501425 | DO43: 3793.753562 | DP43: 0 | DQ43: 3642.003419 | DR43: 2883.252707 | DS43: 3338.503134 | DT43: 0 | DU43: 0 | DV43: 0 | DW43: 0 | DX43: 0 | DY43: 0 | DZ43: 3793.753562 | EA43: 0 | EB43: 0 | EC43: 910.5008548 | ED43: 5614.755271 | EE43: 4249.003989 | EF43: 0 | EG43: 3945.503704 | EH43: 5007.754702 | EI43: 5463.005129 | EJ43: 1365.751282 | EK43: 1669.251567 | EL43: 758.7507124 | EM43: 151.7501425 | EN43: 2276.252137 | EO43: 1669.251567 | EP43: 1821.00171 | EQ43: 4552.504274 | ER43: 303.5002849 | ES43: 5614.755271 | ET43: 4552.504274 | EU43: 303.5002849 | EV43: 910.5008548 | EW43: 15175.01425 | EX43: 2124.501995 | EY43: 607.0005699 | EZ43: 1972.751852 | FA43: 6980.506554 | FB43: 607.0005699 | FC43: 303.5002849 | FD43: 0 | FE43: 2731.502565 | FF43: 4097.253847 | FG43: 455.2504274 | FH43: 0 | FI43: 4704.254417 | FJ43: 0 | FK43: 1062.250997 | FL43: 0 | FM43: 0 | FN43: 0 | FO43: 0 | FP43: 0 | FQ43: 0 | FR43: 0 | FS43: 0 | FT43: 0 | FU43: 0 | FV43: 0 | FW43: 0 | FX43: 0 | FY43: 0 | FZ43: 0 | GA43: 0 | GB43: 0 | GC43: 0 | GD43: 0 | GE43: 0 | GF43: 0 | GG43: 0 | GH43: 0
A44: 5 | B44: TRANSFORMERS | C44: ground outdoor / indoor chamber mounted ; ˂ 22 kv ; < = 60 kva ; multiple phase | D44: 38.01592977 | E44: 62.63346783 | F44: 7.914130895 | G44: 2 | H44: 0 | I44: 0 | J44: 0 | K44: 0 | L44: 0 | M44: 0 | N44: 0 | O44: 0 | P44: 0 | Q44: 0 | R44: 2 | S44: 0 | T44: 0 | U44: 0 | V44: 0 | W44: 0 | X44: 0 | Y44: 0 | Z44: 0 | AA44: 0 | AB44: 0 | AC44: 0 | AD44: 0 | AE44: 0 | AF44: 0 | AG44: 0 | AH44: 0 | AI44: 0 | AJ44: 0 | AK44: 0 | AL44: 0 | AM44: 0 | AN44: 0 | AO44: 0 | AP44: 0 | AQ44: 0 | AR44: 0 | AS44: 0 | AT44: 0 | AU44: 0 | AV44: 0 | AW44: 0 | AX44: 0 | AY44: 0 | AZ44: 0 | BA44: 0 | BB44: 0 | BC44: 0 | BD44: 0 | BE44: 0 | BF44: 0 | BG44: 0 | BH44: 0 | BI44: 0 | BJ44: 0 | BK44: 0 | BL44: 0 | BM44: 0 | BN44: 0 | BO44: 0 | BP44: 0 | BQ44: 0 | BR44: 0 | BS44: 0 | BT44: 0 | BU44: 0 | BV44: 0 | BW44: 0 | BX44: 0 | BY44: 0 | BZ44: 0 | CA44: 0 | CB44: 0 | CC44: 0 | CD44: 0 | CE44: 0 | CF44: 0 | CG44: 0 | CH44: 0 | CI44: 0 | CJ44: 0 | CK44: 0 | CL44: 0 | CM44: 0 | CN44: 0 | CO44: 0 | CP44: 0 | CQ44: 0 | CR44: 0 | CS44: 0 | CT44: 0 | CV44: 0 | CW44: 0 | CX44: 0 | CY44: 0 | CZ44: 0 | DA44: 0 | DB44: 0 | DC44: 0 | DD44: 0 | DE44: 0 | DF44: 76.03185955 | DG44: 0 | DH44: 0 | DI44: 0 | DJ44: 0 | DK44: 0 | DL44: 0 | DM44: 0 | DN44: 0 | DO44: 0 | DP44: 0 | DQ44: 0 | DR44: 0 | DS44: 0 | DT44: 0 | DU44: 0 | DV44: 0 | DW44: 0 | DX44: 0 | DY44: 0 | DZ44: 0 | EA44: 0 | EB44: 0 | EC44: 0 | ED44: 0 | EE44: 0 | EF44: 0 | EG44: 0 | EH44: 0 | EI44: 0 | EJ44: 0 | EK44: 0 | EL44: 0 | EM44: 0 | EN44: 0 | EO44: 0 | EP44: 0 | EQ44: 0 | ER44: 0 | ES44: 0 | ET44: 0 | EU44: 0 | EV44: 0 | EW44: 0 | EX44: 0 | EY44: 0 | EZ44: 0 | FA44: 0 | FB44: 0 | FC44: 0 | FD44: 0 | FE44: 0 | FF44: 0 | FG44: 0 | FH44: 0 | FI44: 0 | FJ44: 0 | FK44: 0 | FL44: 0 | FM44: 0 | FN44: 0 | FO44: 0 | FP44: 0 | FQ44: 0 | FR44: 0 | FS44: 0 | FT44: 0 | FU44: 0 | FV44: 0 | FW44: 0 | FX44: 0 | FY44: 0 | FZ44: 0 | GA44: 0 | GB44: 0 | GC44: 0 | GD44: 0 | GE44: 0 | GF44: 0 | GG44: 0 | GH44: 0
A45: 5 | B45: TRANSFORMERS | C45: ground outdoor / indoor chamber mounted ; ˂ 22 kv ; > 60 kva and < = 600 kva ; multiple phase | D45: 38.01592977 | E45: 62.63346783 | F45: 7.914130895 | G45: 2 | H45: 1 | I45: 0 | J45: 2 | K45: 5 | L45: 2 | M45: 8 | N45: 6 | O45: 0 | P45: 3 | Q45: 2 | R45: 3 | S45: 4 | T45: 1 | U45: 0 | V45: 0 | W45: 0 | X45: 4 | Y45: 0 | Z45: 0 | AA45: 0 | AB45: 1 | AC45: 0 | AD45: 2 | AE45: 5 | AF45: 1 | AG45: 1 | AH45: 0 | AI45: 3 | AJ45: 2 | AK45: 1 | AL45: 2 | AM45: 1 | AN45: 0 | AO45: 1 | AP45: 10 | AQ45: 11 | AR45: 4 | AS45: 6 | AT45: 4 | AU45: 3 | AV45: 9 | AW45: 9 | AX45: 4 | AY45: 12 | AZ45: 44 | BA45: 37 | BB45: 36 | BC45: 23 | BD45: 44 | BE45: 17 | BF45: 13 | BG45: 25 | BH45: 7 | BI45: 20 | BJ45: 29 | BK45: 18 | BL45: 33 | BM45: 16 | BN45: 14 | BO45: 5 | BP45: 9 | BQ45: 1 | BR45: 3 | BS45: 3 | BT45: 65 | BU45: 3 | BV45: 1 | BW45: 89 | BX45: 9 | BY45: 18 | BZ45: 2 | CA45: 0 | CB45: 0 | CC45: 23 | CD45: 8 | CE45: 1 | CF45: 2 | CG45: 1 | CH45: 0 | CI45: 8 | CJ45: 1 | CK45: 0 | CL45: 0 | CM45: 0 | CN45: 0 | CO45: 0 | CP45: 0 | CQ45: 10 | CR45: 0 | CS45: 1 | CT45: 0 | CV45: 38.01592977 | CW45: 0 | CX45: 76.03185955 | CY45: 190.0796489 | CZ45: 76.03185955 | DA45: 304.1274382 | DB45: 228.0955786 | DC45: 0 | DD45: 114.0477893 | DE45: 76.03185955 | DF45: 114.0477893 | DG45: 152.0637191 | DH45: 38.01592977 | DI45: 0 | DJ45: 0 | DK45: 0 | DL45: 152.0637191 | DM45: 0 | DN45: 0 | DO45: 0 | DP45: 38.01592977 | DQ45: 0 | DR45: 76.03185955 | DS45: 190.0796489 | DT45: 38.01592977 | DU45: 38.01592977 | DV45: 0 | DW45: 114.0477893 | DX45: 76.03185955 | DY45: 38.01592977 | DZ45: 76.03185955 | EA45: 38.01592977 | EB45: 0 | EC45: 38.01592977 | ED45: 380.1592977 | EE45: 418.1752275 | EF45: 152.0637191 | EG45: 228.0955786 | EH45: 152.0637191 | EI45: 114.0477893 | EJ45: 342.143368 | EK45: 342.143368 | EL45: 152.0637191 | EM45: 456.1911573 | EN45: 1672.70091 | EO45: 1406.589402 | EP45: 1368.573472 | EQ45: 874.3663848 | ER45: 1672.70091 | ES45: 646.2708062 | ET45: 494.2070871 | EU45: 950.3982444 | EV45: 266.1115084 | EW45: 760.3185955 | EX45: 1102.461963 | EY45: 684.2867359 | EZ45: 1254.525683 | FA45: 608.2548764 | FB45: 532.2230168 | FC45: 190.0796489 | FD45: 342.143368 | FE45: 38.01592977 | FF45: 114.0477893 | FG45: 114.0477893 | FH45: 2471.035435 | FI45: 114.0477893 | FJ45: 38.01592977 | FK45: 3383.41775 | FL45: 342.143368 | FM45: 684.2867359 | FN45: 76.03185955 | FO45: 0 | FP45: 0 | FQ45: 874.3663848 | FR45: 304.1274382 | FS45: 38.01592977 | FT45: 76.03185955 | FU45: 38.01592977 | FV45: 0 | FW45: 304.1274382 | FX45: 38.01592977 | FY45: 0 | FZ45: 0 | GA45: 0 | GB45: 0 | GC45: 0 | GD45: 0 | GE45: 380.1592977 | GF45: 0 | GG45: 38.01592977 | GH45: 0
A46: 5 | B46: TRANSFORMERS | C46: ground outdoor / indoor chamber mounted ; ˂ 22 kv ; > 600 kva ; multiple phase | D46: 34.21779615 | E46: 59.87272712 | F46: 7.737746902 | G46: 2 | H46: 78 | I46: 90 | J46: 94 | K46: 96 | L46: 90 | M46: 78 | N46: 86 | O46: 87 | P46: 54 | Q46: 77 | R46: 70 | S46: 63 | T46: 54 | U46: 56 | V46: 40 | W46: 13 | X46: 45 | Y46: 9 | Z46: 19 | AA46: 41 | AB46: 18 | AC46: 34 | AD46: 132 | AE46: 557 | AF46: 48 | AG46: 91 | AH46: 91 | AI46: 164 | AJ46: 112 | AK46: 128 | AL46: 107 | AM46: 49 | AN46: 38 | AO46: 38 | AP46: 63 | AQ46: 47 | AR46: 73 | AS46: 40 | AT46: 31 | AU46: 22 | AV46: 18 | AW46: 43 | AX46: 15 | AY46: 43 | AZ46: 115 | BA46: 184 | BB46: 99 | BC46: 93 | BD46: 32 | BE46: 49 | BF46: 62 | BG46: 48 | BH46: 70 | BI46: 85 | BJ46: 15 | BK46: 29 | BL46: 19 | BM46: 4 | BN46: 2 | BO46: 0 | BP46: 0 | BQ46: 0 | BR46: 0 | BS46: 0 | BT46: 0 | BU46: 0 | BV46: 0 | BW46: 0 | BX46: 0 | BY46: 0 | BZ46: 0 | CA46: 0 | CB46: 0 | CC46: 0 | CD46: 0 | CE46: 0 | CF46: 0 | CG46: 0 | CH46: 0 | CI46: 0 | CJ46: 0 | CK46: 0 | CL46: 0 | CM46: 0 | CN46: 0 | CO46: 0 | CP46: 0 | CQ46: 0 | CR46: 0 | CS46: 0 | CT46: 0 | CV46: 2668.9881 | CW46: 3079.601654 | CX46: 3216.472839 | CY46: 3284.908431 | CZ46: 3079.601654 | DA46: 2668.9881 | DB46: 2942.730469 | DC46: 2976.948265 | DD46: 1847.760992 | DE46: 2634.770304 | DF46: 2395.245731 | DG46: 2155.721158 | DH46: 1847.760992 | DI46: 1916.196585 | DJ46: 1368.711846 | DK46: 444.83135 | DL46: 1539.800827 | DM46: 307.9601654 | DN46: 650.1381269 | DO46: 1402.929642 | DP46: 615.9203308 | DQ46: 1163.405069 | DR46: 4516.749092 | DS46: 19059.31246 | DT46: 1642.454215 | DU46: 3113.81945 | DV46: 3113.81945 | DW46: 5611.718569 | DX46: 3832.393169 | DY46: 4379.877908 | DZ46: 3661.304189 | EA46: 1676.672012 | EB46: 1300.276254 | EC46: 1300.276254 | ED46: 2155.721158 | EE46: 1608.236419 | EF46: 2497.899119 | EG46: 1368.711846 | EH46: 1060.751681 | EI46: 752.7915154 | EJ46: 615.9203308 | EK46: 1471.365235 | EL46: 513.2669423 | EM46: 1471.365235 | EN46: 3935.046558 | EO46: 6296.074492 | EP46: 3387.561819 | EQ46: 3182.255042 | ER46: 1094.969477 | ES46: 1676.672012 | ET46: 2121.503362 | EU46: 1642.454215 | EV46: 2395.245731 | EW46: 2908.512673 | EX46: 513.2669423 | EY46: 992.3160885 | EZ46: 650.1381269 | FA46: 136.8711846 | FB46: 68.43559231 | FC46: 0 | FD46: 0 | FE46: 0 | FF46: 0 | FG46: 0 | FH46: 0 | FI46: 0 | FJ46: 0 | FK46: 0 | FL46: 0 | FM46: 0 | FN46: 0 | FO46: 0 | FP46: 0 | FQ46: 0 | FR46: 0 | FS46: 0 | FT46: 0 | FU46: 0 | FV46: 0 | FW46: 0 | FX46: 0 | FY46: 0 | FZ46: 0 | GA46: 0 | GB46: 0 | GC46: 0 | GD46: 0 | GE46: 0 | GF46: 0 | GG46: 0 | GH46: 0
A47: 5 | B47: TRANSFORMERS | C47: ground outdoor / indoor chamber mounted ; > = 22 kv & < = 33 kv ; < = 15 mva | D47: 414.0743599 | E47: 71.37871184 | F47: 8.448592299 | G47: 2 | H47: 0 | I47: 3 | J47: 1 | K47: 1 | L47: 0 | M47: 1 | N47: 0 | O47: 0 | P47: 0 | Q47: 1 | R47: 1 | S47: 0 | T47: 0 | U47: 0 | V47: 1 | W47: 0 | X47: 0 | Y47: 0 | Z47: 0 | AA47: 0 | AB47: 0 | AC47: 0 | AD47: 0 | AE47: 0 | AF47: 0 | AG47: 0 | AH47: 0 | AI47: 1 | AJ47: 0 | AK47: 0 | AL47: 0 | AM47: 0 | AN47: 0 | AO47: 0 | AP47: 0 | AQ47: 0 | AR47: 0 | AS47: 0 | AT47: 0 | AU47: 4 | AV47: 0 | AW47: 0 | AX47: 0 | AY47: 0 | AZ47: 0 | BA47: 1 | BB47: 2 | BC47: 0 | BD47: 3 | BE47: 0 | BF47: 3 | BG47: 5 | BH47: 1 | BI47: 11 | BJ47: 6 | BK47: 5 | BL47: 2 | BM47: 4 | BN47: 2 | BO47: 1 | BP47: 0 | BQ47: 0 | BR47: 0 | BS47: 2 | BT47: 2 | BU47: 0 | BV47: 1 | BW47: 0 | BX47: 0 | BY47: 0 | BZ47: 0 | CA47: 1 | CB47: 0 | CC47: 0 | CD47: 0 | CE47: 0 | CF47: 0 | CG47: 0 | CH47: 0 | CI47: 0 | CJ47: 0 | CK47: 0 | CL47: 0 | CM47: 0 | CN47: 0 | CO47: 0 | CP47: 0 | CQ47: 0 | CR47: 0 | CS47: 0 | CT47: 0 | CV47: 0 | CW47: 1242.22308 | CX47: 414.0743599 | CY47: 414.0743599 | CZ47: 0 | DA47: 414.0743599 | DB47: 0 | DC47: 0 | DD47: 0 | DE47: 414.0743599 | DF47: 414.0743599 | DG47: 0 | DH47: 0 | DI47: 0 | DJ47: 414.0743599 | DK47: 0 | DL47: 0 | DM47: 0 | DN47: 0 | DO47: 0 | DP47: 0 | DQ47: 0 | DR47: 0 | DS47: 0 | DT47: 0 | DU47: 0 | DV47: 0 | DW47: 414.0743599 | DX47: 0 | DY47: 0 | DZ47: 0 | EA47: 0 | EB47: 0 | EC47: 0 | ED47: 0 | EE47: 0 | EF47: 0 | EG47: 0 | EH47: 0 | EI47: 1656.297439 | EJ47: 0 | EK47: 0 | EL47: 0 | EM47: 0 | EN47: 0 | EO47: 414.0743599 | EP47: 828.1487197 | EQ47: 0 | ER47: 1242.22308 | ES47: 0 | ET47: 1242.22308 | EU47: 2070.371799 | EV47: 414.0743599 | EW47: 4554.817958 | EX47: 2484.446159 | EY47: 2070.371799 | EZ47: 828.1487197 | FA47: 1656.297439 | FB47: 828.1487197 | FC47: 414.0743599 | FD47: 0 | FE47: 0 | FF47: 0 | FG47: 828.1487197 | FH47: 828.1487197 | FI47: 0 | FJ47: 414.0743599 | FK47: 0 | FL47: 0 | FM47: 0 | FN47: 0 | FO47: 414.0743599 | FP47: 0 | FQ47: 0 | FR47: 0 | FS47: 0 | FT47: 0 | FU47: 0 | FV47: 0 | FW47: 0 | FX47: 0 | FY47: 0 | FZ47: 0 | GA47: 0 | GB47: 0 | GC47: 0 | GD47: 0 | GE47: 0 | GF47: 0 | GG47: 0 | GH47: 0
A48: 5 | B48: TRANSFORMERS | C48: ground outdoor / indoor chamber mounted ; > = 22 kv & < = 33 kv ; > 15 mva and < = 40 mva | D48: 740.9823043 | E48: 50.46370491 | F48: 7.103781029 | G48: 2 | H48: 1 | I48: 0 | J48: 1 | K48: 2 | L48: 0 | M48: 7 | N48: 12 | O48: 2 | P48: 5 | Q48: 16 | R48: 14 | S48: 17 | T48: 10 | U48: 5 | V48: 12 | W48: 1 | X48: 0 | Y48: 9 | Z48: 0 | AA48: 0 | AB48: 0 | AC48: 0 | AD48: 0 | AE48: 0 | AF48: 1 | AG48: 2 | AH48: 0 | AI48: 0 | AJ48: 0 | AK48: 1 | AL48: 0 | AM48: 2 | AN48: 0 | AO48: 0 | AP48: 1 | AQ48: 0 | AR48: 0 | AS48: 0 | AT48: 1 | AU48: 0 | AV48: 3 | AW48: 3 | AX48: 4 | AY48: 3 | AZ48: 2 | BA48: 4 | BB48: 9 | BC48: 5 | BD48: 3 | BE48: 10 | BF48: 3 | BG48: 3 | BH48: 5 | BI48: 3 | BJ48: 11 | BK48: 3 | BL48: 0 | BM48: 4 | BN48: 0 | BO48: 0 | BP48: 0 | BQ48: 0 | BR48: 0 | BS48: 0 | BT48: 0 | BU48: 0 | BV48: 0 | BW48: 0 | BX48: 0 | BY48: 0 | BZ48: 0 | CA48: 0 | CB48: 0 | CC48: 0 | CD48: 0 | CE48: 0 | CF48: 0 | CG48: 0 | CH48: 0 | CI48: 0 | CJ48: 0 | CK48: 0 | CL48: 0 | CM48: 0 | CN48: 0 | CO48: 0 | CP48: 0 | CQ48: 0 | CR48: 0 | CS48: 0 | CT48: 0 | CV48: 740.9823043 | CW48: 0 | CX48: 740.9823043 | CY48: 1481.964609 | CZ48: 0 | DA48: 5186.87613 | DB48: 8891.787651 | DC48: 1481.964609 | DD48: 3704.911521 | DE48: 11855.71687 | DF48: 10373.75226 | DG48: 12596.69917 | DH48: 7409.823043 | DI48: 3704.911521 | DJ48: 8891.787651 | DK48: 740.9823043 | DL48: 0 | DM48: 6668.840738 | DN48: 0 | DO48: 0 | DP48: 0 | DQ48: 0 | DR48: 0 | DS48: 0 | DT48: 740.9823043 | DU48: 1481.964609 | DV48: 0 | DW48: 0 | DX48: 0 | DY48: 740.9823043 | DZ48: 0 | EA48: 1481.964609 | EB48: 0 | EC48: 0 | ED48: 740.9823043 | EE48: 0 | EF48: 0 | EG48: 0 | EH48: 740.9823043 | EI48: 0 | EJ48: 2222.946913 | EK48: 2222.946913 | EL48: 2963.929217 | EM48: 2222.946913 | EN48: 1481.964609 | EO48: 2963.929217 | EP48: 6668.840738 | EQ48: 3704.911521 | ER48: 2222.946913 | ES48: 7409.823043 | ET48: 2222.946913 | EU48: 2222.946913 | EV48: 3704.911521 | EW48: 2222.946913 | EX48: 8150.805347 | EY48: 2222.946913 | EZ48: 0 | FA48: 2963.929217 | FB48: 0 | FC48: 0 | FD48: 0 | FE48: 0 | FF48: 0 | FG48: 0 | FH48: 0 | FI48: 0 | FJ48: 0 | FK48: 0 | FL48: 0 | FM48: 0 | FN48: 0 | FO48: 0 | FP48: 0 | FQ48: 0 | FR48: 0 | FS48: 0 | FT48: 0 | FU48: 0 | FV48: 0 | FW48: 0 | FX48: 0 | FY48: 0 | FZ48: 0 | GA48: 0 | GB48: 0 | GC48: 0 | GD48: 0 | GE48: 0 | GF48: 0 | GG48: 0 | GH48: 0
A49: 5 | B49: TRANSFORMERS | C49: ground outdoor / indoor chamber mounted ; > 33 kv & < = 66 kv ; < = 15 mva | D49: 404.351014 | E49: 66.20890256 | F49: 8.136885311 | G49: 2 | H49: 0 | I49: 0 | J49: 0 | K49: 0 | L49: 0 | M49: 0 | N49: 0 | O49: 0 | P49: 0 | Q49: 3 | R49: 0 | S49: 0 | T49: 0 | U49: 0 | V49: 0 | W49: 0 | X49: 0 | Y49: 0 | Z49: 0 | AA49: 0 | AB49: 0 | AC49: 0 | AD49: 0 | AE49: 0 | AF49: 0 | AG49: 0 | AH49: 0 | AI49: 0 | AJ49: 0 | AK49: 0 | AL49: 0 | AM49: 0 | AN49: 0 | AO49: 0 | AP49: 0 | AQ49: 0 | AR49: 0 | AS49: 0 | AT49: 0 | AU49: 0 | AV49: 2 | AW49: 0 | AX49: 0 | AY49: 0 | AZ49: 0 | BA49: 0 | BB49: 2 | BC49: 0 | BD49: 0 | BE49: 0 | BF49: 2 | BG49: 0 | BH49: 0 | BI49: 1 | BJ49: 0 | BK49: 0 | BL49: 1 | BM49: 0 | BN49: 0 | BO49: 0 | BP49: 1 | BQ49: 0 | BR49: 0 | BS49: 0 | BT49: 0 | BU49: 0 | BV49: 0 | BW49: 0 | BX49: 0 | BY49: 0 | BZ49: 0 | CA49: 0 | CB49: 0 | CC49: 0 | CD49: 0 | CE49: 0 | CF49: 0 | CG49: 0 | CH49: 0 | CI49: 0 | CJ49: 0 | CK49: 0 | CL49: 0 | CM49: 0 | CN49: 0 | CO49: 0 | CP49: 0 | CQ49: 0 | CR49: 0 | CS49: 0 | CT49: 0 | CV49: 0 | CW49: 0 | CX49: 0 | CY49: 0 | CZ49: 0 | DA49: 0 | DB49: 0 | DC49: 0 | DD49: 0 | DE49: 1213.053042 | DF49: 0 | DG49: 0 | DH49: 0 | DI49: 0 | DJ49: 0 | DK49: 0 | DL49: 0 | DM49: 0 | DN49: 0 | DO49: 0 | DP49: 0 | DQ49: 0 | DR49: 0 | DS49: 0 | DT49: 0 | DU49: 0 | DV49: 0 | DW49: 0 | DX49: 0 | DY49: 0 | DZ49: 0 | EA49: 0 | EB49: 0 | EC49: 0 | ED49: 0 | EE49: 0 | EF49: 0 | EG49: 0 | EH49: 0 | EI49: 0 | EJ49: 808.7020281 | EK49: 0 | EL49: 0 | EM49: 0 | EN49: 0 | EO49: 0 | EP49: 808.7020281 | EQ49: 0 | ER49: 0 | ES49: 0 | ET49: 808.7020281 | EU49: 0 | EV49: 0 | EW49: 404.351014 | EX49: 0 | EY49: 0 | EZ49: 404.351014 | FA49: 0 | FB49: 0 | FC49: 0 | FD49: 404.351014 | FE49: 0 | FF49: 0 | FG49: 0 | FH49: 0 | FI49: 0 | FJ49: 0 | FK49: 0 | FL49: 0 | FM49: 0 | FN49: 0 | FO49: 0 | FP49: 0 | FQ49: 0 | FR49: 0 | FS49: 0 | FT49: 0 | FU49: 0 | FV49: 0 | FW49: 0 | FX49: 0 | FY49: 0 | FZ49: 0 | GA49: 0 | GB49: 0 | GC49: 0 | GD49: 0 | GE49: 0 | GF49: 0 | GG49: 0 | GH49: 0
A50: 5 | B50: TRANSFORMERS | C50: ground outdoor / indoor chamber mounted ; > 33 kv & < = 66 kv ; > 15 mva and < = 40 mva | D50: 390.7413572 | E50: 55.29617782 | F50: 7.436139981 | G50: 2 | H50: 0 | I50: 0 | J50: 0 | K50: 0 | L50: 4 | M50: 0 | N50: 4 | O50: 0 | P50: 2 | Q50: 5 | R50: 1 | S50: 2 | T50: 4 | U50: 1 | V50: 0 | W50: 0 | X50: 0 | Y50: 0 | Z50: 0 | AA50: 0 | AB50: 0 | AC50: 0 | AD50: 0 | AE50: 0 | AF50: 0 | AG50: 0 | AH50: 0 | AI50: 0 | AJ50: 0 | AK50: 0 | AL50: 0 | AM50: 0 | AN50: 0 | AO50: 3 | AP50: 2 | AQ50: 0 | AR50: 0 | AS50: 1 | AT50: 0 | AU50: 0 | AV50: 1 | AW50: 2 | AX50: 0 | AY50: 1 | AZ50: 0 | BA50: 0 | BB50: 0 | BC50: 2 | BD50: 1 | BE50: 0 | BF50: 0 | BG50: 1 | BH50: 0 | BI50: 0 | BJ50: 1 | BK50: 0 | BL50: 0 | BM50: 0 | BN50: 0 | BO50: 0 | BP50: 0 | BQ50: 0 | BR50: 0 | BS50: 0 | BT50: 0 | BU50: 0 | BV50: 0 | BW50: 0 | BX50: 0 | BY50: 0 | BZ50: 0 | CA50: 0 | CB50: 0 | CC50: 0 | CD50: 0 | CE50: 0 | CF50: 0 | CG50: 0 | CH50: 0 | CI50: 0 | CJ50: 0 | CK50: 0 | CL50: 0 | CM50: 0 | CN50: 0 | CO50: 0 | CP50: 0 | CQ50: 0 | CR50: 0 | CS50: 0 | CT50: 0 | CV50: 0 | CW50: 0 | CX50: 0 | CY50: 0 | CZ50: 1562.965429 | DA50: 0 | DB50: 1562.965429 | DC50: 0 | DD50: 781.4827144 | DE50: 1953.706786 | DF50: 390.7413572 | DG50: 781.4827144 | DH50: 1562.965429 | DI50: 390.7413572 | DJ50: 0 | DK50: 0 | DL50: 0 | DM50: 0 | DN50: 0 | DO50: 0 | DP50: 0 | DQ50: 0 | DR50: 0 | DS50: 0 | DT50: 0 | DU50: 0 | DV50: 0 | DW50: 0 | DX50: 0 | DY50: 0 | DZ50: 0 | EA50: 0 | EB50: 0 | EC50: 1172.224072 | ED50: 781.4827144 | EE50: 0 | EF50: 0 | EG50: 390.7413572 | EH50: 0 | EI50: 0 | EJ50: 390.7413572 | EK50: 781.4827144 | EL50: 0 | EM50: 390.7413572 | EN50: 0 | EO50: 0 | EP50: 0 | EQ50: 781.4827144 | ER50: 390.7413572 | ES50: 0 | ET50: 0 | EU50: 390.7413572 | EV50: 0 | EW50: 0 | EX50: 390.7413572 | EY50: 0 | EZ50: 0 | FA50: 0 | FB50: 0 | FC50: 0 | FD50: 0 | FE50: 0 | FF50: 0 | FG50: 0 | FH50: 0 | FI50: 0 | FJ50: 0 | FK50: 0 | FL50: 0 | FM50: 0 | FN50: 0 | FO50: 0 | FP50: 0 | FQ50: 0 | FR50: 0 | FS50: 0 | FT50: 0 | FU50: 0 | FV50: 0 | FW50: 0 | FX50: 0 | FY50: 0 | FZ50: 0 | GA50: 0 | GB50: 0 | GC50: 0 | GD50: 0 | GE50: 0 | GF50: 0 | GG50: 0 | GH50: 0
A51: 5 | B51: TRANSFORMERS | C51: ground outdoor / indoor chamber mounted ; > 66 kv & < = 132 kv ; < = 100 mva | D51: 3023.164035 | E51: 58.56310451 | F51: 7.652653429 | G51: 2 | H51: 4 | I51: 8 | J51: 8 | K51: 1 | L51: 6 | M51: 17 | N51: 8 | O51: 20 | P51: 8 | Q51: 11 | R51: 7 | S51: 7 | T51: 8 | U51: 6 | V51: 4 | W51: 6 | X51: 3 | Y51: 1 | Z51: 4 | AA51: 4 | AB51: 1 | AC51: 0 | AD51: 0 | AE51: 4 | AF51: 3 | AG51: 0 | AH51: 0 | AI51: 1 | AJ51: 0 | AK51: 0 | AL51: 2 | AM51: 0 | AN51: 0 | AO51: 3 | AP51: 2 | AQ51: 2 | AR51: 3 | AS51: 4 | AT51: 4 | AU51: 2 | AV51: 1 | AW51: 0 | AX51: 3 | AY51: 3 | AZ51: 6 | BA51: 4 | BB51: 1 | BC51: 2 | BD51: 2 | BE51: 1 | BF51: 0 | BG51: 1 | BH51: 0 | BI51: 2 | BJ51: 3 | BK51: 2 | BL51: 3 | BM51: 2 | BN51: 0 | BO51: 0 | BP51: 3 | BQ51: 0 | BR51: 0 | BS51: 1 | BT51: 0 | BU51: 1 | BV51: 0 | BW51: 0 | BX51: 0 | BY51: 0 | BZ51: 0 | CA51: 0 | CB51: 0 | CC51: 0 | CD51: 0 | CE51: 0 | CF51: 0 | CG51: 0 | CH51: 0 | CI51: 0 | CJ51: 0 | CK51: 0 | CL51: 0 | CM51: 0 | CN51: 0 | CO51: 0 | CP51: 0 | CQ51: 0 | CR51: 0 | CS51: 0 | CT51: 0 | CV51: 12092.65614 | CW51: 24185.31228 | CX51: 24185.31228 | CY51: 3023.164035 | CZ51: 18138.98421 | DA51: 51393.78859 | DB51: 24185.31228 | DC51: 60463.28069 | DD51: 24185.31228 | DE51: 33254.80438 | DF51: 21162.14824 | DG51: 21162.14824 | DH51: 24185.31228 | DI51: 18138.98421 | DJ51: 12092.65614 | DK51: 18138.98421 | DL51: 9069.492104 | DM51: 3023.164035 | DN51: 12092.65614 | DO51: 12092.65614 | DP51: 3023.164035 | DQ51: 0 | DR51: 0 | DS51: 12092.65614 | DT51: 9069.492104 | DU51: 0 | DV51: 0 | DW51: 3023.164035 | DX51: 0 | DY51: 0 | DZ51: 6046.328069 | EA51: 0 | EB51: 0 | EC51: 9069.492104 | ED51: 6046.328069 | EE51: 6046.328069 | EF51: 9069.492104 | EG51: 12092.65614 | EH51: 12092.65614 | EI51: 6046.328069 | EJ51: 3023.164035 | EK51: 0 | EL51: 9069.492104 | EM51: 9069.492104 | EN51: 18138.98421 | EO51: 12092.65614 | EP51: 3023.164035 | EQ51: 6046.328069 | ER51: 6046.328069 | ES51: 3023.164035 | ET51: 0 | EU51: 3023.164035 | EV51: 0 | EW51: 6046.328069 | EX51: 9069.492104 | EY51: 6046.328069 | EZ51: 9069.492104 | FA51: 6046.328069 | FB51: 0 | FC51: 0 | FD51: 9069.492104 | FE51: 0 | FF51: 0 | FG51: 3023.164035 | FH51: 0 | FI51: 3023.164035 | FJ51: 0 | FK51: 0 | FL51: 0 | FM51: 0 | FN51: 0 | FO51: 0 | FP51: 0 | FQ51: 0 | FR51: 0 | FS51: 0 | FT51: 0 | FU51: 0 | FV51: 0 | FW51: 0 | FX51: 0 | FY51: 0 | FZ51: 0 | GA51: 0 | GB51: 0 | GC51: 0 | GD51: 0 | GE51: 0 | GF51: 0 | GG51: 0 | GH51: 0
A52: 5 | B52: TRANSFORMERS | C52: ground outdoor / indoor chamber mounted ; > 66 kv & < = 132 kv ; > 100 mva | D52: 2893.434972 | E52: 61.82506754 | F52: 7.862891805 | G52: 2 | H52: 0 | I52: 0 | J52: 1 | K52: 0 | L52: 0 | M52: 0 | N52: 2 | O52: 6 | P52: 6 | Q52: 1 | R52: 1 | S52: 2 | T52: 2 | U52: 0 | V52: 0 | W52: 0 | X52: 1 | Y52: 1 | Z52: 1 | AA52: 0 | AB52: 0 | AC52: 0 | AD52: 0 | AE52: 0 | AF52: 0 | AG52: 0 | AH52: 2 | AI52: 0 | AJ52: 0 | AK52: 0 | AL52: 0 | AM52: 0 | AN52: 0 | AO52: 0 | AP52: 0 | AQ52: 3 | AR52: 2 | AS52: 0 | AT52: 0 | AU52: 3 | AV52: 0 | AW52: 0 | AX52: 0 | AY52: 0 | AZ52: 0 | BA52: 1 | BB52: 2 | BC52: 0 | BD52: 1 | BE52: 2 | BF52: 2 | BG52: 0 | BH52: 0 | BI52: 2 | BJ52: 0 | BK52: 1 | BL52: 0 | BM52: 0 | BN52: 0 | BO52: 0 | BP52: 0 | BQ52: 0 | BR52: 0 | BS52: 0 | BT52: 0 | BU52: 0 | BV52: 0 | BW52: 0 | BX52: 0 | BY52: 0 | BZ52: 0 | CA52: 0 | CB52: 0 | CC52: 0 | CD52: 0 | CE52: 0 | CF52: 0 | CG52: 0 | CH52: 0 | CI52: 0 | CJ52: 0 | CK52: 0 | CL52: 0 | CM52: 0 | CN52: 0 | CO52: 0 | CP52: 0 | CQ52: 0 | CR52: 0 | CS52: 0 | CT52: 0 | CV52: 0 | CW52: 0 | CX52: 2893.434972 | CY52: 0 | CZ52: 0 | DA52: 0 | DB52: 5786.869944 | DC52: 17360.60983 | DD52: 17360.60983 | DE52: 2893.434972 | DF52: 2893.434972 | DG52: 5786.869944 | DH52: 5786.869944 | DI52: 0 | DJ52: 0 | DK52: 0 | DL52: 2893.434972 | DM52: 2893.434972 | DN52: 2893.434972 | DO52: 0 | DP52: 0 | DQ52: 0 | DR52: 0 | DS52: 0 | DT52: 0 | DU52: 0 | DV52: 5786.869944 | DW52: 0 | DX52: 0 | DY52: 0 | DZ52: 0 | EA52: 0 | EB52: 0 | EC52: 0 | ED52: 0 | EE52: 8680.304916 | EF52: 5786.869944 | EG52: 0 | EH52: 0 | EI52: 8680.304916 | EJ52: 0 | EK52: 0 | EL52: 0 | EM52: 0 | EN52: 0 | EO52: 2893.434972 | EP52: 5786.869944 | EQ52: 0 | ER52: 2893.434972 | ES52: 5786.869944 | ET52: 5786.869944 | EU52: 0 | EV52: 0 | EW52: 5786.869944 | EX52: 0 | EY52: 2893.434972 | EZ52: 0 | FA52: 0 | FB52: 0 | FC52: 0 | FD52: 0 | FE52: 0 | FF52: 0 | FG52: 0 | FH52: 0 | FI52: 0 | FJ52: 0 | FK52: 0 | FL52: 0 | FM52: 0 | FN52: 0 | FO52: 0 | FP52: 0 | FQ52: 0 | FR52: 0 | FS52: 0 | FT52: 0 | FU52: 0 | FV52: 0 | FW52: 0 | FX52: 0 | FY52: 0 | FZ52: 0 | GA52: 0 | GB52: 0 | GC52: 0 | GD52: 0 | GE52: 0 | GF52: 0 | GG52: 0 | GH52: 0
A53: 5 | B53: TRANSFORMERS | C53: kiosk mounted ; < = 22 kv ; < = 60 kva ; multiple phase | D53: 38.01592977 | E53: 62.63346783 | F53: 7.914130895 | G53: 2 | H53: 0 | I53: 0 | J53: 0 | K53: 0 | L53: 0 | M53: 0 | N53: 0 | O53: 0 | P53: 0 | Q53: 0 | R53: 0 | S53: 0 | T53: 0 | U53: 0 | V53: 0 | W53: 0 | X53: 0 | Y53: 0 | Z53: 0 | AA53: 0 | AB53: 0 | AC53: 0 | AD53: 0 | AE53: 0 | AF53: 1 | AG53: 0 | AH53: 0 | AI53: 0 | AJ53: 0 | AK53: 0 | AL53: 0 | AM53: 0 | AN53: 0 | AO53: 0 | AP53: 0 | AQ53: 0 | AR53: 0 | AS53: 0 | AT53: 0 | AU53: 0 | AV53: 0 | AW53: 0 | AX53: 0 | AY53: 0 | AZ53: 0 | BA53: 0 | BB53: 0 | BC53: 0 | BD53: 0 | BE53: 0 | BF53: 0 | BG53: 0 | BH53: 0 | BI53: 0 | BJ53: 0 | BK53: 0 | BL53: 0 | BM53: 0 | BN53: 0 | BO53: 0 | BP53: 0 | BQ53: 0 | BR53: 0 | BS53: 0 | BT53: 0 | BU53: 0 | BV53: 0 | BW53: 0 | BX53: 0 | BY53: 0 | BZ53: 0 | CA53: 0 | CB53: 0 | CC53: 0 | CD53: 0 | CE53: 0 | CF53: 0 | CG53: 0 | CH53: 0 | CI53: 0 | CJ53: 0 | CK53: 0 | CL53: 0 | CM53: 0 | CN53: 0 | CO53: 0 | CP53: 0 | CQ53: 0 | CR53: 0 | CS53: 0 | CT53: 0 | CV53: 0 | CW53: 0 | CX53: 0 | CY53: 0 | CZ53: 0 | DA53: 0 | DB53: 0 | DC53: 0 | DD53: 0 | DE53: 0 | DF53: 0 | DG53: 0 | DH53: 0 | DI53: 0 | DJ53: 0 | DK53: 0 | DL53: 0 | DM53: 0 | DN53: 0 | DO53: 0 | DP53: 0 | DQ53: 0 | DR53: 0 | DS53: 0 | DT53: 38.01592977 | DU53: 0 | DV53: 0 | DW53: 0 | DX53: 0 | DY53: 0 | DZ53: 0 | EA53: 0 | EB53: 0 | EC53: 0 | ED53: 0 | EE53: 0 | EF53: 0 | EG53: 0 | EH53: 0 | EI53: 0 | EJ53: 0 | EK53: 0 | EL53: 0 | EM53: 0 | EN53: 0 | EO53: 0 | EP53: 0 | EQ53: 0 | ER53: 0 | ES53: 0 | ET53: 0 | EU53: 0 | EV53: 0 | EW53: 0 | EX53: 0 | EY53: 0 | EZ53: 0 | FA53: 0 | FB53: 0 | FC53: 0 | FD53: 0 | FE53: 0 | FF53: 0 | FG53: 0 | FH53: 0 | FI53: 0 | FJ53: 0 | FK53: 0 | FL53: 0 | FM53: 0 | FN53: 0 | FO53: 0 | FP53: 0 | FQ53: 0 | FR53: 0 | FS53: 0 | FT53: 0 | FU53: 0 | FV53: 0 | FW53: 0 | FX53: 0 | FY53: 0 | FZ53: 0 | GA53: 0 | GB53: 0 | GC53: 0 | GD53: 0 | GE53: 0 | GF53: 0 | GG53: 0 | GH53: 0
A54: 5 | B54: TRANSFORMERS | C54: kiosk mounted ; < = 22 kv ; < = 60 kva ; single phase | D54: 38.01592977 | E54: 62.63346783 | F54: 7.914130895 | G54: 2 | H54: 0 | I54: 0 | J54: 0 | K54: 0 | L54: 0 | M54: 0 | N54: 0 | O54: 0 | P54: 0 | Q54: 0 | R54: 0 | S54: 0 | T54: 0 | U54: 0 | V54: 0 | W54: 0 | X54: 0 | Y54: 0 | Z54: 0 | AA54: 1 | AB54: 0 | AC54: 0 | AD54: 0 | AE54: 0 | AF54: 0 | AG54: 0 | AH54: 0 | AI54: 0 | AJ54: 0 | AK54: 0 | AL54: 0 | AM54: 0 | AN54: 0 | AO54: 0 | AP54: 0 | AQ54: 0 | AR54: 0 | AS54: 0 | AT54: 0 | AU54: 0 | AV54: 0 | AW54: 0 | AX54: 0 | AY54: 0 | AZ54: 0 | BA54: 0 | BB54: 0 | BC54: 0 | BD54: 0 | BE54: 0 | BF54: 0 | BG54: 0 | BH54: 0 | BI54: 0 | BJ54: 0 | BK54: 0 | BL54: 0 | BM54: 0 | BN54: 0 | BO54: 0 | BP54: 0 | BQ54: 0 | BR54: 0 | BS54: 0 | BT54: 0 | BU54: 0 | BV54: 0 | BW54: 0 | BX54: 0 | BY54: 0 | BZ54: 0 | CA54: 0 | CB54: 0 | CC54: 0 | CD54: 0 | CE54: 0 | CF54: 0 | CG54: 0 | CH54: 0 | CI54: 0 | CJ54: 0 | CK54: 0 | CL54: 0 | CM54: 0 | CN54: 0 | CO54: 0 | CP54: 0 | CQ54: 0 | CR54: 0 | CS54: 0 | CT54: 0 | CV54: 0 | CW54: 0 | CX54: 0 | CY54: 0 | CZ54: 0 | DA54: 0 | DB54: 0 | DC54: 0 | DD54: 0 | DE54: 0 | DF54: 0 | DG54: 0 | DH54: 0 | DI54: 0 | DJ54: 0 | DK54: 0 | DL54: 0 | DM54: 0 | DN54: 0 | DO54: 38.01592977 | DP54: 0 | DQ54: 0 | DR54: 0 | DS54: 0 | DT54: 0 | DU54: 0 | DV54: 0 | DW54: 0 | DX54: 0 | DY54: 0 | DZ54: 0 | EA54: 0 | EB54: 0 | EC54: 0 | ED54: 0 | EE54: 0 | EF54: 0 | EG54: 0 | EH54: 0 | EI54: 0 | EJ54: 0 | EK54: 0 | EL54: 0 | EM54: 0 | EN54: 0 | EO54: 0 | EP54: 0 | EQ54: 0 | ER54: 0 | ES54: 0 | ET54: 0 | EU54: 0 | EV54: 0 | EW54: 0 | EX54: 0 | EY54: 0 | EZ54: 0 | FA54: 0 | FB54: 0 | FC54: 0 | FD54: 0 | FE54: 0 | FF54: 0 | FG54: 0 | FH54: 0 | FI54: 0 | FJ54: 0 | FK54: 0 | FL54: 0 | FM54: 0 | FN54: 0 | FO54: 0 | FP54: 0 | FQ54: 0 | FR54: 0 | FS54: 0 | FT54: 0 | FU54: 0 | FV54: 0 | FW54: 0 | FX54: 0 | FY54: 0 | FZ54: 0 | GA54: 0 | GB54: 0 | GC54: 0 | GD54: 0 | GE54: 0 | GF54: 0 | GG54: 0 | GH54: 0
A55: 5 | B55: TRANSFORMERS | C55: kiosk mounted ; < = 22 kv ; > 60 kva and < = 600 kva ; multiple phase | D55: 38.01592977 | E55: 62.63346783 | F55: 7.914130895 | G55: 2 | H55: 157 | I55: 111 | J55: 131 | K55: 161 | L55: 144 | M55: 195 | N55: 196 | O55: 161 | P55: 229 | Q55: 196 | R55: 177 | S55: 205 | T55: 155 | U55: 182 | V55: 121 | W55: 77 | X55: 110 | Y55: 30 | Z55: 30 | AA55: 36 | AB55: 33 | AC55: 94 | AD55: 242 | AE55: 483 | AF55: 202 | AG55: 120 | AH55: 90 | AI55: 62 | AJ55: 122 | AK55: 88 | AL55: 177 | AM55: 107 | AN55: 27 | AO55: 69 | AP55: 169 | AQ55: 145 | AR55: 316 | AS55: 196 | AT55: 250 | AU55: 256 | AV55: 193 | AW55: 211 | AX55: 182 | AY55: 139 | AZ55: 151 | BA55: 157 | BB55: 124 | BC55: 97 | BD55: 62 | BE55: 106 | BF55: 40 | BG55: 40 | BH55: 68 | BI55: 74 | BJ55: 45 | BK55: 20 | BL55: 8 | BM55: 4 | BN55: 4 | BO55: 0 | BP55: 0 | BQ55: 0 | BR55: 0 | BS55: 0 | BT55: 4 | BU55: 0 | BV55: 0 | BW55: 10 | BX55: 2 | BY55: 0 | BZ55: 0 | CA55: 0 | CB55: 0 | CC55: 1 | CD55: 0 | CE55: 0 | CF55: 0 | CG55: 1 | CH55: 0 | CI55: 0 | CJ55: 0 | CK55: 0 | CL55: 0 | CM55: 0 | CN55: 0 | CO55: 0 | CP55: 0 | CQ55: 1 | CR55: 0 | CS55: 0 | CT55: 0 | CV55: 5968.500975 | CW55: 4219.768205 | CX55: 4980.0868 | CY55: 6120.564694 | CZ55: 5474.293888 | DA55: 7413.106306 | DB55: 7451.122236 | DC55: 6120.564694 | DD55: 8705.647918 | DE55: 7451.122236 | DF55: 6728.81957 | DG55: 7793.265604 | DH55: 5892.469115 | DI55: 6918.899219 | DJ55: 4599.927503 | DK55: 2927.226593 | DL55: 4181.752275 | DM55: 1140.477893 | DN55: 1140.477893 | DO55: 1368.573472 | DP55: 1254.525683 | DQ55: 3573.497399 | DR55: 9199.855005 | DS55: 18361.69408 | DT55: 7679.217814 | DU55: 4561.911573 | DV55: 3421.43368 | DW55: 2356.987646 | DX55: 4637.943432 | DY55: 3345.40182 | DZ55: 6728.81957 | EA55: 4067.704486 | EB55: 1026.430104 | EC55: 2623.099154 | ED55: 6424.692132 | EE55: 5512.309817 | EF55: 12013.03381 | EG55: 7451.122236 | EH55: 9503.982444 | EI55: 9732.078022 | EJ55: 7337.074446 | EK55: 8021.361182 | EL55: 6918.899219 | EM55: 5284.214239 | EN55: 5740.405396 | EO55: 5968.500975 | EP55: 4713.975292 | EQ55: 3687.545188 | ER55: 2356.987646 | ES55: 4029.688556 | ET55: 1520.637191 | EU55: 1520.637191 | EV55: 2585.083225 | EW55: 2813.178803 | EX55: 1710.71684 | EY55: 760.3185955 | EZ55: 304.1274382 | FA55: 152.0637191 | FB55: 152.0637191 | FC55: 0 | FD55: 0 | FE55: 0 | FF55: 0 | FG55: 0 | FH55: 152.0637191 | FI55: 0 | FJ55: 0 | FK55: 380.1592977 | FL55: 76.03185955 | FM55: 0 | FN55: 0 | FO55: 0 | FP55: 0 | FQ55: 38.01592977 | FR55: 0 | FS55: 0 | FT55: 0 | FU55: 38.01592977 | FV55: 0 | FW55: 0 | FX55: 0 | FY55: 0 | FZ55: 0 | GA55: 0 | GB55: 0 | GC55: 0 | GD55: 0 | GE55: 38.01592977 | GF55: 0 | GG55: 0 | GH55: 0
A56: 5 | B56: TRANSFORMERS | C56: kiosk mounted ; < = 22 kv ; > 600 kva ; multiple phase | D56: 34.21779615 | E56: 59.87272712 | F56: 7.737746902 | G56: 2 | H56: 132 | I56: 166 | J56: 177 | K56: 285 | L56: 314 | M56: 332 | N56: 372 | O56: 279 | P56: 291 | Q56: 282 | R56: 288 | S56: 219 | T56: 134 | U56: 130 | V56: 123 | W56: 101 | X56: 182 | Y56: 40 | Z56: 23 | AA56: 19 | AB56: 10 | AC56: 28 | AD56: 42 | AE56: 552 | AF56: 17 | AG56: 31 | AH56: 47 | AI56: 21 | AJ56: 38 | AK56: 12 | AL56: 25 | AM56: 18 | AN56: 22 | AO56: 14 | AP56: 11 | AQ56: 25 | AR56: 15 | AS56: 11 | AT56: 2 | AU56: 3 | AV56: 1 | AW56: 5 | AX56: 10 | AY56: 4 | AZ56: 1 | BA56: 1 | BB56: 0 | BC56: 1 | BD56: 1 | BE56: 1 | BF56: 1 | BG56: 0 | BH56: 2 | BI56: 1 | BJ56: 1 | BK56: 0 | BL56: 1 | BM56: 0 | BN56: 0 | BO56: 0 | BP56: 0 | BQ56: 0 | BR56: 0 | BS56: 0 | BT56: 0 | BU56: 0 | BV56: 0 | BW56: 8 | BX56: 0 | BY56: 0 | BZ56: 0 | CA56: 0 | CB56: 0 | CC56: 0 | CD56: 0 | CE56: 0 | CF56: 0 | CG56: 0 | CH56: 0 | CI56: 0 | CJ56: 0 | CK56: 0 | CL56: 0 | CM56: 0 | CN56: 0 | CO56: 0 | CP56: 0 | CQ56: 0 | CR56: 0 | CS56: 0 | CT56: 0 | CV56: 4516.749092 | CW56: 5680.154162 | CX56: 6056.549919 | CY56: 9752.071904 | CZ56: 10744.38799 | DA56: 11360.30832 | DB56: 12729.02017 | DC56: 9546.765127 | DD56: 9957.378681 | DE56: 9649.418516 | DF56: 9854.725292 | DG56: 7493.697358 | DH56: 4585.184685 | DI56: 4448.3135 | DJ56: 4208.788927 | DK56: 3455.997412 | DL56: 6227.6389 | DM56: 1368.711846 | DN56: 787.0093115 | DO56: 650.1381269 | DP56: 342.1779615 | DQ56: 958.0982923 | DR56: 1437.147438 | DS56: 18888.22348 | DT56: 581.7025346 | DU56: 1060.751681 | DV56: 1608.236419 | DW56: 718.5737192 | DX56: 1300.276254 | DY56: 410.6135539 | DZ56: 855.4449039 | EA56: 615.9203308 | EB56: 752.7915154 | EC56: 479.0491462 | ED56: 376.3957577 | EE56: 855.4449039 | EF56: 513.2669423 | EG56: 376.3957577 | EH56: 68.43559231 | EI56: 102.6533885 | EJ56: 34.21779615 | EK56: 171.0889808 | EL56: 342.1779615 | EM56: 136.8711846 | EN56: 34.21779615 | EO56: 34.21779615 | EP56: 0 | EQ56: 34.21779615 | ER56: 34.21779615 | ES56: 34.21779615 | ET56: 34.21779615 | EU56: 0 | EV56: 68.43559231 | EW56: 34.21779615 | EX56: 34.21779615 | EY56: 0 | EZ56: 34.21779615 | FA56: 0 | FB56: 0 | FC56: 0 | FD56: 0 | FE56: 0 | FF56: 0 | FG56: 0 | FH56: 0 | FI56: 0 | FJ56: 0 | FK56: 273.7423692 | FL56: 0 | FM56: 0 | FN56: 0 | FO56: 0 | FP56: 0 | FQ56: 0 | FR56: 0 | FS56: 0 | FT56: 0 | FU56: 0 | FV56: 0 | FW56: 0 | FX56: 0 | FY56: 0 | FZ56: 0 | GA56: 0 | GB56: 0 | GC56: 0 | GD56: 0 | GE56: 0 | GF56: 0 | GG56: 0 | GH56: 0
A57: 5 | B57: TRANSFORMERS | C57: pole mounted ; < = 22 kv ; < = 60 kva ; multiple phase | D57: 14.11574897 | E57: 65.67622755 | F57: 8.104087089 | G57: 2 | H57: 11 | I57: 22 | J57: 27 | K57: 27 | L57: 16 | M57: 18 | N57: 33 | O57: 23 | P57: 42 | Q57: 76 | R57: 30 | S57: 25 | T57: 16 | U57: 15 | V57: 14 | W57: 5 | X57: 79 | Y57: 17 | Z57: 15 | AA57: 59 | AB57: 137 | AC57: 116 | AD57: 243 | AE57: 170 | AF57: 253 | AG57: 102 | AH57: 124 | AI57: 399 | AJ57: 103 | AK57: 84 | AL57: 135 | AM57: 114 | AN57: 87 | AO57: 57 | AP57: 150 | AQ57: 151 | AR57: 109 | AS57: 60 | AT57: 48 | AU57: 34 | AV57: 42 | AW57: 32 | AX57: 38 | AY57: 44 | AZ57: 30 | BA57: 27 | BB57: 55 | BC57: 31 | BD57: 25 | BE57: 38 | BF57: 27 | BG57: 18 | BH57: 33 | BI57: 27 | BJ57: 18 | BK57: 23 | BL57: 29 | BM57: 17 | BN57: 15 | BO57: 21 | BP57: 12 | BQ57: 18 | BR57: 5 | BS57: 1 | BT57: 0 | BU57: 0 | BV57: 1 | BW57: 134 | BX57: 1 | BY57: 0 | BZ57: 0 | CA57: 0 | CB57: 0 | CC57: 0 | CD57: 0 | CE57: 0 | CF57: 0 | CG57: 0 | CH57: 0 | CI57: 0 | CJ57: 0 | CK57: 0 | CL57: 0 | CM57: 0 | CN57: 0 | CO57: 0 | CP57: 0 | CQ57: 0 | CR57: 0 | CS57: 0 | CT57: 0 | CV57: 155.2732386 | CW57: 310.5464773 | CX57: 381.1252221 | CY57: 381.1252221 | CZ57: 225.8519835 | DA57: 254.0834814 | DB57: 465.8197159 | DC57: 324.6622262 | DD57: 592.8614566 | DE57: 1072.796921 | DF57: 423.472469 | DG57: 352.8937242 | DH57: 225.8519835 | DI57: 211.7362345 | DJ57: 197.6204855 | DK57: 70.57874483 | DL57: 1115.144168 | DM57: 239.9677324 | DN57: 211.7362345 | DO57: 832.829189 | DP57: 1933.857608 | DQ57: 1637.42688 | DR57: 3430.126999 | DS57: 2399.677324 | DT57: 3571.284489 | DU57: 1439.806395 | DV57: 1750.352872 | DW57: 5632.183838 | DX57: 1453.922144 | DY57: 1185.722913 | DZ57: 1905.62611 | EA57: 1609.195382 | EB57: 1228.07016 | EC57: 804.5976911 | ED57: 2117.362345 | EE57: 2131.478094 | EF57: 1538.616637 | EG57: 846.944938 | EH57: 677.5559504 | EI57: 479.9354649 | EJ57: 592.8614566 | EK57: 451.7039669 | EL57: 536.3984607 | EM57: 621.0929545 | EN57: 423.472469 | EO57: 381.1252221 | EP57: 776.3661932 | EQ57: 437.588218 | ER57: 352.8937242 | ES57: 536.3984607 | ET57: 381.1252221 | EU57: 254.0834814 | EV57: 465.8197159 | EW57: 381.1252221 | EX57: 254.0834814 | EY57: 324.6622262 | EZ57: 409.35672 | FA57: 239.9677324 | FB57: 211.7362345 | FC57: 296.4307283 | FD57: 169.3889876 | FE57: 254.0834814 | FF57: 70.57874483 | FG57: 14.11574897 | FH57: 0 | FI57: 0 | FJ57: 14.11574897 | FK57: 1891.510362 | FL57: 14.11574897 | FM57: 0 | FN57: 0 | FO57: 0 | FP57: 0 | FQ57: 0 | FR57: 0 | FS57: 0 | FT57: 0 | FU57: 0 | FV57: 0 | FW57: 0 | FX57: 0 | FY57: 0 | FZ57: 0 | GA57: 0 | GB57: 0 | GC57: 0 | GD57: 0 | GE57: 0 | GF57: 0 | GG57: 0 | GH57: 0
A58: 5 | B58: TRANSFORMERS | C58: pole mounted ; < = 22 kv ; < = 60 kva ; single phase | D58: 14.11573427 | E58: 72.75934159 | F58: 8.529908651 | G58: 2 | H58: 34 | I58: 56 | J58: 65 | K58: 96 | L58: 73 | M58: 71 | N58: 79 | O58: 80 | P58: 129 | Q58: 200 | R58: 106 | S58: 68 | T58: 45 | U58: 57 | V58: 50 | W58: 20 | X58: 187 | Y58: 42 | Z58: 21 | AA58: 11 | AB58: 7 | AC58: 8 | AD58: 3 | AE58: 16 | AF58: 7 | AG58: 9 | AH58: 8 | AI58: 14 | AJ58: 17 | AK58: 11 | AL58: 15 | AM58: 26 | AN58: 22 | AO58: 16 | AP58: 68 | AQ58: 33 | AR58: 52 | AS58: 72 | AT58: 53 | AU58: 40 | AV58: 42 | AW58: 25 | AX58: 30 | AY58: 26 | AZ58: 38 | BA58: 18 | BB58: 17 | BC58: 24 | BD58: 17 | BE58: 17 | BF58: 15 | BG58: 9 | BH58: 17 | BI58: 11 | BJ58: 12 | BK58: 11 | BL58: 29 | BM58: 7 | BN58: 10 | BO58: 17 | BP58: 12 | BQ58: 4 | BR58: 2 | BS58: 0 | BT58: 0 | BU58: 0 | BV58: 1 | BW58: 254 | BX58: 0 | BY58: 0 | BZ58: 0 | CA58: 0 | CB58: 0 | CC58: 0 | CD58: 0 | CE58: 0 | CF58: 0 | CG58: 0 | CH58: 0 | CI58: 0 | CJ58: 0 | CK58: 0 | CL58: 0 | CM58: 0 | CN58: 0 | CO58: 0 | CP58: 0 | CQ58: 0 | CR58: 0 | CS58: 0 | CT58: 0 | CV58: 479.9349651 | CW58: 790.4811191 | CX58: 917.5227275 | CY58: 1355.11049 | CZ58: 1030.448602 | DA58: 1002.217133 | DB58: 1115.143007 | DC58: 1129.258742 | DD58: 1820.929721 | DE58: 2823.146854 | DF58: 1496.267833 | DG58: 959.8699303 | DH58: 635.2080421 | DI58: 804.5968533 | DJ58: 705.7867134 | DK58: 282.3146854 | DL58: 2639.642308 | DM58: 592.8608393 | DN58: 296.4304196 | DO58: 155.273077 | DP58: 98.81013988 | DQ58: 112.9258742 | DR58: 42.34720281 | DS58: 225.8517483 | DT58: 98.81013988 | DU58: 127.0416084 | DV58: 112.9258742 | DW58: 197.6202798 | DX58: 239.9674826 | DY58: 155.273077 | DZ58: 211.736014 | EA58: 367.009091 | EB58: 310.5461539 | EC58: 225.8517483 | ED58: 959.8699303 | EE58: 465.8192309 | EF58: 734.018182 | EG58: 1016.332867 | EH58: 748.1339163 | EI58: 564.6293708 | EJ58: 592.8608393 | EK58: 352.8933567 | EL58: 423.4720281 | EM58: 367.009091 | EN58: 536.3979022 | EO58: 254.0832168 | EP58: 239.9674826 | EQ58: 338.7776225 | ER58: 239.9674826 | ES58: 239.9674826 | ET58: 211.736014 | EU58: 127.0416084 | EV58: 239.9674826 | EW58: 155.273077 | EX58: 169.3888112 | EY58: 155.273077 | EZ58: 409.3562938 | FA58: 98.81013988 | FB58: 141.1573427 | FC58: 239.9674826 | FD58: 169.3888112 | FE58: 56.46293708 | FF58: 28.23146854 | FG58: 0 | FH58: 0 | FI58: 0 | FJ58: 14.11573427 | FK58: 3585.396504 | FL58: 0 | FM58: 0 | FN58: 0 | FO58: 0 | FP58: 0 | FQ58: 0 | FR58: 0 | FS58: 0 | FT58: 0 | FU58: 0 | FV58: 0 | FW58: 0 | FX58: 0 | FY58: 0 | FZ58: 0 | GA58: 0 | GB58: 0 | GC58: 0 | GD58: 0 | GE58: 0 | GF58: 0 | GG58: 0 | GH58: 0
A59: 5 | B59: TRANSFORMERS | C59: pole mounted ; < = 22 kv ; > 60 kva and < = 600 kva ; multiple phase | D59: 23.13229709 | E59: 62.8621882 | F59: 7.928567853 | G59: 2 | H59: 119 | I59: 201 | J59: 161 | K59: 218 | L59: 181 | M59: 189 | N59: 225 | O59: 313 | P59: 315 | Q59: 486 | R59: 278 | S59: 230 | T59: 93 | U59: 94 | V59: 75 | W59: 47 | X59: 451 | Y59: 48 | Z59: 44 | AA59: 87 | AB59: 117 | AC59: 126 | AD59: 299 | AE59: 89 | AF59: 176 | AG59: 168 | AH59: 91 | AI59: 167 | AJ59: 71 | AK59: 78 | AL59: 83 | AM59: 107 | AN59: 85 | AO59: 124 | AP59: 286 | AQ59: 83 | AR59: 88 | AS59: 107 | AT59: 81 | AU59: 55 | AV59: 52 | AW59: 122 | AX59: 92 | AY59: 117 | AZ59: 152 | BA59: 140 | BB59: 145 | BC59: 213 | BD59: 162 | BE59: 179 | BF59: 137 | BG59: 148 | BH59: 167 | BI59: 115 | BJ59: 106 | BK59: 78 | BL59: 86 | BM59: 49 | BN59: 64 | BO59: 11 | BP59: 17 | BQ59: 12 | BR59: 3 | BS59: 6 | BT59: 1 | BU59: 5 | BV59: 2 | BW59: 199 | BX59: 0 | BY59: 0 | BZ59: 0 | CA59: 0 | CB59: 0 | CC59: 0 | CD59: 0 | CE59: 0 | CF59: 0 | CG59: 0 | CH59: 0 | CI59: 0 | CJ59: 0 | CK59: 0 | CL59: 0 | CM59: 0 | CN59: 0 | CO59: 0 | CP59: 0 | CQ59: 0 | CR59: 0 | CS59: 0 | CT59: 0 | CV59: 2752.743353 | CW59: 4649.591714 | CX59: 3724.299831 | CY59: 5042.840765 | CZ59: 4186.945773 | DA59: 4372.004149 | DB59: 5204.766845 | DC59: 7240.408988 | DD59: 7286.673582 | DE59: 11242.29638 | DF59: 6430.77859 | DG59: 5320.42833 | DH59: 2151.303629 | DI59: 2174.435926 | DJ59: 1734.922282 | DK59: 1087.217963 | DL59: 10432.66599 | DM59: 1110.35026 | DN59: 1017.821072 | DO59: 2012.509847 | DP59: 2706.478759 | DQ59: 2914.669433 | DR59: 6916.556829 | DS59: 2058.774441 | DT59: 4071.284287 | DU59: 3886.225911 | DV59: 2105.039035 | DW59: 3863.093614 | DX59: 1642.393093 | DY59: 1804.319173 | DZ59: 1919.980658 | EA59: 2475.155788 | EB59: 1966.245252 | EC59: 2868.404839 | ED59: 6615.836967 | EE59: 1919.980658 | EF59: 2035.642144 | EG59: 2475.155788 | EH59: 1873.716064 | EI59: 1272.27634 | EJ59: 1202.879449 | EK59: 2822.140245 | EL59: 2128.171332 | EM59: 2706.478759 | EN59: 3516.109157 | EO59: 3238.521592 | EP59: 3354.183078 | EQ59: 4927.17928 | ER59: 3747.432128 | ES59: 4140.681179 | ET59: 3169.124701 | EU59: 3423.579969 | EV59: 3863.093614 | EW59: 2660.214165 | EX59: 2452.023491 | EY59: 1804.319173 | EZ59: 1989.377549 | FA59: 1133.482557 | FB59: 1480.467014 | FC59: 254.455268 | FD59: 393.2490505 | FE59: 277.587565 | FF59: 69.39689126 | FG59: 138.7937825 | FH59: 23.13229709 | FI59: 115.6614854 | FJ59: 46.26459417 | FK59: 4603.32712 | FL59: 0 | FM59: 0 | FN59: 0 | FO59: 0 | FP59: 0 | FQ59: 0 | FR59: 0 | FS59: 0 | FT59: 0 | FU59: 0 | FV59: 0 | FW59: 0 | FX59: 0 | FY59: 0 | FZ59: 0 | GA59: 0 | GB59: 0 | GC59: 0 | GD59: 0 | GE59: 0 | GF59: 0 | GG59: 0 | GH59: 0
A60: 5 | B60: TRANSFORMERS | C60: pole mounted ; < = 22 kv ; > 60 kva and < = 600 kva ; single phase | D60: 21.72991296 | E60: 65.01631818 | F60: 8.063269696 | G60: 2 | H60: 5 | I60: 4 | J60: 6 | K60: 19 | L60: 5 | M60: 19 | N60: 26 | O60: 25 | P60: 27 | Q60: 28 | R60: 39 | S60: 18 | T60: 14 | U60: 12 | V60: 8 | W60: 3 | X60: 53 | Y60: 2 | Z60: 0 | AA60: 0 | AB60: 0 | AC60: 1 | AD60: 41 | AE60: 2 | AF60: 14 | AG60: 5 | AH60: 0 | AI60: 5 | AJ60: 0 | AK60: 0 | AL60: 1 | AM60: 1 | AN60: 0 | AO60: 0 | AP60: 0 | AQ60: 1 | AR60: 2 | AS60: 1 | AT60: 0 | AU60: 0 | AV60: 2 | AW60: 1 | AX60: 1 | AY60: 1 | AZ60: 0 | BA60: 1 | BB60: 0 | BC60: 0 | BD60: 0 | BE60: 0 | BF60: 0 | BG60: 0 | BH60: 1 | BI60: 0 | BJ60: 0 | BK60: 0 | BL60: 0 | BM60: 0 | BN60: 0 | BO60: 0 | BP60: 0 | BQ60: 0 | BR60: 0 | BS60: 0 | BT60: 0 | BU60: 0 | BV60: 0 | BW60: 12 | BX60: 0 | BY60: 0 | BZ60: 0 | CA60: 0 | CB60: 0 | CC60: 0 | CD60: 0 | CE60: 0 | CF60: 0 | CG60: 0 | CH60: 0 | CI60: 0 | CJ60: 0 | CK60: 0 | CL60: 0 | CM60: 0 | CN60: 0 | CO60: 0 | CP60: 0 | CQ60: 0 | CR60: 0 | CS60: 0 | CT60: 0 | CV60: 108.6495648 | CW60: 86.91965185 | CX60: 130.3794778 | CY60: 412.8683463 | CZ60: 108.6495648 | DA60: 412.8683463 | DB60: 564.977737 | DC60: 543.2478241 | DD60: 586.70765 | DE60: 608.4375629 | DF60: 847.4666055 | DG60: 391.1384333 | DH60: 304.2187815 | DI60: 260.7589555 | DJ60: 173.8393037 | DK60: 65.18973889 | DL60: 1151.685387 | DM60: 43.45982592 | DN60: 0 | DO60: 0 | DP60: 0 | DQ60: 21.72991296 | DR60: 890.9264315 | DS60: 43.45982592 | DT60: 304.2187815 | DU60: 108.6495648 | DV60: 0 | DW60: 108.6495648 | DX60: 0 | DY60: 0 | DZ60: 21.72991296 | EA60: 21.72991296 | EB60: 0 | EC60: 0 | ED60: 0 | EE60: 21.72991296 | EF60: 43.45982592 | EG60: 21.72991296 | EH60: 0 | EI60: 0 | EJ60: 43.45982592 | EK60: 21.72991296 | EL60: 21.72991296 | EM60: 21.72991296 | EN60: 0 | EO60: 21.72991296 | EP60: 0 | EQ60: 0 | ER60: 0 | ES60: 0 | ET60: 0 | EU60: 0 | EV60: 21.72991296 | EW60: 0 | EX60: 0 | EY60: 0 | EZ60: 0 | FA60: 0 | FB60: 0 | FC60: 0 | FD60: 0 | FE60: 0 | FF60: 0 | FG60: 0 | FH60: 0 | FI60: 0 | FJ60: 0 | FK60: 260.7589555 | FL60: 0 | FM60: 0 | FN60: 0 | FO60: 0 | FP60: 0 | FQ60: 0 | FR60: 0 | FS60: 0 | FT60: 0 | FU60: 0 | FV60: 0 | FW60: 0 | FX60: 0 | FY60: 0 | FZ60: 0 | GA60: 0 | GB60: 0 | GC60: 0 | GD60: 0 | GE60: 0 | GF60: 0 | GG60: 0 | GH60: 0
A61: 5 | B61: TRANSFORMERS | C61: pole mounted ; < = 22 kv ; > 600 kva ; multiple phase | D61: 23.13229709 | E61: 62.8621882 | F61: 7.928567853 | G61: 2 | H61: 0 | I61: 0 | J61: 0 | K61: 0 | L61: 0 | M61: 0 | N61: 0 | O61: 0 | P61: 0 | Q61: 0 | R61: 0 | S61: 0 | T61: 1 | U61: 0 | V61: 0 | W61: 0 | X61: 0 | Y61: 0 | Z61: 0 | AA61: 0 | AB61: 0 | AC61: 0 | AD61: 0 | AE61: 0 | AF61: 0 | AG61: 0 | AH61: 0 | AI61: 0 | AJ61: 0 | AK61: 0 | AL61: 0 | AM61: 0 | AN61: 0 | AO61: 0 | AP61: 0 | AQ61: 0 | AR61: 0 | AS61: 0 | AT61: 0 | AU61: 0 | AV61: 0 | AW61: 0 | AX61: 0 | AY61: 0 | AZ61: 0 | BA61: 0 | BB61: 0 | BC61: 0 | BD61: 0 | BE61: 0 | BF61: 0 | BG61: 0 | BH61: 0 | BI61: 0 | BJ61: 0 | BK61: 0 | BL61: 0 | BM61: 0 | BN61: 0 | BO61: 0 | BP61: 0 | BQ61: 0 | BR61: 0 | BS61: 0 | BT61: 0 | BU61: 0 | BV61: 0 | BW61: 0 | BX61: 0 | BY61: 0 | BZ61: 0 | CA61: 0 | CB61: 0 | CC61: 0 | CD61: 0 | CE61: 0 | CF61: 0 | CG61: 0 | CH61: 0 | CI61: 0 | CJ61: 0 | CK61: 0 | CL61: 0 | CM61: 0 | CN61: 0 | CO61: 0 | CP61: 0 | CQ61: 0 | CR61: 0 | CS61: 0 | CT61: 0 | CV61: 0 | CW61: 0 | CX61: 0 | CY61: 0 | CZ61: 0 | DA61: 0 | DB61: 0 | DC61: 0 | DD61: 0 | DE61: 0 | DF61: 0 | DG61: 0 | DH61: 23.13229709 | DI61: 0 | DJ61: 0 | DK61: 0 | DL61: 0 | DM61: 0 | DN61: 0 | DO61: 0 | DP61: 0 | DQ61: 0 | DR61: 0 | DS61: 0 | DT61: 0 | DU61: 0 | DV61: 0 | DW61: 0 | DX61: 0 | DY61: 0 | DZ61: 0 | EA61: 0 | EB61: 0 | EC61: 0 | ED61: 0 | EE61: 0 | EF61: 0 | EG61: 0 | EH61: 0 | EI61: 0 | EJ61: 0 | EK61: 0 | EL61: 0 | EM61: 0 | EN61: 0 | EO61: 0 | EP61: 0 | EQ61: 0 | ER61: 0 | ES61: 0 | ET61: 0 | EU61: 0 | EV61: 0 | EW61: 0 | EX61: 0 | EY61: 0 | EZ61: 0 | FA61: 0 | FB61: 0 | FC61: 0 | FD61: 0 | FE61: 0 | FF61: 0 | FG61: 0 | FH61: 0 | FI61: 0 | FJ61: 0 | FK61: 0 | FL61: 0 | FM61: 0 | FN61: 0 | FO61: 0 | FP61: 0 | FQ61: 0 | FR61: 0 | FS61: 0 | FT61: 0 | FU61: 0 | FV61: 0 | FW61: 0 | FX61: 0 | FY61: 0 | FZ61: 0 | GA61: 0 | GB61: 0 | GC61: 0 | GD61: 0 | GE61: 0 | GF61: 0 | GG61: 0 | GH61: 0
A62: 6 | B62: UNDERGROUND CABLES | C62: ˂ = 1 kv | D62: 595.1408582 | E62: 73.08767504 | F62: 8.549132999 | G62: 2 | H62: 151.4062321 | I62: 153.7899013 | J62: 154.8661484 | K62: 174.661182 | L62: 172.0672637 | M62: 223.0903836 | N62: 188.2039137 | O62: 133.6293023 | P62: 152.8966393 | Q62: 132.912709 | R62: 123.3944153 | S62: 148.6981859 | T62: 171.0462999 | U62: 136.648565 | V62: 140.8360492 | W62: 100.9260819 | X62: 97.56666525 | Y62: 99.82057808 | Z62: 100.9930784 | AA62: 65.0031562 | AB62: 65.3247504 | AC62: 63.02659633 | AD62: 75.56920463 | AE62: 53.1294661 | AF62: 70.29280928 | AG62: 50.81798608 | AH62: 42.76465103 | AI62: 26.80025556 | AJ62: 52.9806673 | AK62: 75.49045327 | AL62: 33.9292986 | AM62: 39.35118598 | AN62: 49.45305329 | AO62: 44.79413988 | AP62: 59.57054081 | AQ62: 118.4007265 | AR62: 118.607794 | AS62: 99.09400135 | AT62: 138.6557508 | AU62: 99.3388814 | AV62: 108.6930632 | AW62: 70.57137258 | AX62: 53.33211119 | AY62: 94.51036703 | AZ62: 45.04954517 | BA62: 85.66058133 | BB62: 47.14153975 | BC62: 58.43188804 | BD62: 71.07315191 | BE62: 108.2752626 | BF62: 38.19496847 | BG62: 94.76089099 | BH62: 99.83254643 | BI62: 84.46616599 | BJ62: 123.6486607 | BK62: 75.26703832 | BL62: 104.8113885 | BM62: 102.1125898 | BN62: 85.67402502 | BO62: 56.63252827 | BP62: 73.12736493 | BQ62: 48.08316342 | BR62: 82.0286695 | BS62: 13.3801524 | BT62: 6.26376687 | BU62: 15.61023245 | BV62: 14.02297727 | BW62: 4.85619752 | BX62: 19.70354299 | BY62: 8.34113758 | BZ62: 0.86937053 | CA62: 2.79659664 | CB62: 4.98278304 | CC62: 11.29373323 | CD62: 0.57262575 | CE62: 0.62916341 | CF62: 0.80142933 | CG62: 4.03702872 | CH62: 0.82656326 | CI62: 0.82264245 | CJ62: 0.62108672 | CK62: 0.58814394 | CL62: 0.47605149 | CM62: 0.71156456 | CN62: 0.53567041 | CO62: 0.61345409 | CP62: 1.03818647 | CQ62: 0.79446345 | CR62: 0.74078224 | CS62: 20.72273964 | CT62: 13.37943125 | CV62: 90108.03489 | CW62: 91526.65386 | CX62: 92167.17246 | CY62: 103948.0057 | CZ62: 102404.259 | DA62: 132770.2024 | DB62: 112007.8387 | DC62: 79528.25767 | DD62: 90995.03713 | DE62: 79101.78367 | DF62: 73437.05824 | DG62: 88496.36597 | DH62: 101796.6417 | DI62: 81325.14423 | DJ62: 83817.28721 | DK62: 60065.23501 | DL62: 58065.90889 | DM62: 59407.3045 | DN62: 60105.10738 | DO62: 38686.03417 | DP62: 38877.42801 | DQ62: 37509.70263 | DR62: 44974.3213 | DS62: 31619.51605 | DT62: 41834.12284 | DU62: 30243.85985 | DV62: 25450.99111 | DW62: 15949.92709 | DX62: 31530.9598 | DY62: 44927.45314 | DZ62: 20192.71189 | EA62: 23419.49859 | EB62: 29431.53258 | EC62: 26658.82285 | ED62: 35452.86278 | EE62: 70465.10998 | EF62: 70588.34429 | EG62: 58974.88901 | EH62: 82519.7025 | EI62: 59120.62713 | EJ62: 64687.68289 | EK62: 41999.90724 | EL62: 31740.11842 | EM62: 56246.98094 | EN62: 26810.82497 | EO62: 50980.11189 | EP62: 28055.85642 | EQ62: 34775.20399 | ER62: 42298.53662 | ES62: 64439.03272 | ET62: 22731.38631 | EU62: 56396.07799 | EV62: 59414.42736 | EW62: 50269.26652 | EX62: 73588.37004 | EY62: 44794.48978 | EZ62: 62377.53972 | FA62: 60771.37431 | FB62: 50988.11278 | FC62: 33704.33148 | FD62: 43521.08272 | FE62: 28616.25514 | FF62: 48818.61276 | FG62: 7963.075382 | FH62: 3727.823591 | FI62: 9290.287137 | FJ62: 8345.646727 | FK62: 2890.12156 | FL62: 11726.38348 | FM62: 4964.151778 | FN62: 517.3979233 | FO62: 1664.368924 | FP62: 2965.457775 | FQ62: 6721.362087 | FR62: 340.7929803 | FS62: 374.4408518 | FT62: 476.9633392 | FU62: 2402.600737 | FV62: 491.9215679 | FW62: 489.5881337 | FX62: 369.6340836 | FY62: 350.0284892 | FZ62: 283.3176923 | GA62: 423.4811429 | GB62: 318.7993475 | GC62: 365.0915936 | GD62: 617.8671867 | GE62: 472.8176594 | GF62: 440.869778 | GG62: 12332.94905 | GH62: 7962.646196
A63: 6 | B63: UNDERGROUND CABLES | C63: > 1 kv & < = 11 kv | D63: 1403.085228 | E63: 97.57598221 | F63: 9.878055588 | G63: 2 | H63: 116.40491 | I63: 123.0537532 | J63: 120.6048299 | K63: 255.2994581 | L63: 268.707647 | M63: 284.4266748 | N63: 288.0479782 | O63: 236.073514 | P63: 215.1671213 | Q63: 160.8210141 | R63: 188.7267658 | S63: 144.0932972 | T63: 129.0965913 | U63: 104.6145797 | V63: 112.8129945 | W63: 91.90458396 | X63: 120.1830675 | Y63: 115.9178034 | Z63: 110.072355 | AA63: 84.80465388 | AB63: 51.23009931 | AC63: 61.13154189 | AD63: 89.39356956 | AE63: 55.42497835 | AF63: 70.94138256 | AG63: 84.31881247 | AH63: 63.54632322 | AI63: 50.78759216 | AJ63: 59.52108395 | AK63: 84.98597092 | AL63: 44.13521704 | AM63: 43.69957034 | AN63: 71.56546095 | AO63: 38.59146154 | AP63: 71.11846718 | AQ63: 92.00131586 | AR63: 106.3947572 | AS63: 131.5469344 | AT63: 154.946593 | AU63: 133.3287519 | AV63: 118.4312536 | AW63: 90.63598185 | AX63: 91.27011594 | AY63: 110.6009557 | AZ63: 70.55727912 | BA63: 94.17152328 | BB63: 62.29626648 | BC63: 115.3456466 | BD63: 72.80023964 | BE63: 137.8705004 | BF63: 87.39382876 | BG63: 125.7565325 | BH63: 122.8580426 | BI63: 176.8119642 | BJ63: 239.772384 | BK63: 132.8805255 | BL63: 162.0813589 | BM63: 159.9458153 | BN63: 178.6823674 | BO63: 150.4911813 | BP63: 162.0603866 | BQ63: 182.1501286 | BR63: 197.4593846 | BS63: 25.63732892 | BT63: 34.42176955 | BU63: 24.27046092 | BV63: 25.60714353 | BW63: 16.7438585 | BX63: 29.63204077 | BY63: 15.72086667 | BZ63: 1.56474693 | CA63: 4.1531091 | CB63: 13.64882839 | CC63: 29.67947832 | CD63: 2.17848121 | CE63: 1.73150659 | CF63: 1.56449791 | CG63: 27.34989414 | CH63: 3.95712025 | CI63: 6.53147696 | CJ63: 2.72970598 | CK63: 1.89527911 | CL63: 0.93686544 | CM63: 0.79969675 | CN63: 0.65944691 | CO63: 1.84134431 | CP63: 2.63066772 | CQ63: 17.21872007 | CR63: 10.47505589 | CS63: 62.65594955 | CT63: 51.44649301 | CV63: 163326.0097 | CW63: 172654.9034 | CX63: 169218.8553 | CY63: 358206.8983 | CZ63: 377019.7301 | DA63: 399074.8657 | DB63: 404155.8631 | DC63: 331231.2602 | DD63: 301897.8095 | DE63: 225645.5893 | DF63: 264799.7372 | DG63: 202175.1767 | DH63: 181133.5202 | DI63: 146783.1714 | DJ63: 158286.2461 | DK63: 128949.9641 | DL63: 168627.0867 | DM63: 162642.5576 | DN63: 154440.8952 | DO63: 118988.1571 | DP63: 71880.19556 | DQ63: 85772.76338 | DR63: 125426.7969 | DS63: 77765.96838 | DT63: 99536.80591 | DU63: 118306.4802 | DV63: 89160.90739 | DW63: 71259.32032 | DX63: 83513.15364 | DY63: 119242.5604 | DZ63: 61925.47106 | EA63: 61314.22161 | EB63: 100412.4411 | EC63: 54147.10961 | ED63: 99785.27073 | EE63: 129085.6872 | EF63: 149280.9122 | EG63: 184571.5604 | EH63: 217403.2758 | EI63: 187071.6023 | EJ63: 166169.1425 | EK63: 127170.0072 | EL63: 128059.7514 | EM63: 155182.5672 | EN63: 98997.87605 | EO63: 132130.6732 | EP63: 87406.97125 | EQ63: 161839.7728 | ER63: 102144.9408 | ES63: 193444.0625 | ET63: 122620.9901 | EU63: 176447.133 | EV63: 172380.3047 | EW63: 248082.255 | EX63: 336421.0901 | EY63: 186442.7024 | EZ63: 227413.9604 | FA63: 224417.6107 | FB63: 250706.5902 | FC63: 211151.9534 | FD63: 227384.5345 | FE63: 255572.1547 | FF63: 277052.3456 | FG63: 35971.35749 | FH63: 48296.67637 | FI63: 34053.52519 | FJ63: 35929.00481 | FK63: 23493.06052 | FL63: 41576.27868 | FM63: 22057.71579 | FN63: 2195.473303 | FO63: 5827.166028 | FP63: 19150.46949 | FQ63: 41642.8376 | FR63: 3056.594805 | FS63: 2429.451318 | FT63: 2195.123907 | FU63: 38374.23245 | FV63: 5552.176968 | FW63: 9164.218839 | FX63: 3830.010137 | FY63: 2659.238122 | FZ63: 1314.502059 | GA63: 1122.042697 | GB63: 925.260218 | GC63: 2583.563001 | GD63: 3691.051017 | GE63: 24159.33177 | GF63: 14697.39618 | GG63: 87911.63725 | GH63: 72183.81437
A64: 6 | B64: UNDERGROUND CABLES | C64: > 22 kv & < = 33 kv | D64: 591.3142025 | E64: 70.82185291 | F64: 8.415572049 | G64: 2 | H64: 14.80991268 | I64: 7.13694964 | J64: 2.63300939 | K64: 7.33029058 | L64: 15.39586534 | M64: 20.25363328 | N64: 20.35345179 | O64: 29.41825899 | P64: 19.38556978 | Q64: 8.1501783 | R64: 18.22650413 | S64: 5.5751901 | T64: 10.96895492 | U64: 0.9158206 | V64: 0.87734932 | W64: 5.4117563 | X64: 6.23866959 | Y64: 9.6165755 | Z64: 0.99649453 | AA64: 2.5452954 | AB64: 0.71298355 | AC64: 7.30085375 | AD64: 0.23420624 | AE64: 2.51785293 | AF64: 0.32680007 | AG64: 0.47061663 | AH64: 0.86890755 | AI64: 0.55359454 | AJ64: 0.68809409 | AK64: 0.21193073 | AL64: 1.27889188 | AM64: 0.49260141 | AN64: 0.09631179 | AO64: 0.51919876 | AP64: 0.25133707 | AQ64: 0.02937286 | AR64: 0.20957263 | AS64: 0.19768157 | AT64: 0.3094092 | AU64: 0.26947488 | AV64: 0.62446622 | AW64: 3.73376386 | AX64: 9.35692478 | AY64: 11.48780624 | AZ64: 6.66942022 | BA64: 12.99303298 | BB64: 10.03303611 | BC64: 2.95680496 | BD64: 0.65642388 | BE64: 13.449508 | BF64: 16.76660008 | BG64: 13.46607819 | BH64: 28.21173411 | BI64: 27.27093117 | BJ64: 26.46056428 | BK64: 0.03915269 | BL64: 0.09739504 | BM64: 0.3479945 | BN64: 0.05544924 | BO64: 0.49180418 | BP64: 2.5650783 | BQ64: 43.65548736 | BR64: 15.19840856 | BS64: 0.06299582 | BT64: 19.77209668 | BU64: 7.06140684 | BV64: 4.12482117 | BW64: 1.39495326 | BX64: 19.16790222 | BY64: 16.36033806 | BZ64: 42.27201317 | CA64: 0.64756537 | CB64: 0 | CC64: 0.91334727 | CD64: 2.59093383 | CE64: 0.02495098 | CF64: 3.19879938 | CG64: 1.05439286 | CH64: 0.24223785 | CI64: 0.2135182 | CJ64: 20.5461567 | CK64: 0 | CL64: 0 | CM64: 0 | CN64: 0 | CO64: 9.95686039 | CP64: 1.42344324 | CQ64: 8.98849162 | CR64: 0 | CS64: 0 | CT64: 0 | CV64: 8757.311706 | CW64: 4220.179685 | CX64: 1556.935848 | CY64: 4334.504929 | CZ64: 9103.793836 | DA64: 11976.26101 | DB64: 12035.28511 | DC64: 17395.43435 | DD64: 11462.96273 | DE64: 4819.316182 | DF64: 10777.59075 | DG64: 3296.689088 | DH64: 6486.098831 | DI64: 541.5377277 | DJ64: 518.7891135 | DK64: 3200.048361 | DL64: 3689.013933 | DM64: 5686.417673 | DN64: 589.2413683 | DO64: 1505.06932 | DP64: 421.5972993 | DQ64: 4317.098513 | DR64: 138.489476 | DS64: 1488.842197 | DT64: 193.2415228 | DU64: 278.2822973 | DV64: 513.797375 | DW64: 327.3483139 | DX64: 406.8798081 | DY64: 125.3176506 | DZ64: 756.2269321 | EA64: 291.2822099 | EB64: 56.9505293 | EC64: 307.0096007 | ED64: 148.6191791 | EE64: 17.36858929 | EF64: 123.9232726 | EG64: 116.8919199 | EH64: 182.9580543 | EI64: 159.3443238 | EJ64: 369.2557449 | EK64: 2207.827599 | EL64: 5532.882514 | EM64: 6792.902985 | EN64: 3943.722899 | EO64: 7682.964935 | EP64: 5932.676746 | EQ64: 1748.400767 | ER64: 388.1527631 | ES64: 7952.885097 | ET64: 9914.328755 | EU64: 7962.683286 | EV64: 16681.99906 | EW64: 16125.68892 | EX64: 15646.50747 | EY64: 23.15154166 | EZ64: 57.59107041 | FA64: 205.7740902 | FB64: 32.78792313 | FC64: 290.8107965 | FD64: 1516.767229 | FE64: 25814.10969 | FF64: 8987.034837 | FG64: 37.25032307 | FH64: 11691.52158 | FI64: 4175.510154 | FJ64: 2439.065341 | FK64: 824.8556745 | FL64: 11334.25282 | FM64: 9674.100253 | FN64: 24996.04176 | FO64: 382.9146003 | FP64: 0 | FQ64: 540.0752126 | FR64: 1532.055971 | FS64: 14.75386884 | FT64: 1891.495504 | FU64: 623.4774732 | FV64: 143.2386811 | FW64: 126.2563442 | FX64: 12149.23426 | FY64: 0 | FZ64: 0 | GA64: 0 | GB64: 0 | GC64: 5887.632961 | GD64: 841.7022043 | GE64: 5315.022754 | GF64: 0 | GG64: 0 | GH64: 0
A65: 6 | B65: UNDERGROUND CABLES | C65: > 33 kv & < = 66 kv | D65: 1403.085228 | E65: 97.57598221 | F65: 9.878055588 | G65: 2 | H65: 0 | I65: 0 | J65: 0.55372816 | K65: 6.85331974 | L65: 0.48303094 | M65: 0.58353504 | N65: 0.83049494 | O65: 0.12731304 | P65: 0.08125771 | Q65: 0 | R65: 0 | S65: 0 | T65: 0 | U65: 0 | V65: 0 | W65: 0 | X65: 0 | Y65: 0 | Z65: 0 | AA65: 0 | AB65: 0 | AC65: 0 | AD65: 0 | AE65: 0 | AF65: 0 | AG65: 0 | AH65: 0 | AI65: 0 | AJ65: 0 | AK65: 0 | AL65: 0 | AM65: 0 | AN65: 0 | AO65: 0 | AP65: 0 | AQ65: 0 | AR65: 0 | AS65: 0 | AT65: 0 | AU65: 0 | AV65: 0 | AW65: 0 | AX65: 0 | AY65: 0 | AZ65: 0 | BA65: 0 | BB65: 0 | BC65: 0 | BD65: 0 | BE65: 0 | BF65: 0 | BG65: 0 | BH65: 0 | BI65: 0 | BJ65: 0 | BK65: 0 | BL65: 0 | BM65: 0 | BN65: 0 | BO65: 0 | BP65: 0 | BQ65: 0.10599129 | BR65: 0 | BS65: 0 | BT65: 0 | BU65: 0 | BV65: 0 | BW65: 0 | BX65: 0 | BY65: 0 | BZ65: 0 | CA65: 0 | CB65: 0 | CC65: 0 | CD65: 0 | CE65: 0 | CF65: 0 | CG65: 0 | CH65: 0 | CI65: 0 | CJ65: 0 | CK65: 0 | CL65: 0 | CM65: 0 | CN65: 0 | CO65: 0 | CP65: 0 | CQ65: 0 | CR65: 0 | CS65: 0 | CT65: 0 | CV65: 0 | CW65: 0 | CX65: 776.9278015 | CY65: 9615.791689 | CZ65: 677.7335765 | DA65: 818.7493946 | DB65: 1165.255182 | DC65: 178.6310457 | DD65: 114.0114925 | DE65: 0 | DF65: 0 | DG65: 0 | DH65: 0 | DI65: 0 | DJ65: 0 | DK65: 0 | DL65: 0 | DM65: 0 | DN65: 0 | DO65: 0 | DP65: 0 | DQ65: 0 | DR65: 0 | DS65: 0 | DT65: 0 | DU65: 0 | DV65: 0 | DW65: 0 | DX65: 0 | DY65: 0 | DZ65: 0 | EA65: 0 | EB65: 0 | EC65: 0 | ED65: 0 | EE65: 0 | EF65: 0 | EG65: 0 | EH65: 0 | EI65: 0 | EJ65: 0 | EK65: 0 | EL65: 0 | EM65: 0 | EN65: 0 | EO65: 0 | EP65: 0 | EQ65: 0 | ER65: 0 | ES65: 0 | ET65: 0 | EU65: 0 | EV65: 0 | EW65: 0 | EX65: 0 | EY65: 0 | EZ65: 0 | FA65: 0 | FB65: 0 | FC65: 0 | FD65: 0 | FE65: 148.7148133 | FF65: 0 | FG65: 0 | FH65: 0 | FI65: 0 | FJ65: 0 | FK65: 0 | FL65: 0 | FM65: 0 | FN65: 0 | FO65: 0 | FP65: 0 | FQ65: 0 | FR65: 0 | FS65: 0 | FT65: 0 | FU65: 0 | FV65: 0 | FW65: 0 | FX65: 0 | FY65: 0 | FZ65: 0 | GA65: 0 | GB65: 0 | GC65: 0 | GD65: 0 | GE65: 0 | GF65: 0 | GG65: 0 | GH65: 0

Sheet Historical scenario - output
D1: Replacement expenditure forecast ($,000) | X1: Replacement quantity forecast (#)
D2: 1 | E2: 2 | F2: 3 | G2: 4 | H2: 5 | I2: 6 | J2: 7 | K2: 8 | L2: 9 | M2: 10 | N2: 11 | O2: 12 | P2: 13 | Q2: 14 | R2: 15 | S2: 16 | T2: 17 | U2: 18 | V2: 19 | W2: 20 | X2: 1 | Y2: 2 | Z2: 3 | AA2: 4 | AB2: 5 | AC2: 6 | AD2: 7 | AE2: 8 | AF2: 9 | AG2: 10 | AH2: 11 | AI2: 12 | AJ2: 13 | AK2: 14 | AL2: 15 | AM2: 16 | AN2: 17 | AO2: 18 | AP2: 19 | AQ2: 20
A5: ID | B5: Asset group | D5: 2018 | E5: 2019 | F5: 2020 | G5: 2021 | H5: 2022 | I5: 2023 | J5: 2024 | K5: 2025 | L5: 2026 | M5: 2027 | N5: 2028 | O5: 2029 | P5: 2030 | Q5: 2031 | R5: 2032 | S5: 2033 | T5: 2034 | U5: 2035 | V5: 2036 | W5: 2037 | X5: 2018 | Y5: 2019 | Z5: 2020 | AA5: 2021 | AB5: 2022 | AC5: 2023 | AD5: 2024 | AE5: 2025 | AF5: 2026 | AG5: 2027 | AH5: 2028 | AI5: 2029 | AJ5: 2030 | AK5: 2031 | AL5: 2032 | AM5: 2033 | AN5: 2034 | AO5: 2035 | AP5: 2036 | AQ5: 2037
A6: 1 | B6: OVERHEAD CONDUCTORS | D6: =IFERROR(IF($A6="","",SUMIFS(D$21:D$175,$A$21:$A$175,$A6)),"") -> 16407.56102 | E6: =IFERROR(IF($A6="","",SUMIFS(E$21:E$175,$A$21:$A$175,$A6)),"") -> 17867.63791 | F6: 19437.71117 | G6: 21107.69525 | H6: 22864.72183 | I6: 24693.40891 | J6: 26576.20686 | K6: 28493.79732 | L6: 30425.52216 | M6: 32349.82231 | N6: 34244.66963 | O6: 36087.97933 | P6: 37857.9943 | Q6: 39533.63719 | R6: 41094.82993 | S6: 42522.78371 | T6: 43800.26499 | U6: =IFERROR(IF($A6="","",SUMIFS(U$21:U$175,$A$21:$A$175,$A6)),"") -> 44911.84467 | V6: 45844.13755 | W6: 46586.03778 | X6: =IFERROR(IF($A6="","",SUMIFS(X$21:X$175,$A$21:$A$175,$A6)),"") -> 244.6867081 | Y6: =IFERROR(IF($A6="","",SUMIFS(Y$21:Y$175,$A$21:$A$175,$A6)),"") -> 262.8490485 | Z6: 281.5515928 | AA6: 300.5945562 | AB6: 319.7805524 | AC6: 338.9215199 | AD6: 357.8441745 | AE6: 376.3934775 | AF6: 394.4338579 | AG6: 411.8481973 | AH6: 428.5348491 | AI6: 444.4031853 | AJ6: 459.3683295 | AK6: 473.3458137 | AL6: 486.2469037 | AM6: 497.9752538 | AN6: 508.4254071 | AO6: =IFERROR(IF($A6="","",SUMIFS(AO$21:AO$175,$A$21:$A$175,$A6)),"") -> 517.4834563 | AP6: 525.0299507 | AQ6: 530.9448995
A7: 2 | B7: POLES | D7: =IFERROR(IF($A7="","",SUMIFS(D$21:D$175,$A$21:$A$175,$A7)),"") -> 29486.55647 | E7: 33495.75121 | F7: 37876.34904 | G7: 42605.8381 | H7: 47635.23886 | I7: 52882.57121 | J7: 58231.6094 | K7: 63537.51781 | L7: 68639.39039 | M7: 73377.89605 | N7: 77614.68921 | O7: 81249.50918 | P7: 84231.2734 | Q7: 86560.88745 | R7: 88285.50123 | S7: 89485.90439 | T7: 90260.12241 | U7: 90706.74904 | V7: 90911.13816 | W7: 90936.51748 | X7: 3520.576903 | Y7: 4004.212198 | Z7: 4531.196658 | AA7: 5098.445594 | AB7: 5700.086048 | AC7: 6326.873713 | AD7: 6966.114874 | AE7: 7602.243533 | AF7: 8218.054959 | AG7: 8796.424367 | AH7: 9322.193367 | AI7: 9783.837623 | AJ7: 10174.56587 | AK7: 10492.63539 | AL7: 10740.85918 | AM7: 10925.46585 | AN7: 11054.60086 | AO7: 11136.8009 | AP7: 11179.73109 | AQ7: 11189.37311
A8: 3 | B8: SERVICE LINES | D8: 6433.051182 | E8: 6236.617136 | F8: 6107.145104 | G8: 6003.127211 | H8: 5899.288423 | I8: 5781.732127 | J8: 5644.440544 | K8: 5486.752913 | L8: 5311.534634 | M8: 5123.831913 | N8: 4929.872636 | O8: 4736.323623 | P8: 4549.748228 | Q8: 4376.229116 | R8: 4221.132253 | S8: 4088.99275 | T8: 3983.504004 | U8: 3907.590579 | V8: 3863.544133 | W8: 3853.201121 | X8: 19025.89234 | Y8: 18337.12657 | Z8: 17842.79156 | AA8: 17416.88197 | AB8: 16982.94732 | AC8: 16499.30536 | AD8: 15948.35668 | AE8: 15328.85266 | AF8: 14650.24387 | AG8: 13928.48488 | AH8: 13182.8741 | AI8: 12433.65859 | AJ8: 11700.23816 | AK8: 10999.8672 | AL8: 10346.78778 | AM8: 9751.741821 | AN8: 9221.81264 | AO8: 8760.54318 | AP8: 8368.273966 | AQ8: 8042.641709
A9: 4 | B9: SWITCHGEAR | D9: 34628.19959 | E9: 32419.56405 | F9: 30915.00888 | G9: 29909.45147 | H9: 29282.52305 | I9: 28956.25994 | J9: 28874.05204 | K9: 28989.89121 | L9: 29263.36043 | M9: 29658.30179 | N9: 30143.73119 | O9: 30695.59552 | P9: 31298.07055 | Q9: 31943.51122 | R9: 32630.81762 | S9: 33362.63124 | T9: 34142.18189 | U9: 34970.63988 | V9: 35845.5368 | W9: 36760.37548 | X9: 950.1213823 | Y9: 884.8353154 | Z9: 847.4993068 | AA9: 832.0357754 | AB9: 833.8314159 | AC9: 849.3157304 | AD9: 875.6757043 | AE9: 910.6521733 | AF9: 952.3936428 | AG9: 999.3545139 | AH9: 1050.227036 | AI9: 1103.89614 | AJ9: 1159.406897 | AK9: 1215.936786 | AL9: 1272.768764 | AM9: 1329.26504 | AN9: 1384.844088 | AO9: 1438.964147 | AP9: 1491.115424 | AQ9: 1540.82125
A10: 5 | B10: TRANSFORMERS | D10: 19084.28318 | E10: 19417.75692 | F10: 19717.80926 | G10: 19991.39158 | H10: 20246.42019 | I10: 20490.51068 | J10: 20729.96316 | K10: 20969.05584 | L10: 21209.66877 | M10: 21451.22804 | N10: 21690.93479 | O10: 21924.22552 | P10: 22145.39902 | Q10: 22348.34244 | R10: 22527.29079 | S10: 22677.56073 | T10: 22796.20833 | U10: 22882.56987 | V10: 22938.65389 | W10: 22969.36107 | X10: 224.9157094 | Y10: 232.7207066 | Z10: 241.5724959 | AA10: 251.3599978 | AB10: 261.9697992 | AC10: 273.2771103 | AD10: 285.1414858 | AE10: 297.407241 | AF10: 309.9079684 | AG10: 322.4741737 | AH10: 334.9428133 | AI10: 347.1674415 | AJ10: 359.0277383 | AK10: 370.4373724 | AL10: 381.3494076 | AM10: 391.7587619 | AN10: 401.7015315 | AO10: 411.2512659 | AP10: 420.5125137 | AQ10: 429.6121329
A11: 6 | B11: UNDERGROUND CABLES | D11: 37018.85094 | E11: 37394.36958 | F11: 38168.61568 | G11: 39303.00764 | H11: 40754.89623 | I11: 42480.18342 | J11: 44435.58133 | K11: 46580.50625 | L11: 48878.63482 | M11: 51299.16436 | N11: 53817.81881 | O11: 56417.62868 | P11: 59089.49227 | Q11: 61832.50191 | R11: 64653.99774 | S11: 67569.2975 | T11: 70601.04767 | U11: 73778.15 | V11: 77134.23943 | W11: 80705.7219 | X11: 54.04645717 | Y11: 53.91834678 | Z11: 54.46573275 | AA11: 55.62997994 | AB11: 57.34344931 | AC11: 59.53318562 | AD11: 62.12404185 | AE11: 65.04127097 | AF11: 68.21266805 | AG11: 71.5703674 | AH11: 75.05239326 | AI11: 78.60403448 | AJ11: 82.17907103 | AK11: 85.7408334 | AL11: 89.26303296 | AM11: 92.73027052 | AN11: 96.13811746 | AO11: 99.49267107 | AP11: 102.8095145 | AQ11: 106.1120573
C18: Total | D18: =IFERROR(SUM(D$6:D$17),"") -> 143058.5024 | E18: =IFERROR(SUM(E$6:E$17),"") -> 146831.6968 | F18: 152222.6391 | G18: 158920.5113 | H18: 166683.0886 | I18: 175284.6663 | J18: 184491.8533 | K18: 194057.5214 | L18: 203728.1112 | M18: 213260.2444 | N18: 222441.7163 | O18: 231111.2619 | P18: 239171.9778 | Q18: 246595.1093 | R18: 253413.5696 | S18: 259707.1703 | T18: 265583.3293 | U18: 271157.544 | V18: 276537.25 | W18: 281811.2148
A20: ID | B20: Asset group | C20: Asset category
A21: =IFERROR('Historical scenario - input'!A6,"") -> 1 | B21: =IFERROR('Historical scenario - input'!B6,"") -> OVERHEAD CONDUCTORS | C21: =IFERROR('Historical scenario - input'!C6,"") -> ˂ = 1 kv | D21: =IFERROR(repcalc('Historical scenario - input'!$CV6:$GH6,'Historical scenario - input'!$G6,'Historical scenario - input'!$E6,'Historical scenario - input'!$F6,20,TRUE,TRUE),"") -> 3951.252494 | E21: 4073.238698 | F21: 4272.68492 | G21: 4561.621661 | H21: 4950.913389 | I21: 5449.907958 | J21: 6066.067353 | K21: 6804.580622 | L21: 7667.967353 | M21: 8655.688537 | N21: 9763.789897 | O21: 10984.60949 | P21: 12306.58536 | Q21: 13714.19929 | R21: 15188.08883 | S21: 16705.35128 | T21: 18240.05144 | U21: 19763.92934 | V21: 21247.28802 | W21: 22660.02416 | X21: =IFERROR(IF(OR(D21="",'Historical scenario - input'!$D6=""),"",D21/'Historical scenario - input'!$D6),"") -> 46.15041787 | Y21: =IFERROR(IF(OR(E21="",'Historical scenario - input'!$D6=""),"",E21/'Historical scenario - input'!$D6),"") -> 47.57521021 | Z21: =IFERROR(IF(OR(F21="",'Historical scenario - input'!$D6=""),"",F21/'Historical scenario - input'!$D6),"") -> 49.90473142 | AA21: =IFERROR(IF(OR(G21="",'Historical scenario - input'!$D6=""),"",G21/'Historical scenario - input'!$D6),"") -> 53.27949711 | AB21: =IFERROR(IF(OR(H21="",'Historical scenario - input'!$D6=""),"",H21/'Historical scenario - input'!$D6),"") -> 57.82640368 | AC21: =IFERROR(IF(OR(I21="",'Historical scenario - input'!$D6=""),"",I21/'Historical scenario - input'!$D6),"") -> 63.65463356 | AD21: =IFERROR(IF(OR(J21="",'Historical scenario - input'!$D6=""),"",J21/'Historical scenario - input'!$D6),"") -> 70.85134235 | AE21: =IFERROR(IF(OR(K21="",'Historical scenario - input'!$D6=""),"",K21/'Historical scenario - input'!$D6),"") -> 79.47713784 | AF21: =IFERROR(IF(OR(L21="",'Historical scenario - input'!$D6=""),"",L21/'Historical scenario - input'!$D6),"") -> 89.5614487 | AG21: =IFERROR(IF(OR(M21="",'Historical scenario - input'!$D6=""),"",M21/'Historical scenario - input'!$D6),"") -> 101.0979793 | AH21: =IFERROR(IF(OR(N21="",'Historical scenario - input'!$D6=""),"",N21/'Historical scenario - input'!$D6),"") -> 114.040544 | AI21: =IFERROR(IF(OR(O21="",'Historical scenario - input'!$D6=""),"",O21/'Historical scenario - input'!$D6),"") -> 128.2996515 | AJ21: =IFERROR(IF(OR(P21="",'Historical scenario - input'!$D6=""),"",P21/'Historical scenario - input'!$D6),"") -> 143.740259 | AK21: =IFERROR(IF(OR(Q21="",'Historical scenario - input'!$D6=""),"",Q21/'Historical scenario - input'!$D6),"") -> 160.1811145 | AL21: =IFERROR(IF(OR(R21="",'Historical scenario - input'!$D6=""),"",R21/'Historical scenario - input'!$D6),"") -> 177.3960654 | AM21: =IFERROR(IF(OR(S21="",'Historical scenario - input'!$D6=""),"",S21/'Historical scenario - input'!$D6),"") -> 195.1176098 | AN21: =IFERROR(IF(OR(T21="",'Historical scenario - input'!$D6=""),"",T21/'Historical scenario - input'!$D6),"") -> 213.0428255 | AO21: =IFERROR(IF(OR(U21="",'Historical scenario - input'!$D6=""),"",U21/'Historical scenario - input'!$D6),"") -> 230.8416379 | AP21: =IFERROR(IF(OR(V21="",'Historical scenario - input'!$D6=""),"",V21/'Historical scenario - input'!$D6),"") -> 248.167188 | AQ21: =IFERROR(IF(OR(W21="",'Historical scenario - input'!$D6=""),"",W21/'Historical scenario - input'!$D6),"") -> 264.6678707
A22: =IFERROR('Historical scenario - input'!A7,"") -> 1 | B22: =IFERROR('Historical scenario - input'!B7,"") -> OVERHEAD CONDUCTORS | C22: =IFERROR('Historical scenario - input'!C7,"") -> ˃ 11 kv & < = 22 kv ; multiple-phase | D22: =IFERROR(repcalc('Historical scenario - input'!$CV7:$GH7,'Historical scenario - input'!$G7,'Historical scenario - input'!$E7,'Historical scenario - input'!$F7,20,TRUE,TRUE),"") -> 35.60128081 | E22: 41.71224784 | F22: 48.21015717 | G22: 54.96780939 | H22: 61.82820527 | I22: 68.6091472 | J22: 75.11021604 | K22: 81.12187596 | L22: 86.43623 | M22: 90.85873801 | N22: 94.22004449 | O22: 96.38697108 | P22: 97.27172745 | Q22: 96.83849262 | R22: 95.10671646 | S22: 92.15076892 | T22: 88.09589657 | U22: 83.11079227 | V22: 77.39740384 | W22: 71.17886029 | X22: =IFERROR(IF(OR(D22="",'Historical scenario - input'!$D7=""),"",D22/'Historical scenario - input'!$D7),"") -> 0.7526985101 | Y22: =IFERROR(IF(OR(E22="",'Historical scenario - input'!$D7=""),"",E22/'Historical scenario - input'!$D7),"") -> 0.8818993613 | Z22: =IFERROR(IF(OR(F22="",'Historical scenario - input'!$D7=""),"",F22/'Historical scenario - input'!$D7),"") -> 1.019281123 | AA22: =IFERROR(IF(OR(G22="",'Historical scenario - input'!$D7=""),"",G22/'Historical scenario - input'!$D7),"") -> 1.162154487 | AB22: =IFERROR(IF(OR(H22="",'Historical scenario - input'!$D7=""),"",H22/'Historical scenario - input'!$D7),"") -> 1.307200104 | AC22: =IFERROR(IF(OR(I22="",'Historical scenario - input'!$D7=""),"",I22/'Historical scenario - input'!$D7),"") -> 1.45056587 | AD22: =IFERROR(IF(OR(J22="",'Historical scenario - input'!$D7=""),"",J22/'Historical scenario - input'!$D7),"") -> 1.588014432 | AE22: =IFERROR(IF(OR(K22="",'Historical scenario - input'!$D7=""),"",K22/'Historical scenario - input'!$D7),"") -> 1.715115686 | AF22: =IFERROR(IF(OR(L22="",'Historical scenario - input'!$D7=""),"",L22/'Historical scenario - input'!$D7),"") -> 1.827474182 | AG22: =IFERROR(IF(OR(M22="",'Historical scenario - input'!$D7=""),"",M22/'Historical scenario - input'!$D7),"") -> 1.920976863 | AH22: =IFERROR(IF(OR(N22="",'Historical scenario - input'!$D7=""),"",N22/'Historical scenario - input'!$D7),"") -> 1.992043137 | AI22: =IFERROR(IF(OR(O22="",'Historical scenario - input'!$D7=""),"",O22/'Historical scenario - input'!$D7),"") -> 2.037857287 | AJ22: =IFERROR(IF(OR(P22="",'Historical scenario - input'!$D7=""),"",P22/'Historical scenario - input'!$D7),"") -> 2.05656321 | AK22: =IFERROR(IF(OR(Q22="",'Historical scenario - input'!$D7=""),"",Q22/'Historical scenario - input'!$D7),"") -> 2.047403561 | AL22: =IFERROR(IF(OR(R22="",'Historical scenario - input'!$D7=""),"",R22/'Historical scenario - input'!$D7),"") -> 2.01078956 | AM22: =IFERROR(IF(OR(S22="",'Historical scenario - input'!$D7=""),"",S22/'Historical scenario - input'!$D7),"") -> 1.94829357 | AN22: =IFERROR(IF(OR(T22="",'Historical scenario - input'!$D7=""),"",T22/'Historical scenario - input'!$D7),"") -> 1.86256361 | AO22: =IFERROR(IF(OR(U22="",'Historical scenario - input'!$D7=""),"",U22/'Historical scenario - input'!$D7),"") -> 1.757166262 | AP22: =IFERROR(IF(OR(V22="",'Historical scenario - input'!$D7=""),"",V22/'Historical scenario - input'!$D7),"") -> 1.636371199 | AQ22: =IFERROR(IF(OR(W22="",'Historical scenario - input'!$D7=""),"",W22/'Historical scenario - input'!$D7),"") -> 1.504895916
A23: =IFERROR('Historical scenario - input'!A8,"") -> 1 | B23: =IFERROR('Historical scenario - input'!B8,"") -> OVERHEAD CONDUCTORS | C23: =IFERROR('Historical scenario - input'!C8,"") -> ˃ 11 kv & < = 22 kv ; single-phase | D23: =IFERROR(repcalc('Historical scenario - input'!$CV8:$GH8,'Historical scenario - input'!$G8,'Historical scenario - input'!$E8,'Historical scenario - input'!$F8,20,TRUE,TRUE),"") -> 10.13673067 | E23: 12.8957661 | F23: 16.15127044 | G23: 19.91531057 | H23: 24.17689996 | I23: 28.89759461 | J23: 34.00849207 | K23: 39.40923295 | L23: 44.96948659 | M23: 50.53319795 | N23: 55.92559735 | O23: 60.96265722 | P23: 65.46236308 | Q23: 69.25689411 | R23: 72.20462894 | S23: 74.20083602 | T23: 75.1859938 | U23: 75.15090756 | V23: 74.13812086 | W23: 72.23951435 | X23: =IFERROR(IF(OR(D23="",'Historical scenario - input'!$D8=""),"",D23/'Historical scenario - input'!$D8),"") -> 0.2143153812 | Y23: =IFERROR(IF(OR(E23="",'Historical scenario - input'!$D8=""),"",E23/'Historical scenario - input'!$D8),"") -> 0.2726481664 | Z23: =IFERROR(IF(OR(F23="",'Historical scenario - input'!$D8=""),"",F23/'Historical scenario - input'!$D8),"") -> 0.3414775234 | AA23: =IFERROR(IF(OR(G23="",'Historical scenario - input'!$D8=""),"",G23/'Historical scenario - input'!$D8),"") -> 0.4210585758 | AB23: =IFERROR(IF(OR(H23="",'Historical scenario - input'!$D8=""),"",H23/'Historical scenario - input'!$D8),"") -> 0.5111590416 | AC23: =IFERROR(IF(OR(I23="",'Historical scenario - input'!$D8=""),"",I23/'Historical scenario - input'!$D8),"") -> 0.6109661202 | AD23: =IFERROR(IF(OR(J23="",'Historical scenario - input'!$D8=""),"",J23/'Historical scenario - input'!$D8),"") -> 0.7190230443 | AE23: =IFERROR(IF(OR(K23="",'Historical scenario - input'!$D8=""),"",K23/'Historical scenario - input'!$D8),"") -> 0.8332079703 | AF23: =IFERROR(IF(OR(L23="",'Historical scenario - input'!$D8=""),"",L23/'Historical scenario - input'!$D8),"") -> 0.9507653878 | AG23: =IFERROR(IF(OR(M23="",'Historical scenario - input'!$D8=""),"",M23/'Historical scenario - input'!$D8),"") -> 1.06839591 | AH23: =IFERROR(IF(OR(N23="",'Historical scenario - input'!$D8=""),"",N23/'Historical scenario - input'!$D8),"") -> 1.182404477 | AI23: =IFERROR(IF(OR(O23="",'Historical scenario - input'!$D8=""),"",O23/'Historical scenario - input'!$D8),"") -> 1.288900293 | AJ23: =IFERROR(IF(OR(P23="",'Historical scenario - input'!$D8=""),"",P23/'Historical scenario - input'!$D8),"") -> 1.384035126 | AK23: =IFERROR(IF(OR(Q23="",'Historical scenario - input'!$D8=""),"",Q23/'Historical scenario - input'!$D8),"") -> 1.464260831 | AL23: =IFERROR(IF(OR(R23="",'Historical scenario - input'!$D8=""),"",R23/'Historical scenario - input'!$D8),"") -> 1.526583184 | AM23: =IFERROR(IF(OR(S23="",'Historical scenario - input'!$D8=""),"",S23/'Historical scenario - input'!$D8),"") -> 1.568787905 | AN23: =IFERROR(IF(OR(T23="",'Historical scenario - input'!$D8=""),"",T23/'Historical scenario - input'!$D8),"") -> 1.58961656 | AO23: =IFERROR(IF(OR(U23="",'Historical scenario - input'!$D8=""),"",U23/'Historical scenario - input'!$D8),"") -> 1.58887475 | AP23: =IFERROR(IF(OR(V23="",'Historical scenario - input'!$D8=""),"",V23/'Historical scenario - input'!$D8),"") -> 1.567461952 | AQ23: =IFERROR(IF(OR(W23="",'Historical scenario - input'!$D8=""),"",W23/'Historical scenario - input'!$D8),"") -> 1.527320748
A24: =IFERROR('Historical scenario - input'!A9,"") -> 1 | B24: =IFERROR('Historical scenario - input'!B9,"") -> OVERHEAD CONDUCTORS | C24: =IFERROR('Historical scenario - input'!C9,"") -> ˃ 11 kv & < = 22 kv ; swer | D24: =IFERROR(repcalc('Historical scenario - input'!$CV9:$GH9,'Historical scenario - input'!$G9,'Historical scenario - input'!$E9,'Historical scenario - input'!$F9,20,TRUE,TRUE),"") -> 223.9011274 | E24: 228.5222746 | F24: 229.962761 | G24: 228.2381924 | H24: 223.5142052 | I24: 216.0950624 | J24: 206.4027512 | K24: 194.9487654 | L24: 182.3013198 | M24: 169.0509466 | N24: 155.7772573 | O24: 143.0191927 | P24: 131.2504137 | Q24: 120.8607446 | R24: 112.1438777 | S24: 105.2909871 | T24: 100.3895401 | U24: 97.42644992 | V24: 96.29475928 | W24: 96.80321272 | X24: =IFERROR(IF(OR(D24="",'Historical scenario - input'!$D9=""),"",D24/'Historical scenario - input'!$D9),"") -> 4.733819716 | Y24: =IFERROR(IF(OR(E24="",'Historical scenario - input'!$D9=""),"",E24/'Historical scenario - input'!$D9),"") -> 4.831522116 | Z24: =IFERROR(IF(OR(F24="",'Historical scenario - input'!$D9=""),"",F24/'Historical scenario - input'!$D9),"") -> 4.861977538 | AA24: =IFERROR(IF(OR(G24="",'Historical scenario - input'!$D9=""),"",G24/'Historical scenario - input'!$D9),"") -> 4.825515922 | AB24: =IFERROR(IF(OR(H24="",'Historical scenario - input'!$D9=""),"",H24/'Historical scenario - input'!$D9),"") -> 4.725639231 | AC24: =IFERROR(IF(OR(I24="",'Historical scenario - input'!$D9=""),"",I24/'Historical scenario - input'!$D9),"") -> 4.568780331 | AD24: =IFERROR(IF(OR(J24="",'Historical scenario - input'!$D9=""),"",J24/'Historical scenario - input'!$D9),"") -> 4.363861069 | AE24: =IFERROR(IF(OR(K24="",'Historical scenario - input'!$D9=""),"",K24/'Historical scenario - input'!$D9),"") -> 4.121695678 | AF24: =IFERROR(IF(OR(L24="",'Historical scenario - input'!$D9=""),"",L24/'Historical scenario - input'!$D9),"") -> 3.854297618 | AG24: =IFERROR(IF(OR(M24="",'Historical scenario - input'!$D9=""),"",M24/'Historical scenario - input'!$D9),"") -> 3.574152186 | AH24: =IFERROR(IF(OR(N24="",'Historical scenario - input'!$D9=""),"",N24/'Historical scenario - input'!$D9),"") -> 3.293513795 | AI24: =IFERROR(IF(OR(O24="",'Historical scenario - input'!$D9=""),"",O24/'Historical scenario - input'!$D9),"") -> 3.023776977 | AJ24: =IFERROR(IF(OR(P24="",'Historical scenario - input'!$D9=""),"",P24/'Historical scenario - input'!$D9),"") -> 2.774956085 | AK24: =IFERROR(IF(OR(Q24="",'Historical scenario - input'!$D9=""),"",Q24/'Historical scenario - input'!$D9),"") -> 2.555292964 | AL24: =IFERROR(IF(OR(R24="",'Historical scenario - input'!$D9=""),"",R24/'Historical scenario - input'!$D9),"") -> 2.37099699 | AM24: =IFERROR(IF(OR(S24="",'Historical scenario - input'!$D9=""),"",S24/'Historical scenario - input'!$D9),"") -> 2.226110053 | AN24: =IFERROR(IF(OR(T24="",'Historical scenario - input'!$D9=""),"",T24/'Historical scenario - input'!$D9),"") -> 2.122481426 | AO24: =IFERROR(IF(OR(U24="",'Historical scenario - input'!$D9=""),"",U24/'Historical scenario - input'!$D9),"") -> 2.059834423 | AP24: =IFERROR(IF(OR(V24="",'Historical scenario - input'!$D9=""),"",V24/'Historical scenario - input'!$D9),"") -> 2.035907703 | AQ24: =IFERROR(IF(OR(W24="",'Historical scenario - input'!$D9=""),"",W24/'Historical scenario - input'!$D9),"") -> 2.046657658
A25: =IFERROR('Historical scenario - input'!A10,"") -> 1 | B25: =IFERROR('Historical scenario - input'!B10,"") -> OVERHEAD CONDUCTORS | C25: =IFERROR('Historical scenario - input'!C10,"") -> > 1 kv & < = 11 kv | D25: =IFERROR(repcalc('Historical scenario - input'!$CV10:$GH10,'Historical scenario - input'!$G10,'Historical scenario - input'!$E10,'Historical scenario - input'!$F10,20,TRUE,TRUE),"") -> 8291.421498 | E25: 8921.771702 | F25: 9523.712558 | G25: 10082.87657 | H25: 10586.19897 | I25: 11022.42353 | J25: 11382.51288 | K25: 11659.93607 | L25: 11850.81757 | M25: 11953.94389 | N25: 11970.63584 | O25: 11904.50487 | P25: 11761.11961 | Q25: 11547.61367 | R25: 11272.26695 | S25: 10944.09105 | T25: 10572.44513 | U25: 10166.70201 | V25: 9735.977299 | W25: 9288.92661 | X25: =IFERROR(IF(OR(D25="",'Historical scenario - input'!$D10=""),"",D25/'Historical scenario - input'!$D10),"") -> 175.3010135 | Y25: =IFERROR(IF(OR(E25="",'Historical scenario - input'!$D10=""),"",E25/'Historical scenario - input'!$D10),"") -> 188.6281649 | Z25: =IFERROR(IF(OR(F25="",'Historical scenario - input'!$D10=""),"",F25/'Historical scenario - input'!$D10),"") -> 201.3546729 | AA25: =IFERROR(IF(OR(G25="",'Historical scenario - input'!$D10=""),"",G25/'Historical scenario - input'!$D10),"") -> 213.1767735 | AB25: =IFERROR(IF(OR(H25="",'Historical scenario - input'!$D10=""),"",H25/'Historical scenario - input'!$D10),"") -> 223.818245 | AC25: =IFERROR(IF(OR(I25="",'Historical scenario - input'!$D10=""),"",I25/'Historical scenario - input'!$D10),"") -> 233.0411036 | AD25: =IFERROR(IF(OR(J25="",'Historical scenario - input'!$D10=""),"",J25/'Historical scenario - input'!$D10),"") -> 240.6542768 | AE25: =IFERROR(IF(OR(K25="",'Historical scenario - input'!$D10=""),"",K25/'Historical scenario - input'!$D10),"") -> 246.5196843 | AF25: =IFERROR(IF(OR(L25="",'Historical scenario - input'!$D10=""),"",L25/'Historical scenario - input'!$D10),"") -> 250.5553881 | AG25: =IFERROR(IF(OR(M25="",'Historical scenario - input'!$D10=""),"",M25/'Historical scenario - input'!$D10),"") -> 252.7357318 | AH25: =IFERROR(IF(OR(N25="",'Historical scenario - input'!$D10=""),"",N25/'Historical scenario - input'!$D10),"") -> 253.0886407 | AI25: =IFERROR(IF(OR(O25="",'Historical scenario - input'!$D10=""),"",O25/'Historical scenario - input'!$D10),"") -> 251.6904694 | AJ25: =IFERROR(IF(OR(P25="",'Historical scenario - input'!$D10=""),"",P25/'Historical scenario - input'!$D10),"") -> 248.6589528 | AK25: =IFERROR(IF(OR(Q25="",'Historical scenario - input'!$D10=""),"",Q25/'Historical scenario - input'!$D10),"") -> 244.144913 | AL25: =IFERROR(IF(OR(R25="",'Historical scenario - input'!$D10=""),"",R25/'Historical scenario - input'!$D10),"") -> 238.3234071 | AM25: =IFERROR(IF(OR(S25="",'Historical scenario - input'!$D10=""),"",S25/'Historical scenario - input'!$D10),"") -> 231.3849627 | AN25: =IFERROR(IF(OR(T25="",'Historical scenario - input'!$D10=""),"",T25/'Historical scenario - input'!$D10),"") -> 223.5274551 | AO25: =IFERROR(IF(OR(U25="",'Historical scenario - input'!$D10=""),"",U25/'Historical scenario - input'!$D10),"") -> 214.9490491 | AP25: =IFERROR(IF(OR(V25="",'Historical scenario - input'!$D10=""),"",V25/'Historical scenario - input'!$D10),"") -> 205.8424709 | AQ25: =IFERROR(IF(OR(W25="",'Historical scenario - input'!$D10=""),"",W25/'Historical scenario - input'!$D10),"") -> 196.3907214
A26: =IFERROR('Historical scenario - input'!A11,"") -> 1 | B26: =IFERROR('Historical scenario - input'!B11,"") -> OVERHEAD CONDUCTORS | C26: =IFERROR('Historical scenario - input'!C11,"") -> > 22 kv & < = 66 kv | D26: =IFERROR(repcalc('Historical scenario - input'!$CV11:$GH11,'Historical scenario - input'!$G11,'Historical scenario - input'!$E11,'Historical scenario - input'!$F11,20,TRUE,TRUE),"") -> 2141.247679 | E26: 2519.597018 | F26: 2934.908995 | G26: 3384.076743 | H26: 3862.345836 | I26: 4363.282501 | J26: 4878.842342 | K26: 5399.551033 | L26: 5914.799903 | M26: 6413.248946 | N26: 6883.318622 | O26: 7313.741109 | P26: 7694.132763 | Q26: 8015.543939 | R26: 8270.940861 | S26: 8455.577711 | T26: 8567.225358 | U26: 8606.235596 | V26: 8575.435023 | W26: 8479.859114 | X26: =IFERROR(IF(OR(D26="",'Historical scenario - input'!$D11=""),"",D26/'Historical scenario - input'!$D11),"") -> 9.638818024 | Y26: =IFERROR(IF(OR(E26="",'Historical scenario - input'!$D11=""),"",E26/'Historical scenario - input'!$D11),"") -> 11.34195609 | Z26: =IFERROR(IF(OR(F26="",'Historical scenario - input'!$D11=""),"",F26/'Historical scenario - input'!$D11),"") -> 13.21148133 | AA26: =IFERROR(IF(OR(G26="",'Historical scenario - input'!$D11=""),"",G26/'Historical scenario - input'!$D11),"") -> 15.23340818 | AB26: =IFERROR(IF(OR(H26="",'Historical scenario - input'!$D11=""),"",H26/'Historical scenario - input'!$D11),"") -> 17.38633462 | AC26: =IFERROR(IF(OR(I26="",'Historical scenario - input'!$D11=""),"",I26/'Historical scenario - input'!$D11),"") -> 19.64129906 | AD26: =IFERROR(IF(OR(J26="",'Historical scenario - input'!$D11=""),"",J26/'Historical scenario - input'!$D11),"") -> 21.96208966 | AE26: =IFERROR(IF(OR(K26="",'Historical scenario - input'!$D11=""),"",K26/'Historical scenario - input'!$D11),"") -> 24.30605779 | AF26: =IFERROR(IF(OR(L26="",'Historical scenario - input'!$D11=""),"",L26/'Historical scenario - input'!$D11),"") -> 26.62544856 | AG26: =IFERROR(IF(OR(M26="",'Historical scenario - input'!$D11=""),"",M26/'Historical scenario - input'!$D11),"") -> 28.86921496 | AH26: =IFERROR(IF(OR(N26="",'Historical scenario - input'!$D11=""),"",N26/'Historical scenario - input'!$D11),"") -> 30.98523177 | AI26: =IFERROR(IF(OR(O26="",'Historical scenario - input'!$D11=""),"",O26/'Historical scenario - input'!$D11),"") -> 32.9227769 | AJ26: =IFERROR(IF(OR(P26="",'Historical scenario - input'!$D11=""),"",P26/'Historical scenario - input'!$D11),"") -> 34.63510844 | AK26: =IFERROR(IF(OR(Q26="",'Historical scenario - input'!$D11=""),"",Q26/'Historical scenario - input'!$D11),"") -> 36.08193959 | AL26: =IFERROR(IF(OR(R26="",'Historical scenario - input'!$D11=""),"",R26/'Historical scenario - input'!$D11),"") -> 37.23160783 | AM26: =IFERROR(IF(OR(S26="",'Historical scenario - input'!$D11=""),"",S26/'Historical scenario - input'!$D11),"") -> 38.06274989 | AN26: =IFERROR(IF(OR(T26="",'Historical scenario - input'!$D11=""),"",T26/'Historical scenario - input'!$D11),"") -> 38.56533133 | AO26: =IFERROR(IF(OR(U26="",'Historical scenario - input'!$D11=""),"",U26/'Historical scenario - input'!$D11),"") -> 38.74093577 | AP26: =IFERROR(IF(OR(V26="",'Historical scenario - input'!$D11=""),"",V26/'Historical scenario - input'!$D11),"") -> 38.60228711 | AQ26: =IFERROR(IF(OR(W26="",'Historical scenario - input'!$D11=""),"",W26/'Historical scenario - input'!$D11),"") -> 38.17205253
A27: =IFERROR('Historical scenario - input'!A12,"") -> 1 | B27: =IFERROR('Historical scenario - input'!B12,"") -> OVERHEAD CONDUCTORS | C27: =IFERROR('Historical scenario - input'!C12,"") -> > 66 kv & < = 132 kv | D27: =IFERROR(repcalc('Historical scenario - input'!$CV12:$GH12,'Historical scenario - input'!$G12,'Historical scenario - input'!$E12,'Historical scenario - input'!$F12,20,TRUE,TRUE),"") -> 1754.000211 | E27: 2069.900203 | F27: 2412.080506 | G27: 2775.998961 | H27: 3155.744326 | I27: 3544.193118 | J27: 3933.262829 | K27: 4314.249723 | L27: 4678.230299 | M27: 5016.498047 | N27: 5321.002364 | O27: 5584.755045 | P27: 5802.17207 | Q27: 5969.324153 | R27: 6084.078064 | S27: 6146.121069 | T27: 6156.871636 | U27: 6119.289573 | V27: 6037.606924 | W27: 5917.006303 | X27: =IFERROR(IF(OR(D27="",'Historical scenario - input'!$D12=""),"",D27/'Historical scenario - input'!$D12),"") -> 7.895625067 | Y27: =IFERROR(IF(OR(E27="",'Historical scenario - input'!$D12=""),"",E27/'Historical scenario - input'!$D12),"") -> 9.317647642 | Z27: =IFERROR(IF(OR(F27="",'Historical scenario - input'!$D12=""),"",F27/'Historical scenario - input'!$D12),"") -> 10.85797093 | AA27: =IFERROR(IF(OR(G27="",'Historical scenario - input'!$D12=""),"",G27/'Historical scenario - input'!$D12),"") -> 12.49614843 | AB27: =IFERROR(IF(OR(H27="",'Historical scenario - input'!$D12=""),"",H27/'Historical scenario - input'!$D12),"") -> 14.2055707 | AC27: =IFERROR(IF(OR(I27="",'Historical scenario - input'!$D12=""),"",I27/'Historical scenario - input'!$D12),"") -> 15.95417141 | AD27: =IFERROR(IF(OR(J27="",'Historical scenario - input'!$D12=""),"",J27/'Historical scenario - input'!$D12),"") -> 17.70556719 | AE27: =IFERROR(IF(OR(K27="",'Historical scenario - input'!$D12=""),"",K27/'Historical scenario - input'!$D12),"") -> 19.4205782 | AF27: =IFERROR(IF(OR(L27="",'Historical scenario - input'!$D12=""),"",L27/'Historical scenario - input'!$D12),"") -> 21.05903533 | AG27: =IFERROR(IF(OR(M27="",'Historical scenario - input'!$D12=""),"",M27/'Historical scenario - input'!$D12),"") -> 22.58174627 | AH27: =IFERROR(IF(OR(N27="",'Historical scenario - input'!$D12=""),"",N27/'Historical scenario - input'!$D12),"") -> 23.95247126 | AI27: =IFERROR(IF(OR(O27="",'Historical scenario - input'!$D12=""),"",O27/'Historical scenario - input'!$D12),"") -> 25.13975292 | AJ27: =IFERROR(IF(OR(P27="",'Historical scenario - input'!$D12=""),"",P27/'Historical scenario - input'!$D12),"") -> 26.11845481 | AK27: =IFERROR(IF(OR(Q27="",'Historical scenario - input'!$D12=""),"",Q27/'Historical scenario - input'!$D12),"") -> 26.87088925 | AL27: =IFERROR(IF(OR(R27="",'Historical scenario - input'!$D12=""),"",R27/'Historical scenario - input'!$D12),"") -> 27.38745353 | AM27: =IFERROR(IF(OR(S27="",'Historical scenario - input'!$D12=""),"",S27/'Historical scenario - input'!$D12),"") -> 27.66673988 | AN27: =IFERROR(IF(OR(T27="",'Historical scenario - input'!$D12=""),"",T27/'Historical scenario - input'!$D12),"") -> 27.71513351 | AO27: =IFERROR(IF(OR(U27="",'Historical scenario - input'!$D12=""),"",U27/'Historical scenario - input'!$D12),"") -> 27.545958 | AP27: =IFERROR(IF(OR(V27="",'Historical scenario - input'!$D12=""),"",V27/'Historical scenario - input'!$D12),"") -> 27.17826388 | AQ27: =IFERROR(IF(OR(W27="",'Historical scenario - input'!$D12=""),"",W27/'Historical scenario - input'!$D12),"") -> 26.63538065
A28: =IFERROR('Historical scenario - input'!A13,"") -> 2 | B28: =IFERROR('Historical scenario - input'!B13,"") -> POLES | C28: =IFERROR('Historical scenario - input'!C13,"") -> ˂ = 1 kv ; concrete | D28: =IFERROR(repcalc('Historical scenario - input'!$CV13:$GH13,'Historical scenario - input'!$G13,'Historical scenario - input'!$E13,'Historical scenario - input'!$F13,20,TRUE,TRUE),"") -> 34.70356045 | E28: 35.87242778 | F28: 36.66102173 | G28: 37.07806062 | H28: 37.15219047 | I28: 36.93048196 | J28: 36.47621748 | K28: 35.86634645 | L28: 35.18894052 | M28: 34.54086448 | N28: 34.02571887 | O28: 33.75193988 | P28: 33.8307978 | Q28: 34.37394975 | R28: 35.49019636 | S28: 37.28117439 | T28: 39.83587929 | U28: 43.22413368 | V28: 47.48936654 | W28: 52.6413085 | X28: =IFERROR(IF(OR(D28="",'Historical scenario - input'!$D13=""),"",D28/'Historical scenario - input'!$D13),"") -> 3.266177856 | Y28: =IFERROR(IF(OR(E28="",'Historical scenario - input'!$D13=""),"",E28/'Historical scenario - input'!$D13),"") -> 3.376187564 | Z28: =IFERROR(IF(OR(F28="",'Historical scenario - input'!$D13=""),"",F28/'Historical scenario - input'!$D13),"") -> 3.450407272 | AA28: =IFERROR(IF(OR(G28="",'Historical scenario - input'!$D13=""),"",G28/'Historical scenario - input'!$D13),"") -> 3.489657515 | AB28: =IFERROR(IF(OR(H28="",'Historical scenario - input'!$D13=""),"",H28/'Historical scenario - input'!$D13),"") -> 3.496634358 | AC28: =IFERROR(IF(OR(I28="",'Historical scenario - input'!$D13=""),"",I28/'Historical scenario - input'!$D13),"") -> 3.475767927 | AD28: =IFERROR(IF(OR(J28="",'Historical scenario - input'!$D13=""),"",J28/'Historical scenario - input'!$D13),"") -> 3.433014141 | AE28: =IFERROR(IF(OR(K28="",'Historical scenario - input'!$D13=""),"",K28/'Historical scenario - input'!$D13),"") -> 3.375615211 | AF28: =IFERROR(IF(OR(L28="",'Historical scenario - input'!$D13=""),"",L28/'Historical scenario - input'!$D13),"") -> 3.311860132 | AG28: =IFERROR(IF(OR(M28="",'Historical scenario - input'!$D13=""),"",M28/'Historical scenario - input'!$D13),"") -> 3.250865479 | AH28: =IFERROR(IF(OR(N28="",'Historical scenario - input'!$D13=""),"",N28/'Historical scenario - input'!$D13),"") -> 3.202381775 | AI28: =IFERROR(IF(OR(O28="",'Historical scenario - input'!$D13=""),"",O28/'Historical scenario - input'!$D13),"") -> 3.176614653 | AJ28: =IFERROR(IF(OR(P28="",'Historical scenario - input'!$D13=""),"",P28/'Historical scenario - input'!$D13),"") -> 3.184036485 | AK28: =IFERROR(IF(OR(Q28="",'Historical scenario - input'!$D13=""),"",Q28/'Historical scenario - input'!$D13),"") -> 3.235156048 | AL28: =IFERROR(IF(OR(R28="",'Historical scenario - input'!$D13=""),"",R28/'Historical scenario - input'!$D13),"") -> 3.340213279 | AM28: =IFERROR(IF(OR(S28="",'Historical scenario - input'!$D13=""),"",S28/'Historical scenario - input'!$D13),"") -> 3.508773873 | AN28: =IFERROR(IF(OR(T28="",'Historical scenario - input'!$D13=""),"",T28/'Historical scenario - input'!$D13),"") -> 3.749213773 | AO28: =IFERROR(IF(OR(U28="",'Historical scenario - input'!$D13=""),"",U28/'Historical scenario - input'!$D13),"") -> 4.068104437 | AP28: =IFERROR(IF(OR(V28="",'Historical scenario - input'!$D13=""),"",V28/'Historical scenario - input'!$D13),"") -> 4.469533252 | AQ28: =IFERROR(IF(OR(W28="",'Historical scenario - input'!$D13=""),"",W28/'Historical scenario - input'!$D13),"") -> 4.954416028
A29: =IFERROR('Historical scenario - input'!A14,"") -> 2 | B29: =IFERROR('Historical scenario - input'!B14,"") -> POLES | C29: =IFERROR('Historical scenario - input'!C14,"") -> ˂ = 1 kv ; steel | D29: =IFERROR(repcalc('Historical scenario - input'!$CV14:$GH14,'Historical scenario - input'!$G14,'Historical scenario - input'!$E14,'Historical scenario - input'!$F14,20,TRUE,TRUE),"") -> 483.2409261 | E29: 521.4778553 | F29: 560.3531558 | G29: 599.9897473 | H29: 640.7085712 | I29: 683.0322073 | J29: 727.6619129 | K29: 775.4250747 | L29: 827.1932292 | M29: 883.7746479 | N29: 945.7896253 | O29: 1013.540486 | P29: 1086.891321 | Q29: 1165.173916 | R29: 1247.135751 | S29: 1330.943016 | T29: 1414.246438 | U29: 1494.310674 | V29: 1568.200147 | W29: 1633.006292 | X29: =IFERROR(IF(OR(D29="",'Historical scenario - input'!$D14=""),"",D29/'Historical scenario - input'!$D14),"") -> 45.50444276 | Y29: =IFERROR(IF(OR(E29="",'Historical scenario - input'!$D14=""),"",E29/'Historical scenario - input'!$D14),"") -> 49.10502802 | Z29: =IFERROR(IF(OR(F29="",'Historical scenario - input'!$D14=""),"",F29/'Historical scenario - input'!$D14),"") -> 52.76572559 | AA29: =IFERROR(IF(OR(G29="",'Historical scenario - input'!$D14=""),"",G29/'Historical scenario - input'!$D14),"") -> 56.49811023 | AB29: =IFERROR(IF(OR(H29="",'Historical scenario - input'!$D14=""),"",H29/'Historical scenario - input'!$D14),"") -> 60.33240342 | AC29: =IFERROR(IF(OR(I29="",'Historical scenario - input'!$D14=""),"",I29/'Historical scenario - input'!$D14),"") -> 64.31781395 | AD29: =IFERROR(IF(OR(J29="",'Historical scenario - input'!$D14=""),"",J29/'Historical scenario - input'!$D14),"") -> 68.5203758 | AE29: =IFERROR(IF(OR(K29="",'Historical scenario - input'!$D14=""),"",K29/'Historical scenario - input'!$D14),"") -> 73.01799996 | AF29: =IFERROR(IF(OR(L29="",'Historical scenario - input'!$D14=""),"",L29/'Historical scenario - input'!$D14),"") -> 77.89275476 | AG29: =IFERROR(IF(OR(M29="",'Historical scenario - input'!$D14=""),"",M29/'Historical scenario - input'!$D14),"") -> 83.22075119 | AH29: =IFERROR(IF(OR(N29="",'Historical scenario - input'!$D14=""),"",N29/'Historical scenario - input'!$D14),"") -> 89.06039936 | AI29: =IFERROR(IF(OR(O29="",'Historical scenario - input'!$D14=""),"",O29/'Historical scenario - input'!$D14),"") -> 95.44016772 | AJ29: =IFERROR(IF(OR(P29="",'Historical scenario - input'!$D14=""),"",P29/'Historical scenario - input'!$D14),"") -> 102.3472584 | AK29: =IFERROR(IF(OR(Q29="",'Historical scenario - input'!$D14=""),"",Q29/'Historical scenario - input'!$D14),"") -> 109.7187488 | AL29: =IFERROR(IF(OR(R29="",'Historical scenario - input'!$D14=""),"",R29/'Historical scenario - input'!$D14),"") -> 117.4366953 | AM29: =IFERROR(IF(OR(S29="",'Historical scenario - input'!$D14=""),"",S29/'Historical scenario - input'!$D14),"") -> 125.328417 | AN29: =IFERROR(IF(OR(T29="",'Historical scenario - input'!$D14=""),"",T29/'Historical scenario - input'!$D14),"") -> 133.1726942 | AO29: =IFERROR(IF(OR(U29="",'Historical scenario - input'!$D14=""),"",U29/'Historical scenario - input'!$D14),"") -> 140.7119531 | AP29: =IFERROR(IF(OR(V29="",'Historical scenario - input'!$D14=""),"",V29/'Historical scenario - input'!$D14),"") -> 147.6697646 | AQ29: =IFERROR(IF(OR(W29="",'Historical scenario - input'!$D14=""),"",W29/'Historical scenario - input'!$D14),"") -> 153.7722434
A30: =IFERROR('Historical scenario - input'!A15,"") -> 2 | B30: =IFERROR('Historical scenario - input'!B15,"") -> POLES | C30: =IFERROR('Historical scenario - input'!C15,"") -> ˂ = 1 kv ; wood | D30: =IFERROR(repcalc('Historical scenario - input'!$CV15:$GH15,'Historical scenario - input'!$G15,'Historical scenario - input'!$E15,'Historical scenario - input'!$F15,20,TRUE,TRUE),"") -> 10924.49688 | E30: 12416.90116 | F30: 14105.49177 | G30: 15986.73184 | H30: 18050.73653 | I30: 20280.66923 | J30: 22652.39791 | K30: 25134.49291 | L30: 27688.63162 | M30: 30270.44886 | N30: 32830.838 | O30: 35317.66808 | P30: 37677.84144 | Q30: 39859.57903 | R30: 41814.78997 | S30: 43501.3637 | T30: 44885.21796 | U30: 45941.94762 | V30: 46657.94512 | W30: 47030.90326 | X30: =IFERROR(IF(OR(D30="",'Historical scenario - input'!$D15=""),"",D30/'Historical scenario - input'!$D15),"") -> 1569.455815 | Y30: =IFERROR(IF(OR(E30="",'Historical scenario - input'!$D15=""),"",E30/'Historical scenario - input'!$D15),"") -> 1783.860434 | Z30: =IFERROR(IF(OR(F30="",'Historical scenario - input'!$D15=""),"",F30/'Historical scenario - input'!$D15),"") -> 2026.449944 | AA30: =IFERROR(IF(OR(G30="",'Historical scenario - input'!$D15=""),"",G30/'Historical scenario - input'!$D15),"") -> 2296.716228 | AB30: =IFERROR(IF(OR(H30="",'Historical scenario - input'!$D15=""),"",H30/'Historical scenario - input'!$D15),"") -> 2593.23919 | AC30: =IFERROR(IF(OR(I30="",'Historical scenario - input'!$D15=""),"",I30/'Historical scenario - input'!$D15),"") -> 2913.600016 | AD30: =IFERROR(IF(OR(J30="",'Historical scenario - input'!$D15=""),"",J30/'Historical scenario - input'!$D15),"") -> 3254.331805 | AE30: =IFERROR(IF(OR(K30="",'Historical scenario - input'!$D15=""),"",K30/'Historical scenario - input'!$D15),"") -> 3610.919251 | AF30: =IFERROR(IF(OR(L30="",'Historical scenario - input'!$D15=""),"",L30/'Historical scenario - input'!$D15),"") -> 3977.856776 | AG30: =IFERROR(IF(OR(M30="",'Historical scenario - input'!$D15=""),"",M30/'Historical scenario - input'!$D15),"") -> 4348.770707 | AH30: =IFERROR(IF(OR(N30="",'Historical scenario - input'!$D15=""),"",N30/'Historical scenario - input'!$D15),"") -> 4716.606194 | AI30: =IFERROR(IF(OR(O30="",'Historical scenario - input'!$D15=""),"",O30/'Historical scenario - input'!$D15),"") -> 5073.873899 | AJ30: =IFERROR(IF(OR(P30="",'Historical scenario - input'!$D15=""),"",P30/'Historical scenario - input'!$D15),"") -> 5412.945607 | AK30: =IFERROR(IF(OR(Q30="",'Historical scenario - input'!$D15=""),"",Q30/'Historical scenario - input'!$D15),"") -> 5726.382535 | AL30: =IFERROR(IF(OR(R30="",'Historical scenario - input'!$D15=""),"",R30/'Historical scenario - input'!$D15),"") -> 6007.275762 | AM30: =IFERROR(IF(OR(S30="",'Historical scenario - input'!$D15=""),"",S30/'Historical scenario - input'!$D15),"") -> 6249.575519 | AN30: =IFERROR(IF(OR(T30="",'Historical scenario - input'!$D15=""),"",T30/'Historical scenario - input'!$D15),"") -> 6448.385419 | AO30: =IFERROR(IF(OR(U30="",'Historical scenario - input'!$D15=""),"",U30/'Historical scenario - input'!$D15),"") -> 6600.199322 | AP30: =IFERROR(IF(OR(V30="",'Historical scenario - input'!$D15=""),"",V30/'Historical scenario - input'!$D15),"") -> 6703.062314 | AQ30: =IFERROR(IF(OR(W30="",'Historical scenario - input'!$D15=""),"",W30/'Historical scenario - input'!$D15),"") -> 6756.642936
A31: =IFERROR('Historical scenario - input'!A16,"") -> 2 | B31: =IFERROR('Historical scenario - input'!B16,"") -> POLES | C31: =IFERROR('Historical scenario - input'!C16,"") -> ˃ 11 kv & < = 22 kv ; concrete | D31: =IFERROR(repcalc('Historical scenario - input'!$CV16:$GH16,'Historical scenario - input'!$G16,'Historical scenario - input'!$E16,'Historical scenario - input'!$F16,20,TRUE,TRUE),"") -> 6.375983953e-05 | E31: 0.0001180110944 | F31: 0.0002141779743 | G31: 0.0003811564245 | H31: 0.0006651327274 | I31: 0.00113812577 | J31: 0.001909630682 | K31: 0.003141855084 | L31: 0.005068753711 | M31: 0.008018541895 | N31: 0.01243855877 | O31: 0.01892025461 | P31: 0.02822076038 | Q31: 0.0412761247 | R31: 0.05920014605 | S31: 0.08326216048 | T31: 0.1148375982 | U31: 0.1553270066 | V31: 0.2060428265 | W31: 0.2680685167 | X31: =IFERROR(IF(OR(D31="",'Historical scenario - input'!$D16=""),"",D31/'Historical scenario - input'!$D16),"") -> 2.624548992e-06 | Y31: =IFERROR(IF(OR(E31="",'Historical scenario - input'!$D16=""),"",E31/'Historical scenario - input'!$D16),"") -> 4.857695708e-06 | Z31: =IFERROR(IF(OR(F31="",'Historical scenario - input'!$D16=""),"",F31/'Historical scenario - input'!$D16),"") -> 8.816217086e-06 | AA31: =IFERROR(IF(OR(G31="",'Historical scenario - input'!$D16=""),"",G31/'Historical scenario - input'!$D16),"") -> 1.568955815e-05 | AB31: =IFERROR(IF(OR(H31="",'Historical scenario - input'!$D16=""),"",H31/'Historical scenario - input'!$D16),"") -> 2.737888681e-05 | AC31: =IFERROR(IF(OR(I31="",'Historical scenario - input'!$D16=""),"",I31/'Historical scenario - input'!$D16),"") -> 4.684871958e-05 | AD31: =IFERROR(IF(OR(J31="",'Historical scenario - input'!$D16=""),"",J31/'Historical scenario - input'!$D16),"") -> 7.860620917e-05 | AE31: =IFERROR(IF(OR(K31="",'Historical scenario - input'!$D16=""),"",K31/'Historical scenario - input'!$D16),"") -> 0.0001293283147 | AF31: =IFERROR(IF(OR(L31="",'Historical scenario - input'!$D16=""),"",L31/'Historical scenario - input'!$D16),"") -> 0.0002086453251 | AG31: =IFERROR(IF(OR(M31="",'Historical scenario - input'!$D16=""),"",M31/'Historical scenario - input'!$D16),"") -> 0.0003300675818 | AH31: =IFERROR(IF(OR(N31="",'Historical scenario - input'!$D16=""),"",N31/'Historical scenario - input'!$D16),"") -> 0.0005120089249 | AI31: =IFERROR(IF(OR(O31="",'Historical scenario - input'!$D16=""),"",O31/'Historical scenario - input'!$D16),"") -> 0.0007788152469 | AJ31: =IFERROR(IF(OR(P31="",'Historical scenario - input'!$D16=""),"",P31/'Historical scenario - input'!$D16),"") -> 0.001161652363 | AK31: =IFERROR(IF(OR(Q31="",'Historical scenario - input'!$D16=""),"",Q31/'Historical scenario - input'!$D16),"") -> 0.001699050881 | AL31: =IFERROR(IF(OR(R31="",'Historical scenario - input'!$D16=""),"",R31/'Historical scenario - input'!$D16),"") -> 0.002436858135 | AM31: =IFERROR(IF(OR(S31="",'Historical scenario - input'!$D16=""),"",S31/'Historical scenario - input'!$D16),"") -> 0.003427323861 | AN31: =IFERROR(IF(OR(T31="",'Historical scenario - input'!$D16=""),"",T31/'Historical scenario - input'!$D16),"") -> 0.00472706495 | AO31: =IFERROR(IF(OR(U31="",'Historical scenario - input'!$D16=""),"",U31/'Historical scenario - input'!$D16),"") -> 0.006393732192 | AP31: =IFERROR(IF(OR(V31="",'Historical scenario - input'!$D16=""),"",V31/'Historical scenario - input'!$D16),"") -> 0.008481349651 | AQ31: =IFERROR(IF(OR(W31="",'Historical scenario - input'!$D16=""),"",W31/'Historical scenario - input'!$D16),"") -> 0.01103451578
A32: =IFERROR('Historical scenario - input'!A17,"") -> 2 | B32: =IFERROR('Historical scenario - input'!B17,"") -> POLES | C32: =IFERROR('Historical scenario - input'!C17,"") -> ˃ 11 kv & < = 22 kv ; steel | D32: =IFERROR(repcalc('Historical scenario - input'!$CV17:$GH17,'Historical scenario - input'!$G17,'Historical scenario - input'!$E17,'Historical scenario - input'!$F17,20,TRUE,TRUE),"") -> 0.989006984 | E32: 1.411795899 | F32: 1.938582817 | G32: 2.56083764 | H32: 3.254778567 | I32: 3.980842145 | J32: 4.686385899 | K32: 5.311778963 | L32: 5.799089884 | M32: 6.10168954 | N32: 6.192582013 | O32: 6.069393138 | P32: 5.75471333 | Q32: 5.29169395 | R32: 4.736048541 | S32: 4.146499984 | T32: 3.575964456 | U32: 3.065331077 | V32: 2.64077763 | W32: 2.31449854 | X32: =IFERROR(IF(OR(D32="",'Historical scenario - input'!$D17=""),"",D32/'Historical scenario - input'!$D17),"") -> 0.09078020661 | Y32: =IFERROR(IF(OR(E32="",'Historical scenario - input'!$D17=""),"",E32/'Historical scenario - input'!$D17),"") -> 0.1295876829 | Z32: =IFERROR(IF(OR(F32="",'Historical scenario - input'!$D17=""),"",F32/'Historical scenario - input'!$D17),"") -> 0.1779410575 | AA32: =IFERROR(IF(OR(G32="",'Historical scenario - input'!$D17=""),"",G32/'Historical scenario - input'!$D17),"") -> 0.2350573594 | AB32: =IFERROR(IF(OR(H32="",'Historical scenario - input'!$D17=""),"",H32/'Historical scenario - input'!$D17),"") -> 0.2987536747 | AC32: =IFERROR(IF(OR(I32="",'Historical scenario - input'!$D17=""),"",I32/'Historical scenario - input'!$D17),"") -> 0.365398504 | AD32: =IFERROR(IF(OR(J32="",'Historical scenario - input'!$D17=""),"",J32/'Historical scenario - input'!$D17),"") -> 0.4301598341 | AE32: =IFERROR(IF(OR(K32="",'Historical scenario - input'!$D17=""),"",K32/'Historical scenario - input'!$D17),"") -> 0.4875641927 | AF32: =IFERROR(IF(OR(L32="",'Historical scenario - input'!$D17=""),"",L32/'Historical scenario - input'!$D17),"") -> 0.5322940953 | AG32: =IFERROR(IF(OR(M32="",'Historical scenario - input'!$D17=""),"",M32/'Historical scenario - input'!$D17),"") -> 0.56006949 | AH32: =IFERROR(IF(OR(N32="",'Historical scenario - input'!$D17=""),"",N32/'Historical scenario - input'!$D17),"") -> 0.5684124417 | AI32: =IFERROR(IF(OR(O32="",'Historical scenario - input'!$D17=""),"",O32/'Historical scenario - input'!$D17),"") -> 0.5571050275 | AJ32: =IFERROR(IF(OR(P32="",'Historical scenario - input'!$D17=""),"",P32/'Historical scenario - input'!$D17),"") -> 0.5282208048 | AK32: =IFERROR(IF(OR(Q32="",'Historical scenario - input'!$D17=""),"",Q32/'Historical scenario - input'!$D17),"") -> 0.4857206045 | AL32: =IFERROR(IF(OR(R32="",'Historical scenario - input'!$D17=""),"",R32/'Historical scenario - input'!$D17),"") -> 0.4347183306 | AM32: =IFERROR(IF(OR(S32="",'Historical scenario - input'!$D17=""),"",S32/'Historical scenario - input'!$D17),"") -> 0.3806041123 | AN32: =IFERROR(IF(OR(T32="",'Historical scenario - input'!$D17=""),"",T32/'Historical scenario - input'!$D17),"") -> 0.3282350857 | AO32: =IFERROR(IF(OR(U32="",'Historical scenario - input'!$D17=""),"",U32/'Historical scenario - input'!$D17),"") -> 0.2813644322 | AP32: =IFERROR(IF(OR(V32="",'Historical scenario - input'!$D17=""),"",V32/'Historical scenario - input'!$D17),"") -> 0.2423949909 | AQ32: =IFERROR(IF(OR(W32="",'Historical scenario - input'!$D17=""),"",W32/'Historical scenario - input'!$D17),"") -> 0.2124460788
A33: =IFERROR('Historical scenario - input'!A18,"") -> 2 | B33: =IFERROR('Historical scenario - input'!B18,"") -> POLES | C33: =IFERROR('Historical scenario - input'!C18,"") -> ˃ 11 kv & < = 22 kv ; wood | D33: =IFERROR(repcalc('Historical scenario - input'!$CV18:$GH18,'Historical scenario - input'!$G18,'Historical scenario - input'!$E18,'Historical scenario - input'!$F18,20,TRUE,TRUE),"") -> 14.18988669 | E33: 17.62318209 | F33: 21.57155921 | G33: 26.02447466 | H33: 30.94572877 | I33: 36.27082552 | J33: 41.90613108 | K33: 47.7302507 | L33: 53.59787031 | M33: 59.34607405 | N33: 64.80287574 | O33: 69.79742373 | P33: 74.17109298 | Q33: 77.78850486 | R33: 80.54744413 | S33: 82.38669409 | T33: 83.2909851 | U33: 83.2925323 | V33: 82.46899113 | W33: 80.93803766 | X33: =IFERROR(IF(OR(D33="",'Historical scenario - input'!$D18=""),"",D33/'Historical scenario - input'!$D18),"") -> 4.425124124 | Y33: =IFERROR(IF(OR(E33="",'Historical scenario - input'!$D18=""),"",E33/'Historical scenario - input'!$D18),"") -> 5.495799219 | Z33: =IFERROR(IF(OR(F33="",'Historical scenario - input'!$D18=""),"",F33/'Historical scenario - input'!$D18),"") -> 6.727102838 | AA33: =IFERROR(IF(OR(G33="",'Historical scenario - input'!$D18=""),"",G33/'Historical scenario - input'!$D18),"") -> 8.115747019 | AB33: =IFERROR(IF(OR(H33="",'Historical scenario - input'!$D18=""),"",H33/'Historical scenario - input'!$D18),"") -> 9.650442874 | AC33: =IFERROR(IF(OR(I33="",'Historical scenario - input'!$D18=""),"",I33/'Historical scenario - input'!$D18),"") -> 11.31107728 | AD33: =IFERROR(IF(OR(J33="",'Historical scenario - input'!$D18=""),"",J33/'Historical scenario - input'!$D18),"") -> 13.06845048 | AE33: =IFERROR(IF(OR(K33="",'Historical scenario - input'!$D18=""),"",K33/'Historical scenario - input'!$D18),"") -> 14.88470545 | AF33: =IFERROR(IF(OR(L33="",'Historical scenario - input'!$D18=""),"",L33/'Historical scenario - input'!$D18),"") -> 16.71452592 | AG33: =IFERROR(IF(OR(M33="",'Historical scenario - input'!$D18=""),"",M33/'Historical scenario - input'!$D18),"") -> 18.50710648 | AH33: =IFERROR(IF(OR(N33="",'Historical scenario - input'!$D18=""),"",N33/'Historical scenario - input'!$D18),"") -> 20.20881315 | AI33: =IFERROR(IF(OR(O33="",'Historical scenario - input'!$D18=""),"",O33/'Historical scenario - input'!$D18),"") -> 21.76636574 | AJ33: =IFERROR(IF(OR(P33="",'Historical scenario - input'!$D18=""),"",P33/'Historical scenario - input'!$D18),"") -> 23.13029695 | AK33: =IFERROR(IF(OR(Q33="",'Historical scenario - input'!$D18=""),"",Q33/'Historical scenario - input'!$D18),"") -> 24.25838887 | AL33: =IFERROR(IF(OR(R33="",'Historical scenario - input'!$D18=""),"",R33/'Historical scenario - input'!$D18),"") -> 25.11876563 | AM33: =IFERROR(IF(OR(S33="",'Historical scenario - input'!$D18=""),"",S33/'Historical scenario - input'!$D18),"") -> 25.69233676 | AN33: =IFERROR(IF(OR(T33="",'Historical scenario - input'!$D18=""),"",T33/'Historical scenario - input'!$D18),"") -> 25.97434042 | AO33: =IFERROR(IF(OR(U33="",'Historical scenario - input'!$D18=""),"",U33/'Historical scenario - input'!$D18),"") -> 25.97482292 | AP33: =IFERROR(IF(OR(V33="",'Historical scenario - input'!$D18=""),"",V33/'Historical scenario - input'!$D18),"") -> 25.71800114 | AQ33: =IFERROR(IF(OR(W33="",'Historical scenario - input'!$D18=""),"",W33/'Historical scenario - input'!$D18),"") -> 25.24057244
A34: =IFERROR('Historical scenario - input'!A19,"") -> 2 | B34: =IFERROR('Historical scenario - input'!B19,"") -> POLES | C34: =IFERROR('Historical scenario - input'!C19,"") -> > 1 kv & < = 11 kv ; concrete | D34: =IFERROR(repcalc('Historical scenario - input'!$CV19:$GH19,'Historical scenario - input'!$G19,'Historical scenario - input'!$E19,'Historical scenario - input'!$F19,20,TRUE,TRUE),"") -> 16.29344456 | E34: 16.49697699 | F34: 16.70500568 | G34: 16.96711419 | H34: 17.35056573 | I34: 17.94021929 | J34: 18.83660556 | K34: 20.15199122 | L34: 22.00435846 | M34: 24.5093358 | N34: 27.77026911 | O34: 31.8668462 | P34: 36.84299521 | Q34: 42.69513974 | R34: 49.3622457 | S34: 56.71933606 | T34: 64.57616709 | U34: 72.68246293 | V34: 80.74045799 | W34: 88.42454202 | X34: =IFERROR(IF(OR(D34="",'Historical scenario - input'!$D19=""),"",D34/'Historical scenario - input'!$D19),"") -> 1.532927143 | Y34: =IFERROR(IF(OR(E34="",'Historical scenario - input'!$D19=""),"",E34/'Historical scenario - input'!$D19),"") -> 1.552075972 | Z34: =IFERROR(IF(OR(F34="",'Historical scenario - input'!$D19=""),"",F34/'Historical scenario - input'!$D19),"") -> 1.57164782 | AA34: =IFERROR(IF(OR(G34="",'Historical scenario - input'!$D19=""),"",G34/'Historical scenario - input'!$D19),"") -> 1.59630763 | AB34: =IFERROR(IF(OR(H34="",'Historical scenario - input'!$D19=""),"",H34/'Historical scenario - input'!$D19),"") -> 1.632383689 | AC34: =IFERROR(IF(OR(I34="",'Historical scenario - input'!$D19=""),"",I34/'Historical scenario - input'!$D19),"") -> 1.68785974 | AD34: =IFERROR(IF(OR(J34="",'Historical scenario - input'!$D19=""),"",J34/'Historical scenario - input'!$D19),"") -> 1.772193954 | AE34: =IFERROR(IF(OR(K34="",'Historical scenario - input'!$D19=""),"",K34/'Historical scenario - input'!$D19),"") -> 1.895948656 | AF34: =IFERROR(IF(OR(L34="",'Historical scenario - input'!$D19=""),"",L34/'Historical scenario - input'!$D19),"") -> 2.0702239 | AG34: =IFERROR(IF(OR(M34="",'Historical scenario - input'!$D19=""),"",M34/'Historical scenario - input'!$D19),"") -> 2.305898299 | AH34: =IFERROR(IF(OR(N34="",'Historical scenario - input'!$D19=""),"",N34/'Historical scenario - input'!$D19),"") -> 2.612694886 | AI34: =IFERROR(IF(OR(O34="",'Historical scenario - input'!$D19=""),"",O34/'Historical scenario - input'!$D19),"") -> 2.998110885 | AJ34: =IFERROR(IF(OR(P34="",'Historical scenario - input'!$D19=""),"",P34/'Historical scenario - input'!$D19),"") -> 3.466279163 | AK34: =IFERROR(IF(OR(Q34="",'Historical scenario - input'!$D19=""),"",Q34/'Historical scenario - input'!$D19),"") -> 4.016863243 | AL34: =IFERROR(IF(OR(R34="",'Historical scenario - input'!$D19=""),"",R34/'Historical scenario - input'!$D19),"") -> 4.64412089 | AM34: =IFERROR(IF(OR(S34="",'Historical scenario - input'!$D19=""),"",S34/'Historical scenario - input'!$D19),"") -> 5.336293958 | AN34: =IFERROR(IF(OR(T34="",'Historical scenario - input'!$D19=""),"",T34/'Historical scenario - input'!$D19),"") -> 6.07548385 | AO34: =IFERROR(IF(OR(U34="",'Historical scenario - input'!$D19=""),"",U34/'Historical scenario - input'!$D19),"") -> 6.838144004 | AP34: =IFERROR(IF(OR(V34="",'Historical scenario - input'!$D19=""),"",V34/'Historical scenario - input'!$D19),"") -> 7.5962599 | AQ34: =IFERROR(IF(OR(W34="",'Historical scenario - input'!$D19=""),"",W34/'Historical scenario - input'!$D19),"") -> 8.319197333
A35: =IFERROR('Historical scenario - input'!A20,"") -> 2 | B35: =IFERROR('Historical scenario - input'!B20,"") -> POLES | C35: =IFERROR('Historical scenario - input'!C20,"") -> > 1 kv & < = 11 kv ; steel | D35: =IFERROR(repcalc('Historical scenario - input'!$CV20:$GH20,'Historical scenario - input'!$G20,'Historical scenario - input'!$E20,'Historical scenario - input'!$F20,20,TRUE,TRUE),"") -> 3.266881521 | E35: 3.751375829 | F35: 4.272430404 | G35: 4.827925553 | H35: 5.415028041 | I35: 6.030089515 | J35: 6.66851537 | K35: 7.324615416 | L35: 7.991455479 | M35: 8.660735383 | N35: 9.322722556 | O35: 9.966270959 | P35: 10.57895169 | Q35: 11.14731456 | R35: 11.65728936 | S35: 12.0947229 | T35: 12.44603335 | U35: 12.69894965 | V35: 12.84329105 | W35: 12.87173265 | X35: =IFERROR(IF(OR(D35="",'Historical scenario - input'!$D20=""),"",D35/'Historical scenario - input'!$D20),"") -> 0.3088379666 | Y35: =IFERROR(IF(OR(E35="",'Historical scenario - input'!$D20=""),"",E35/'Historical scenario - input'!$D20),"") -> 0.3546401286 | Z35: =IFERROR(IF(OR(F35="",'Historical scenario - input'!$D20=""),"",F35/'Historical scenario - input'!$D20),"") -> 0.4038985527 | AA35: =IFERROR(IF(OR(G35="",'Historical scenario - input'!$D20=""),"",G35/'Historical scenario - input'!$D20),"") -> 0.4564128515 | AB35: =IFERROR(IF(OR(H35="",'Historical scenario - input'!$D20=""),"",H35/'Historical scenario - input'!$D20),"") -> 0.5119151822 | AC35: =IFERROR(IF(OR(I35="",'Historical scenario - input'!$D20=""),"",I35/'Historical scenario - input'!$D20),"") -> 0.5700606441 | AD35: =IFERROR(IF(OR(J35="",'Historical scenario - input'!$D20=""),"",J35/'Historical scenario - input'!$D20),"") -> 0.6304148815 | AE35: =IFERROR(IF(OR(K35="",'Historical scenario - input'!$D20=""),"",K35/'Historical scenario - input'!$D20),"") -> 0.6924399665 | AF35: =IFERROR(IF(OR(L35="",'Historical scenario - input'!$D20=""),"",L35/'Historical scenario - input'!$D20),"") -> 0.7554803699 | AG35: =IFERROR(IF(OR(M35="",'Historical scenario - input'!$D20=""),"",M35/'Historical scenario - input'!$D20),"") -> 0.8187514262 | AH35: =IFERROR(IF(OR(N35="",'Historical scenario - input'!$D20=""),"",N35/'Historical scenario - input'!$D20),"") -> 0.8813330568 | AI35: =IFERROR(IF(OR(O35="",'Historical scenario - input'!$D20=""),"",O35/'Historical scenario - input'!$D20),"") -> 0.9421715595 | AJ35: =IFERROR(IF(OR(P35="",'Historical scenario - input'!$D20=""),"",P35/'Historical scenario - input'!$D20),"") -> 1.000091956 | AK35: =IFERROR(IF(OR(Q35="",'Historical scenario - input'!$D20=""),"",Q35/'Historical scenario - input'!$D20),"") -> 1.053822717 | AL35: =IFERROR(IF(OR(R35="",'Historical scenario - input'!$D20=""),"",R35/'Historical scenario - input'!$D20),"") -> 1.102033704 | AM35: =IFERROR(IF(OR(S35="",'Historical scenario - input'!$D20=""),"",S35/'Historical scenario - input'!$D20),"") -> 1.143386928 | AN35: =IFERROR(IF(OR(T35="",'Historical scenario - input'!$D20=""),"",T35/'Historical scenario - input'!$D20),"") -> 1.176598418 | AO35: =IFERROR(IF(OR(U35="",'Historical scenario - input'!$D20=""),"",U35/'Historical scenario - input'!$D20),"") -> 1.200508118 | AP35: =IFERROR(IF(OR(V35="",'Historical scenario - input'!$D20=""),"",V35/'Historical scenario - input'!$D20),"") -> 1.214153579 | AQ35: =IFERROR(IF(OR(W35="",'Historical scenario - input'!$D20=""),"",W35/'Historical scenario - input'!$D20),"") -> 1.216842335
A36: =IFERROR('Historical scenario - input'!A21,"") -> 2 | B36: =IFERROR('Historical scenario - input'!B21,"") -> POLES | C36: =IFERROR('Historical scenario - input'!C21,"") -> > 1 kv & < = 11 kv ; wood | D36: =IFERROR(repcalc('Historical scenario - input'!$CV21:$GH21,'Historical scenario - input'!$G21,'Historical scenario - input'!$E21,'Historical scenario - input'!$F21,20,TRUE,TRUE),"") -> 7834.677704 | E36: 8848.531514 | F36: 9888.912481 | G36: 10937.67696 | H36: 11975.44761 | I36: 12982.502 | J36: 13939.72551 | K36: 14829.55788 | L36: 15636.86019 | M36: 16349.63344 | N36: 16959.5321 | O36: 17462.13317 | P36: 17856.94336 | Q36: 18147.15038 | R36: 18339.14704 | S36: 18441.87607 | T36: 18466.05801 | U36: 18423.37163 | V36: 18325.6572 | W36: 18184.20614 | X36: =IFERROR(IF(OR(D36="",'Historical scenario - input'!$D21=""),"",D36/'Historical scenario - input'!$D21),"") -> 1077.764002 | Y36: =IFERROR(IF(OR(E36="",'Historical scenario - input'!$D21=""),"",E36/'Historical scenario - input'!$D21),"") -> 1217.233063 | Z36: =IFERROR(IF(OR(F36="",'Historical scenario - input'!$D21=""),"",F36/'Historical scenario - input'!$D21),"") -> 1360.351287 | AA36: =IFERROR(IF(OR(G36="",'Historical scenario - input'!$D21=""),"",G36/'Historical scenario - input'!$D21),"") -> 1504.622774 | AB36: =IFERROR(IF(OR(H36="",'Historical scenario - input'!$D21=""),"",H36/'Historical scenario - input'!$D21),"") -> 1647.381914 | AC36: =IFERROR(IF(OR(I36="",'Historical scenario - input'!$D21=""),"",I36/'Historical scenario - input'!$D21),"") -> 1785.915624 | AD36: =IFERROR(IF(OR(J36="",'Historical scenario - input'!$D21=""),"",J36/'Historical scenario - input'!$D21),"") -> 1917.594434 | AE36: =IFERROR(IF(OR(K36="",'Historical scenario - input'!$D21=""),"",K36/'Historical scenario - input'!$D21),"") -> 2040.002699 | AF36: =IFERROR(IF(OR(L36="",'Historical scenario - input'!$D21=""),"",L36/'Historical scenario - input'!$D21),"") -> 2151.057856 | AG36: =IFERROR(IF(OR(M36="",'Historical scenario - input'!$D21=""),"",M36/'Historical scenario - input'!$D21),"") -> 2249.109285 | AH36: =IFERROR(IF(OR(N36="",'Historical scenario - input'!$D21=""),"",N36/'Historical scenario - input'!$D21),"") -> 2333.008949 | AI36: =IFERROR(IF(OR(O36="",'Historical scenario - input'!$D21=""),"",O36/'Historical scenario - input'!$D21),"") -> 2402.148403 | AJ36: =IFERROR(IF(OR(P36="",'Historical scenario - input'!$D21=""),"",P36/'Historical scenario - input'!$D21),"") -> 2456.459789 | AK36: =IFERROR(IF(OR(Q36="",'Historical scenario - input'!$D21=""),"",Q36/'Historical scenario - input'!$D21),"") -> 2496.381621 | AL36: =IFERROR(IF(OR(R36="",'Historical scenario - input'!$D21=""),"",R36/'Historical scenario - input'!$D21),"") -> 2522.793312 | AM36: =IFERROR(IF(OR(S36="",'Historical scenario - input'!$D21=""),"",S36/'Historical scenario - input'!$D21),"") -> 2536.925056 | AN36: =IFERROR(IF(OR(T36="",'Historical scenario - input'!$D21=""),"",T36/'Historical scenario - input'!$D21),"") -> 2540.251602 | AO36: =IFERROR(IF(OR(U36="",'Historical scenario - input'!$D21=""),"",U36/'Historical scenario - input'!$D21),"") -> 2534.379523 | AP36: =IFERROR(IF(OR(V36="",'Historical scenario - input'!$D21=""),"",V36/'Historical scenario - input'!$D21),"") -> 2520.937606 | AQ36: =IFERROR(IF(OR(W36="",'Historical scenario - input'!$D21=""),"",W36/'Historical scenario - input'!$D21),"") -> 2501.479134
A37: =IFERROR('Historical scenario - input'!A22,"") -> 2 | B37: =IFERROR('Historical scenario - input'!B22,"") -> POLES | C37: =IFERROR('Historical scenario - input'!C22,"") -> > 22 kv & < = 66 kv ; concrete | D37: =IFERROR(repcalc('Historical scenario - input'!$CV22:$GH22,'Historical scenario - input'!$G22,'Historical scenario - input'!$E22,'Historical scenario - input'!$F22,20,TRUE,TRUE),"") -> 360.3345042 | E37: 344.1329603 | F37: 325.8454043 | G37: 306.7031802 | H37: 287.9829087 | I37: 270.94251 | J37: 256.7637359 | K37: 246.5046219 | L37: 241.0640164 | M37: 241.1591908 | N37: 247.3166555 | O37: 259.8758041 | P37: 279.0048563 | Q37: 304.7286436 | R37: 336.9678749 | S37: 375.5893858 | T37: 420.4662946 | U37: 471.5458335 | V37: 528.9208747 | W37: 592.8990038 | X37: =IFERROR(IF(OR(D37="",'Historical scenario - input'!$D22=""),"",D37/'Historical scenario - input'!$D22),"") -> 14.83246456 | Y37: =IFERROR(IF(OR(E37="",'Historical scenario - input'!$D22=""),"",E37/'Historical scenario - input'!$D22),"") -> 14.16555971 | Z37: =IFERROR(IF(OR(F37="",'Historical scenario - input'!$D22=""),"",F37/'Historical scenario - input'!$D22),"") -> 13.41278827 | AA37: =IFERROR(IF(OR(G37="",'Historical scenario - input'!$D22=""),"",G37/'Historical scenario - input'!$D22),"") -> 12.62483608 | AB37: =IFERROR(IF(OR(H37="",'Historical scenario - input'!$D22=""),"",H37/'Historical scenario - input'!$D22),"") -> 11.85425275 | AC37: =IFERROR(IF(OR(I37="",'Historical scenario - input'!$D22=""),"",I37/'Historical scenario - input'!$D22),"") -> 11.15281809 | AD37: =IFERROR(IF(OR(J37="",'Historical scenario - input'!$D22=""),"",J37/'Historical scenario - input'!$D22),"") -> 10.5691766 | AE37: =IFERROR(IF(OR(K37="",'Historical scenario - input'!$D22=""),"",K37/'Historical scenario - input'!$D22),"") -> 10.14688026 | AF37: =IFERROR(IF(OR(L37="",'Historical scenario - input'!$D22=""),"",L37/'Historical scenario - input'!$D22),"") -> 9.922928382 | AG37: =IFERROR(IF(OR(M37="",'Historical scenario - input'!$D22=""),"",M37/'Historical scenario - input'!$D22),"") -> 9.926846051 | AH37: =IFERROR(IF(OR(N37="",'Historical scenario - input'!$D22=""),"",N37/'Historical scenario - input'!$D22),"") -> 10.18030603 | AI37: =IFERROR(IF(OR(O37="",'Historical scenario - input'!$D22=""),"",O37/'Historical scenario - input'!$D22),"") -> 10.6972788 | AJ37: =IFERROR(IF(OR(P37="",'Historical scenario - input'!$D22=""),"",P37/'Historical scenario - input'!$D22),"") -> 11.48468879 | AK37: =IFERROR(IF(OR(Q37="",'Historical scenario - input'!$D22=""),"",Q37/'Historical scenario - input'!$D22),"") -> 12.54355814 | AL37: =IFERROR(IF(OR(R37="",'Historical scenario - input'!$D22=""),"",R37/'Historical scenario - input'!$D22),"") -> 13.870623 | AM37: =IFERROR(IF(OR(S37="",'Historical scenario - input'!$D22=""),"",S37/'Historical scenario - input'!$D22),"") -> 15.4604019 | AN37: =IFERROR(IF(OR(T37="",'Historical scenario - input'!$D22=""),"",T37/'Historical scenario - input'!$D22),"") -> 17.30767201 | AO37: =IFERROR(IF(OR(U37="",'Historical scenario - input'!$D22=""),"",U37/'Historical scenario - input'!$D22),"") -> 19.41026125 | AP37: =IFERROR(IF(OR(V37="",'Historical scenario - input'!$D22=""),"",V37/'Historical scenario - input'!$D22),"") -> 21.77199251 | AQ37: =IFERROR(IF(OR(W37="",'Historical scenario - input'!$D22=""),"",W37/'Historical scenario - input'!$D22),"") -> 24.40552696
A38: =IFERROR('Historical scenario - input'!A23,"") -> 2 | B38: =IFERROR('Historical scenario - input'!B23,"") -> POLES | C38: =IFERROR('Historical scenario - input'!C23,"") -> > 22 kv & < = 66 kv ; steel | D38: =IFERROR(repcalc('Historical scenario - input'!$CV23:$GH23,'Historical scenario - input'!$G23,'Historical scenario - input'!$E23,'Historical scenario - input'!$F23,20,TRUE,TRUE),"") -> 34.5092432 | E38: 40.63214419 | F38: 55.36394106 | G38: 78.18191547 | H38: 108.859144 | I38: 146.951965 | J38: 191.4073455 | K38: 240.3335802 | L38: 290.9628226 | M38: 339.8130382 | N38: 383.0299939 | O38: 416.8608221 | P38: 438.1847121 | Q38: 445.0084538 | R38: 436.8301559 | S38: 414.7887733 | T38: 381.5529502 | U38: 340.9564483 | V38: 297.4465966 | W38: 255.4581254 | X38: =IFERROR(IF(OR(D38="",'Historical scenario - input'!$D23=""),"",D38/'Historical scenario - input'!$D23),"") -> 1.422454358 | Y38: =IFERROR(IF(OR(E38="",'Historical scenario - input'!$D23=""),"",E38/'Historical scenario - input'!$D23),"") -> 1.674837384 | Z38: =IFERROR(IF(OR(F38="",'Historical scenario - input'!$D23=""),"",F38/'Historical scenario - input'!$D23),"") -> 2.282074945 | AA38: =IFERROR(IF(OR(G38="",'Historical scenario - input'!$D23=""),"",G38/'Historical scenario - input'!$D23),"") -> 3.222620843 | AB38: =IFERROR(IF(OR(H38="",'Historical scenario - input'!$D23=""),"",H38/'Historical scenario - input'!$D23),"") -> 4.487121406 | AC38: =IFERROR(IF(OR(I38="",'Historical scenario - input'!$D23=""),"",I38/'Historical scenario - input'!$D23),"") -> 6.057289114 | AD38: =IFERROR(IF(OR(J38="",'Historical scenario - input'!$D23=""),"",J38/'Historical scenario - input'!$D23),"") -> 7.889718452 | AE38: =IFERROR(IF(OR(K38="",'Historical scenario - input'!$D23=""),"",K38/'Historical scenario - input'!$D23),"") -> 9.906434247 | AF38: =IFERROR(IF(OR(L38="",'Historical scenario - input'!$D23=""),"",L38/'Historical scenario - input'!$D23),"") -> 11.9933472 | AG38: =IFERROR(IF(OR(M38="",'Historical scenario - input'!$D23=""),"",M38/'Historical scenario - input'!$D23),"") -> 14.00692952 | AH38: =IFERROR(IF(OR(N38="",'Historical scenario - input'!$D23=""),"",N38/'Historical scenario - input'!$D23),"") -> 15.78831159 | AI38: =IFERROR(IF(OR(O38="",'Historical scenario - input'!$D23=""),"",O38/'Historical scenario - input'!$D23),"") -> 17.18280201 | AJ38: =IFERROR(IF(OR(P38="",'Historical scenario - input'!$D23=""),"",P38/'Historical scenario - input'!$D23),"") -> 18.06176247 | AK38: =IFERROR(IF(OR(Q38="",'Historical scenario - input'!$D23=""),"",Q38/'Historical scenario - input'!$D23),"") -> 18.34303381 | AL38: =IFERROR(IF(OR(R38="",'Historical scenario - input'!$D23=""),"",R38/'Historical scenario - input'!$D23),"") -> 18.00592831 | AM38: =IFERROR(IF(OR(S38="",'Historical scenario - input'!$D23=""),"",S38/'Historical scenario - input'!$D23),"") -> 17.09739316 | AN38: =IFERROR(IF(OR(T38="",'Historical scenario - input'!$D23=""),"",T38/'Historical scenario - input'!$D23),"") -> 15.72742856 | AO38: =IFERROR(IF(OR(U38="",'Historical scenario - input'!$D23=""),"",U38/'Historical scenario - input'!$D23),"") -> 14.05406033 | AP38: =IFERROR(IF(OR(V38="",'Historical scenario - input'!$D23=""),"",V38/'Historical scenario - input'!$D23),"") -> 12.26060523 | AQ38: =IFERROR(IF(OR(W38="",'Historical scenario - input'!$D23=""),"",W38/'Historical scenario - input'!$D23),"") -> 10.5298607
A39: =IFERROR('Historical scenario - input'!A24,"") -> 2 | B39: =IFERROR('Historical scenario - input'!B24,"") -> POLES | C39: =IFERROR('Historical scenario - input'!C24,"") -> > 22 kv & < = 66 kv ; wood | D39: =IFERROR(repcalc('Historical scenario - input'!$CV24:$GH24,'Historical scenario - input'!$G24,'Historical scenario - input'!$E24,'Historical scenario - input'!$F24,20,TRUE,TRUE),"") -> 1728.878873 | E39: 1997.690314 | F39: 2298.817547 | G39: 2630.636505 | H39: 2990.027762 | I39: 3372.371076 | J39: 3771.641371 | K39: 4180.608164 | L39: 4591.131353 | M39: 4994.536984 | N39: 5382.048118 | O39: 5745.239209 | P39: 6076.478468 | Q39: 6369.322173 | R39: 6618.828101 | S39: 6821.762073 | T39: 6976.68145 | U39: 7083.89118 | V39: 7145.280377 | W39: 7164.058985 | X39: =IFERROR(IF(OR(D39="",'Historical scenario - input'!$D24=""),"",D39/'Historical scenario - input'!$D24),"") -> 91.18675706 | Y39: =IFERROR(IF(OR(E39="",'Historical scenario - input'!$D24=""),"",E39/'Historical scenario - input'!$D24),"") -> 105.3647564 | Z39: =IFERROR(IF(OR(F39="",'Historical scenario - input'!$D24=""),"",F39/'Historical scenario - input'!$D24),"") -> 121.2471969 | AA39: =IFERROR(IF(OR(G39="",'Historical scenario - input'!$D24=""),"",G39/'Historical scenario - input'!$D24),"") -> 138.7484199 | AB39: =IFERROR(IF(OR(H39="",'Historical scenario - input'!$D24=""),"",H39/'Historical scenario - input'!$D24),"") -> 157.7038967 | AC39: =IFERROR(IF(OR(I39="",'Historical scenario - input'!$D24=""),"",I39/'Historical scenario - input'!$D24),"") -> 177.8699403 | AD39: =IFERROR(IF(OR(J39="",'Historical scenario - input'!$D24=""),"",J39/'Historical scenario - input'!$D24),"") -> 198.9287687 | AE39: =IFERROR(IF(OR(K39="",'Historical scenario - input'!$D24=""),"",K39/'Historical scenario - input'!$D24),"") -> 220.4990222 | AF39: =IFERROR(IF(OR(L39="",'Historical scenario - input'!$D24=""),"",L39/'Historical scenario - input'!$D24),"") -> 242.1513652 | AG39: =IFERROR(IF(OR(M39="",'Historical scenario - input'!$D24=""),"",M39/'Historical scenario - input'!$D24),"") -> 263.4283047 | AH39: =IFERROR(IF(OR(N39="",'Historical scenario - input'!$D24=""),"",N39/'Historical scenario - input'!$D24),"") -> 283.8669163 | AI39: =IFERROR(IF(OR(O39="",'Historical scenario - input'!$D24=""),"",O39/'Historical scenario - input'!$D24),"") -> 303.0228087 | AJ39: =IFERROR(IF(OR(P39="",'Historical scenario - input'!$D24=""),"",P39/'Historical scenario - input'!$D24),"") -> 320.4934565 | AK39: =IFERROR(IF(OR(Q39="",'Historical scenario - input'!$D24=""),"",Q39/'Historical scenario - input'!$D24),"") -> 335.9389965 | AL39: =IFERROR(IF(OR(R39="",'Historical scenario - input'!$D24=""),"",R39/'Historical scenario - input'!$D24),"") -> 349.0987596 | AM39: =IFERROR(IF(OR(S39="",'Historical scenario - input'!$D24=""),"",S39/'Historical scenario - input'!$D24),"") -> 359.8021646 | AN39: =IFERROR(IF(OR(T39="",'Historical scenario - input'!$D24=""),"",T39/'Historical scenario - input'!$D24),"") -> 367.973122 | AO39: =IFERROR(IF(OR(U39="",'Historical scenario - input'!$D24=""),"",U39/'Historical scenario - input'!$D24),"") -> 373.6277157 | AP39: =IFERROR(IF(OR(V39="",'Historical scenario - input'!$D24=""),"",V39/'Historical scenario - input'!$D24),"") -> 376.8655838 | AQ39: =IFERROR(IF(OR(W39="",'Historical scenario - input'!$D24=""),"",W39/'Historical scenario - input'!$D24),"") -> 377.8560294
A40: =IFERROR('Historical scenario - input'!A25,"") -> 2 | B40: =IFERROR('Historical scenario - input'!B25,"") -> POLES | C40: =IFERROR('Historical scenario - input'!C25,"") -> > 66 kv & < = 132 kv ; concrete | D40: =IFERROR(repcalc('Historical scenario - input'!$CV25:$GH25,'Historical scenario - input'!$G25,'Historical scenario - input'!$E25,'Historical scenario - input'!$F25,20,TRUE,TRUE),"") -> 259.0332839 | E40: 244.816532 | F40: 230.393318 | G40: 216.8516056 | H40: 205.2470947 | I40: 196.5554618 | J40: 191.6304425 | K40: 191.16808 | L40: 195.6773906 | M40: 205.458115 | N40: 220.5869675 | O40: 240.9145675 | P40: 266.0757415 | Q40: 295.5158285 | R40: 328.5348223 | S40: 364.349593 | T40: 402.1721828 | U40: 441.2995203 | V40: 481.207276 | W40: 521.6384288 | X40: =IFERROR(IF(OR(D40="",'Historical scenario - input'!$D25=""),"",D40/'Historical scenario - input'!$D25),"") -> 10.66382259 | Y40: =IFERROR(IF(OR(E40="",'Historical scenario - input'!$D25=""),"",E40/'Historical scenario - input'!$D25),"") -> 10.07855062 | Z40: =IFERROR(IF(OR(F40="",'Historical scenario - input'!$D25=""),"",F40/'Historical scenario - input'!$D25),"") -> 9.484779067 | AA40: =IFERROR(IF(OR(G40="",'Historical scenario - input'!$D25=""),"",G40/'Historical scenario - input'!$D25),"") -> 8.927296967 | AB40: =IFERROR(IF(OR(H40="",'Historical scenario - input'!$D25=""),"",H40/'Historical scenario - input'!$D25),"") -> 8.449565134 | AC40: =IFERROR(IF(OR(I40="",'Historical scenario - input'!$D25=""),"",I40/'Historical scenario - input'!$D25),"") -> 8.091749992 | AD40: =IFERROR(IF(OR(J40="",'Historical scenario - input'!$D25=""),"",J40/'Historical scenario - input'!$D25),"") -> 7.888997931 | AE40: =IFERROR(IF(OR(K40="",'Historical scenario - input'!$D25=""),"",K40/'Historical scenario - input'!$D25),"") -> 7.869963501 | AF40: =IFERROR(IF(OR(L40="",'Historical scenario - input'!$D25=""),"",L40/'Historical scenario - input'!$D25),"") -> 8.055601758 | AG40: =IFERROR(IF(OR(M40="",'Historical scenario - input'!$D25=""),"",M40/'Historical scenario - input'!$D25),"") -> 8.458252368 | AH40: =IFERROR(IF(OR(N40="",'Historical scenario - input'!$D25=""),"",N40/'Historical scenario - input'!$D25),"") -> 9.081073488 | AI40: =IFERROR(IF(OR(O40="",'Historical scenario - input'!$D25=""),"",O40/'Historical scenario - input'!$D25),"") -> 9.917915444 | AJ40: =IFERROR(IF(OR(P40="",'Historical scenario - input'!$D25=""),"",P40/'Historical scenario - input'!$D25),"") -> 10.95374486 | AK40: =IFERROR(IF(OR(Q40="",'Historical scenario - input'!$D25=""),"",Q40/'Historical scenario - input'!$D25),"") -> 12.16572758 | AL40: =IFERROR(IF(OR(R40="",'Historical scenario - input'!$D25=""),"",R40/'Historical scenario - input'!$D25),"") -> 13.52504592 | AM40: =IFERROR(IF(OR(S40="",'Historical scenario - input'!$D25=""),"",S40/'Historical scenario - input'!$D25),"") -> 14.99946015 | AN40: =IFERROR(IF(OR(T40="",'Historical scenario - input'!$D25=""),"",T40/'Historical scenario - input'!$D25),"") -> 16.55653182 | AO40: =IFERROR(IF(OR(U40="",'Historical scenario - input'!$D25=""),"",U40/'Historical scenario - input'!$D25),"") -> 18.16731704 | AP40: =IFERROR(IF(OR(V40="",'Historical scenario - input'!$D25=""),"",V40/'Historical scenario - input'!$D25),"") -> 19.81023033 | AQ40: =IFERROR(IF(OR(W40="",'Historical scenario - input'!$D25=""),"",W40/'Historical scenario - input'!$D25),"") -> 21.47469073
A41: =IFERROR('Historical scenario - input'!A26,"") -> 2 | B41: =IFERROR('Historical scenario - input'!B26,"") -> POLES | C41: =IFERROR('Historical scenario - input'!C26,"") -> > 66 kv & < = 132 kv ; steel | D41: =IFERROR(repcalc('Historical scenario - input'!$CV26:$GH26,'Historical scenario - input'!$G26,'Historical scenario - input'!$E26,'Historical scenario - input'!$F26,20,TRUE,TRUE),"") -> 183.474231 | E41: 170.5462184 | F41: 163.1773835 | G41: 161.2405673 | H41: 164.2549857 | I41: 171.4390388 | J41: 181.7780421 | K41: 194.1026444 | L41: 207.1735751 | M41: 219.7680048 | N41: 230.7623519 | O41: 239.2061058 | P41: 244.3814565 | Q41: 245.8444303 | R41: 243.4448477 | S41: 237.3245773 | T41: 227.89591 | U41: 215.8040057 | V41: 201.8788778 | W41: 187.083006 | X41: =IFERROR(IF(OR(D41="",'Historical scenario - input'!$D26=""),"",D41/'Historical scenario - input'!$D26),"") -> 1.981187106 | Y41: =IFERROR(IF(OR(E41="",'Historical scenario - input'!$D26=""),"",E41/'Historical scenario - input'!$D26),"") -> 1.841588145 | Z41: =IFERROR(IF(OR(F41="",'Historical scenario - input'!$D26=""),"",F41/'Historical scenario - input'!$D26),"") -> 1.762018166 | AA41: =IFERROR(IF(OR(G41="",'Historical scenario - input'!$D26=""),"",G41/'Historical scenario - input'!$D26),"") -> 1.741104084 | AB41: =IFERROR(IF(OR(H41="",'Historical scenario - input'!$D26=""),"",H41/'Historical scenario - input'!$D26),"") -> 1.773654306 | AC41: =IFERROR(IF(OR(I41="",'Historical scenario - input'!$D26=""),"",I41/'Historical scenario - input'!$D26),"") -> 1.851228978 | AD41: =IFERROR(IF(OR(J41="",'Historical scenario - input'!$D26=""),"",J41/'Historical scenario - input'!$D26),"") -> 1.962871359 | AE41: =IFERROR(IF(OR(K41="",'Historical scenario - input'!$D26=""),"",K41/'Historical scenario - input'!$D26),"") -> 2.095954589 | AF41: =IFERROR(IF(OR(L41="",'Historical scenario - input'!$D26=""),"",L41/'Historical scenario - input'!$D26),"") -> 2.237096804 | AG41: =IFERROR(IF(OR(M41="",'Historical scenario - input'!$D26=""),"",M41/'Historical scenario - input'!$D26),"") -> 2.373093676 | AH41: =IFERROR(IF(OR(N41="",'Historical scenario - input'!$D26=""),"",N41/'Historical scenario - input'!$D26),"") -> 2.491812576 | AI41: =IFERROR(IF(OR(O41="",'Historical scenario - input'!$D26=""),"",O41/'Historical scenario - input'!$D26),"") -> 2.582989719 | AJ41: =IFERROR(IF(OR(P41="",'Historical scenario - input'!$D26=""),"",P41/'Historical scenario - input'!$D26),"") -> 2.638874069 | AK41: =IFERROR(IF(OR(Q41="",'Historical scenario - input'!$D26=""),"",Q41/'Historical scenario - input'!$D26),"") -> 2.654671518 | AL41: =IFERROR(IF(OR(R41="",'Historical scenario - input'!$D26=""),"",R41/'Historical scenario - input'!$D26),"") -> 2.628760402 | AM41: =IFERROR(IF(OR(S41="",'Historical scenario - input'!$D26=""),"",S41/'Historical scenario - input'!$D26),"") -> 2.562672643 | AN41: =IFERROR(IF(OR(T41="",'Historical scenario - input'!$D26=""),"",T41/'Historical scenario - input'!$D26),"") -> 2.46086023 | AO41: =IFERROR(IF(OR(U41="",'Historical scenario - input'!$D26=""),"",U41/'Historical scenario - input'!$D26),"") -> 2.330289715 | AP41: =IFERROR(IF(OR(V41="",'Historical scenario - input'!$D26=""),"",V41/'Historical scenario - input'!$D26),"") -> 2.179923728 | AQ41: =IFERROR(IF(OR(W41="",'Historical scenario - input'!$D26=""),"",W41/'Historical scenario - input'!$D26),"") -> 2.020155295
A42: =IFERROR('Historical scenario - input'!A27,"") -> 2 | B42: =IFERROR('Historical scenario - input'!B27,"") -> POLES | C42: =IFERROR('Historical scenario - input'!C27,"") -> > 66 kv & < = 132 kv ; wood | D42: =IFERROR(repcalc('Historical scenario - input'!$CV27:$GH27,'Historical scenario - input'!$G27,'Historical scenario - input'!$E27,'Historical scenario - input'!$F27,20,TRUE,TRUE),"") -> 538.5603191 | E42: 642.1466759 | F42: 757.5808746 | G42: 884.475605 | H42: 1022.049881 | I42: 1169.110297 | J42: 1324.051323 | K42: 1484.876715 | L42: 1649.242642 | M42: 1814.521525 | N42: 1977.8838 | O42: 2136.393219 | P42: 2287.110009 | Q42: 2427.195389 | R42: 2554.010796 | S42: 2665.205732 | T42: 2758.789301 | U42: 2833.18225 | V42: 2887.248342 | W42: 2920.30586 | X42: =IFERROR(IF(OR(D42="",'Historical scenario - input'!$D27=""),"",D42/'Historical scenario - input'!$D27),"") -> 25.86126679 | Y42: =IFERROR(IF(OR(E42="",'Historical scenario - input'!$D27=""),"",E42/'Historical scenario - input'!$D27),"") -> 30.83540676 | Z42: =IFERROR(IF(OR(F42="",'Historical scenario - input'!$D27=""),"",F42/'Historical scenario - input'!$D27),"") -> 36.37847131 | AA42: =IFERROR(IF(OR(G42="",'Historical scenario - input'!$D27=""),"",G42/'Historical scenario - input'!$D27),"") -> 42.47186208 | AB42: =IFERROR(IF(OR(H42="",'Historical scenario - input'!$D27=""),"",H42/'Historical scenario - input'!$D27),"") -> 49.07807672 | AC42: =IFERROR(IF(OR(I42="",'Historical scenario - input'!$D27=""),"",I42/'Historical scenario - input'!$D27),"") -> 56.13980872 | AD42: =IFERROR(IF(OR(J42="",'Historical scenario - input'!$D27=""),"",J42/'Historical scenario - input'!$D27),"") -> 63.57996182 | AE42: =IFERROR(IF(OR(K42="",'Historical scenario - input'!$D27=""),"",K42/'Historical scenario - input'!$D27),"") -> 71.30267774 | AF42: =IFERROR(IF(OR(L42="",'Historical scenario - input'!$D27=""),"",L42/'Historical scenario - input'!$D27),"") -> 79.19540755 | AG42: =IFERROR(IF(OR(M42="",'Historical scenario - input'!$D27=""),"",M42/'Historical scenario - input'!$D27),"") -> 87.13197685 | AH42: =IFERROR(IF(OR(N42="",'Historical scenario - input'!$D27=""),"",N42/'Historical scenario - input'!$D27),"") -> 94.97651203 | AI42: =IFERROR(IF(OR(O42="",'Historical scenario - input'!$D27=""),"",O42/'Historical scenario - input'!$D27),"") -> 102.5880167 | AJ42: =IFERROR(IF(OR(P42="",'Historical scenario - input'!$D27=""),"",P42/'Historical scenario - input'!$D27),"") -> 109.8253251 | AK42: =IFERROR(IF(OR(Q42="",'Historical scenario - input'!$D27=""),"",Q42/'Historical scenario - input'!$D27),"") -> 116.552121 | AL42: =IFERROR(IF(OR(R42="",'Historical scenario - input'!$D27=""),"",R42/'Historical scenario - input'!$D27),"") -> 122.6417028 | AM42: =IFERROR(IF(OR(S42="",'Historical scenario - input'!$D27=""),"",S42/'Historical scenario - input'!$D27),"") -> 127.9812011 | AN42: =IFERROR(IF(OR(T42="",'Historical scenario - input'!$D27=""),"",T42/'Historical scenario - input'!$D27),"") -> 132.4750146 | AO42: =IFERROR(IF(OR(U42="",'Historical scenario - input'!$D27=""),"",U42/'Historical scenario - input'!$D27),"") -> 136.0473088 | AP42: =IFERROR(IF(OR(V42="",'Historical scenario - input'!$D27=""),"",V42/'Historical scenario - input'!$D27),"") -> 138.6435224 | AQ42: =IFERROR(IF(OR(W42="",'Historical scenario - input'!$D27=""),"",W42/'Historical scenario - input'!$D27),"") -> 140.2309199
A43: =IFERROR('Historical scenario - input'!A28,"") -> 2 | B43: =IFERROR('Historical scenario - input'!B28,"") -> POLES | C43: =IFERROR('Historical scenario - input'!C28,"") -> staked wooden pole | D43: =IFERROR(repcalc('Historical scenario - input'!$CV28:$GH28,'Historical scenario - input'!$G28,'Historical scenario - input'!$E28,'Historical scenario - input'!$F28,20,TRUE,TRUE),"") -> 7069.907669 | E43: 8193.719951 | F43: 9409.264355 | G43: 10715.89138 | H43: 12095.80541 | I43: 13507.84382 | J43: 14885.97605 | K43: 16144.06001 | L43: 17186.86677 | M43: 17925.61553 | N43: 18294.77499 | O43: 18266.20693 | P43: 17857.15526 | Q43: 17130.03133 | R43: 16183.95945 | S43: 15139.98978 | T43: 14123.20205 | U43: 13245.32115 | V43: 12590.96443 | W43: 12209.50018 | X43: =IFERROR(IF(OR(D43="",'Historical scenario - input'!$D28=""),"",D43/'Historical scenario - input'!$D28),"") -> 672.2808404 | Y43: =IFERROR(IF(OR(E43="",'Historical scenario - input'!$D28=""),"",E43/'Historical scenario - input'!$D28),"") -> 779.144678 | Z43: =IFERROR(IF(OR(F43="",'Historical scenario - input'!$D28=""),"",F43/'Historical scenario - input'!$D28),"") -> 894.7313662 | AA43: =IFERROR(IF(OR(G43="",'Historical scenario - input'!$D28=""),"",G43/'Historical scenario - input'!$D28),"") -> 1018.979144 | AB43: =IFERROR(IF(OR(H43="",'Historical scenario - input'!$D28=""),"",H43/'Historical scenario - input'!$D28),"") -> 1150.195817 | AC43: =IFERROR(IF(OR(I43="",'Historical scenario - input'!$D28=""),"",I43/'Historical scenario - input'!$D28),"") -> 1284.467213 | AD43: =IFERROR(IF(OR(J43="",'Historical scenario - input'!$D28=""),"",J43/'Historical scenario - input'!$D28),"") -> 1415.514453 | AE43: =IFERROR(IF(OR(K43="",'Historical scenario - input'!$D28=""),"",K43/'Historical scenario - input'!$D28),"") -> 1535.146248 | AF43: =IFERROR(IF(OR(L43="",'Historical scenario - input'!$D28=""),"",L43/'Historical scenario - input'!$D28),"") -> 1634.307232 | AG43: =IFERROR(IF(OR(M43="",'Historical scenario - input'!$D28=""),"",M43/'Historical scenario - input'!$D28),"") -> 1704.555199 | AH43: =IFERROR(IF(OR(N43="",'Historical scenario - input'!$D28=""),"",N43/'Historical scenario - input'!$D28),"") -> 1739.658745 | AI43: =IFERROR(IF(OR(O43="",'Historical scenario - input'!$D28=""),"",O43/'Historical scenario - input'!$D28),"") -> 1736.942195 | AJ43: =IFERROR(IF(OR(P43="",'Historical scenario - input'!$D28=""),"",P43/'Historical scenario - input'!$D28),"") -> 1698.04528 | AK43: =IFERROR(IF(OR(Q43="",'Historical scenario - input'!$D28=""),"",Q43/'Historical scenario - input'!$D28),"") -> 1628.902724 | AL43: =IFERROR(IF(OR(R43="",'Historical scenario - input'!$D28=""),"",R43/'Historical scenario - input'!$D28),"") -> 1538.940305 | AM43: =IFERROR(IF(OR(S43="",'Historical scenario - input'!$D28=""),"",S43/'Historical scenario - input'!$D28),"") -> 1439.668738 | AN43: =IFERROR(IF(OR(T43="",'Historical scenario - input'!$D28=""),"",T43/'Historical scenario - input'!$D28),"") -> 1342.981915 | AO43: =IFERROR(IF(OR(U43="",'Historical scenario - input'!$D28=""),"",U43/'Historical scenario - input'!$D28),"") -> 1259.503808 | AP43: =IFERROR(IF(OR(V43="",'Historical scenario - input'!$D28=""),"",V43/'Historical scenario - input'!$D28),"") -> 1197.28072 | AQ43: =IFERROR(IF(OR(W43="",'Historical scenario - input'!$D28=""),"",W43/'Historical scenario - input'!$D28),"") -> 1161.007106
A44: =IFERROR('Historical scenario - input'!A29,"") -> 3 | B44: =IFERROR('Historical scenario - input'!B29,"") -> SERVICE LINES | C44: =IFERROR('Historical scenario - input'!C29,"") -> ˂ = 11 kv ; commercial and industrial ; complex type | D44: =IFERROR(repcalc('Historical scenario - input'!$CV29:$GH29,'Historical scenario - input'!$G29,'Historical scenario - input'!$E29,'Historical scenario - input'!$F29,20,TRUE,TRUE),"") -> 297.8088465 | E44: 270.8277725 | F44: 250.5399832 | G44: 233.8671683 | H44: 219.0044731 | I44: 204.9690636 | J44: 191.2942983 | K44: 177.826147 | L44: 164.5895978 | M44: 151.7020199 | N44: 139.3176332 | O44: 127.5925227 | P44: 116.6633355 | Q44: 106.6352825 | R44: 97.57664671 | S44: 89.51796887 | T44: 82.45463732 | U44: 76.35191858 | V44: 71.15163023 | W44: 66.77975392 | X44: =IFERROR(IF(OR(D44="",'Historical scenario - input'!$D29=""),"",D44/'Historical scenario - input'!$D29),"") -> 905.7234765 | Y44: =IFERROR(IF(OR(E44="",'Historical scenario - input'!$D29=""),"",E44/'Historical scenario - input'!$D29),"") -> 823.666169 | Z44: =IFERROR(IF(OR(F44="",'Historical scenario - input'!$D29=""),"",F44/'Historical scenario - input'!$D29),"") -> 761.9650902 | AA44: =IFERROR(IF(OR(G44="",'Historical scenario - input'!$D29=""),"",G44/'Historical scenario - input'!$D29),"") -> 711.2582022 | AB44: =IFERROR(IF(OR(H44="",'Historical scenario - input'!$D29=""),"",H44/'Historical scenario - input'!$D29),"") -> 666.0564153 | AC44: =IFERROR(IF(OR(I44="",'Historical scenario - input'!$D29=""),"",I44/'Historical scenario - input'!$D29),"") -> 623.3706456 | AD44: =IFERROR(IF(OR(J44="",'Historical scenario - input'!$D29=""),"",J44/'Historical scenario - input'!$D29),"") -> 581.7816996 | AE44: =IFERROR(IF(OR(K44="",'Historical scenario - input'!$D29=""),"",K44/'Historical scenario - input'!$D29),"") -> 540.8211272 | AF44: =IFERROR(IF(OR(L44="",'Historical scenario - input'!$D29=""),"",L44/'Historical scenario - input'!$D29),"") -> 500.5649245 | AG44: =IFERROR(IF(OR(M44="",'Historical scenario - input'!$D29=""),"",M44/'Historical scenario - input'!$D29),"") -> 461.3700447 | AH44: =IFERROR(IF(OR(N44="",'Historical scenario - input'!$D29=""),"",N44/'Historical scenario - input'!$D29),"") -> 423.7055163 | AI44: =IFERROR(IF(OR(O44="",'Historical scenario - input'!$D29=""),"",O44/'Historical scenario - input'!$D29),"") -> 388.0460388 | AJ44: =IFERROR(IF(OR(P44="",'Historical scenario - input'!$D29=""),"",P44/'Historical scenario - input'!$D29),"") -> 354.8071962 | AK44: =IFERROR(IF(OR(Q44="",'Historical scenario - input'!$D29=""),"",Q44/'Historical scenario - input'!$D29),"") -> 324.3089651 | AL44: =IFERROR(IF(OR(R44="",'Historical scenario - input'!$D29=""),"",R44/'Historical scenario - input'!$D29),"") -> 296.7590141 | AM44: =IFERROR(IF(OR(S44="",'Historical scenario - input'!$D29=""),"",S44/'Historical scenario - input'!$D29),"") -> 272.2502267 | AN44: =IFERROR(IF(OR(T44="",'Historical scenario - input'!$D29=""),"",T44/'Historical scenario - input'!$D29),"") -> 250.7685774 | AO44: =IFERROR(IF(OR(U44="",'Historical scenario - input'!$D29=""),"",U44/'Historical scenario - input'!$D29),"") -> 232.2084315 | AP44: =IFERROR(IF(OR(V44="",'Historical scenario - input'!$D29=""),"",V44/'Historical scenario - input'!$D29),"") -> 216.3928394 | AQ44: =IFERROR(IF(OR(W44="",'Historical scenario - input'!$D29=""),"",W44/'Historical scenario - input'!$D29),"") -> 203.0966897
A45: =IFERROR('Historical scenario - input'!A30,"") -> 3 | B45: =IFERROR('Historical scenario - input'!B30,"") -> SERVICE LINES | C45: =IFERROR('Historical scenario - input'!C30,"") -> ˂ = 11 kv ; commercial and industrial ; simple type | D45: =IFERROR(repcalc('Historical scenario - input'!$CV30:$GH30,'Historical scenario - input'!$G30,'Historical scenario - input'!$E30,'Historical scenario - input'!$F30,20,TRUE,TRUE),"") -> 390.8560886 | E45: 374.9532795 | F45: 363.0158372 | G45: 352.3897484 | H45: 341.5555363 | I45: 329.7566408 | J45: 316.7404339 | K45: 302.5775404 | L45: 287.5346996 | M45: 271.9841687 | N45: 256.3385116 | O45: 241.0037215 | P45: 226.3463075 | Q45: 212.6715815 | R45: 200.211245 | S45: 189.1187645 | T45: 179.4711495 | U45: 171.2757674 | V45: 164.4808192 | W45: 158.9881418 | X45: =IFERROR(IF(OR(D45="",'Historical scenario - input'!$D30=""),"",D45/'Historical scenario - input'!$D30),"") -> 1188.707252 | Y45: =IFERROR(IF(OR(E45="",'Historical scenario - input'!$D30=""),"",E45/'Historical scenario - input'!$D30),"") -> 1140.342175 | Z45: =IFERROR(IF(OR(F45="",'Historical scenario - input'!$D30=""),"",F45/'Historical scenario - input'!$D30),"") -> 1104.036935 | AA45: =IFERROR(IF(OR(G45="",'Historical scenario - input'!$D30=""),"",G45/'Historical scenario - input'!$D30),"") -> 1071.719903 | AB45: =IFERROR(IF(OR(H45="",'Historical scenario - input'!$D30=""),"",H45/'Historical scenario - input'!$D30),"") -> 1038.769907 | AC45: =IFERROR(IF(OR(I45="",'Historical scenario - input'!$D30=""),"",I45/'Historical scenario - input'!$D30),"") -> 1002.886028 | AD45: =IFERROR(IF(OR(J45="",'Historical scenario - input'!$D30=""),"",J45/'Historical scenario - input'!$D30),"") -> 963.2999501 | AE45: =IFERROR(IF(OR(K45="",'Historical scenario - input'!$D30=""),"",K45/'Historical scenario - input'!$D30),"") -> 920.2264642 | AF45: =IFERROR(IF(OR(L45="",'Historical scenario - input'!$D30=""),"",L45/'Historical scenario - input'!$D30),"") -> 874.476802 | AG45: =IFERROR(IF(OR(M45="",'Historical scenario - input'!$D30=""),"",M45/'Historical scenario - input'!$D30),"") -> 827.1831065 | AH45: =IFERROR(IF(OR(N45="",'Historical scenario - input'!$D30=""),"",N45/'Historical scenario - input'!$D30),"") -> 779.6001046 | AI45: =IFERROR(IF(OR(O45="",'Historical scenario - input'!$D30=""),"",O45/'Historical scenario - input'!$D30),"") -> 732.9625399 | AJ45: =IFERROR(IF(OR(P45="",'Historical scenario - input'!$D30=""),"",P45/'Historical scenario - input'!$D30),"") -> 688.385073 | AK45: =IFERROR(IF(OR(Q45="",'Historical scenario - input'!$D30=""),"",Q45/'Historical scenario - input'!$D30),"") -> 646.7962465 | AL45: =IFERROR(IF(OR(R45="",'Historical scenario - input'!$D30=""),"",R45/'Historical scenario - input'!$D30),"") -> 608.9007328 | AM45: =IFERROR(IF(OR(S45="",'Historical scenario - input'!$D30=""),"",S45/'Historical scenario - input'!$D30),"") -> 575.1652674 | AN45: =IFERROR(IF(OR(T45="",'Historical scenario - input'!$D30=""),"",T45/'Historical scenario - input'!$D30),"") -> 545.8240593 | AO45: =IFERROR(IF(OR(U45="",'Historical scenario - input'!$D30=""),"",U45/'Historical scenario - input'!$D30),"") -> 520.8995142 | AP45: =IFERROR(IF(OR(V45="",'Historical scenario - input'!$D30=""),"",V45/'Historical scenario - input'!$D30),"") -> 500.2340969 | AQ45: =IFERROR(IF(OR(W45="",'Historical scenario - input'!$D30=""),"",W45/'Historical scenario - input'!$D30),"") -> 483.5292645
A46: =IFERROR('Historical scenario - input'!A31,"") -> 3 | B46: =IFERROR('Historical scenario - input'!B31,"") -> SERVICE LINES | C46: =IFERROR('Historical scenario - input'!C31,"") -> ˂ = 11 kv ; residential ; complex type | D46: =IFERROR(repcalc('Historical scenario - input'!$CV31:$GH31,'Historical scenario - input'!$G31,'Historical scenario - input'!$E31,'Historical scenario - input'!$F31,20,TRUE,TRUE),"") -> 181.5271358 | E46: 212.297531 | F46: 246.1737125 | G46: 283.0774121 | H46: 322.8676956 | I46: 365.3487131 | J46: 410.2838557 | K46: 457.4168101 | L46: 506.4996564 | M46: 557.3277415 | N46: 609.7806292 | O46: 663.8679886 | P46: 719.7788869 | Q46: 777.9326122 | R46: 839.0289093 | S46: 904.0953616 | T46: 974.5296234 | U46: 1052.134273 | V46: 1139.142211 | W46: 1238.230764 | X46: =IFERROR(IF(OR(D46="",'Historical scenario - input'!$D31=""),"",D46/'Historical scenario - input'!$D31),"") -> 13.15637586 | Y46: =IFERROR(IF(OR(E46="",'Historical scenario - input'!$D31=""),"",E46/'Historical scenario - input'!$D31),"") -> 15.3864936 | Z46: =IFERROR(IF(OR(F46="",'Historical scenario - input'!$D31=""),"",F46/'Historical scenario - input'!$D31),"") -> 17.84170656 | AA46: =IFERROR(IF(OR(G46="",'Historical scenario - input'!$D31=""),"",G46/'Historical scenario - input'!$D31),"") -> 20.51634218 | AB46: =IFERROR(IF(OR(H46="",'Historical scenario - input'!$D31=""),"",H46/'Historical scenario - input'!$D31),"") -> 23.40018608 | AC46: =IFERROR(IF(OR(I46="",'Historical scenario - input'!$D31=""),"",I46/'Historical scenario - input'!$D31),"") -> 26.47904386 | AD46: =IFERROR(IF(OR(J46="",'Historical scenario - input'!$D31=""),"",J46/'Historical scenario - input'!$D31),"") -> 29.73576701 | AE46: =IFERROR(IF(OR(K46="",'Historical scenario - input'!$D31=""),"",K46/'Historical scenario - input'!$D31),"") -> 33.15177896 | AF46: =IFERROR(IF(OR(L46="",'Historical scenario - input'!$D31=""),"",L46/'Historical scenario - input'!$D31),"") -> 36.70911142 | AG46: =IFERROR(IF(OR(M46="",'Historical scenario - input'!$D31=""),"",M46/'Historical scenario - input'!$D31),"") -> 40.39293197 | AH46: =IFERROR(IF(OR(N46="",'Historical scenario - input'!$D31=""),"",N46/'Historical scenario - input'!$D31),"") -> 44.19451184 | AI46: =IFERROR(IF(OR(O46="",'Historical scenario - input'!$D31=""),"",O46/'Historical scenario - input'!$D31),"") -> 48.11455182 | AJ46: =IFERROR(IF(OR(P46="",'Historical scenario - input'!$D31=""),"",P46/'Historical scenario - input'!$D31),"") -> 52.16675475 | AK46: =IFERROR(IF(OR(Q46="",'Historical scenario - input'!$D31=""),"",Q46/'Historical scenario - input'!$D31),"") -> 56.38150901 | AL46: =IFERROR(IF(OR(R46="",'Historical scenario - input'!$D31=""),"",R46/'Historical scenario - input'!$D31),"") -> 60.80952934 | AM46: =IFERROR(IF(OR(S46="",'Historical scenario - input'!$D31=""),"",S46/'Historical scenario - input'!$D31),"") -> 65.52529098 | AN46: =IFERROR(IF(OR(T46="",'Historical scenario - input'!$D31=""),"",T46/'Historical scenario - input'!$D31),"") -> 70.63009042 | AO46: =IFERROR(IF(OR(U46="",'Historical scenario - input'!$D31=""),"",U46/'Historical scenario - input'!$D31),"") -> 76.25457146 | AP46: =IFERROR(IF(OR(V46="",'Historical scenario - input'!$D31=""),"",V46/'Historical scenario - input'!$D31),"") -> 82.56056609 | AQ46: =IFERROR(IF(OR(W46="",'Historical scenario - input'!$D31=""),"",W46/'Historical scenario - input'!$D31),"") -> 89.74211634
A47: =IFERROR('Historical scenario - input'!A32,"") -> 3 | B47: =IFERROR('Historical scenario - input'!B32,"") -> SERVICE LINES | C47: =IFERROR('Historical scenario - input'!C32,"") -> ˂ = 11 kv ; residential ; simple type | D47: =IFERROR(repcalc('Historical scenario - input'!$CV32:$GH32,'Historical scenario - input'!$G32,'Historical scenario - input'!$E32,'Historical scenario - input'!$F32,20,TRUE,TRUE),"") -> 5562.859111 | E47: 5378.538553 | F47: 5247.415571 | G47: 5133.792882 | H47: 5015.860718 | I47: 4881.65771 | J47: 4726.121956 | K47: 4548.932415 | L47: 4352.91068 | M47: 4142.817983 | N47: 3924.435862 | O47: 3703.85939 | P47: 3486.959698 | Q47: 3278.98964 | R47: 3084.315452 | S47: 2906.260656 | T47: 2747.048594 | U47: 2607.828621 | V47: 2488.769472 | W47: 2389.202461 | X47: =IFERROR(IF(OR(D47="",'Historical scenario - input'!$D32=""),"",D47/'Historical scenario - input'!$D32),"") -> 16918.30524 | Y47: =IFERROR(IF(OR(E47="",'Historical scenario - input'!$D32=""),"",E47/'Historical scenario - input'!$D32),"") -> 16357.73173 | Z47: =IFERROR(IF(OR(F47="",'Historical scenario - input'!$D32=""),"",F47/'Historical scenario - input'!$D32),"") -> 15958.94783 | AA47: =IFERROR(IF(OR(G47="",'Historical scenario - input'!$D32=""),"",G47/'Historical scenario - input'!$D32),"") -> 15613.38752 | AB47: =IFERROR(IF(OR(H47="",'Historical scenario - input'!$D32=""),"",H47/'Historical scenario - input'!$D32),"") -> 15254.72081 | AC47: =IFERROR(IF(OR(I47="",'Historical scenario - input'!$D32=""),"",I47/'Historical scenario - input'!$D32),"") -> 14846.56964 | AD47: =IFERROR(IF(OR(J47="",'Historical scenario - input'!$D32=""),"",J47/'Historical scenario - input'!$D32),"") -> 14373.53926 | AE47: =IFERROR(IF(OR(K47="",'Historical scenario - input'!$D32=""),"",K47/'Historical scenario - input'!$D32),"") -> 13834.65329 | AF47: =IFERROR(IF(OR(L47="",'Historical scenario - input'!$D32=""),"",L47/'Historical scenario - input'!$D32),"") -> 13238.49303 | AG47: =IFERROR(IF(OR(M47="",'Historical scenario - input'!$D32=""),"",M47/'Historical scenario - input'!$D32),"") -> 12599.53879 | AH47: =IFERROR(IF(OR(N47="",'Historical scenario - input'!$D32=""),"",N47/'Historical scenario - input'!$D32),"") -> 11935.37396 | AI47: =IFERROR(IF(OR(O47="",'Historical scenario - input'!$D32=""),"",O47/'Historical scenario - input'!$D32),"") -> 11264.53546 | AJ47: =IFERROR(IF(OR(P47="",'Historical scenario - input'!$D32=""),"",P47/'Historical scenario - input'!$D32),"") -> 10604.87914 | AK47: =IFERROR(IF(OR(Q47="",'Historical scenario - input'!$D32=""),"",Q47/'Historical scenario - input'!$D32),"") -> 9972.380478 | AL47: =IFERROR(IF(OR(R47="",'Historical scenario - input'!$D32=""),"",R47/'Historical scenario - input'!$D32),"") -> 9380.318505 | AM47: =IFERROR(IF(OR(S47="",'Historical scenario - input'!$D32=""),"",S47/'Historical scenario - input'!$D32),"") -> 8838.801036 | AN47: =IFERROR(IF(OR(T47="",'Historical scenario - input'!$D32=""),"",T47/'Historical scenario - input'!$D32),"") -> 8354.589913 | AO47: =IFERROR(IF(OR(U47="",'Historical scenario - input'!$D32=""),"",U47/'Historical scenario - input'!$D32),"") -> 7931.180663 | AP47: =IFERROR(IF(OR(V47="",'Historical scenario - input'!$D32=""),"",V47/'Historical scenario - input'!$D32),"") -> 7569.086464 | AQ47: =IFERROR(IF(OR(W47="",'Historical scenario - input'!$D32=""),"",W47/'Historical scenario - input'!$D32),"") -> 7266.273638
A48: =IFERROR('Historical scenario - input'!A33,"") -> 4 | B48: =IFERROR('Historical scenario - input'!B33,"") -> SWITCHGEAR | C48: =IFERROR('Historical scenario - input'!C33,"") -> ˂ = 11 kv ; circuit breaker | D48: =IFERROR(repcalc('Historical scenario - input'!$CV33:$GH33,'Historical scenario - input'!$G33,'Historical scenario - input'!$E33,'Historical scenario - input'!$F33,20,TRUE,TRUE),"") -> 10442.57654 | E48: 9253.69332 | F48: 8327.85263 | G48: 7619.917888 | H48: 7090.749755 | I48: 6706.862488 | J48: 6439.872133 | K48: 6265.836231 | L48: 6164.566272 | M48: 6118.975097 | N48: 6114.502746 | O48: 6138.646825 | P48: 6180.607952 | Q48: 6231.047744 | R48: 6281.946593 | S48: 6326.541261 | T48: 6359.318242 | U48: 6376.037648 | V48: 6373.763764 | W48: 6350.881971 | X48: =IFERROR(IF(OR(D48="",'Historical scenario - input'!$D33=""),"",D48/'Historical scenario - input'!$D33),"") -> 122.9870999 | Y48: =IFERROR(IF(OR(E48="",'Historical scenario - input'!$D33=""),"",E48/'Historical scenario - input'!$D33),"") -> 108.9850671 | Z48: =IFERROR(IF(OR(F48="",'Historical scenario - input'!$D33=""),"",F48/'Historical scenario - input'!$D33),"") -> 98.08100897 | AA48: =IFERROR(IF(OR(G48="",'Historical scenario - input'!$D33=""),"",G48/'Historical scenario - input'!$D33),"") -> 89.74333095 | AB48: =IFERROR(IF(OR(H48="",'Historical scenario - input'!$D33=""),"",H48/'Historical scenario - input'!$D33),"") -> 83.51107077 | AC48: =IFERROR(IF(OR(I48="",'Historical scenario - input'!$D33=""),"",I48/'Historical scenario - input'!$D33),"") -> 78.98985117 | AD48: =IFERROR(IF(OR(J48="",'Historical scenario - input'!$D33=""),"",J48/'Historical scenario - input'!$D33),"") -> 75.8453811 | AE48: =IFERROR(IF(OR(K48="",'Historical scenario - input'!$D33=""),"",K48/'Historical scenario - input'!$D33),"") -> 73.79567901 | AF48: =IFERROR(IF(OR(L48="",'Historical scenario - input'!$D33=""),"",L48/'Historical scenario - input'!$D33),"") -> 72.60297542 | AG48: =IFERROR(IF(OR(M48="",'Historical scenario - input'!$D33=""),"",M48/'Historical scenario - input'!$D33),"") -> 72.06602687 | AH48: =IFERROR(IF(OR(N48="",'Historical scenario - input'!$D33=""),"",N48/'Historical scenario - input'!$D33),"") -> 72.0133539 | AI48: =IFERROR(IF(OR(O48="",'Historical scenario - input'!$D33=""),"",O48/'Historical scenario - input'!$D33),"") -> 72.29770999 | AJ48: =IFERROR(IF(OR(P48="",'Historical scenario - input'!$D33=""),"",P48/'Historical scenario - input'!$D33),"") -> 72.79190577 | AK48: =IFERROR(IF(OR(Q48="",'Historical scenario - input'!$D33=""),"",Q48/'Historical scenario - input'!$D33),"") -> 73.38595876 | AL48: =IFERROR(IF(OR(R48="",'Historical scenario - input'!$D33=""),"",R48/'Historical scenario - input'!$D33),"") -> 73.98541828 | AM48: =IFERROR(IF(OR(S48="",'Historical scenario - input'!$D33=""),"",S48/'Historical scenario - input'!$D33),"") -> 74.51063049 | AN48: =IFERROR(IF(OR(T48="",'Historical scenario - input'!$D33=""),"",T48/'Historical scenario - input'!$D33),"") -> 74.89666031 | AO48: =IFERROR(IF(OR(U48="",'Historical scenario - input'!$D33=""),"",U48/'Historical scenario - input'!$D33),"") -> 75.09357256 | AP48: =IFERROR(IF(OR(V48="",'Historical scenario - input'!$D33=""),"",V48/'Historical scenario - input'!$D33),"") -> 75.06679197 | AQ48: =IFERROR(IF(OR(W48="",'Historical scenario - input'!$D33=""),"",W48/'Historical scenario - input'!$D33),"") -> 74.79730241
A49: =IFERROR('Historical scenario - input'!A34,"") -> 4 | B49: =IFERROR('Historical scenario - input'!B34,"") -> SWITCHGEAR | C49: =IFERROR('Historical scenario - input'!C34,"") -> ˂ = 11 kv ; fuse | D49: =IFERROR(repcalc('Historical scenario - input'!$CV34:$GH34,'Historical scenario - input'!$G34,'Historical scenario - input'!$E34,'Historical scenario - input'!$F34,20,TRUE,TRUE),"") -> 2567.14008 | E49: 2320.062179 | F49: 2164.128195 | G49: 2073.251959 | H49: 2027.920577 | I49: 2013.776709 | J49: 2020.444479 | K49: 2040.586101 | L49: 2069.162018 | M49: 2102.860707 | N49: 2139.663197 | O49: 2178.509857 | P49: 2219.041675 | Q49: 2261.394008 | R49: 2306.026896 | S49: 2353.581796 | T49: 2404.759754 | U49: 2460.220085 | V49: 2520.501485 | W49: 2585.968918 | X49: =IFERROR(IF(OR(D49="",'Historical scenario - input'!$D34=""),"",D49/'Historical scenario - input'!$D34),"") -> 440.6380727 | Y49: =IFERROR(IF(OR(E49="",'Historical scenario - input'!$D34=""),"",E49/'Historical scenario - input'!$D34),"") -> 398.2282599 | Z49: =IFERROR(IF(OR(F49="",'Historical scenario - input'!$D34=""),"",F49/'Historical scenario - input'!$D34),"") -> 371.4628915 | AA49: =IFERROR(IF(OR(G49="",'Historical scenario - input'!$D34=""),"",G49/'Historical scenario - input'!$D34),"") -> 355.8643934 | AB49: =IFERROR(IF(OR(H49="",'Historical scenario - input'!$D34=""),"",H49/'Historical scenario - input'!$D34),"") -> 348.0834651 | AC49: =IFERROR(IF(OR(I49="",'Historical scenario - input'!$D34=""),"",I49/'Historical scenario - input'!$D34),"") -> 345.6557338 | AD49: =IFERROR(IF(OR(J49="",'Historical scenario - input'!$D34=""),"",J49/'Historical scenario - input'!$D34),"") -> 346.8002265 | AE49: =IFERROR(IF(OR(K49="",'Historical scenario - input'!$D34=""),"",K49/'Historical scenario - input'!$D34),"") -> 350.2574455 | AF49: =IFERROR(IF(OR(L49="",'Historical scenario - input'!$D34=""),"",L49/'Historical scenario - input'!$D34),"") -> 355.1623734 | AG49: =IFERROR(IF(OR(M49="",'Historical scenario - input'!$D34=""),"",M49/'Historical scenario - input'!$D34),"") -> 360.9466021 | AH49: =IFERROR(IF(OR(N49="",'Historical scenario - input'!$D34=""),"",N49/'Historical scenario - input'!$D34),"") -> 367.2635843 | AI49: =IFERROR(IF(OR(O49="",'Historical scenario - input'!$D34=""),"",O49/'Historical scenario - input'!$D34),"") -> 373.9314393 | AJ49: =IFERROR(IF(OR(P49="",'Historical scenario - input'!$D34=""),"",P49/'Historical scenario - input'!$D34),"") -> 380.8885438 | AK49: =IFERROR(IF(OR(Q49="",'Historical scenario - input'!$D34=""),"",Q49/'Historical scenario - input'!$D34),"") -> 388.1581317 | AL49: =IFERROR(IF(OR(R49="",'Historical scenario - input'!$D34=""),"",R49/'Historical scenario - input'!$D34),"") -> 395.8191665 | AM49: =IFERROR(IF(OR(S49="",'Historical scenario - input'!$D34=""),"",S49/'Historical scenario - input'!$D34),"") -> 403.9817518 | AN49: =IFERROR(IF(OR(T49="",'Historical scenario - input'!$D34=""),"",T49/'Historical scenario - input'!$D34),"") -> 412.7662186 | AO49: =IFERROR(IF(OR(U49="",'Historical scenario - input'!$D34=""),"",U49/'Historical scenario - input'!$D34),"") -> 422.2857354 | AP49: =IFERROR(IF(OR(V49="",'Historical scenario - input'!$D34=""),"",V49/'Historical scenario - input'!$D34),"") -> 432.6327672 | AQ49: =IFERROR(IF(OR(W49="",'Historical scenario - input'!$D34=""),"",W49/'Historical scenario - input'!$D34),"") -> 443.8699582
A50: =IFERROR('Historical scenario - input'!A35,"") -> 4 | B50: =IFERROR('Historical scenario - input'!B35,"") -> SWITCHGEAR | C50: =IFERROR('Historical scenario - input'!C35,"") -> ˂ = 11 kv ; switch | D50: =IFERROR(repcalc('Historical scenario - input'!$CV35:$GH35,'Historical scenario - input'!$G35,'Historical scenario - input'!$E35,'Historical scenario - input'!$F35,20,TRUE,TRUE),"") -> 5142.078132 | E50: 4953.626263 | F50: 4907.939275 | G50: 4996.716089 | H50: 5210.844706 | I50: 5540.674038 | J50: 5976.146634 | K50: 6506.82568 | L50: 7121.855489 | M50: 7809.895361 | N50: 8559.062925 | O50: 9356.916032 | P50: 10190.49301 | Q50: 11046.42092 | R50: 11911.09159 | S50: 12770.89636 | T50: 13612.50386 | U50: 14423.16077 | V50: 15190.99417 | W50: 15905.29473 | X50: =IFERROR(IF(OR(D50="",'Historical scenario - input'!$D35=""),"",D50/'Historical scenario - input'!$D35),"") -> 297.6728076 | Y50: =IFERROR(IF(OR(E50="",'Historical scenario - input'!$D35=""),"",E50/'Historical scenario - input'!$D35),"") -> 286.7634057 | Z50: =IFERROR(IF(OR(F50="",'Historical scenario - input'!$D35=""),"",F50/'Historical scenario - input'!$D35),"") -> 284.1186046 | AA50: =IFERROR(IF(OR(G50="",'Historical scenario - input'!$D35=""),"",G50/'Historical scenario - input'!$D35),"") -> 289.2578582 | AB50: =IFERROR(IF(OR(H50="",'Historical scenario - input'!$D35=""),"",H50/'Historical scenario - input'!$D35),"") -> 301.6536765 | AC50: =IFERROR(IF(OR(I50="",'Historical scenario - input'!$D35=""),"",I50/'Historical scenario - input'!$D35),"") -> 320.7473622 | AD50: =IFERROR(IF(OR(J50="",'Historical scenario - input'!$D35=""),"",J50/'Historical scenario - input'!$D35),"") -> 345.9566933 | AE50: =IFERROR(IF(OR(K50="",'Historical scenario - input'!$D35=""),"",K50/'Historical scenario - input'!$D35),"") -> 376.677487 | AF50: =IFERROR(IF(OR(L50="",'Historical scenario - input'!$D35=""),"",L50/'Historical scenario - input'!$D35),"") -> 412.281312 | AG50: =IFERROR(IF(OR(M50="",'Historical scenario - input'!$D35=""),"",M50/'Historical scenario - input'!$D35),"") -> 452.1116598 | AH50: =IFERROR(IF(OR(N50="",'Historical scenario - input'!$D35=""),"",N50/'Historical scenario - input'!$D35),"") -> 495.4806648 | AI50: =IFERROR(IF(OR(O50="",'Historical scenario - input'!$D35=""),"",O50/'Historical scenario - input'!$D35),"") -> 541.6680561 | AJ50: =IFERROR(IF(OR(P50="",'Historical scenario - input'!$D35=""),"",P50/'Historical scenario - input'!$D35),"") -> 589.9234874 | AK50: =IFERROR(IF(OR(Q50="",'Historical scenario - input'!$D35=""),"",Q50/'Historical scenario - input'!$D35),"") -> 639.4728053 | AL50: =IFERROR(IF(OR(R50="",'Historical scenario - input'!$D35=""),"",R50/'Historical scenario - input'!$D35),"") -> 689.5282382 | AM50: =IFERROR(IF(OR(S50="",'Historical scenario - input'!$D35=""),"",S50/'Historical scenario - input'!$D35),"") -> 739.3019862 | AN50: =IFERROR(IF(OR(T50="",'Historical scenario - input'!$D35=""),"",T50/'Historical scenario - input'!$D35),"") -> 788.022301 | AO50: =IFERROR(IF(OR(U50="",'Historical scenario - input'!$D35=""),"",U50/'Historical scenario - input'!$D35),"") -> 834.9508992 | AP50: =IFERROR(IF(OR(V50="",'Historical scenario - input'!$D35=""),"",V50/'Historical scenario - input'!$D35),"") -> 879.4004621 | AQ50: =IFERROR(IF(OR(W50="",'Historical scenario - input'!$D35=""),"",W50/'Historical scenario - input'!$D35),"") -> 920.7510302
A51: =IFERROR('Historical scenario - input'!A36,"") -> 4 | B51: =IFERROR('Historical scenario - input'!B36,"") -> SWITCHGEAR | C51: =IFERROR('Historical scenario - input'!C36,"") -> > 11 kv & < = 22 kv ; circuit breaker | D51: =IFERROR(repcalc('Historical scenario - input'!$CV36:$GH36,'Historical scenario - input'!$G36,'Historical scenario - input'!$E36,'Historical scenario - input'!$F36,20,TRUE,TRUE),"") -> 7.137355503e-07 | E51: 1.417216141e-06 | F51: 2.771749849e-06 | G51: 5.339499519e-06 | H51: 1.013178919e-05 | I51: 1.893749545e-05 | J51: 3.486766353e-05 | K51: 6.324143245e-05 | L51: 0.0001129992199 | M51: 0.0001989126192 | N51: 0.0003449711137 | O51: 0.0005894667714 | P51: 0.0009924700626 | Q51: 0.001646588685 | R51: 0.002692115757 | S51: 0.004337883837 | T51: 0.006889316139 | U51: 0.01078526406 | V51: 0.01664518912 | W51: 0.02532803057 | X51: =IFERROR(IF(OR(D51="",'Historical scenario - input'!$D36=""),"",D51/'Historical scenario - input'!$D36),"") -> 8.405996842e-09 | Y51: =IFERROR(IF(OR(E51="",'Historical scenario - input'!$D36=""),"",E51/'Historical scenario - input'!$D36),"") -> 1.669121623e-08 | Z51: =IFERROR(IF(OR(F51="",'Historical scenario - input'!$D36=""),"",F51/'Historical scenario - input'!$D36),"") -> 3.264419219e-08 | AA51: =IFERROR(IF(OR(G51="",'Historical scenario - input'!$D36=""),"",G51/'Historical scenario - input'!$D36),"") -> 6.288577902e-08 | AB51: =IFERROR(IF(OR(H51="",'Historical scenario - input'!$D36=""),"",H51/'Historical scenario - input'!$D36),"") -> 1.193268121e-07 | AC51: =IFERROR(IF(OR(I51="",'Historical scenario - input'!$D36=""),"",I51/'Historical scenario - input'!$D36),"") -> 2.230357265e-07 | AD51: =IFERROR(IF(OR(J51="",'Historical scenario - input'!$D36=""),"",J51/'Historical scenario - input'!$D36),"") -> 4.106527542e-07 | AE51: =IFERROR(IF(OR(K51="",'Historical scenario - input'!$D36=""),"",K51/'Historical scenario - input'!$D36),"") -> 7.448238795e-07 | AF51: =IFERROR(IF(OR(L51="",'Historical scenario - input'!$D36=""),"",L51/'Historical scenario - input'!$D36),"") -> 1.330844576e-06 | AG51: =IFERROR(IF(OR(M51="",'Historical scenario - input'!$D36=""),"",M51/'Historical scenario - input'!$D36),"") -> 2.342686795e-06 | AH51: =IFERROR(IF(OR(N51="",'Historical scenario - input'!$D36=""),"",N51/'Historical scenario - input'!$D36),"") -> 4.062885884e-06 | AI51: =IFERROR(IF(OR(O51="",'Historical scenario - input'!$D36=""),"",O51/'Historical scenario - input'!$D36),"") -> 6.942425408e-06 | AJ51: =IFERROR(IF(OR(P51="",'Historical scenario - input'!$D36=""),"",P51/'Historical scenario - input'!$D36),"") -> 1.168878334e-05 | AK51: =IFERROR(IF(OR(Q51="",'Historical scenario - input'!$D36=""),"",Q51/'Historical scenario - input'!$D36),"") -> 1.939264379e-05 | AL51: =IFERROR(IF(OR(R51="",'Historical scenario - input'!$D36=""),"",R51/'Historical scenario - input'!$D36),"") -> 3.170630431e-05 | AM51: =IFERROR(IF(OR(S51="",'Historical scenario - input'!$D36=""),"",S51/'Historical scenario - input'!$D36),"") -> 5.108928345e-05 | AN51: =IFERROR(IF(OR(T51="",'Historical scenario - input'!$D36=""),"",T51/'Historical scenario - input'!$D36),"") -> 8.113869302e-05 | AO51: =IFERROR(IF(OR(U51="",'Historical scenario - input'!$D36=""),"",U51/'Historical scenario - input'!$D36),"") -> 0.0001270230908 | AP51: =IFERROR(IF(OR(V51="",'Historical scenario - input'!$D36=""),"",V51/'Historical scenario - input'!$D36),"") -> 0.0001960381644 | AQ51: =IFERROR(IF(OR(W51="",'Historical scenario - input'!$D36=""),"",W51/'Historical scenario - input'!$D36),"") -> 0.0002983000425
A52: =IFERROR('Historical scenario - input'!A37,"") -> 4 | B52: =IFERROR('Historical scenario - input'!B37,"") -> SWITCHGEAR | C52: =IFERROR('Historical scenario - input'!C37,"") -> > 11 kv & < = 22 kv ; switch | D52: =IFERROR(repcalc('Historical scenario - input'!$CV37:$GH37,'Historical scenario - input'!$G37,'Historical scenario - input'!$E37,'Historical scenario - input'!$F37,20,TRUE,TRUE),"") -> 0.1032303396 | E52: 0.1423987966 | F52: 0.19372623 | G52: 0.2599328927 | H52: 0.3439800733 | I52: 0.4489668244 | J52: 0.577983232 | K52: 0.7339206032 | L52: 0.9192438656 | M52: 1.135737218 | N52: 1.384240118 | O52: 1.664396278 | P52: 1.974442654 | Q52: 2.311067502 | R52: 2.669365794 | S52: 3.042916091 | T52: 3.423995263 | U52: 3.803936726 | V52: 4.173624805 | W52: 4.524103941 | X52: =IFERROR(IF(OR(D52="",'Historical scenario - input'!$D37=""),"",D52/'Historical scenario - input'!$D37),"") -> 0.005975962294 | Y52: =IFERROR(IF(OR(E52="",'Historical scenario - input'!$D37=""),"",E52/'Historical scenario - input'!$D37),"") -> 0.008243408308 | Z52: =IFERROR(IF(OR(F52="",'Historical scenario - input'!$D37=""),"",F52/'Historical scenario - input'!$D37),"") -> 0.01121473251 | AA52: =IFERROR(IF(OR(G52="",'Historical scenario - input'!$D37=""),"",G52/'Historical scenario - input'!$D37),"") -> 0.01504740923 | AB52: =IFERROR(IF(OR(H52="",'Historical scenario - input'!$D37=""),"",H52/'Historical scenario - input'!$D37),"") -> 0.01991286627 | AC52: =IFERROR(IF(OR(I52="",'Historical scenario - input'!$D37=""),"",I52/'Historical scenario - input'!$D37),"") -> 0.02599050651 | AD52: =IFERROR(IF(OR(J52="",'Historical scenario - input'!$D37=""),"",J52/'Historical scenario - input'!$D37),"") -> 0.03345921377 | AE52: =IFERROR(IF(OR(K52="",'Historical scenario - input'!$D37=""),"",K52/'Historical scenario - input'!$D37),"") -> 0.04248636464 | AF52: =IFERROR(IF(OR(L52="",'Historical scenario - input'!$D37=""),"",L52/'Historical scenario - input'!$D37),"") -> 0.05321465278 | AG52: =IFERROR(IF(OR(M52="",'Historical scenario - input'!$D37=""),"",M52/'Historical scenario - input'!$D37),"") -> 0.06574736475 | AH52: =IFERROR(IF(OR(N52="",'Historical scenario - input'!$D37=""),"",N52/'Historical scenario - input'!$D37),"") -> 0.08013309634 | AI52: =IFERROR(IF(OR(O52="",'Historical scenario - input'!$D37=""),"",O52/'Historical scenario - input'!$D37),"") -> 0.09635122227 | AJ52: =IFERROR(IF(OR(P52="",'Historical scenario - input'!$D37=""),"",P52/'Historical scenario - input'!$D37),"") -> 0.1142996806 | AK52: =IFERROR(IF(OR(Q52="",'Historical scenario - input'!$D37=""),"",Q52/'Historical scenario - input'!$D37),"") -> 0.1337867559 | AL52: =IFERROR(IF(OR(R52="",'Historical scenario - input'!$D37=""),"",R52/'Historical scenario - input'!$D37),"") -> 0.154528498 | AM52: =IFERROR(IF(OR(S52="",'Historical scenario - input'!$D37=""),"",S52/'Historical scenario - input'!$D37),"") -> 0.1761531725 | AN52: =IFERROR(IF(OR(T52="",'Historical scenario - input'!$D37=""),"",T52/'Historical scenario - input'!$D37),"") -> 0.1982136905 | AO52: =IFERROR(IF(OR(U52="",'Historical scenario - input'!$D37=""),"",U52/'Historical scenario - input'!$D37),"") -> 0.2202083469 | AP52: =IFERROR(IF(OR(V52="",'Historical scenario - input'!$D37=""),"",V52/'Historical scenario - input'!$D37),"") -> 0.2416094392 | AQ52: =IFERROR(IF(OR(W52="",'Historical scenario - input'!$D37=""),"",W52/'Historical scenario - input'!$D37),"") -> 0.2618985335
A53: =IFERROR('Historical scenario - input'!A38,"") -> 4 | B53: =IFERROR('Historical scenario - input'!B38,"") -> SWITCHGEAR | C53: =IFERROR('Historical scenario - input'!C38,"") -> > 22 kv & < = 33 kv ; circuit breaker | D53: =IFERROR(repcalc('Historical scenario - input'!$CV38:$GH38,'Historical scenario - input'!$G38,'Historical scenario - input'!$E38,'Historical scenario - input'!$F38,20,TRUE,TRUE),"") -> 10024.66014 | E53: 9479.448942 | F53: 8881.429377 | G53: 8243.761758 | H53: 7580.371399 | I53: 6905.390237 | J53: 6232.559641 | K53: 5574.657668 | L53: 4943.010955 | M53: 4347.138638 | N53: 3794.556075 | O53: 3290.743618 | P53: 2839.264191 | Q53: 2441.996343 | R53: 2099.438929 | S53: 1811.040548 | T53: 1575.510903 | U53: 1391.080917 | V53: 1255.691701 | W53: 1167.106999 | X53: =IFERROR(IF(OR(D53="",'Historical scenario - input'!$D38=""),"",D53/'Historical scenario - input'!$D38),"") -> 33.32631894 | Y53: =IFERROR(IF(OR(E53="",'Historical scenario - input'!$D38=""),"",E53/'Historical scenario - input'!$D38),"") -> 31.51380041 | Z53: =IFERROR(IF(OR(F53="",'Historical scenario - input'!$D38=""),"",F53/'Historical scenario - input'!$D38),"") -> 29.52572396 | AA53: =IFERROR(IF(OR(G53="",'Historical scenario - input'!$D38=""),"",G53/'Historical scenario - input'!$D38),"") -> 27.40584017 | AB53: =IFERROR(IF(OR(H53="",'Historical scenario - input'!$D38=""),"",H53/'Historical scenario - input'!$D38),"") -> 25.20044285 | AC53: =IFERROR(IF(OR(I53="",'Historical scenario - input'!$D38=""),"",I53/'Historical scenario - input'!$D38),"") -> 22.95651266 | AD53: =IFERROR(IF(OR(J53="",'Historical scenario - input'!$D38=""),"",J53/'Historical scenario - input'!$D38),"") -> 20.71973189 | AE53: =IFERROR(IF(OR(K53="",'Historical scenario - input'!$D38=""),"",K53/'Historical scenario - input'!$D38),"") -> 18.53258034 | AF53: =IFERROR(IF(OR(L53="",'Historical scenario - input'!$D38=""),"",L53/'Historical scenario - input'!$D38),"") -> 16.43271266 | AG53: =IFERROR(IF(OR(M53="",'Historical scenario - input'!$D38=""),"",M53/'Historical scenario - input'!$D38),"") -> 14.45177459 | AH53: =IFERROR(IF(OR(N53="",'Historical scenario - input'!$D38=""),"",N53/'Historical scenario - input'!$D38),"") -> 12.61475045 | AI53: =IFERROR(IF(OR(O53="",'Historical scenario - input'!$D38=""),"",O53/'Historical scenario - input'!$D38),"") -> 10.93985929 | AJ53: =IFERROR(IF(OR(P53="",'Historical scenario - input'!$D38=""),"",P53/'Historical scenario - input'!$D38),"") -> 9.438945825 | AK53: =IFERROR(IF(OR(Q53="",'Historical scenario - input'!$D38=""),"",Q53/'Historical scenario - input'!$D38),"") -> 8.118255167 | AL53: =IFERROR(IF(OR(R53="",'Historical scenario - input'!$D38=""),"",R53/'Historical scenario - input'!$D38),"") -> 6.979445723 | AM53: =IFERROR(IF(OR(S53="",'Historical scenario - input'!$D38=""),"",S53/'Historical scenario - input'!$D38),"") -> 6.020684398 | AN53: =IFERROR(IF(OR(T53="",'Historical scenario - input'!$D38=""),"",T53/'Historical scenario - input'!$D38),"") -> 5.237681687 | AO53: =IFERROR(IF(OR(U53="",'Historical scenario - input'!$D38=""),"",U53/'Historical scenario - input'!$D38),"") -> 4.624556411 | AP53: =IFERROR(IF(OR(V53="",'Historical scenario - input'!$D38=""),"",V53/'Historical scenario - input'!$D38),"") -> 4.174463927 | AQ53: =IFERROR(IF(OR(W53="",'Historical scenario - input'!$D38=""),"",W53/'Historical scenario - input'!$D38),"") -> 3.879969948
A54: =IFERROR('Historical scenario - input'!A39,"") -> 4 | B54: =IFERROR('Historical scenario - input'!B39,"") -> SWITCHGEAR | C54: =IFERROR('Historical scenario - input'!C39,"") -> > 22 kv & < = 33 kv ; switch | D54: =IFERROR(repcalc('Historical scenario - input'!$CV39:$GH39,'Historical scenario - input'!$G39,'Historical scenario - input'!$E39,'Historical scenario - input'!$F39,20,TRUE,TRUE),"") -> 1479.352179 | E54: 1680.795314 | F54: 1892.332741 | G54: 2110.588934 | H54: 2331.460751 | I54: 2550.210783 | J54: 2761.613712 | K54: 2960.152387 | L54: 3140.255307 | M54: 3296.562379 | N54: 3424.201661 | O54: 3519.057062 | P54: 3578.006004 | Q54: 3599.107283 | R54: 3581.722669 | S54: 3526.561075 | T54: 3435.64077 | U54: 3312.172337 | V54: 3160.372215 | W54: 2985.222636 | X54: =IFERROR(IF(OR(D54="",'Historical scenario - input'!$D39=""),"",D54/'Historical scenario - input'!$D39),"") -> 28.91856291 | Y54: =IFERROR(IF(OR(E54="",'Historical scenario - input'!$D39=""),"",E54/'Historical scenario - input'!$D39),"") -> 32.85639871 | Z54: =IFERROR(IF(OR(F54="",'Historical scenario - input'!$D39=""),"",F54/'Historical scenario - input'!$D39),"") -> 36.991559 | AA54: =IFERROR(IF(OR(G54="",'Historical scenario - input'!$D39=""),"",G54/'Historical scenario - input'!$D39),"") -> 41.25805858 | AB54: =IFERROR(IF(OR(H54="",'Historical scenario - input'!$D39=""),"",H54/'Historical scenario - input'!$D39),"") -> 45.57568871 | AC54: =IFERROR(IF(OR(I54="",'Historical scenario - input'!$D39=""),"",I54/'Historical scenario - input'!$D39),"") -> 49.85184191 | AD54: =IFERROR(IF(OR(J54="",'Historical scenario - input'!$D39=""),"",J54/'Historical scenario - input'!$D39),"") -> 53.98437303 | AE54: =IFERROR(IF(OR(K54="",'Historical scenario - input'!$D39=""),"",K54/'Historical scenario - input'!$D39),"") -> 57.86543207 | AF54: =IFERROR(IF(OR(L54="",'Historical scenario - input'!$D39=""),"",L54/'Historical scenario - input'!$D39),"") -> 61.38610665 | AG54: =IFERROR(IF(OR(M54="",'Historical scenario - input'!$D39=""),"",M54/'Historical scenario - input'!$D39),"") -> 64.441617 | AH54: =IFERROR(IF(OR(N54="",'Historical scenario - input'!$D39=""),"",N54/'Historical scenario - input'!$D39),"") -> 66.93672579 | AI54: =IFERROR(IF(OR(O54="",'Historical scenario - input'!$D39=""),"",O54/'Historical scenario - input'!$D39),"") -> 68.79097111 | AJ54: =IFERROR(IF(OR(P54="",'Historical scenario - input'!$D39=""),"",P54/'Historical scenario - input'!$D39),"") -> 69.94331247 | AK54: =IFERROR(IF(OR(Q54="",'Historical scenario - input'!$D39=""),"",Q54/'Historical scenario - input'!$D39),"") -> 70.35580294 | AL54: =IFERROR(IF(OR(R54="",'Historical scenario - input'!$D39=""),"",R54/'Historical scenario - input'!$D39),"") -> 70.0159663 | AM54: =IFERROR(IF(OR(S54="",'Historical scenario - input'!$D39=""),"",S54/'Historical scenario - input'!$D39),"") -> 68.93766051 | AN54: =IFERROR(IF(OR(T54="",'Historical scenario - input'!$D39=""),"",T54/'Historical scenario - input'!$D39),"") -> 67.16033892 | AO54: =IFERROR(IF(OR(U54="",'Historical scenario - input'!$D39=""),"",U54/'Historical scenario - input'!$D39),"") -> 64.74676243 | AP54: =IFERROR(IF(OR(V54="",'Historical scenario - input'!$D39=""),"",V54/'Historical scenario - input'!$D39),"") -> 61.7793545 | AQ54: =IFERROR(IF(OR(W54="",'Historical scenario - input'!$D39=""),"",W54/'Historical scenario - input'!$D39),"") -> 58.35550846
A55: =IFERROR('Historical scenario - input'!A40,"") -> 4 | B55: =IFERROR('Historical scenario - input'!B40,"") -> SWITCHGEAR | C55: =IFERROR('Historical scenario - input'!C40,"") -> > 33 kv & < = 66 kv ; circuit breaker | D55: =IFERROR(repcalc('Historical scenario - input'!$CV40:$GH40,'Historical scenario - input'!$G40,'Historical scenario - input'!$E40,'Historical scenario - input'!$F40,20,TRUE,TRUE),"") -> 1085.794935 | E55: 1047.633333 | F55: 1122.217874 | G55: 1233.776833 | H55: 1356.408935 | I55: 1481.71833 | J55: 1605.013503 | K55: 1719.87124 | L55: 1817.014228 | M55: 1885.775988 | N55: 1916.951859 | O55: 1905.807214 | P55: 1854.091206 | Q55: 1770.307565 | R55: 1668.139243 | S55: 1563.565856 | T55: 1471.603171 | U55: 1403.606465 | V55: 1365.760931 | W55: 1358.909169 | X55: =IFERROR(IF(OR(D55="",'Historical scenario - input'!$D40=""),"",D55/'Historical scenario - input'!$D40),"") -> 5.629890002 | Y55: =IFERROR(IF(OR(E55="",'Historical scenario - input'!$D40=""),"",E55/'Historical scenario - input'!$D40),"") -> 5.432020576 | Z55: =IFERROR(IF(OR(F55="",'Historical scenario - input'!$D40=""),"",F55/'Historical scenario - input'!$D40),"") -> 5.818744393 | AA55: =IFERROR(IF(OR(G55="",'Historical scenario - input'!$D40=""),"",G55/'Historical scenario - input'!$D40),"") -> 6.397182043 | AB55: =IFERROR(IF(OR(H55="",'Historical scenario - input'!$D40=""),"",H55/'Historical scenario - input'!$D40),"") -> 7.033034376 | AC55: =IFERROR(IF(OR(I55="",'Historical scenario - input'!$D40=""),"",I55/'Historical scenario - input'!$D40),"") -> 7.682768583 | AD55: =IFERROR(IF(OR(J55="",'Historical scenario - input'!$D40=""),"",J55/'Historical scenario - input'!$D40),"") -> 8.322058969 | AE55: =IFERROR(IF(OR(K55="",'Historical scenario - input'!$D40=""),"",K55/'Historical scenario - input'!$D40),"") -> 8.917600911 | AF55: =IFERROR(IF(OR(L55="",'Historical scenario - input'!$D40=""),"",L55/'Historical scenario - input'!$D40),"") -> 9.421291176 | AG55: =IFERROR(IF(OR(M55="",'Historical scenario - input'!$D40=""),"",M55/'Historical scenario - input'!$D40),"") -> 9.777823645 | AH55: =IFERROR(IF(OR(N55="",'Historical scenario - input'!$D40=""),"",N55/'Historical scenario - input'!$D40),"") -> 9.939471778 | AI55: =IFERROR(IF(OR(O55="",'Historical scenario - input'!$D40=""),"",O55/'Historical scenario - input'!$D40),"") -> 9.881686349 | AJ55: =IFERROR(IF(OR(P55="",'Historical scenario - input'!$D40=""),"",P55/'Historical scenario - input'!$D40),"") -> 9.613536786 | AK55: =IFERROR(IF(OR(Q55="",'Historical scenario - input'!$D40=""),"",Q55/'Historical scenario - input'!$D40),"") -> 9.179115269 | AL55: =IFERROR(IF(OR(R55="",'Historical scenario - input'!$D40=""),"",R55/'Historical scenario - input'!$D40),"") -> 8.649368446 | AM55: =IFERROR(IF(OR(S55="",'Historical scenario - input'!$D40=""),"",S55/'Historical scenario - input'!$D40),"") -> 8.10715127 | AN55: =IFERROR(IF(OR(T55="",'Historical scenario - input'!$D40=""),"",T55/'Historical scenario - input'!$D40),"") -> 7.630321081 | AO55: =IFERROR(IF(OR(U55="",'Historical scenario - input'!$D40=""),"",U55/'Historical scenario - input'!$D40),"") -> 7.277755451 | AP55: =IFERROR(IF(OR(V55="",'Historical scenario - input'!$D40=""),"",V55/'Historical scenario - input'!$D40),"") -> 7.08152485 | AQ55: =IFERROR(IF(OR(W55="",'Historical scenario - input'!$D40=""),"",W55/'Historical scenario - input'!$D40),"") -> 7.045998191
A56: =IFERROR('Historical scenario - input'!A41,"") -> 4 | B56: =IFERROR('Historical scenario - input'!B41,"") -> SWITCHGEAR | C56: =IFERROR('Historical scenario - input'!C41,"") -> > 33 kv & < = 66 kv ; switch | D56: =IFERROR(repcalc('Historical scenario - input'!$CV41:$GH41,'Historical scenario - input'!$G41,'Historical scenario - input'!$E41,'Historical scenario - input'!$F41,20,TRUE,TRUE),"") -> 271.0767732 | E56: 297.964224 | F56: 324.439538 | G56: 350.2995626 | H56: 375.4715111 | I56: 400.0323013 | J56: 424.2160596 | K56: 448.4080032 | L56: 473.1240067 | M56: 498.9763229 | N56: 526.6270693 | O56: 556.7321169 | P56: 589.8788779 | Q56: 626.5221463 | R56: 666.9225852 | S56: 711.0926567 | T56: 758.7547431 | U56: 809.3158639 | V56: 861.862727 | W56: 915.1798216 | X56: =IFERROR(IF(OR(D56="",'Historical scenario - input'!$D41=""),"",D56/'Historical scenario - input'!$D41),"") -> 1.786336202 | Y56: =IFERROR(IF(OR(E56="",'Historical scenario - input'!$D41=""),"",E56/'Historical scenario - input'!$D41),"") -> 1.963518578 | Z56: =IFERROR(IF(OR(F56="",'Historical scenario - input'!$D41=""),"",F56/'Historical scenario - input'!$D41),"") -> 2.137985064 | AA56: =IFERROR(IF(OR(G56="",'Historical scenario - input'!$D41=""),"",G56/'Historical scenario - input'!$D41),"") -> 2.308396927 | AB56: =IFERROR(IF(OR(H56="",'Historical scenario - input'!$D41=""),"",H56/'Historical scenario - input'!$D41),"") -> 2.474274521 | AC56: =IFERROR(IF(OR(I56="",'Historical scenario - input'!$D41=""),"",I56/'Historical scenario - input'!$D41),"") -> 2.636124717 | AD56: =IFERROR(IF(OR(J56="",'Historical scenario - input'!$D41=""),"",J56/'Historical scenario - input'!$D41),"") -> 2.795490355 | AE56: =IFERROR(IF(OR(K56="",'Historical scenario - input'!$D41=""),"",K56/'Historical scenario - input'!$D41),"") -> 2.954909932 | AF56: =IFERROR(IF(OR(L56="",'Historical scenario - input'!$D41=""),"",L56/'Historical scenario - input'!$D41),"") -> 3.117782949 | AG56: =IFERROR(IF(OR(M56="",'Historical scenario - input'!$D41=""),"",M56/'Historical scenario - input'!$D41),"") -> 3.288144016 | AH56: =IFERROR(IF(OR(N56="",'Historical scenario - input'!$D41=""),"",N56/'Historical scenario - input'!$D41),"") -> 3.470356342 | AI56: =IFERROR(IF(OR(O56="",'Historical scenario - input'!$D41=""),"",O56/'Historical scenario - input'!$D41),"") -> 3.668741972 | AJ56: =IFERROR(IF(OR(P56="",'Historical scenario - input'!$D41=""),"",P56/'Historical scenario - input'!$D41),"") -> 3.887171822 | AK56: =IFERROR(IF(OR(Q56="",'Historical scenario - input'!$D41=""),"",Q56/'Historical scenario - input'!$D41),"") -> 4.128642887 | AL56: =IFERROR(IF(OR(R56="",'Historical scenario - input'!$D41=""),"",R56/'Historical scenario - input'!$D41),"") -> 4.394872877 | AM56: =IFERROR(IF(OR(S56="",'Historical scenario - input'!$D41=""),"",S56/'Historical scenario - input'!$D41),"") -> 4.685943915 | AN56: =IFERROR(IF(OR(T56="",'Historical scenario - input'!$D41=""),"",T56/'Historical scenario - input'!$D41),"") -> 5.000026562 | AO56: =IFERROR(IF(OR(U56="",'Historical scenario - input'!$D41=""),"",U56/'Historical scenario - input'!$D41),"") -> 5.333213206 | AP56: =IFERROR(IF(OR(V56="",'Historical scenario - input'!$D41=""),"",V56/'Historical scenario - input'!$D41),"") -> 5.679485455 | AQ56: =IFERROR(IF(OR(W56="",'Historical scenario - input'!$D41=""),"",W56/'Historical scenario - input'!$D41),"") -> 6.03083336
A57: =IFERROR('Historical scenario - input'!A42,"") -> 4 | B57: =IFERROR('Historical scenario - input'!B42,"") -> SWITCHGEAR | C57: =IFERROR('Historical scenario - input'!C42,"") -> > 66 kv & < = 132 kv ; circuit breaker | D57: =IFERROR(repcalc('Historical scenario - input'!$CV42:$GH42,'Historical scenario - input'!$G42,'Historical scenario - input'!$E42,'Historical scenario - input'!$F42,20,TRUE,TRUE),"") -> 1223.205191 | E57: 846.2235008 | F57: 617.9038959 | G57: 480.6890696 | H57: 399.6777193 | I57: 354.584576 | J57: 334.4949477 | K57: 334.4772685 | L57: 353.404115 | M57: 392.5477518 | N57: 454.6683487 | O57: 543.4150761 | P57: 662.9258772 | Q57: 817.5520719 | R57: 1011.657513 | S57: 1249.454904 | T57: 1534.848521 | U57: 1871.256326 | V57: 2261.388041 | W57: 2706.961336 | X57: =IFERROR(IF(OR(D57="",'Historical scenario - input'!$D42=""),"",D57/'Historical scenario - input'!$D42),"") -> 3.392165519 | Y57: =IFERROR(IF(OR(E57="",'Historical scenario - input'!$D42=""),"",E57/'Historical scenario - input'!$D42),"") -> 2.346728252 | Z57: =IFERROR(IF(OR(F57="",'Historical scenario - input'!$D42=""),"",F57/'Historical scenario - input'!$D42),"") -> 1.713557386 | AA57: =IFERROR(IF(OR(G57="",'Historical scenario - input'!$D42=""),"",G57/'Historical scenario - input'!$D42),"") -> 1.333036271 | AB57: =IFERROR(IF(OR(H57="",'Historical scenario - input'!$D42=""),"",H57/'Historical scenario - input'!$D42),"") -> 1.108377391 | AC57: =IFERROR(IF(OR(I57="",'Historical scenario - input'!$D42=""),"",I57/'Historical scenario - input'!$D42),"") -> 0.9833260853 | AD57: =IFERROR(IF(OR(J57="",'Historical scenario - input'!$D42=""),"",J57/'Historical scenario - input'!$D42),"") -> 0.9276139735 | AE57: =IFERROR(IF(OR(K57="",'Historical scenario - input'!$D42=""),"",K57/'Historical scenario - input'!$D42),"") -> 0.9275649459 | AF57: =IFERROR(IF(OR(L57="",'Historical scenario - input'!$D42=""),"",L57/'Historical scenario - input'!$D42),"") -> 0.9800524569 | AG57: =IFERROR(IF(OR(M57="",'Historical scenario - input'!$D42=""),"",M57/'Historical scenario - input'!$D42),"") -> 1.088604723 | AH57: =IFERROR(IF(OR(N57="",'Historical scenario - input'!$D42=""),"",N57/'Historical scenario - input'!$D42),"") -> 1.260876185 | AI57: =IFERROR(IF(OR(O57="",'Historical scenario - input'!$D42=""),"",O57/'Historical scenario - input'!$D42),"") -> 1.506986642 | AJ57: =IFERROR(IF(OR(P57="",'Historical scenario - input'!$D42=""),"",P57/'Historical scenario - input'!$D42),"") -> 1.838411346 | AK57: =IFERROR(IF(OR(Q57="",'Historical scenario - input'!$D42=""),"",Q57/'Historical scenario - input'!$D42),"") -> 2.267217281 | AL57: =IFERROR(IF(OR(R57="",'Historical scenario - input'!$D42=""),"",R57/'Historical scenario - input'!$D42),"") -> 2.805506187 | AM57: =IFERROR(IF(OR(S57="",'Historical scenario - input'!$D42=""),"",S57/'Historical scenario - input'!$D42),"") -> 3.464960639 | AN57: =IFERROR(IF(OR(T57="",'Historical scenario - input'!$D42=""),"",T57/'Historical scenario - input'!$D42),"") -> 4.256407891 | AO57: =IFERROR(IF(OR(U57="",'Historical scenario - input'!$D42=""),"",U57/'Historical scenario - input'!$D42),"") -> 5.189326559 | AP57: =IFERROR(IF(OR(V57="",'Historical scenario - input'!$D42=""),"",V57/'Historical scenario - input'!$D42),"") -> 6.271231181 | AQ57: =IFERROR(IF(OR(W57="",'Historical scenario - input'!$D42=""),"",W57/'Historical scenario - input'!$D42),"") -> 7.506885164
A58: =IFERROR('Historical scenario - input'!A43,"") -> 4 | B58: =IFERROR('Historical scenario - input'!B43,"") -> SWITCHGEAR | C58: =IFERROR('Historical scenario - input'!C43,"") -> > 66 kv & < = 132 kv ; switch | D58: =IFERROR(repcalc('Historical scenario - input'!$CV43:$GH43,'Historical scenario - input'!$G43,'Historical scenario - input'!$E43,'Historical scenario - input'!$F43,20,TRUE,TRUE),"") -> 2392.212382 | E58: 2539.974577 | F58: 2676.571621 | G58: 2800.189438 | H58: 2909.273709 | I58: 3002.56149 | J58: 3079.112908 | K58: 3138.342649 | L58: 3180.048679 | M58: 3204.433604 | N58: 3212.112721 | O58: 3204.102731 | P58: 3181.786324 | Q58: 3146.850431 | R58: 3101.199548 | S58: 3046.84953 | T58: 2985.81105 | U58: 2919.974753 | V58: 2851.01149 | W58: 2780.300475 | X58: =IFERROR(IF(OR(D58="",'Historical scenario - input'!$D43=""),"",D58/'Historical scenario - input'!$D43),"") -> 15.76415246 | Y58: =IFERROR(IF(OR(E58="",'Historical scenario - input'!$D43=""),"",E58/'Historical scenario - input'!$D43),"") -> 16.73787277 | Z58: =IFERROR(IF(OR(F58="",'Historical scenario - input'!$D43=""),"",F58/'Historical scenario - input'!$D43),"") -> 17.63801718 | AA58: =IFERROR(IF(OR(G58="",'Historical scenario - input'!$D43=""),"",G58/'Historical scenario - input'!$D43),"") -> 18.45263136 | AB58: =IFERROR(IF(OR(H58="",'Historical scenario - input'!$D43=""),"",H58/'Historical scenario - input'!$D43),"") -> 19.17147267 | AC58: =IFERROR(IF(OR(I58="",'Historical scenario - input'!$D43=""),"",I58/'Historical scenario - input'!$D43),"") -> 19.78621859 | AD58: =IFERROR(IF(OR(J58="",'Historical scenario - input'!$D43=""),"",J58/'Historical scenario - input'!$D43),"") -> 20.29067557 | AE58: =IFERROR(IF(OR(K58="",'Historical scenario - input'!$D43=""),"",K58/'Historical scenario - input'!$D43),"") -> 20.68098651 | AF58: =IFERROR(IF(OR(L58="",'Historical scenario - input'!$D43=""),"",L58/'Historical scenario - input'!$D43),"") -> 20.95582006 | AG58: =IFERROR(IF(OR(M58="",'Historical scenario - input'!$D43=""),"",M58/'Historical scenario - input'!$D43),"") -> 21.11651134 | AH58: =IFERROR(IF(OR(N58="",'Historical scenario - input'!$D43=""),"",N58/'Historical scenario - input'!$D43),"") -> 21.16711502 | AI58: =IFERROR(IF(OR(O58="",'Historical scenario - input'!$D43=""),"",O58/'Historical scenario - input'!$D43),"") -> 21.11433096 | AJ58: =IFERROR(IF(OR(P58="",'Historical scenario - input'!$D43=""),"",P58/'Historical scenario - input'!$D43),"") -> 20.96727075 | AK58: =IFERROR(IF(OR(Q58="",'Historical scenario - input'!$D43=""),"",Q58/'Historical scenario - input'!$D43),"") -> 20.73705091 | AL58: =IFERROR(IF(OR(R58="",'Historical scenario - input'!$D43=""),"",R58/'Historical scenario - input'!$D43),"") -> 20.43622166 | AM58: =IFERROR(IF(OR(S58="",'Historical scenario - input'!$D43=""),"",S58/'Historical scenario - input'!$D43),"") -> 20.07806702 | AN58: =IFERROR(IF(OR(T58="",'Historical scenario - input'!$D43=""),"",T58/'Historical scenario - input'!$D43),"") -> 19.67583688 | AO58: =IFERROR(IF(OR(U58="",'Historical scenario - input'!$D43=""),"",U58/'Historical scenario - input'!$D43),"") -> 19.24199019 | AP58: =IFERROR(IF(OR(V58="",'Historical scenario - input'!$D43=""),"",V58/'Historical scenario - input'!$D43),"") -> 18.78753748 | AQ58: =IFERROR(IF(OR(W58="",'Historical scenario - input'!$D43=""),"",W58/'Historical scenario - input'!$D43),"") -> 18.32156747
A59: =IFERROR('Historical scenario - input'!A44,"") -> 5 | B59: =IFERROR('Historical scenario - input'!B44,"") -> TRANSFORMERS | C59: =IFERROR('Historical scenario - input'!C44,"") -> ground outdoor / indoor chamber mounted ; ˂ 22 kv ; < = 60 kva ; multiple phase | D59: =IFERROR(repcalc('Historical scenario - input'!$CV44:$GH44,'Historical scenario - input'!$G44,'Historical scenario - input'!$E44,'Historical scenario - input'!$F44,20,TRUE,TRUE),"") -> 2.251589887e-09 | E59: 5.088356603e-09 | F59: 1.131724749e-08 | G59: 2.477302955e-08 | H59: 5.336941874e-08 | I59: 1.131568582e-07 | J59: 2.361262962e-07 | K59: 4.849343028e-07 | L59: 9.801590263e-07 | M59: 1.949778505e-06 | N59: 3.817236954e-06 | O59: 7.355091448e-06 | P59: 1.394768593e-05 | Q59: 2.603103145e-05 | R59: 4.781407273e-05 | S59: 8.643611743e-05 | T59: 0.000153783565 | U59: 0.0002692773144 | V59: 0.0004640500105 | W59: 0.0007870548351 | X59: =IFERROR(IF(OR(D59="",'Historical scenario - input'!$D44=""),"",D59/'Historical scenario - input'!$D44),"") -> 5.9227537e-11 | Y59: =IFERROR(IF(OR(E59="",'Historical scenario - input'!$D44=""),"",E59/'Historical scenario - input'!$D44),"") -> 1.338480114e-10 | Z59: =IFERROR(IF(OR(F59="",'Historical scenario - input'!$D44=""),"",F59/'Historical scenario - input'!$D44),"") -> 2.976975062e-10 | AA59: =IFERROR(IF(OR(G59="",'Historical scenario - input'!$D44=""),"",G59/'Historical scenario - input'!$D44),"") -> 6.51648656e-10 | AB59: =IFERROR(IF(OR(H59="",'Historical scenario - input'!$D44=""),"",H59/'Historical scenario - input'!$D44),"") -> 1.403869879e-09 | AC59: =IFERROR(IF(OR(I59="",'Historical scenario - input'!$D44=""),"",I59/'Historical scenario - input'!$D44),"") -> 2.976564268e-09 | AD59: =IFERROR(IF(OR(J59="",'Historical scenario - input'!$D44=""),"",J59/'Historical scenario - input'!$D44),"") -> 6.211246118e-09 | AE59: =IFERROR(IF(OR(K59="",'Historical scenario - input'!$D44=""),"",K59/'Historical scenario - input'!$D44),"") -> 1.275608161e-08 | AF59: =IFERROR(IF(OR(L59="",'Historical scenario - input'!$D44=""),"",L59/'Historical scenario - input'!$D44),"") -> 2.57828503e-08 | AG59: =IFERROR(IF(OR(M59="",'Historical scenario - input'!$D44=""),"",M59/'Historical scenario - input'!$D44),"") -> 5.12884603e-08 | AH59: =IFERROR(IF(OR(N59="",'Historical scenario - input'!$D44=""),"",N59/'Historical scenario - input'!$D44),"") -> 1.004115111e-07 | AI59: =IFERROR(IF(OR(O59="",'Historical scenario - input'!$D44=""),"",O59/'Historical scenario - input'!$D44),"") -> 1.934739329e-07 | AJ59: =IFERROR(IF(OR(P59="",'Historical scenario - input'!$D44=""),"",P59/'Historical scenario - input'!$D44),"") -> 3.668905644e-07 | AK59: =IFERROR(IF(OR(Q59="",'Historical scenario - input'!$D44=""),"",Q59/'Historical scenario - input'!$D44),"") -> 6.847400973e-07 | AL59: =IFERROR(IF(OR(R59="",'Historical scenario - input'!$D44=""),"",R59/'Historical scenario - input'!$D44),"") -> 1.257737822e-06 | AM59: =IFERROR(IF(OR(S59="",'Historical scenario - input'!$D44=""),"",S59/'Historical scenario - input'!$D44),"") -> 2.273681531e-06 | AN59: =IFERROR(IF(OR(T59="",'Historical scenario - input'!$D44=""),"",T59/'Historical scenario - input'!$D44),"") -> 4.045240139e-06 | AO59: =IFERROR(IF(OR(U59="",'Historical scenario - input'!$D44=""),"",U59/'Historical scenario - input'!$D44),"") -> 7.083275773e-06 | AP59: =IFERROR(IF(OR(V59="",'Historical scenario - input'!$D44=""),"",V59/'Historical scenario - input'!$D44),"") -> 1.220672527e-05 | AQ59: =IFERROR(IF(OR(W59="",'Historical scenario - input'!$D44=""),"",W59/'Historical scenario - input'!$D44),"") -> 2.070329043e-05
A60: =IFERROR('Historical scenario - input'!A45,"") -> 5 | B60: =IFERROR('Historical scenario - input'!B45,"") -> TRANSFORMERS | C60: =IFERROR('Historical scenario - input'!C45,"") -> ground outdoor / indoor chamber mounted ; ˂ 22 kv ; > 60 kva and < = 600 kva ; multiple phase | D60: =IFERROR(repcalc('Historical scenario - input'!$CV45:$GH45,'Historical scenario - input'!$G45,'Historical scenario - input'!$E45,'Historical scenario - input'!$F45,20,TRUE,TRUE),"") -> 1932.921455 | E60: 1771.065071 | F60: 1630.659339 | G60: 1508.394714 | H60: 1401.780386 | I60: 1308.851529 | J60: 1227.940296 | K60: 1157.514202 | L60: 1096.078186 | M60: 1042.131542 | N60: 994.1680011 | O60: 950.7060593 | P60: 910.3369578 | Q60: 871.7789869 | R60: 833.928756 | S60: 795.9023896 | T60: 757.0620319 | U60: 717.0253857 | V60: 675.6581174 | W60: 633.0507298 | X60: =IFERROR(IF(OR(D60="",'Historical scenario - input'!$D45=""),"",D60/'Historical scenario - input'!$D45),"") -> 50.84503962 | Y60: =IFERROR(IF(OR(E60="",'Historical scenario - input'!$D45=""),"",E60/'Historical scenario - input'!$D45),"") -> 46.58744589 | Z60: =IFERROR(IF(OR(F60="",'Historical scenario - input'!$D45=""),"",F60/'Historical scenario - input'!$D45),"") -> 42.89410645 | AA60: =IFERROR(IF(OR(G60="",'Historical scenario - input'!$D45=""),"",G60/'Historical scenario - input'!$D45),"") -> 39.67796455 | AB60: =IFERROR(IF(OR(H60="",'Historical scenario - input'!$D45=""),"",H60/'Historical scenario - input'!$D45),"") -> 36.87349998 | AC60: =IFERROR(IF(OR(I60="",'Historical scenario - input'!$D45=""),"",I60/'Historical scenario - input'!$D45),"") -> 34.42902849 | AD60: =IFERROR(IF(OR(J60="",'Historical scenario - input'!$D45=""),"",J60/'Historical scenario - input'!$D45),"") -> 32.30067773 | AE60: =IFERROR(IF(OR(K60="",'Historical scenario - input'!$D45=""),"",K60/'Historical scenario - input'!$D45),"") -> 30.44813607 | AF60: =IFERROR(IF(OR(L60="",'Historical scenario - input'!$D45=""),"",L60/'Historical scenario - input'!$D45),"") -> 28.83207624 | AG60: =IFERROR(IF(OR(M60="",'Historical scenario - input'!$D45=""),"",M60/'Historical scenario - input'!$D45),"") -> 27.4130226 | AH60: =IFERROR(IF(OR(N60="",'Historical scenario - input'!$D45=""),"",N60/'Historical scenario - input'!$D45),"") -> 26.15135305 | AI60: =IFERROR(IF(OR(O60="",'Historical scenario - input'!$D45=""),"",O60/'Historical scenario - input'!$D45),"") -> 25.008097 | AJ60: =IFERROR(IF(OR(P60="",'Historical scenario - input'!$D45=""),"",P60/'Historical scenario - input'!$D45),"") -> 23.94619738 | AK60: =IFERROR(IF(OR(Q60="",'Historical scenario - input'!$D45=""),"",Q60/'Historical scenario - input'!$D45),"") -> 22.93193911 | AL60: =IFERROR(IF(OR(R60="",'Historical scenario - input'!$D45=""),"",R60/'Historical scenario - input'!$D45),"") -> 21.93629778 | AM60: =IFERROR(IF(OR(S60="",'Historical scenario - input'!$D45=""),"",S60/'Historical scenario - input'!$D45),"") -> 20.93602325 | AN60: =IFERROR(IF(OR(T60="",'Historical scenario - input'!$D45=""),"",T60/'Historical scenario - input'!$D45),"") -> 19.91433687 | AO60: =IFERROR(IF(OR(U60="",'Historical scenario - input'!$D45=""),"",U60/'Historical scenario - input'!$D45),"") -> 18.8611824 | AP60: =IFERROR(IF(OR(V60="",'Historical scenario - input'!$D45=""),"",V60/'Historical scenario - input'!$D45),"") -> 17.77302624 | AQ60: =IFERROR(IF(OR(W60="",'Historical scenario - input'!$D45=""),"",W60/'Historical scenario - input'!$D45),"") -> 16.65224903
